Workbook

Sheet Liste (hidden)
A1: Période arrêté | B1: 202106 | F1: Agences supprimées automatiquement des requêtes du reporting ce mois-ci. Liste ci-contre mise à jour. | P1: =+LEFT(RIGHT(RIGHT(LEFT(CELL("nomfichier",A1),FIND("]",CELL("nomfichier",A1),1)-1),FIND("]",CELL("nomfichier",A1),1)-FIND("[",CELL("nomfichier",A1),1)-1),11),6) -> 202106
B4: AIX EN OTHE | C4: 10583 | F4: 5705 | G4: EXPERTS CREDIT IMMO | J4: 61 | K4: HAGUENAU MARXENHOUSE | N4: A voir avec Guillaume
B5: ALTKIRCH | C5: 189 | F5: 51390 | G5: FERE CHAMPENOISE | J5: 36 | K5: HOENHEIM RIED
B6: ARCIS SUR AUBE | C6: 10530 | F6: 57613 | G6: SARRALBE | J6: 151 | K6: TURCKHEIM
B7: ARS SUR MOSELLE | C7: 57105
B8: AUDUN LE TICHE | C8: 57113 | F8: ATTENTION :
B9: AY CHAMPAGNE | C9: 51367 | F9: 1/ Revoir la requête en excluant ces agences
B10: BACCARAT | C10: 54116 | F10: 2/ Revoir les liaisons dans l'onglet "Rapport 5" car des lignes ont été supprimées à la main.
B11: BAR LE DUC | C11: 55151
B12: BAR SUR AUBE | C12: 10550
B13: BAR SUR SEINE | C13: 10556
B14: BARR | C14: 113 | F14: Agences supprimées en 202102
B15: BAYON | C15: 54161 | F15: EDS | G15: PDV | H15: Agence Multisite | I15: Territoire | J15: Région | K15: Type de site | L15: Situation au 31/12/20
B16: BEHREN LES FORBACH | C16: 57163 | F16: 65 | G16: WEITBRUCH | I16: HAGUENAU | J16: BAS RHIN | K16: Rattaché | L16: Fermée | M16: Ok Fb remises commerciales
B17: BENFELD | C17: 111 | F17: 8814 | G17: VRIGNE AUX BOIS | I17: CHARLEVILLE MEZIERES | J17: MARNE ARDENNES | K17: Autonome | L17: Fermée | M17: Ok Fb remises commerciales
B18: BETHENY | C18: 51340 | F18: 54431 | G18: LUNEVILLE CHATEAU | I18: NANCY | J18: MEURTHE ET MOSELLE MEUSE | K18: Autonome | L18: Fermée | M18: Ok Fb remises commerciales
B19: BETSCHDORF | C19: 76 | F19: 93 | G19: MARMOUTIER | I19: HAGUENAU | J19: BAS RHIN | K19: Rattaché | L19: Fermée | M19: Ok Fb remises commerciales
B20: BISCHHEIM | C20: 28 | F20: 187 | G20: HUNINGUE | I20: MULHOUSE | J20: HAUT RHIN | K20: Rattaché | L20: Fermée | M20: Ok Fb remises commerciales
B21: BISCHWILLER | C21: 57 | F21: 88346 | G21: GRANGES AUMONTZEY | I21: SAINT DIE | J21: VOSGES | K21: Autonome | L21: Fermée | M21: Ok Fb remises commerciales
B22: BITCHE | C22: 57165 | F22: 57345 | G22: GROSBLIEDERSTROFF | I22: MOSELLE EST | J22: MOSELLE | K22: Autonome | L22: Fermée | M22: Ok Fb remises commerciales
B23: BLAINVILLE | C23: 54166 | F23: 110 | G23: SELESTAT OUEST | I23: SELESTAT | J23: BAS RHIN | K23: Autonome | L23: Fermée | M23: Ok Fb remises commerciales
B24: BLAMONT | C24: 54171 | F24: 57353 | G24: HOMBOURG HAUT | I24: MOSELLE EST | J24: MOSELLE | K24: Autonome | L24: Fermée | M24: Ok Fb remises commerciales
B25: BOULAY | C25: 57178 | F25: 59 | G25: HERRLISHEIM | I25: HAGUENAU | J25: BAS RHIN | K25: Rattaché | L25: Fermée | M25: Ok Fb remises commerciales
B26: BOURBONNE LES BAINS | C26: 10560 | F26: 134 | G26: COLMAR SAINT JOSEPH | I26: COLMAR | J26: HAUT RHIN | K26: Autonome | L26: Fermée | M26: Ok Fb remises commerciales
B27: BOUSSE | C27: 57180 | F27: 133 | G27: COLMAR VAUBAN | I27: COLMAR | J27: HAUT RHIN | K27: Autonome | L27: Fermée | M27: Ok Fb remises commerciales
B28: BOUXWILLER | C28: 82 | F28: 169 | G28: MULHOUSE ROOSEVELT | I28: MULHOUSE | J28: HAUT RHIN | K28: Autonome | L28: Fermée | M28: Ok Fb remises commerciales
B29: BOUZONVILLE | C29: 57182 | F29: 86 | G29: WINGEN SUR MODER | I29: HAGUENAU | J29: BAS RHIN | K29: Rattaché | L29: Fermée | M29: Ok Fb remises commerciales
B30: BRIENNE LE CHATEAU | C30: 10551 | F30: 167 | G30: LIEPVRE | I30: COLMAR | J30: HAUT RHIN | K30: Rattaché | L30: Fermée | M30: Ok Fb remises commerciales
B31: BRIEY | C31: 54184 | F31: 57634 | G31: THIONVILLE LA MILLIAIRE | I31: MOSELLE NORD | J31: MOSELLE | K31: Autonome | L31: Fermée | M31: Ok Fb remises commerciales
B32: BRUMATH | C32: 30 | F32: 154 | G32: LAPOUTROIE | I32: COLMAR | J32: HAUT RHIN | K32: Rattaché | L32: Fermée | M32: Ok Fb remises commerciales
B33: BRUNSTATT | C33: 186 | F33: 89 | G33: DIEMERINGEN | I33: HAGUENAU | J33: BAS RHIN | K33: Rattaché | L33: Fermée | M33: Ok Fb remises commerciales
B34: BRUYERES | C34: 88186 | F34: 78 | G34: LAUTERBOURG | I34: HAGUENAU | J34: BAS RHIN | K34: Rattaché | L34: Fermée | M34: Ok Fb remises commerciales
B35: CARIGNAN | C35: 8815 | F35: 13 | G35: ILLKIRCH NORD | I35: SELESTAT | J35: BAS RHIN | K35: Rattaché | L35: Fermée | M35: Ok Fb remises commerciales
B36: CATTENOM | C36: 57192 | F36: 14 | G36: OSTWALD | I36: SELESTAT | J36: BAS RHIN | K36: Rattaché | L36: Fermée | M36: Ok Fb remises commerciales
B37: CERNAY | C37: 195
B38: CHALIGNY NEUVES MAISONS | C38: 54506
B39: CHALINDREY | C39: 10558
B40: CHALONS ROOSEVELT | C40: 51110 | F40: 2021-05-17
B41: CHALONS VIVIERS | C41: 51101 | F41: Supression manuelle eds 171 Mulhouse Sauvage
B42: CHAMPIGNEULLES | C42: 54196 | F42: Ressorti dans la requête, pour une raison inconnu car tout à zéro.
B43: CHANTRAINE | C43: 88201
B44: CHARLEVILLE JEAN JAURES | C44: 8801
B45: CHARLEVILLE MEZIERES | C45: 8822 | F45: 2021-06-21
B46: CHARLEVILLE MOHON | C46: 8817 | F46: Supression manuelle eds 171 Mulhouse Sauvage
B47: CHARLEVILLE NEVERS | C47: 8802 | F47: Ressorti dans la requête, pour une raison inconnu car tout à zéro.
B48: CHARMES | C48: 88206
B49: CHATEAU SALINS | C49: 57210
B50: CHATENOIS | C50: 108 | F50: Agences supprimées en 202102
B51: CHAUMONT HOTEL DE VILLE | C51: 10566 | F51: EDS | G51: PDV | H51: Agence Multisite | I51: Territoire | J51: Région
B52: CHAUMONT REPUBLIQUE | C52: 10590 | F52: 50 | G52: STRASBOURG GARE | H52: STRASBOURG HALLES | I52: STRASBOURG | J52: BAS RHIN
B53: CLOUANGE | C53: 57224 | F53: 64 | G53: HAGUENAU MUSAU | H53: HAGUENAU HOUBLON | I53: HAGUENAU | J53: BAS RHIN
B54: COLMAR MARAICHERS | C54: 132 | F54: 10539 | G54: CHATEAUVILLAIN | H54: CHAUMONT HOTEL DE VILLE | I54: CHAUMONT | J54: AUBE HAUTE MARNE
B55: COLMAR REPUBLIQUE | C55: 130 | F55: 54466 | G55: NANCY PLATEAU DE HAYE | H55: NANCY PLATEAU DE HAYE | I55: PONT A MOUSSON | J55: MEURTHE ET MOSELLE MEUSE
B56: COLMAR SAINTE MARIE | C56: 135 | F56: 88216 | G56: CHATENOIS VOSGES | H56: CHATENOIS VOSGES | I56: EPINAL | J56: VOSGES
B57: COMMERCY | C57: 55231
B58: CORNIMONT LA BRESSE | C58: 88246
B59: CREUTZWALD | C59: 57250
B60: DAMERY | C60: 51369
B61: DANNEMARIE | C61: 193
B62: DARNEY | C62: 88256
B63: DIEULOUARD | C63: 54257
B64: DIEUZE | C64: 57258
B65: DOCELLES | C65: 88261
B66: DOMBASLE SUR MEURTHE | C66: 54266
B67: DORMANS | C67: 51365
B68: DRUSENHEIM | C68: 58
B69: ECKBOLSHEIM | C69: 40
B70: ELOYES | C70: 88281
B71: ENSISHEIM | C71: 162
B72: EPERNAY | C72: 51370
B73: EPINAL ARISTIDE BRIAND | C73: 88286
B74: EPINAL AVRINSART | C74: 88291
B75: EPINAL LEOPOLD BOURG | C75: 88288
B76: ERSTEIN | C76: 104
B77: ESPACE MESANGE | C77: 18
B78: ESSEY LES NANCY | C78: 54296
B79: ETAIN | C79: 55298
B80: EXPERTS DIRECT | C80: 5800
B81: FAGNIERES LECLERC | C81: 51103
B82: FAMECK | C82: 57303
B83: FAULQUEMONT | C83: 57305
B84: FEGERSHEIM | C84: 8
B85: FERRETTE | C85: 191
B86: FISMES | C86: 51314
B87: FLORANGE | C87: 57306
B88: FONTOY | C88: 57307
B89: FORBACH CENTRALE | C89: 57308
B90: FRAIZE | C90: 88316
B91: FROUARD | C91: 54321
B92: GERARDMER | C92: 88326
B93: GIVET | C93: 8839
B94: GOLBEY | C94: 88336
B95: GUEBWILLER | C95: 147
B96: GUENANGE | C96: 57347
B97: GUNDERSHOFFEN | C97: 70
B98: HAGONDANGE | C98: 57348
B99: HAGUENAU HOUBLON | C99: 60
B100: HAYANGE | C100: 57350
B101: HETTANGE GRANDE | C101: 57352
B102: HOCHFELDEN | C102: 92
B103: HOERDT | C103: 41
B104: HORBOURG WIHR | C104: 141
B105: ILLKIRCH CENTRE | C105: 7
B106: ILLZACH | C106: 184
B107: INGERSHEIM | C107: 139
B108: INGWILLER | C108: 85
B109: JARNY | C109: 54355
B110: JARVILLE LA MALGRANGE | C110: 54356
B111: JOEUF | C111: 54357
B112: JOINVILLE | C112: 51154
B113: KAYSERSBERG | C113: 152
B114: LA CHAPELLE ST LUC | C114: 10523
B115: LA WANTZENAU | C115: 33
B116: LANGRES | C116: 10541
B117: LAXOU ARISTIDE BRIAND | C117: 54381
B118: LAXOU SAPINIERE | C118: 54376
B119: LE THILLOT | C119: 88386
B120: LE VAL D AJOL | C120: 88396
B121: LIGNY EN BARROIS | C121: 55406
B122: LINGOLSHEIM | C122: 15
B123: LONGUYON | C123: 54412
B124: LONGWY BAS | C124: 54413
B125: LONGWY HAUT | C125: 54414
B126: LUDRES | C126: 54416
B127: LUNEVILLE CARNOT | C127: 54426
B128: MAIZIERES LES METZ | C128: 57432
B129: MARANGE SILVANGE | C129: 57433
B130: MARCKOLSHEIM | C130: 109
B131: MARLENHEIM | C131: 129
B132: MARLY | C132: 57434
B133: MASEVAUX | C133: 196
B134: MERLEBACH | C134: 57435
B135: METZ CATHEDRALE | C135: 57436
B136: METZ MOZART | C136: 57440
B137: METZ PLAPPEVILLE | C137: 57441
B138: METZ POMPIDOU | C138: 57439
B139: METZ REPUBLIQUE | C139: 57443
B140: METZ SAINT LIVIER | C140: 57445
B141: METZ SAINT LOUIS | C141: 57446
B142: METZ SAINT MAXIMIN | C142: 57447
B143: METZ SARRE | C143: 57437
B144: METZERVISSE | C144: 57449
B145: MIRECOURT | C145: 88451
B146: MOLSHEIM | C146: 116
B147: MON AGENCE | C147: 17
B148: MON BANQUIER EN LIGNE | C148: 57880
B149: MONTIGNY LES METZ | C149: 57453
B150: MONTMEDY | C150: 55456
B151: MONTMIRAIL | C151: 51330
B152: MORHANGE | C152: 57458
B153: MOULINS LES METZ | C153: 57459
B154: MOURMELON LE GRAND | C154: 51115
B155: MOUZON | C155: 8819
B156: MOYENMOUTIER | C156: 88461
B157: MULHOUSE DORNACH | C157: 174
B158: MULHOUSE REUNION | C158: 170
B159: MUNDOLSHEIM | C159: 37
B160: MUNSTER | C160: 143
B161: MUNTZENHEIM | C161: 159
B162: MUTZIG | C162: 126
B163: NANCY ARTEM | C163: 54476
B164: NANCY JEAN JAURES | C164: 54471
B165: NANCY PLACE DOMBASLE | C165: 54481
B166: NANCY POINT CENTRAL | C166: 54486
B167: NANCY SAINT SEBASTIEN | C167: 54491
B168: NANCY TROIS MAISONS | C168: 54496
B169: NEUF BRISACH | C169: 157
B170: NEUFCHATEAU | C170: 88501
B171: NEUNKIRCH | C171: 57503
B172: NIEDERBRONN LES BAINS | C172: 66
B173: NILVANGE | C173: 57508
B174: NOGENT | C174: 10582
B175: NOGENT SUR SEINE | C175: 10570
B176: NOMEXY | C176: 88511
B177: OBERHAUSBERGEN | C177: 38
B178: OBERNAI | C178: 119
B179: ORBEY | C179: 148
B180: PAGNY SUR MOSELLE | C180: 54516
B181: PFAFFENHOFFEN | C181: 67
B182: PFASTATT | C182: 188
B183: PHALSBOURG | C183: 57523
B184: PIENNES | C184: 54525
B185: PIERRY LECLERC | C185: 51361
B186: POMPEY | C186: 54531
B187: PONT A MOUSSON BREUIL | C187: 54533
B188: PONT A MOUSSON CENTRALE | C188: 54535
B189: PULVERSHEIM | C189: 163
B190: PUTTELANGE AUX LACS | C190: 57543
B191: RAMBERVILLERS | C191: 88551
B192: RAON L ETAPE | C192: 88556
B193: REICHSHOFFEN | C193: 68
B194: REICHSTETT | C194: 39
B195: REIMS CENTRE VILLE | C195: 51350
B196: REIMS CHATILLONS | C196: 51310
B197: REIMS EUROPE | C197: 51309
B198: REIMS HIPPODROME | C198: 51305
B199: REIMS HOTEL DE VILLE | C199: 51301
B200: REIMS JEAN JAURES | C200: 51341
B201: REIMS SAINT MARCEAUX | C201: 51306
B202: REIMS SAINT REMI | C202: 51349
... 112 more rows

Sheet Remises libres (hidden)
A2: ='[1]Remises libres'!A2 -> Code Structure Domiciliation | B2: ='[1]Remises libres'!B2 -> DOM Desg Cour Eds | C2: ='[1]Remises libres'!C2 -> DOM Idnt Extr Eds Niv5 | D2: ='[1]Remises libres'!D2 -> DOM Desg Cour Eds Niv5 | E2: ='[1]Remises libres'!E2 -> DOM Idnt Extr Eds Niv6 | F2: ='[1]Remises libres'!F2 -> DOM Desg Cour Eds Niv6 | G2: ='[1]Remises libres'!G2 -> DOM Idnt Extr Eds Niv7 | H2: ='[1]Remises libres'!H2 -> DOM Desg Cour Eds Niv7 | I2: ='[1]Remises libres'!I2 -> Mt Remises
A3: ='[1]Remises libres'!A3 -> 6 | B3: ='[1]Remises libres'!B3 -> STRASBOURG NEUDORF | C3: ='[1]Remises libres'!C3 -> 4006 | D3: ='[1]Remises libres'!D3 -> STRASBOURG NEUDORF | E3: ='[1]Remises libres'!E3 -> 5006 | F3: ='[1]Remises libres'!F3 -> STRASBOURG | G3: ='[1]Remises libres'!G3 -> 262 | H3: ='[1]Remises libres'!H3 -> BAS RHIN | I3: ='[1]Remises libres'!I3 -> 2069.06
A4: ='[1]Remises libres'!A4 -> 7 | B4: ='[1]Remises libres'!B4 -> ILLKIRCH CENTRE | C4: ='[1]Remises libres'!C4 -> 4007 | D4: ='[1]Remises libres'!D4 -> ILLKIRCH CENTRE | E4: ='[1]Remises libres'!E4 -> 5101 | F4: ='[1]Remises libres'!F4 -> SELESTAT | G4: ='[1]Remises libres'!G4 -> 262 | H4: ='[1]Remises libres'!H4 -> BAS RHIN | I4: ='[1]Remises libres'!I4 -> 956.12
A5: ='[1]Remises libres'!A5 -> 8 | B5: ='[1]Remises libres'!B5 -> FEGERSHEIM | C5: ='[1]Remises libres'!C5 -> 4008 | D5: ='[1]Remises libres'!D5 -> FEGERSHEIM | E5: ='[1]Remises libres'!E5 -> 5101 | F5: ='[1]Remises libres'!F5 -> SELESTAT | G5: ='[1]Remises libres'!G5 -> 262 | H5: ='[1]Remises libres'!H5 -> BAS RHIN | I5: ='[1]Remises libres'!I5 -> 706.63
A6: ='[1]Remises libres'!A6 -> 10 | B6: ='[1]Remises libres'!B6 -> STRASBOURG MEINAU | C6: ='[1]Remises libres'!C6 -> 4010 | D6: ='[1]Remises libres'!D6 -> STRASBOURG MEINAU | E6: ='[1]Remises libres'!E6 -> 5006 | F6: ='[1]Remises libres'!F6 -> STRASBOURG | G6: ='[1]Remises libres'!G6 -> 262 | H6: ='[1]Remises libres'!H6 -> BAS RHIN | I6: ='[1]Remises libres'!I6 -> 1371.28
A7: ='[1]Remises libres'!A7 -> 12 | B7: ='[1]Remises libres'!B7 -> STRASBOURG STOCKFELD | C7: ='[1]Remises libres'!C7 -> 4006 | D7: ='[1]Remises libres'!D7 -> STRASBOURG NEUDORF | E7: ='[1]Remises libres'!E7 -> 5006 | F7: ='[1]Remises libres'!F7 -> STRASBOURG | G7: ='[1]Remises libres'!G7 -> 262 | H7: ='[1]Remises libres'!H7 -> BAS RHIN | I7: ='[1]Remises libres'!I7 -> 640.34
A8: ='[1]Remises libres'!A8 -> 14 | B8: ='[1]Remises libres'!B8 -> OSTWALD | C8: ='[1]Remises libres'!C8 -> 4015 | D8: ='[1]Remises libres'!D8 -> LINGOLSHEIM | E8: ='[1]Remises libres'!E8 -> 5101 | F8: ='[1]Remises libres'!F8 -> SELESTAT | G8: ='[1]Remises libres'!G8 -> 262 | H8: ='[1]Remises libres'!H8 -> BAS RHIN | I8: ='[1]Remises libres'!I8 -> 0
A9: ='[1]Remises libres'!A9 -> 15 | B9: ='[1]Remises libres'!B9 -> LINGOLSHEIM | C9: ='[1]Remises libres'!C9 -> 4015 | D9: ='[1]Remises libres'!D9 -> LINGOLSHEIM | E9: ='[1]Remises libres'!E9 -> 5101 | F9: ='[1]Remises libres'!F9 -> SELESTAT | G9: ='[1]Remises libres'!G9 -> 262 | H9: ='[1]Remises libres'!H9 -> BAS RHIN | I9: ='[1]Remises libres'!I9 -> 215.87
A10: ='[1]Remises libres'!A10 -> 17 | B10: ='[1]Remises libres'!B10 -> MON AGENCE | C10: ='[1]Remises libres'!C10 -> 4017 | D10: ='[1]Remises libres'!D10 -> MON AGENCE | E10: ='[1]Remises libres'!E10 -> 5017 | F10: ='[1]Remises libres'!F10 -> MON AGENCE | G10: ='[1]Remises libres'!G10 -> 269 | H10: ='[1]Remises libres'!H10 -> BANQUE DIGITALE | I10: ='[1]Remises libres'!I10 -> 1880.21
A11: ='[1]Remises libres'!A11 -> 18 | B11: ='[1]Remises libres'!B11 -> ESPACE MESANGE | C11: ='[1]Remises libres'!C11 -> 4043 | D11: ='[1]Remises libres'!D11 -> STRASBOURG HALLES | E11: ='[1]Remises libres'!E11 -> 5006 | F11: ='[1]Remises libres'!F11 -> STRASBOURG | G11: ='[1]Remises libres'!G11 -> 262 | H11: ='[1]Remises libres'!H11 -> BAS RHIN | I11: ='[1]Remises libres'!I11 -> 2567.07
A12: ='[1]Remises libres'!A12 -> 19 | B12: ='[1]Remises libres'!B12 -> STRASBOURG ANVERS | C12: ='[1]Remises libres'!C12 -> 4019 | D12: ='[1]Remises libres'!D12 -> STRASBOURG ANVERS | E12: ='[1]Remises libres'!E12 -> 5006 | F12: ='[1]Remises libres'!F12 -> STRASBOURG | G12: ='[1]Remises libres'!G12 -> 262 | H12: ='[1]Remises libres'!H12 -> BAS RHIN | I12: ='[1]Remises libres'!I12 -> 4034.04
A13: ='[1]Remises libres'!A13 -> 20 | B13: ='[1]Remises libres'!B13 -> STRASBOURG ROBERTSAU | C13: ='[1]Remises libres'!C13 -> 4020 | D13: ='[1]Remises libres'!D13 -> STRASBOURG ROBERTSAU | E13: ='[1]Remises libres'!E13 -> 5006 | F13: ='[1]Remises libres'!F13 -> STRASBOURG | G13: ='[1]Remises libres'!G13 -> 262 | H13: ='[1]Remises libres'!H13 -> BAS RHIN | I13: ='[1]Remises libres'!I13 -> 2849.82
A14: ='[1]Remises libres'!A14 -> 23 | B14: ='[1]Remises libres'!B14 -> STRASBOURG VOSGES | C14: ='[1]Remises libres'!C14 -> 4023 | D14: ='[1]Remises libres'!D14 -> STRASBOURG VOSGES | E14: ='[1]Remises libres'!E14 -> 5006 | F14: ='[1]Remises libres'!F14 -> STRASBOURG | G14: ='[1]Remises libres'!G14 -> 262 | H14: ='[1]Remises libres'!H14 -> BAS RHIN | I14: ='[1]Remises libres'!I14 -> 569.09
A15: ='[1]Remises libres'!A15 -> 24 | B15: ='[1]Remises libres'!B15 -> STRASBOURG AUSTERLITZ | C15: ='[1]Remises libres'!C15 -> 4024 | D15: ='[1]Remises libres'!D15 -> STRASBOURG AUSTERLITZ | E15: ='[1]Remises libres'!E15 -> 5006 | F15: ='[1]Remises libres'!F15 -> STRASBOURG | G15: ='[1]Remises libres'!G15 -> 262 | H15: ='[1]Remises libres'!H15 -> BAS RHIN | I15: ='[1]Remises libres'!I15 -> 2096.89
A16: ='[1]Remises libres'!A16 -> 25 | B16: ='[1]Remises libres'!B16 -> STRASBOURG ESPLANADE | C16: ='[1]Remises libres'!C16 -> 4026 | D16: ='[1]Remises libres'!D16 -> STRASBOURG DANUBE | E16: ='[1]Remises libres'!E16 -> 5006 | F16: ='[1]Remises libres'!F16 -> STRASBOURG | G16: ='[1]Remises libres'!G16 -> 262 | H16: ='[1]Remises libres'!H16 -> BAS RHIN | I16: ='[1]Remises libres'!I16 -> 2004.74
A17: ='[1]Remises libres'!A17 -> 26 | B17: ='[1]Remises libres'!B17 -> STRASBOURG DANUBE | C17: ='[1]Remises libres'!C17 -> 4026 | D17: ='[1]Remises libres'!D17 -> STRASBOURG DANUBE | E17: ='[1]Remises libres'!E17 -> 5006 | F17: ='[1]Remises libres'!F17 -> STRASBOURG | G17: ='[1]Remises libres'!G17 -> 262 | H17: ='[1]Remises libres'!H17 -> BAS RHIN | I17: ='[1]Remises libres'!I17 -> 1978.97
A18: ='[1]Remises libres'!A18 -> 27 | B18: ='[1]Remises libres'!B18 -> SCHILTIGHEIM CENTRE | C18: ='[1]Remises libres'!C18 -> 4027 | D18: ='[1]Remises libres'!D18 -> SCHILTIGHEIM CENTRE | E18: ='[1]Remises libres'!E18 -> 5006 | F18: ='[1]Remises libres'!F18 -> STRASBOURG | G18: ='[1]Remises libres'!G18 -> 262 | H18: ='[1]Remises libres'!H18 -> BAS RHIN | I18: ='[1]Remises libres'!I18 -> 1608.66
A19: ='[1]Remises libres'!A19 -> 28 | B19: ='[1]Remises libres'!B19 -> BISCHHEIM | C19: ='[1]Remises libres'!C19 -> 4028 | D19: ='[1]Remises libres'!D19 -> BISCHHEIM | E19: ='[1]Remises libres'!E19 -> 5006 | F19: ='[1]Remises libres'!F19 -> STRASBOURG | G19: ='[1]Remises libres'!G19 -> 262 | H19: ='[1]Remises libres'!H19 -> BAS RHIN | I19: ='[1]Remises libres'!I19 -> 1456.18
A20: ='[1]Remises libres'!A20 -> 29 | B20: ='[1]Remises libres'!B20 -> SCHILTIGHEIM KLEBER | C20: ='[1]Remises libres'!C20 -> 4029 | D20: ='[1]Remises libres'!D20 -> SCHILTIGHEIM KLEBER | E20: ='[1]Remises libres'!E20 -> 5006 | F20: ='[1]Remises libres'!F20 -> STRASBOURG | G20: ='[1]Remises libres'!G20 -> 262 | H20: ='[1]Remises libres'!H20 -> BAS RHIN | I20: ='[1]Remises libres'!I20 -> 2193.9
A21: ='[1]Remises libres'!A21 -> 30 | B21: ='[1]Remises libres'!B21 -> BRUMATH | C21: ='[1]Remises libres'!C21 -> 4030 | D21: ='[1]Remises libres'!D21 -> BRUMATH | E21: ='[1]Remises libres'!E21 -> 5060 | F21: ='[1]Remises libres'!F21 -> HAGUENAU | G21: ='[1]Remises libres'!G21 -> 262 | H21: ='[1]Remises libres'!H21 -> BAS RHIN | I21: ='[1]Remises libres'!I21 -> 1985.16
A22: ='[1]Remises libres'!A22 -> 31 | B22: ='[1]Remises libres'!B22 -> TRUCHTERSHEIM | C22: ='[1]Remises libres'!C22 -> 4031 | D22: ='[1]Remises libres'!D22 -> TRUCHTERSHEIM | E22: ='[1]Remises libres'!E22 -> 5060 | F22: ='[1]Remises libres'!F22 -> HAGUENAU | G22: ='[1]Remises libres'!G22 -> 262 | H22: ='[1]Remises libres'!H22 -> BAS RHIN | I22: ='[1]Remises libres'!I22 -> 815
A23: ='[1]Remises libres'!A23 -> 33 | B23: ='[1]Remises libres'!B23 -> LA WANTZENAU | C23: ='[1]Remises libres'!C23 -> 4020 | D23: ='[1]Remises libres'!D23 -> STRASBOURG ROBERTSAU | E23: ='[1]Remises libres'!E23 -> 5006 | F23: ='[1]Remises libres'!F23 -> STRASBOURG | G23: ='[1]Remises libres'!G23 -> 262 | H23: ='[1]Remises libres'!H23 -> BAS RHIN | I23: ='[1]Remises libres'!I23 -> 851.14
A24: ='[1]Remises libres'!A24 -> 34 | B24: ='[1]Remises libres'!B24 -> VENDENHEIM | C24: ='[1]Remises libres'!C24 -> 4037 | D24: ='[1]Remises libres'!D24 -> MUNDOLSHEIM | E24: ='[1]Remises libres'!E24 -> 5006 | F24: ='[1]Remises libres'!F24 -> STRASBOURG | G24: ='[1]Remises libres'!G24 -> 262 | H24: ='[1]Remises libres'!H24 -> BAS RHIN | I24: ='[1]Remises libres'!I24 -> 2010.52
A25: ='[1]Remises libres'!A25 -> 37 | B25: ='[1]Remises libres'!B25 -> MUNDOLSHEIM | C25: ='[1]Remises libres'!C25 -> 4037 | D25: ='[1]Remises libres'!D25 -> MUNDOLSHEIM | E25: ='[1]Remises libres'!E25 -> 5006 | F25: ='[1]Remises libres'!F25 -> STRASBOURG | G25: ='[1]Remises libres'!G25 -> 262 | H25: ='[1]Remises libres'!H25 -> BAS RHIN | I25: ='[1]Remises libres'!I25 -> 895.87
A26: ='[1]Remises libres'!A26 -> 38 | B26: ='[1]Remises libres'!B26 -> OBERHAUSBERGEN | C26: ='[1]Remises libres'!C26 -> 4038 | D26: ='[1]Remises libres'!D26 -> OBERHAUSBERGEN | E26: ='[1]Remises libres'!E26 -> 5006 | F26: ='[1]Remises libres'!F26 -> STRASBOURG | G26: ='[1]Remises libres'!G26 -> 262 | H26: ='[1]Remises libres'!H26 -> BAS RHIN | I26: ='[1]Remises libres'!I26 -> 910
A27: ='[1]Remises libres'!A27 -> 39 | B27: ='[1]Remises libres'!B27 -> REICHSTETT | C27: ='[1]Remises libres'!C27 -> 4039 | D27: ='[1]Remises libres'!D27 -> REICHSTETT | E27: ='[1]Remises libres'!E27 -> 5006 | F27: ='[1]Remises libres'!F27 -> STRASBOURG | G27: ='[1]Remises libres'!G27 -> 262 | H27: ='[1]Remises libres'!H27 -> BAS RHIN | I27: ='[1]Remises libres'!I27 -> 638.27
A28: ='[1]Remises libres'!A28 -> 40 | B28: ='[1]Remises libres'!B28 -> ECKBOLSHEIM | C28: ='[1]Remises libres'!C28 -> 4038 | D28: ='[1]Remises libres'!D28 -> OBERHAUSBERGEN | E28: ='[1]Remises libres'!E28 -> 5006 | F28: ='[1]Remises libres'!F28 -> STRASBOURG | G28: ='[1]Remises libres'!G28 -> 262 | H28: ='[1]Remises libres'!H28 -> BAS RHIN | I28: ='[1]Remises libres'!I28 -> 581.74
A29: ='[1]Remises libres'!A29 -> 41 | B29: ='[1]Remises libres'!B29 -> HOERDT | C29: ='[1]Remises libres'!C29 -> 4041 | D29: ='[1]Remises libres'!D29 -> HOERDT | E29: ='[1]Remises libres'!E29 -> 5060 | F29: ='[1]Remises libres'!F29 -> HAGUENAU | G29: ='[1]Remises libres'!G29 -> 262 | H29: ='[1]Remises libres'!H29 -> BAS RHIN | I29: ='[1]Remises libres'!I29 -> 1255.68
A30: ='[1]Remises libres'!A30 -> 43 | B30: ='[1]Remises libres'!B30 -> STRASBOURG HALLES | C30: ='[1]Remises libres'!C30 -> 4043 | D30: ='[1]Remises libres'!D30 -> STRASBOURG HALLES | E30: ='[1]Remises libres'!E30 -> 5006 | F30: ='[1]Remises libres'!F30 -> STRASBOURG | G30: ='[1]Remises libres'!G30 -> 262 | H30: ='[1]Remises libres'!H30 -> BAS RHIN | I30: ='[1]Remises libres'!I30 -> 4568.96
A31: ='[1]Remises libres'!A31 -> 45 | B31: ='[1]Remises libres'!B31 -> STRASBOURG FRANCS BOURGEOIS | C31: ='[1]Remises libres'!C31 -> 4045 | D31: ='[1]Remises libres'!D31 -> STRASBOURG FRANCS BOURGEOIS | E31: ='[1]Remises libres'!E31 -> 5006 | F31: ='[1]Remises libres'!F31 -> STRASBOURG | G31: ='[1]Remises libres'!G31 -> 262 | H31: ='[1]Remises libres'!H31 -> BAS RHIN | I31: ='[1]Remises libres'!I31 -> 3207.15
A32: ='[1]Remises libres'!A32 -> 47 | B32: ='[1]Remises libres'!B32 -> STRASBOURG CRONENBOURG | C32: ='[1]Remises libres'!C32 -> 4047 | D32: ='[1]Remises libres'!D32 -> STRASBOURG CRONENBOURG | E32: ='[1]Remises libres'!E32 -> 5006 | F32: ='[1]Remises libres'!F32 -> STRASBOURG | G32: ='[1]Remises libres'!G32 -> 262 | H32: ='[1]Remises libres'!H32 -> BAS RHIN | I32: ='[1]Remises libres'!I32 -> 3167.79
A33: ='[1]Remises libres'!A33 -> 48 | B33: ='[1]Remises libres'!B33 -> STRASBOURG KOENIGSHOFFEN | C33: ='[1]Remises libres'!C33 -> 4048 | D33: ='[1]Remises libres'!D33 -> STRASBOURG KOENIGSHOFFEN | E33: ='[1]Remises libres'!E33 -> 5006 | F33: ='[1]Remises libres'!F33 -> STRASBOURG | G33: ='[1]Remises libres'!G33 -> 262 | H33: ='[1]Remises libres'!H33 -> BAS RHIN | I33: ='[1]Remises libres'!I33 -> 1004.9
A34: ='[1]Remises libres'!A34 -> 54 | B34: ='[1]Remises libres'!B34 -> STRASBOURG MONTAGNE VERTE | C34: ='[1]Remises libres'!C34 -> 4054 | D34: ='[1]Remises libres'!D34 -> STRASBOURG MONTAGNE VERTE | E34: ='[1]Remises libres'!E34 -> 5006 | F34: ='[1]Remises libres'!F34 -> STRASBOURG | G34: ='[1]Remises libres'!G34 -> 262 | H34: ='[1]Remises libres'!H34 -> BAS RHIN | I34: ='[1]Remises libres'!I34 -> 1654.93
A35: ='[1]Remises libres'!A35 -> 57 | B35: ='[1]Remises libres'!B35 -> BISCHWILLER | C35: ='[1]Remises libres'!C35 -> 4057 | D35: ='[1]Remises libres'!D35 -> BISCHWILLER | E35: ='[1]Remises libres'!E35 -> 5060 | F35: ='[1]Remises libres'!F35 -> HAGUENAU | G35: ='[1]Remises libres'!G35 -> 262 | H35: ='[1]Remises libres'!H35 -> BAS RHIN | I35: ='[1]Remises libres'!I35 -> 1913.58
A36: ='[1]Remises libres'!A36 -> 58 | B36: ='[1]Remises libres'!B36 -> DRUSENHEIM | C36: ='[1]Remises libres'!C36 -> 4057 | D36: ='[1]Remises libres'!D36 -> BISCHWILLER | E36: ='[1]Remises libres'!E36 -> 5060 | F36: ='[1]Remises libres'!F36 -> HAGUENAU | G36: ='[1]Remises libres'!G36 -> 262 | H36: ='[1]Remises libres'!H36 -> BAS RHIN | I36: ='[1]Remises libres'!I36 -> 506.23
A37: ='[1]Remises libres'!A37 -> 60 | B37: ='[1]Remises libres'!B37 -> HAGUENAU HOUBLON | C37: ='[1]Remises libres'!C37 -> 4060 | D37: ='[1]Remises libres'!D37 -> HAGUENAU HOUBLON | E37: ='[1]Remises libres'!E37 -> 5060 | F37: ='[1]Remises libres'!F37 -> HAGUENAU | G37: ='[1]Remises libres'!G37 -> 262 | H37: ='[1]Remises libres'!H37 -> BAS RHIN | I37: ='[1]Remises libres'!I37 -> 3101.62
A38: ='[1]Remises libres'!A38 -> 66 | B38: ='[1]Remises libres'!B38 -> NIEDERBRONN LES BAINS | C38: ='[1]Remises libres'!C38 -> 4066 | D38: ='[1]Remises libres'!D38 -> NIEDERBRONN LES BAINS | E38: ='[1]Remises libres'!E38 -> 5060 | F38: ='[1]Remises libres'!F38 -> HAGUENAU | G38: ='[1]Remises libres'!G38 -> 262 | H38: ='[1]Remises libres'!H38 -> BAS RHIN | I38: ='[1]Remises libres'!I38 -> 400.63
A39: ='[1]Remises libres'!A39 -> 67 | B39: ='[1]Remises libres'!B39 -> PFAFFENHOFFEN | C39: ='[1]Remises libres'!C39 -> 4067 | D39: ='[1]Remises libres'!D39 -> PFAFFENHOFFEN | E39: ='[1]Remises libres'!E39 -> 5060 | F39: ='[1]Remises libres'!F39 -> HAGUENAU | G39: ='[1]Remises libres'!G39 -> 262 | H39: ='[1]Remises libres'!H39 -> BAS RHIN | I39: ='[1]Remises libres'!I39 -> 1479.9
A40: ='[1]Remises libres'!A40 -> 68 | B40: ='[1]Remises libres'!B40 -> REICHSHOFFEN | C40: ='[1]Remises libres'!C40 -> 4066 | D40: ='[1]Remises libres'!D40 -> NIEDERBRONN LES BAINS | E40: ='[1]Remises libres'!E40 -> 5060 | F40: ='[1]Remises libres'!F40 -> HAGUENAU | G40: ='[1]Remises libres'!G40 -> 262 | H40: ='[1]Remises libres'!H40 -> BAS RHIN | I40: ='[1]Remises libres'!I40 -> 523.15
A41: ='[1]Remises libres'!A41 -> 70 | B41: ='[1]Remises libres'!B41 -> GUNDERSHOFFEN | C41: ='[1]Remises libres'!C41 -> 4066 | D41: ='[1]Remises libres'!D41 -> NIEDERBRONN LES BAINS | E41: ='[1]Remises libres'!E41 -> 5060 | F41: ='[1]Remises libres'!F41 -> HAGUENAU | G41: ='[1]Remises libres'!G41 -> 262 | H41: ='[1]Remises libres'!H41 -> BAS RHIN | I41: ='[1]Remises libres'!I41 -> 291.5
A42: ='[1]Remises libres'!A42 -> 71 | B42: ='[1]Remises libres'!B42 -> WISSEMBOURG | C42: ='[1]Remises libres'!C42 -> 4071 | D42: ='[1]Remises libres'!D42 -> WISSEMBOURG | E42: ='[1]Remises libres'!E42 -> 5060 | F42: ='[1]Remises libres'!F42 -> HAGUENAU | G42: ='[1]Remises libres'!G42 -> 262 | H42: ='[1]Remises libres'!H42 -> BAS RHIN | I42: ='[1]Remises libres'!I42 -> 2111.99
A43: ='[1]Remises libres'!A43 -> 73 | B43: ='[1]Remises libres'!B43 -> SCHWEIGHOUSE SUR MODER | C43: ='[1]Remises libres'!C43 -> 4060 | D43: ='[1]Remises libres'!D43 -> HAGUENAU HOUBLON | E43: ='[1]Remises libres'!E43 -> 5060 | F43: ='[1]Remises libres'!F43 -> HAGUENAU | G43: ='[1]Remises libres'!G43 -> 262 | H43: ='[1]Remises libres'!H43 -> BAS RHIN | I43: ='[1]Remises libres'!I43 -> 1165.11
A44: ='[1]Remises libres'!A44 -> 74 | B44: ='[1]Remises libres'!B44 -> SOUFFLENHEIM | C44: ='[1]Remises libres'!C44 -> 4057 | D44: ='[1]Remises libres'!D44 -> BISCHWILLER | E44: ='[1]Remises libres'!E44 -> 5060 | F44: ='[1]Remises libres'!F44 -> HAGUENAU | G44: ='[1]Remises libres'!G44 -> 262 | H44: ='[1]Remises libres'!H44 -> BAS RHIN | I44: ='[1]Remises libres'!I44 -> 224.24
A45: ='[1]Remises libres'!A45 -> 76 | B45: ='[1]Remises libres'!B45 -> BETSCHDORF | C45: ='[1]Remises libres'!C45 -> 4071 | D45: ='[1]Remises libres'!D45 -> WISSEMBOURG | E45: ='[1]Remises libres'!E45 -> 5060 | F45: ='[1]Remises libres'!F45 -> HAGUENAU | G45: ='[1]Remises libres'!G45 -> 262 | H45: ='[1]Remises libres'!H45 -> BAS RHIN | I45: ='[1]Remises libres'!I45 -> 222.26
A46: ='[1]Remises libres'!A46 -> 77 | B46: ='[1]Remises libres'!B46 -> SELTZ | C46: ='[1]Remises libres'!C46 -> 4071 | D46: ='[1]Remises libres'!D46 -> WISSEMBOURG | E46: ='[1]Remises libres'!E46 -> 5060 | F46: ='[1]Remises libres'!F46 -> HAGUENAU | G46: ='[1]Remises libres'!G46 -> 262 | H46: ='[1]Remises libres'!H46 -> BAS RHIN | I46: ='[1]Remises libres'!I46 -> 1572.4
A47: ='[1]Remises libres'!A47 -> 79 | B47: ='[1]Remises libres'!B47 -> SOULTZ SOUS FORETS | C47: ='[1]Remises libres'!C47 -> 4079 | D47: ='[1]Remises libres'!D47 -> SOULTZ SOUS FORETS | E47: ='[1]Remises libres'!E47 -> 5060 | F47: ='[1]Remises libres'!F47 -> HAGUENAU | G47: ='[1]Remises libres'!G47 -> 262 | H47: ='[1]Remises libres'!H47 -> BAS RHIN | I47: ='[1]Remises libres'!I47 -> 1197.64
A48: ='[1]Remises libres'!A48 -> 80 | B48: ='[1]Remises libres'!B48 -> WOERTH | C48: ='[1]Remises libres'!C48 -> 4080 | D48: ='[1]Remises libres'!D48 -> WOERTH | E48: ='[1]Remises libres'!E48 -> 5060 | F48: ='[1]Remises libres'!F48 -> HAGUENAU | G48: ='[1]Remises libres'!G48 -> 262 | H48: ='[1]Remises libres'!H48 -> BAS RHIN | I48: ='[1]Remises libres'!I48 -> 101.53
A49: ='[1]Remises libres'!A49 -> 82 | B49: ='[1]Remises libres'!B49 -> BOUXWILLER | C49: ='[1]Remises libres'!C49 -> 4082 | D49: ='[1]Remises libres'!D49 -> BOUXWILLER | E49: ='[1]Remises libres'!E49 -> 5060 | F49: ='[1]Remises libres'!F49 -> HAGUENAU | G49: ='[1]Remises libres'!G49 -> 262 | H49: ='[1]Remises libres'!H49 -> BAS RHIN | I49: ='[1]Remises libres'!I49 -> 2266.78
A50: ='[1]Remises libres'!A50 -> 85 | B50: ='[1]Remises libres'!B50 -> INGWILLER | C50: ='[1]Remises libres'!C50 -> 4085 | D50: ='[1]Remises libres'!D50 -> INGWILLER | E50: ='[1]Remises libres'!E50 -> 5060 | F50: ='[1]Remises libres'!F50 -> HAGUENAU | G50: ='[1]Remises libres'!G50 -> 262 | H50: ='[1]Remises libres'!H50 -> BAS RHIN | I50: ='[1]Remises libres'!I50 -> 2443.94
A51: ='[1]Remises libres'!A51 -> 86 | B51: ='[1]Remises libres'!B51 -> WINGEN SUR MODER | C51: ='[1]Remises libres'!C51 -> 4085 | D51: ='[1]Remises libres'!D51 -> INGWILLER | E51: ='[1]Remises libres'!E51 -> 5060 | F51: ='[1]Remises libres'!F51 -> HAGUENAU | G51: ='[1]Remises libres'!G51 -> 262 | H51: ='[1]Remises libres'!H51 -> BAS RHIN | I51: ='[1]Remises libres'!I51 -> 0
A52: ='[1]Remises libres'!A52 -> 87 | B52: ='[1]Remises libres'!B52 -> SAVERNE | C52: ='[1]Remises libres'!C52 -> 4087 | D52: ='[1]Remises libres'!D52 -> SAVERNE | E52: ='[1]Remises libres'!E52 -> 5060 | F52: ='[1]Remises libres'!F52 -> HAGUENAU | G52: ='[1]Remises libres'!G52 -> 262 | H52: ='[1]Remises libres'!H52 -> BAS RHIN | I52: ='[1]Remises libres'!I52 -> 9390.64
A53: ='[1]Remises libres'!A53 -> 92 | B53: ='[1]Remises libres'!B53 -> HOCHFELDEN | C53: ='[1]Remises libres'!C53 -> 4092 | D53: ='[1]Remises libres'!D53 -> HOCHFELDEN | E53: ='[1]Remises libres'!E53 -> 5060 | F53: ='[1]Remises libres'!F53 -> HAGUENAU | G53: ='[1]Remises libres'!G53 -> 262 | H53: ='[1]Remises libres'!H53 -> BAS RHIN | I53: ='[1]Remises libres'!I53 -> 307.67
A54: ='[1]Remises libres'!A54 -> 93 | B54: ='[1]Remises libres'!B54 -> MARMOUTIER | C54: ='[1]Remises libres'!C54 -> 4087 | D54: ='[1]Remises libres'!D54 -> SAVERNE | E54: ='[1]Remises libres'!E54 -> 5060 | F54: ='[1]Remises libres'!F54 -> HAGUENAU | G54: ='[1]Remises libres'!G54 -> 262 | H54: ='[1]Remises libres'!H54 -> BAS RHIN | I54: ='[1]Remises libres'!I54 -> 0
A55: ='[1]Remises libres'!A55 -> 95 | B55: ='[1]Remises libres'!B55 -> SARRE UNION | C55: ='[1]Remises libres'!C55 -> 4095 | D55: ='[1]Remises libres'!D55 -> SARRE UNION | E55: ='[1]Remises libres'!E55 -> 5060 | F55: ='[1]Remises libres'!F55 -> HAGUENAU | G55: ='[1]Remises libres'!G55 -> 262 | H55: ='[1]Remises libres'!H55 -> BAS RHIN | I55: ='[1]Remises libres'!I55 -> 698.63
A56: ='[1]Remises libres'!A56 -> 101 | B56: ='[1]Remises libres'!B56 -> SELESTAT CENTRE | C56: ='[1]Remises libres'!C56 -> 4101 | D56: ='[1]Remises libres'!D56 -> SELESTAT CENTRE | E56: ='[1]Remises libres'!E56 -> 5101 | F56: ='[1]Remises libres'!F56 -> SELESTAT | G56: ='[1]Remises libres'!G56 -> 262 | H56: ='[1]Remises libres'!H56 -> BAS RHIN | I56: ='[1]Remises libres'!I56 -> 1170.78
A57: ='[1]Remises libres'!A57 -> 104 | B57: ='[1]Remises libres'!B57 -> ERSTEIN | C57: ='[1]Remises libres'!C57 -> 4104 | D57: ='[1]Remises libres'!D57 -> ERSTEIN | E57: ='[1]Remises libres'!E57 -> 5101 | F57: ='[1]Remises libres'!F57 -> SELESTAT | G57: ='[1]Remises libres'!G57 -> 262 | H57: ='[1]Remises libres'!H57 -> BAS RHIN | I57: ='[1]Remises libres'!I57 -> 2870.44
A58: ='[1]Remises libres'!A58 -> 107 | B58: ='[1]Remises libres'!B58 -> VILLE | C58: ='[1]Remises libres'!C58 -> 4107 | D58: ='[1]Remises libres'!D58 -> VILLE | E58: ='[1]Remises libres'!E58 -> 5101 | F58: ='[1]Remises libres'!F58 -> SELESTAT | G58: ='[1]Remises libres'!G58 -> 262 | H58: ='[1]Remises libres'!H58 -> BAS RHIN | I58: ='[1]Remises libres'!I58 -> 249.6
A59: ='[1]Remises libres'!A59 -> 108 | B59: ='[1]Remises libres'!B59 -> CHATENOIS | C59: ='[1]Remises libres'!C59 -> 4101 | D59: ='[1]Remises libres'!D59 -> SELESTAT CENTRE | E59: ='[1]Remises libres'!E59 -> 5101 | F59: ='[1]Remises libres'!F59 -> SELESTAT | G59: ='[1]Remises libres'!G59 -> 262 | H59: ='[1]Remises libres'!H59 -> BAS RHIN | I59: ='[1]Remises libres'!I59 -> 266.53
A60: ='[1]Remises libres'!A60 -> 109 | B60: ='[1]Remises libres'!B60 -> MARCKOLSHEIM | C60: ='[1]Remises libres'!C60 -> 4109 | D60: ='[1]Remises libres'!D60 -> MARCKOLSHEIM | E60: ='[1]Remises libres'!E60 -> 5101 | F60: ='[1]Remises libres'!F60 -> SELESTAT | G60: ='[1]Remises libres'!G60 -> 262 | H60: ='[1]Remises libres'!H60 -> BAS RHIN | I60: ='[1]Remises libres'!I60 -> 1739.36
A61: ='[1]Remises libres'!A61 -> 111 | B61: ='[1]Remises libres'!B61 -> BENFELD | C61: ='[1]Remises libres'!C61 -> 4111 | D61: ='[1]Remises libres'!D61 -> BENFELD | E61: ='[1]Remises libres'!E61 -> 5101 | F61: ='[1]Remises libres'!F61 -> SELESTAT | G61: ='[1]Remises libres'!G61 -> 262 | H61: ='[1]Remises libres'!H61 -> BAS RHIN | I61: ='[1]Remises libres'!I61 -> 1604.86
A62: ='[1]Remises libres'!A62 -> 113 | B62: ='[1]Remises libres'!B62 -> BARR | C62: ='[1]Remises libres'!C62 -> 4113 | D62: ='[1]Remises libres'!D62 -> BARR | E62: ='[1]Remises libres'!E62 -> 5101 | F62: ='[1]Remises libres'!F62 -> SELESTAT | G62: ='[1]Remises libres'!G62 -> 262 | H62: ='[1]Remises libres'!H62 -> BAS RHIN | I62: ='[1]Remises libres'!I62 -> 50
A63: ='[1]Remises libres'!A63 -> 116 | B63: ='[1]Remises libres'!B63 -> MOLSHEIM | C63: ='[1]Remises libres'!C63 -> 4116 | D63: ='[1]Remises libres'!D63 -> MOLSHEIM | E63: ='[1]Remises libres'!E63 -> 5101 | F63: ='[1]Remises libres'!F63 -> SELESTAT | G63: ='[1]Remises libres'!G63 -> 262 | H63: ='[1]Remises libres'!H63 -> BAS RHIN | I63: ='[1]Remises libres'!I63 -> 1958.31
A64: ='[1]Remises libres'!A64 -> 119 | B64: ='[1]Remises libres'!B64 -> OBERNAI | C64: ='[1]Remises libres'!C64 -> 4119 | D64: ='[1]Remises libres'!D64 -> OBERNAI | E64: ='[1]Remises libres'!E64 -> 5101 | F64: ='[1]Remises libres'!F64 -> SELESTAT | G64: ='[1]Remises libres'!G64 -> 262 | H64: ='[1]Remises libres'!H64 -> BAS RHIN | I64: ='[1]Remises libres'!I64 -> 554.74
A65: ='[1]Remises libres'!A65 -> 120 | B65: ='[1]Remises libres'!B65 -> WASSELONNE | C65: ='[1]Remises libres'!C65 -> 4120 | D65: ='[1]Remises libres'!D65 -> WASSELONNE | E65: ='[1]Remises libres'!E65 -> 5101 | F65: ='[1]Remises libres'!F65 -> SELESTAT | G65: ='[1]Remises libres'!G65 -> 262 | H65: ='[1]Remises libres'!H65 -> BAS RHIN | I65: ='[1]Remises libres'!I65 -> 1559.21
A66: ='[1]Remises libres'!A66 -> 121 | B66: ='[1]Remises libres'!B66 -> SCHIRMECK | C66: ='[1]Remises libres'!C66 -> 4121 | D66: ='[1]Remises libres'!D66 -> SCHIRMECK | E66: ='[1]Remises libres'!E66 -> 5101 | F66: ='[1]Remises libres'!F66 -> SELESTAT | G66: ='[1]Remises libres'!G66 -> 262 | H66: ='[1]Remises libres'!H66 -> BAS RHIN | I66: ='[1]Remises libres'!I66 -> 585.67
A67: ='[1]Remises libres'!A67 -> 126 | B67: ='[1]Remises libres'!B67 -> MUTZIG | C67: ='[1]Remises libres'!C67 -> 4126 | D67: ='[1]Remises libres'!D67 -> MUTZIG | E67: ='[1]Remises libres'!E67 -> 5101 | F67: ='[1]Remises libres'!F67 -> SELESTAT | G67: ='[1]Remises libres'!G67 -> 262 | H67: ='[1]Remises libres'!H67 -> BAS RHIN | I67: ='[1]Remises libres'!I67 -> 574.26
A68: ='[1]Remises libres'!A68 -> 127 | B68: ='[1]Remises libres'!B68 -> ROSHEIM | C68: ='[1]Remises libres'!C68 -> 4127 | D68: ='[1]Remises libres'!D68 -> ROSHEIM | E68: ='[1]Remises libres'!E68 -> 5101 | F68: ='[1]Remises libres'!F68 -> SELESTAT | G68: ='[1]Remises libres'!G68 -> 262 | H68: ='[1]Remises libres'!H68 -> BAS RHIN | I68: ='[1]Remises libres'!I68 -> 527.31
A69: ='[1]Remises libres'!A69 -> 129 | B69: ='[1]Remises libres'!B69 -> MARLENHEIM | C69: ='[1]Remises libres'!C69 -> 4120 | D69: ='[1]Remises libres'!D69 -> WASSELONNE | E69: ='[1]Remises libres'!E69 -> 5101 | F69: ='[1]Remises libres'!F69 -> SELESTAT | G69: ='[1]Remises libres'!G69 -> 262 | H69: ='[1]Remises libres'!H69 -> BAS RHIN | I69: ='[1]Remises libres'!I69 -> 188.97
A70: ='[1]Remises libres'!A70 -> 130 | B70: ='[1]Remises libres'!B70 -> COLMAR REPUBLIQUE | C70: ='[1]Remises libres'!C70 -> 4130 | D70: ='[1]Remises libres'!D70 -> COLMAR REPUBLIQUE | E70: ='[1]Remises libres'!E70 -> 5130 | F70: ='[1]Remises libres'!F70 -> COLMAR | G70: ='[1]Remises libres'!G70 -> 264 | H70: ='[1]Remises libres'!H70 -> HAUT RHIN | I70: ='[1]Remises libres'!I70 -> 4349.08
A71: ='[1]Remises libres'!A71 -> 132 | B71: ='[1]Remises libres'!B71 -> COLMAR MARAICHERS | C71: ='[1]Remises libres'!C71 -> 4132 | D71: ='[1]Remises libres'!D71 -> COLMAR MARAICHERS | E71: ='[1]Remises libres'!E71 -> 5130 | F71: ='[1]Remises libres'!F71 -> COLMAR | G71: ='[1]Remises libres'!G71 -> 264 | H71: ='[1]Remises libres'!H71 -> HAUT RHIN | I71: ='[1]Remises libres'!I71 -> 905.88
A72: ='[1]Remises libres'!A72 -> 133 | B72: ='[1]Remises libres'!B72 -> COLMAR VAUBAN | C72: ='[1]Remises libres'!C72 -> 4133 | D72: ='[1]Remises libres'!D72 -> COLMAR VAUBAN | E72: ='[1]Remises libres'!E72 -> 5130 | F72: ='[1]Remises libres'!F72 -> COLMAR | G72: ='[1]Remises libres'!G72 -> 264 | H72: ='[1]Remises libres'!H72 -> HAUT RHIN | I72: ='[1]Remises libres'!I72 -> 0
A73: ='[1]Remises libres'!A73 -> 134 | B73: ='[1]Remises libres'!B73 -> COLMAR SAINT JOSEPH | C73: ='[1]Remises libres'!C73 -> 4134 | D73: ='[1]Remises libres'!D73 -> COLMAR SAINT JOSEPH | E73: ='[1]Remises libres'!E73 -> 5130 | F73: ='[1]Remises libres'!F73 -> COLMAR | G73: ='[1]Remises libres'!G73 -> 264 | H73: ='[1]Remises libres'!H73 -> HAUT RHIN | I73: ='[1]Remises libres'!I73 -> 0
A74: ='[1]Remises libres'!A74 -> 135 | B74: ='[1]Remises libres'!B74 -> COLMAR SAINTE MARIE | C74: ='[1]Remises libres'!C74 -> 4135 | D74: ='[1]Remises libres'!D74 -> COLMAR SAINTE MARIE | E74: ='[1]Remises libres'!E74 -> 5130 | F74: ='[1]Remises libres'!F74 -> COLMAR | G74: ='[1]Remises libres'!G74 -> 264 | H74: ='[1]Remises libres'!H74 -> HAUT RHIN | I74: ='[1]Remises libres'!I74 -> 1988.82
A75: ='[1]Remises libres'!A75 -> 139 | B75: ='[1]Remises libres'!B75 -> INGERSHEIM | C75: ='[1]Remises libres'!C75 -> 4139 | D75: ='[1]Remises libres'!D75 -> INGERSHEIM | E75: ='[1]Remises libres'!E75 -> 5130 | F75: ='[1]Remises libres'!F75 -> COLMAR | G75: ='[1]Remises libres'!G75 -> 264 | H75: ='[1]Remises libres'!H75 -> HAUT RHIN | I75: ='[1]Remises libres'!I75 -> 2143.98
A76: ='[1]Remises libres'!A76 -> 140 | B76: ='[1]Remises libres'!B76 -> WINTZENHEIM | C76: ='[1]Remises libres'!C76 -> 4139 | D76: ='[1]Remises libres'!D76 -> INGERSHEIM | E76: ='[1]Remises libres'!E76 -> 5130 | F76: ='[1]Remises libres'!F76 -> COLMAR | G76: ='[1]Remises libres'!G76 -> 264 | H76: ='[1]Remises libres'!H76 -> HAUT RHIN | I76: ='[1]Remises libres'!I76 -> 397.41
A77: ='[1]Remises libres'!A77 -> 141 | B77: ='[1]Remises libres'!B77 -> HORBOURG WIHR | C77: ='[1]Remises libres'!C77 -> 4141 | D77: ='[1]Remises libres'!D77 -> HORBOURG WIHR | E77: ='[1]Remises libres'!E77 -> 5130 | F77: ='[1]Remises libres'!F77 -> COLMAR | G77: ='[1]Remises libres'!G77 -> 264 | H77: ='[1]Remises libres'!H77 -> HAUT RHIN | I77: ='[1]Remises libres'!I77 -> 4481.22
A78: ='[1]Remises libres'!A78 -> 143 | B78: ='[1]Remises libres'!B78 -> MUNSTER | C78: ='[1]Remises libres'!C78 -> 4143 | D78: ='[1]Remises libres'!D78 -> MUNSTER | E78: ='[1]Remises libres'!E78 -> 5130 | F78: ='[1]Remises libres'!F78 -> COLMAR | G78: ='[1]Remises libres'!G78 -> 264 | H78: ='[1]Remises libres'!H78 -> HAUT RHIN | I78: ='[1]Remises libres'!I78 -> 2079.68
A79: ='[1]Remises libres'!A79 -> 144 | B79: ='[1]Remises libres'!B79 -> RIBEAUVILLE | C79: ='[1]Remises libres'!C79 -> 4144 | D79: ='[1]Remises libres'!D79 -> RIBEAUVILLE | E79: ='[1]Remises libres'!E79 -> 5130 | F79: ='[1]Remises libres'!F79 -> COLMAR | G79: ='[1]Remises libres'!G79 -> 264 | H79: ='[1]Remises libres'!H79 -> HAUT RHIN | I79: ='[1]Remises libres'!I79 -> 212.29
A80: ='[1]Remises libres'!A80 -> 147 | B80: ='[1]Remises libres'!B80 -> GUEBWILLER | C80: ='[1]Remises libres'!C80 -> 4147 | D80: ='[1]Remises libres'!D80 -> GUEBWILLER | E80: ='[1]Remises libres'!E80 -> 5130 | F80: ='[1]Remises libres'!F80 -> COLMAR | G80: ='[1]Remises libres'!G80 -> 264 | H80: ='[1]Remises libres'!H80 -> HAUT RHIN | I80: ='[1]Remises libres'!I80 -> 921.77
A81: ='[1]Remises libres'!A81 -> 148 | B81: ='[1]Remises libres'!B81 -> ORBEY | C81: ='[1]Remises libres'!C81 -> 4148 | D81: ='[1]Remises libres'!D81 -> ORBEY | E81: ='[1]Remises libres'!E81 -> 5130 | F81: ='[1]Remises libres'!F81 -> COLMAR | G81: ='[1]Remises libres'!G81 -> 264 | H81: ='[1]Remises libres'!H81 -> HAUT RHIN | I81: ='[1]Remises libres'!I81 -> 1406.26
A82: ='[1]Remises libres'!A82 -> 152 | B82: ='[1]Remises libres'!B82 -> KAYSERSBERG | C82: ='[1]Remises libres'!C82 -> 4148 | D82: ='[1]Remises libres'!D82 -> ORBEY | E82: ='[1]Remises libres'!E82 -> 5130 | F82: ='[1]Remises libres'!F82 -> COLMAR | G82: ='[1]Remises libres'!G82 -> 264 | H82: ='[1]Remises libres'!H82 -> HAUT RHIN | I82: ='[1]Remises libres'!I82 -> 398.01
A83: ='[1]Remises libres'!A83 -> 153 | B83: ='[1]Remises libres'!B83 -> ROUFFACH | C83: ='[1]Remises libres'!C83 -> 4153 | D83: ='[1]Remises libres'!D83 -> ROUFFACH | E83: ='[1]Remises libres'!E83 -> 5130 | F83: ='[1]Remises libres'!F83 -> COLMAR | G83: ='[1]Remises libres'!G83 -> 264 | H83: ='[1]Remises libres'!H83 -> HAUT RHIN | I83: ='[1]Remises libres'!I83 -> 1057.6
A84: ='[1]Remises libres'!A84 -> 156 | B84: ='[1]Remises libres'!B84 -> SOULTZMATT | C84: ='[1]Remises libres'!C84 -> 4153 | D84: ='[1]Remises libres'!D84 -> ROUFFACH | E84: ='[1]Remises libres'!E84 -> 5130 | F84: ='[1]Remises libres'!F84 -> COLMAR | G84: ='[1]Remises libres'!G84 -> 264 | H84: ='[1]Remises libres'!H84 -> HAUT RHIN | I84: ='[1]Remises libres'!I84 -> 133
A85: ='[1]Remises libres'!A85 -> 157 | B85: ='[1]Remises libres'!B85 -> NEUF BRISACH | C85: ='[1]Remises libres'!C85 -> 4157 | D85: ='[1]Remises libres'!D85 -> NEUF BRISACH | E85: ='[1]Remises libres'!E85 -> 5130 | F85: ='[1]Remises libres'!F85 -> COLMAR | G85: ='[1]Remises libres'!G85 -> 264 | H85: ='[1]Remises libres'!H85 -> HAUT RHIN | I85: ='[1]Remises libres'!I85 -> 1328.51
A86: ='[1]Remises libres'!A86 -> 159 | B86: ='[1]Remises libres'!B86 -> MUNTZENHEIM | C86: ='[1]Remises libres'!C86 -> 4141 | D86: ='[1]Remises libres'!D86 -> HORBOURG WIHR | E86: ='[1]Remises libres'!E86 -> 5130 | F86: ='[1]Remises libres'!F86 -> COLMAR | G86: ='[1]Remises libres'!G86 -> 264 | H86: ='[1]Remises libres'!H86 -> HAUT RHIN | I86: ='[1]Remises libres'!I86 -> 2742.23
A87: ='[1]Remises libres'!A87 -> 160 | B87: ='[1]Remises libres'!B87 -> SOULTZ | C87: ='[1]Remises libres'!C87 -> 4147 | D87: ='[1]Remises libres'!D87 -> GUEBWILLER | E87: ='[1]Remises libres'!E87 -> 5130 | F87: ='[1]Remises libres'!F87 -> COLMAR | G87: ='[1]Remises libres'!G87 -> 264 | H87: ='[1]Remises libres'!H87 -> HAUT RHIN | I87: ='[1]Remises libres'!I87 -> 986.22
A88: ='[1]Remises libres'!A88 -> 162 | B88: ='[1]Remises libres'!B88 -> ENSISHEIM | C88: ='[1]Remises libres'!C88 -> 4162 | D88: ='[1]Remises libres'!D88 -> ENSISHEIM | E88: ='[1]Remises libres'!E88 -> 5130 | F88: ='[1]Remises libres'!F88 -> COLMAR | G88: ='[1]Remises libres'!G88 -> 264 | H88: ='[1]Remises libres'!H88 -> HAUT RHIN | I88: ='[1]Remises libres'!I88 -> 1891.64
A89: ='[1]Remises libres'!A89 -> 163 | B89: ='[1]Remises libres'!B89 -> PULVERSHEIM | C89: ='[1]Remises libres'!C89 -> 4162 | D89: ='[1]Remises libres'!D89 -> ENSISHEIM | E89: ='[1]Remises libres'!E89 -> 5130 | F89: ='[1]Remises libres'!F89 -> COLMAR | G89: ='[1]Remises libres'!G89 -> 264 | H89: ='[1]Remises libres'!H89 -> HAUT RHIN | I89: ='[1]Remises libres'!I89 -> 0.14
A90: ='[1]Remises libres'!A90 -> 164 | B90: ='[1]Remises libres'!B90 -> SAINTE MARIE AUX MINES | C90: ='[1]Remises libres'!C90 -> 4164 | D90: ='[1]Remises libres'!D90 -> SAINTE MARIE AUX MINES | E90: ='[1]Remises libres'!E90 -> 5130 | F90: ='[1]Remises libres'!F90 -> COLMAR | G90: ='[1]Remises libres'!G90 -> 264 | H90: ='[1]Remises libres'!H90 -> HAUT RHIN | I90: ='[1]Remises libres'!I90 -> 1658.37
A91: ='[1]Remises libres'!A91 -> 170 | B91: ='[1]Remises libres'!B91 -> MULHOUSE REUNION | C91: ='[1]Remises libres'!C91 -> 4170 | D91: ='[1]Remises libres'!D91 -> MULHOUSE REUNION | E91: ='[1]Remises libres'!E91 -> 5169 | F91: ='[1]Remises libres'!F91 -> MULHOUSE | G91: ='[1]Remises libres'!G91 -> 264 | H91: ='[1]Remises libres'!H91 -> HAUT RHIN | I91: ='[1]Remises libres'!I91 -> 3506.46
A92: ='[1]Remises libres'!A93 -> 174 | B92: ='[1]Remises libres'!B93 -> MULHOUSE DORNACH | C92: ='[1]Remises libres'!C93 -> 4174 | D92: ='[1]Remises libres'!D93 -> MULHOUSE DORNACH | E92: ='[1]Remises libres'!E93 -> 5169 | F92: ='[1]Remises libres'!F93 -> MULHOUSE | G92: ='[1]Remises libres'!G93 -> 264 | H92: ='[1]Remises libres'!H93 -> HAUT RHIN | I92: ='[1]Remises libres'!I93 -> 1504.56
A93: ='[1]Remises libres'!A94 -> 178 | B93: ='[1]Remises libres'!B94 -> SAINT LOUIS | C93: ='[1]Remises libres'!C94 -> 4178 | D93: ='[1]Remises libres'!D94 -> SAINT LOUIS | E93: ='[1]Remises libres'!E94 -> 5169 | F93: ='[1]Remises libres'!F94 -> MULHOUSE | G93: ='[1]Remises libres'!G94 -> 264 | H93: ='[1]Remises libres'!H94 -> HAUT RHIN | I93: ='[1]Remises libres'!I94 -> 1616.36
A94: ='[1]Remises libres'!A96 -> 180 | B94: ='[1]Remises libres'!B96 -> RIEDISHEIM | C94: ='[1]Remises libres'!C96 -> 4180 | D94: ='[1]Remises libres'!D96 -> RIEDISHEIM | E94: ='[1]Remises libres'!E96 -> 5169 | F94: ='[1]Remises libres'!F96 -> MULHOUSE | G94: ='[1]Remises libres'!G96 -> 264 | H94: ='[1]Remises libres'!H96 -> HAUT RHIN | I94: ='[1]Remises libres'!I96 -> 1352.3
A95: ='[1]Remises libres'!A97 -> 181 | B95: ='[1]Remises libres'!B97 -> WITTELSHEIM | C95: ='[1]Remises libres'!C97 -> 4181 | D95: ='[1]Remises libres'!D97 -> WITTELSHEIM | E95: ='[1]Remises libres'!E97 -> 5169 | F95: ='[1]Remises libres'!F97 -> MULHOUSE | G95: ='[1]Remises libres'!G97 -> 264 | H95: ='[1]Remises libres'!H97 -> HAUT RHIN | I95: ='[1]Remises libres'!I97 -> 249.52
A96: ='[1]Remises libres'!A98 -> 183 | B96: ='[1]Remises libres'!B98 -> WITTENHEIM | C96: ='[1]Remises libres'!C98 -> 4183 | D96: ='[1]Remises libres'!D98 -> WITTENHEIM | E96: ='[1]Remises libres'!E98 -> 5169 | F96: ='[1]Remises libres'!F98 -> MULHOUSE | G96: ='[1]Remises libres'!G98 -> 264 | H96: ='[1]Remises libres'!H98 -> HAUT RHIN | I96: ='[1]Remises libres'!I98 -> 237.95
A97: ='[1]Remises libres'!A99 -> 184 | B97: ='[1]Remises libres'!B99 -> ILLZACH | C97: ='[1]Remises libres'!C99 -> 4183 | D97: ='[1]Remises libres'!D99 -> WITTENHEIM | E97: ='[1]Remises libres'!E99 -> 5169 | F97: ='[1]Remises libres'!F99 -> MULHOUSE | G97: ='[1]Remises libres'!G99 -> 264 | H97: ='[1]Remises libres'!H99 -> HAUT RHIN | I97: ='[1]Remises libres'!I99 -> 173.74
A98: ='[1]Remises libres'!A100 -> 185 | B98: ='[1]Remises libres'!B100 -> RIXHEIM | C98: ='[1]Remises libres'!C100 -> 4185 | D98: ='[1]Remises libres'!D100 -> RIXHEIM | E98: ='[1]Remises libres'!E100 -> 5169 | F98: ='[1]Remises libres'!F100 -> MULHOUSE | G98: ='[1]Remises libres'!G100 -> 264 | H98: ='[1]Remises libres'!H100 -> HAUT RHIN | I98: ='[1]Remises libres'!I100 -> 5457.83
A99: ='[1]Remises libres'!A101 -> 186 | B99: ='[1]Remises libres'!B101 -> BRUNSTATT | C99: ='[1]Remises libres'!C101 -> 4174 | D99: ='[1]Remises libres'!D101 -> MULHOUSE DORNACH | E99: ='[1]Remises libres'!E101 -> 5169 | F99: ='[1]Remises libres'!F101 -> MULHOUSE | G99: ='[1]Remises libres'!G101 -> 264 | H99: ='[1]Remises libres'!H101 -> HAUT RHIN | I99: ='[1]Remises libres'!I101 -> 868.5
A100: ='[1]Remises libres'!A102 -> 188 | B100: ='[1]Remises libres'!B102 -> PFASTATT | C100: ='[1]Remises libres'!C102 -> 4188 | D100: ='[1]Remises libres'!D102 -> PFASTATT | E100: ='[1]Remises libres'!E102 -> 5169 | F100: ='[1]Remises libres'!F102 -> MULHOUSE | G100: ='[1]Remises libres'!G102 -> 264 | H100: ='[1]Remises libres'!H102 -> HAUT RHIN | I100: ='[1]Remises libres'!I102 -> 1600.22
A101: ='[1]Remises libres'!A103 -> 189 | B101: ='[1]Remises libres'!B103 -> ALTKIRCH | C101: ='[1]Remises libres'!C103 -> 4189 | D101: ='[1]Remises libres'!D103 -> ALTKIRCH | E101: ='[1]Remises libres'!E103 -> 5169 | F101: ='[1]Remises libres'!F103 -> MULHOUSE | G101: ='[1]Remises libres'!G103 -> 264 | H101: ='[1]Remises libres'!H103 -> HAUT RHIN | I101: ='[1]Remises libres'!I103 -> 1974.49
A102: ='[1]Remises libres'!A104 -> 191 | B102: ='[1]Remises libres'!B104 -> FERRETTE | C102: ='[1]Remises libres'!C104 -> 4189 | D102: ='[1]Remises libres'!D104 -> ALTKIRCH | E102: ='[1]Remises libres'!E104 -> 5169 | F102: ='[1]Remises libres'!F104 -> MULHOUSE | G102: ='[1]Remises libres'!G104 -> 264 | H102: ='[1]Remises libres'!H104 -> HAUT RHIN | I102: ='[1]Remises libres'!I104 -> 57.26
A103: ='[1]Remises libres'!A105 -> 192 | B103: ='[1]Remises libres'!B105 -> SEPPOIS LE BAS | C103: ='[1]Remises libres'!C105 -> 4189 | D103: ='[1]Remises libres'!D105 -> ALTKIRCH | E103: ='[1]Remises libres'!E105 -> 5169 | F103: ='[1]Remises libres'!F105 -> MULHOUSE | G103: ='[1]Remises libres'!G105 -> 264 | H103: ='[1]Remises libres'!H105 -> HAUT RHIN | I103: ='[1]Remises libres'!I105 -> 20.4
A104: ='[1]Remises libres'!A106 -> 193 | B104: ='[1]Remises libres'!B106 -> DANNEMARIE | C104: ='[1]Remises libres'!C106 -> 4189 | D104: ='[1]Remises libres'!D106 -> ALTKIRCH | E104: ='[1]Remises libres'!E106 -> 5169 | F104: ='[1]Remises libres'!F106 -> MULHOUSE | G104: ='[1]Remises libres'!G106 -> 264 | H104: ='[1]Remises libres'!H106 -> HAUT RHIN | I104: ='[1]Remises libres'!I106 -> 1918.35
A105: ='[1]Remises libres'!A107 -> 194 | B105: ='[1]Remises libres'!B107 -> THANN | C105: ='[1]Remises libres'!C107 -> 4194 | D105: ='[1]Remises libres'!D107 -> THANN | E105: ='[1]Remises libres'!E107 -> 5169 | F105: ='[1]Remises libres'!F107 -> MULHOUSE | G105: ='[1]Remises libres'!G107 -> 264 | H105: ='[1]Remises libres'!H107 -> HAUT RHIN | I105: ='[1]Remises libres'!I107 -> 1139.55
A106: ='[1]Remises libres'!A108 -> 195 | B106: ='[1]Remises libres'!B108 -> CERNAY | C106: ='[1]Remises libres'!C108 -> 4195 | D106: ='[1]Remises libres'!D108 -> CERNAY | E106: ='[1]Remises libres'!E108 -> 5169 | F106: ='[1]Remises libres'!F108 -> MULHOUSE | G106: ='[1]Remises libres'!G108 -> 264 | H106: ='[1]Remises libres'!H108 -> HAUT RHIN | I106: ='[1]Remises libres'!I108 -> 601.07
A107: ='[1]Remises libres'!A109 -> 196 | B107: ='[1]Remises libres'!B109 -> MASEVAUX | C107: ='[1]Remises libres'!C109 -> 4194 | D107: ='[1]Remises libres'!D109 -> THANN | E107: ='[1]Remises libres'!E109 -> 5169 | F107: ='[1]Remises libres'!F109 -> MULHOUSE | G107: ='[1]Remises libres'!G109 -> 264 | H107: ='[1]Remises libres'!H109 -> HAUT RHIN | I107: ='[1]Remises libres'!I109 -> 536
A108: ='[1]Remises libres'!A110 -> 198 | B108: ='[1]Remises libres'!B110 -> SAINT AMARIN | C108: ='[1]Remises libres'!C110 -> 4194 | D108: ='[1]Remises libres'!D110 -> THANN | E108: ='[1]Remises libres'!E110 -> 5169 | F108: ='[1]Remises libres'!F110 -> MULHOUSE | G108: ='[1]Remises libres'!G110 -> 264 | H108: ='[1]Remises libres'!H110 -> HAUT RHIN | I108: ='[1]Remises libres'!I110 -> 296.01
A109: ='[1]Remises libres'!A111 -> 5800 | B109: ='[1]Remises libres'!B111 -> EXPERTS DIRECT | C109: ='[1]Remises libres'!C111 -> 405800 | D109: ='[1]Remises libres'!D111 -> EXPERTS DIRECT | E109: ='[1]Remises libres'!E111 -> 5800 | F109: ='[1]Remises libres'!F111 -> EXPERTS DIRECT | G109: ='[1]Remises libres'!G111 -> 269 | H109: ='[1]Remises libres'!H111 -> BANQUE DIGITALE | I109: ='[1]Remises libres'!I111 -> 285.27
A110: ='[1]Remises libres'!A112 -> 8801 | B110: ='[1]Remises libres'!B112 -> CHARLEVILLE JEAN JAURES | C110: ='[1]Remises libres'!C112 -> 408801 | D110: ='[1]Remises libres'!D112 -> CHARLEVILLE JEAN JAURES | E110: ='[1]Remises libres'!E112 -> 2 | F110: ='[1]Remises libres'!F112 -> CHARLEVILLE MEZIERES | G110: ='[1]Remises libres'!G112 -> 30 | H110: ='[1]Remises libres'!H112 -> MARNE ARDENNES | I110: ='[1]Remises libres'!I112 -> 3599.69
A111: ='[1]Remises libres'!A113 -> 8802 | B111: ='[1]Remises libres'!B113 -> CHARLEVILLE NEVERS | C111: ='[1]Remises libres'!C113 -> 508802 | D111: ='[1]Remises libres'!D113 -> CHARLEVILLE NEVERS | E111: ='[1]Remises libres'!E113 -> 2 | F111: ='[1]Remises libres'!F113 -> CHARLEVILLE MEZIERES | G111: ='[1]Remises libres'!G113 -> 30 | H111: ='[1]Remises libres'!H113 -> MARNE ARDENNES | I111: ='[1]Remises libres'!I113 -> 282.5
A112: ='[1]Remises libres'!A114 -> 8806 | B112: ='[1]Remises libres'!B114 -> SEDAN | C112: ='[1]Remises libres'!C114 -> 408806 | D112: ='[1]Remises libres'!D114 -> SEDAN | E112: ='[1]Remises libres'!E114 -> 2 | F112: ='[1]Remises libres'!F114 -> CHARLEVILLE MEZIERES | G112: ='[1]Remises libres'!G114 -> 30 | H112: ='[1]Remises libres'!H114 -> MARNE ARDENNES | I112: ='[1]Remises libres'!I114 -> 2241.07
A113: ='[1]Remises libres'!A115 -> 8815 | B113: ='[1]Remises libres'!B115 -> CARIGNAN | C113: ='[1]Remises libres'!C115 -> 508815 | D113: ='[1]Remises libres'!D115 -> CARIGNAN | E113: ='[1]Remises libres'!E115 -> 2 | F113: ='[1]Remises libres'!F115 -> CHARLEVILLE MEZIERES | G113: ='[1]Remises libres'!G115 -> 30 | H113: ='[1]Remises libres'!H115 -> MARNE ARDENNES | I113: ='[1]Remises libres'!I115 -> 720
A114: ='[1]Remises libres'!A116 -> 8817 | B114: ='[1]Remises libres'!B116 -> CHARLEVILLE MOHON | C114: ='[1]Remises libres'!C116 -> 508817 | D114: ='[1]Remises libres'!D116 -> CHARLEVILLE MOHON | E114: ='[1]Remises libres'!E116 -> 2 | F114: ='[1]Remises libres'!F116 -> CHARLEVILLE MEZIERES | G114: ='[1]Remises libres'!G116 -> 30 | H114: ='[1]Remises libres'!H116 -> MARNE ARDENNES | I114: ='[1]Remises libres'!I116 -> 155.57
A115: ='[1]Remises libres'!A117 -> 8819 | B115: ='[1]Remises libres'!B117 -> MOUZON | C115: ='[1]Remises libres'!C117 -> 508819 | D115: ='[1]Remises libres'!D117 -> MOUZON | E115: ='[1]Remises libres'!E117 -> 2 | F115: ='[1]Remises libres'!F117 -> CHARLEVILLE MEZIERES | G115: ='[1]Remises libres'!G117 -> 30 | H115: ='[1]Remises libres'!H117 -> MARNE ARDENNES | I115: ='[1]Remises libres'!I117 -> 390
A116: ='[1]Remises libres'!A118 -> 8820 | B116: ='[1]Remises libres'!B118 -> VOUZIERS | C116: ='[1]Remises libres'!C118 -> 508820 | D116: ='[1]Remises libres'!D118 -> VOUZIERS | E116: ='[1]Remises libres'!E118 -> 2 | F116: ='[1]Remises libres'!F118 -> CHARLEVILLE MEZIERES | G116: ='[1]Remises libres'!G118 -> 30 | H116: ='[1]Remises libres'!H118 -> MARNE ARDENNES | I116: ='[1]Remises libres'!I118 -> 872.21
A117: ='[1]Remises libres'!A119 -> 8822 | B117: ='[1]Remises libres'!B119 -> CHARLEVILLE MEZIERES | C117: ='[1]Remises libres'!C119 -> 408822 | D117: ='[1]Remises libres'!D119 -> CHARLEVILLE MEZIERES | E117: ='[1]Remises libres'!E119 -> 2 | F117: ='[1]Remises libres'!F119 -> CHARLEVILLE MEZIERES | G117: ='[1]Remises libres'!G119 -> 30 | H117: ='[1]Remises libres'!H119 -> MARNE ARDENNES | I117: ='[1]Remises libres'!I119 -> 1559.26
A118: ='[1]Remises libres'!A120 -> 8833 | B118: ='[1]Remises libres'!B120 -> VILLERS SEMEUSE CORA | C118: ='[1]Remises libres'!C120 -> 508833 | D118: ='[1]Remises libres'!D120 -> VILLERS SEMEUSE CORA | E118: ='[1]Remises libres'!E120 -> 2 | F118: ='[1]Remises libres'!F120 -> CHARLEVILLE MEZIERES | G118: ='[1]Remises libres'!G120 -> 30 | H118: ='[1]Remises libres'!H120 -> MARNE ARDENNES | I118: ='[1]Remises libres'!I120 -> 407.42
A119: ='[1]Remises libres'!A121 -> 8839 | B119: ='[1]Remises libres'!B121 -> GIVET | C119: ='[1]Remises libres'!C121 -> 508839 | D119: ='[1]Remises libres'!D121 -> GIVET | E119: ='[1]Remises libres'!E121 -> 2 | F119: ='[1]Remises libres'!F121 -> CHARLEVILLE MEZIERES | G119: ='[1]Remises libres'!G121 -> 30 | H119: ='[1]Remises libres'!H121 -> MARNE ARDENNES | I119: ='[1]Remises libres'!I121 -> 0
A120: ='[1]Remises libres'!A122 -> 8840 | B120: ='[1]Remises libres'!B122 -> RETHEL | C120: ='[1]Remises libres'!C122 -> 408840 | D120: ='[1]Remises libres'!D122 -> RETHEL | E120: ='[1]Remises libres'!E122 -> 2 | F120: ='[1]Remises libres'!F122 -> CHARLEVILLE MEZIERES | G120: ='[1]Remises libres'!G122 -> 30 | H120: ='[1]Remises libres'!H122 -> MARNE ARDENNES | I120: ='[1]Remises libres'!I122 -> 1017.66
A121: ='[1]Remises libres'!A123 -> 8860 | B121: ='[1]Remises libres'!B123 -> ROCROI | C121: ='[1]Remises libres'!C123 -> 508860 | D121: ='[1]Remises libres'!D123 -> ROCROI | E121: ='[1]Remises libres'!E123 -> 2 | F121: ='[1]Remises libres'!F123 -> CHARLEVILLE MEZIERES | G121: ='[1]Remises libres'!G123 -> 30 | H121: ='[1]Remises libres'!H123 -> MARNE ARDENNES | I121: ='[1]Remises libres'!I123 -> 74.79
A122: ='[1]Remises libres'!A124 -> 8862 | B122: ='[1]Remises libres'!B124 -> REVIN | C122: ='[1]Remises libres'!C124 -> 408862 | D122: ='[1]Remises libres'!D124 -> REVIN | E122: ='[1]Remises libres'!E124 -> 2 | F122: ='[1]Remises libres'!F124 -> CHARLEVILLE MEZIERES | G122: ='[1]Remises libres'!G124 -> 30 | H122: ='[1]Remises libres'!H124 -> MARNE ARDENNES | I122: ='[1]Remises libres'!I124 -> 586.86
A123: ='[1]Remises libres'!A125 -> 10510 | B123: ='[1]Remises libres'!B125 -> TROYES GAMBETTA | C123: ='[1]Remises libres'!C125 -> 410510 | D123: ='[1]Remises libres'!D125 -> TROYES GAMBETTA | E123: ='[1]Remises libres'!E125 -> 14 | F123: ='[1]Remises libres'!F125 -> TROYES | G123: ='[1]Remises libres'!G125 -> 50 | H123: ='[1]Remises libres'!H125 -> AUBE HAUTE MARNE | I123: ='[1]Remises libres'!I125 -> 2607.79
A124: ='[1]Remises libres'!A126 -> 10511 | B124: ='[1]Remises libres'!B126 -> TROYES BROSSOLETTE | C124: ='[1]Remises libres'!C126 -> 510511 | D124: ='[1]Remises libres'!D126 -> TROYES BROSSOLETTE | E124: ='[1]Remises libres'!E126 -> 14 | F124: ='[1]Remises libres'!F126 -> TROYES | G124: ='[1]Remises libres'!G126 -> 50 | H124: ='[1]Remises libres'!H126 -> AUBE HAUTE MARNE | I124: ='[1]Remises libres'!I126 -> 145.5
A125: ='[1]Remises libres'!A127 -> 10512 | B125: ='[1]Remises libres'!B127 -> TROYES ZOLA | C125: ='[1]Remises libres'!C127 -> 410512 | D125: ='[1]Remises libres'!D127 -> TROYES ZOLA | E125: ='[1]Remises libres'!E127 -> 14 | F125: ='[1]Remises libres'!F127 -> TROYES | G125: ='[1]Remises libres'!G127 -> 50 | H125: ='[1]Remises libres'!H127 -> AUBE HAUTE MARNE | I125: ='[1]Remises libres'!I127 -> 220.07
A126: ='[1]Remises libres'!A128 -> 10513 | B126: ='[1]Remises libres'!B128 -> TROYES 1ER MAI | C126: ='[1]Remises libres'!C128 -> 510513 | D126: ='[1]Remises libres'!D128 -> TROYES 1ER MAI | E126: ='[1]Remises libres'!E128 -> 14 | F126: ='[1]Remises libres'!F128 -> TROYES | G126: ='[1]Remises libres'!G128 -> 50 | H126: ='[1]Remises libres'!H128 -> AUBE HAUTE MARNE | I126: ='[1]Remises libres'!I128 -> 232.6
A127: ='[1]Remises libres'!A129 -> 10520 | B127: ='[1]Remises libres'!B129 -> SAINT ANDRE LES VERGERS | C127: ='[1]Remises libres'!C129 -> 510520 | D127: ='[1]Remises libres'!D129 -> SAINT ANDRE LES VERGERS | E127: ='[1]Remises libres'!E129 -> 14 | F127: ='[1]Remises libres'!F129 -> TROYES | G127: ='[1]Remises libres'!G129 -> 50 | H127: ='[1]Remises libres'!H129 -> AUBE HAUTE MARNE | I127: ='[1]Remises libres'!I129 -> 921.01
A128: ='[1]Remises libres'!A130 -> 10521 | B128: ='[1]Remises libres'!B130 -> SAINTE SAVINE | C128: ='[1]Remises libres'!C130 -> 410521 | D128: ='[1]Remises libres'!D130 -> SAINTE SAVINE | E128: ='[1]Remises libres'!E130 -> 14 | F128: ='[1]Remises libres'!F130 -> TROYES | G128: ='[1]Remises libres'!G130 -> 50 | H128: ='[1]Remises libres'!H130 -> AUBE HAUTE MARNE | I128: ='[1]Remises libres'!I130 -> 776.23
A129: ='[1]Remises libres'!A131 -> 10522 | B129: ='[1]Remises libres'!B131 -> TROYES CHARTREUX | C129: ='[1]Remises libres'!C131 -> 510522 | D129: ='[1]Remises libres'!D131 -> TROYES CHARTREUX | E129: ='[1]Remises libres'!E131 -> 14 | F129: ='[1]Remises libres'!F131 -> TROYES | G129: ='[1]Remises libres'!G131 -> 50 | H129: ='[1]Remises libres'!H131 -> AUBE HAUTE MARNE | I129: ='[1]Remises libres'!I131 -> 329
A130: ='[1]Remises libres'!A132 -> 10523 | B130: ='[1]Remises libres'!B132 -> LA CHAPELLE ST LUC | C130: ='[1]Remises libres'!C132 -> 510523 | D130: ='[1]Remises libres'!D132 -> LA CHAPELLE ST LUC | E130: ='[1]Remises libres'!E132 -> 14 | F130: ='[1]Remises libres'!F132 -> TROYES | G130: ='[1]Remises libres'!G132 -> 50 | H130: ='[1]Remises libres'!H132 -> AUBE HAUTE MARNE | I130: ='[1]Remises libres'!I132 -> 530.5
A131: ='[1]Remises libres'!A133 -> 10524 | B131: ='[1]Remises libres'!B133 -> SAINT JULIEN LES VILLAS | C131: ='[1]Remises libres'!C133 -> 410524 | D131: ='[1]Remises libres'!D133 -> SAINT JULIEN LES VILLAS | E131: ='[1]Remises libres'!E133 -> 14 | F131: ='[1]Remises libres'!F133 -> TROYES | G131: ='[1]Remises libres'!G133 -> 50 | H131: ='[1]Remises libres'!H133 -> AUBE HAUTE MARNE | I131: ='[1]Remises libres'!I133 -> 3943.87
A132: ='[1]Remises libres'!A134 -> 10530 | B132: ='[1]Remises libres'!B134 -> ARCIS SUR AUBE | C132: ='[1]Remises libres'!C134 -> 510530 | D132: ='[1]Remises libres'!D134 -> ARCIS SUR AUBE | E132: ='[1]Remises libres'!E134 -> 14 | F132: ='[1]Remises libres'!F134 -> TROYES | G132: ='[1]Remises libres'!G134 -> 50 | H132: ='[1]Remises libres'!H134 -> AUBE HAUTE MARNE | I132: ='[1]Remises libres'!I134 -> 424.26
A133: ='[1]Remises libres'!A135 -> 10541 | B133: ='[1]Remises libres'!B135 -> LANGRES | C133: ='[1]Remises libres'!C135 -> 410541 | D133: ='[1]Remises libres'!D135 -> LANGRES | E133: ='[1]Remises libres'!E135 -> 21 | F133: ='[1]Remises libres'!F135 -> CHAUMONT | G133: ='[1]Remises libres'!G135 -> 50 | H133: ='[1]Remises libres'!H135 -> AUBE HAUTE MARNE | I133: ='[1]Remises libres'!I135 -> 1001.5
A134: ='[1]Remises libres'!A136 -> 10550 | B134: ='[1]Remises libres'!B136 -> BAR SUR AUBE | C134: ='[1]Remises libres'!C136 -> 410550 | D134: ='[1]Remises libres'!D136 -> BAR SUR AUBE | E134: ='[1]Remises libres'!E136 -> 14 | F134: ='[1]Remises libres'!F136 -> TROYES | G134: ='[1]Remises libres'!G136 -> 50 | H134: ='[1]Remises libres'!H136 -> AUBE HAUTE MARNE | I134: ='[1]Remises libres'!I136 -> 932
A135: ='[1]Remises libres'!A137 -> 10551 | B135: ='[1]Remises libres'!B137 -> BRIENNE LE CHATEAU | C135: ='[1]Remises libres'!C137 -> 410550 | D135: ='[1]Remises libres'!D137 -> BAR SUR AUBE | E135: ='[1]Remises libres'!E137 -> 14 | F135: ='[1]Remises libres'!F137 -> TROYES | G135: ='[1]Remises libres'!G137 -> 50 | H135: ='[1]Remises libres'!H137 -> AUBE HAUTE MARNE | I135: ='[1]Remises libres'!I137 -> 171.01
A136: ='[1]Remises libres'!A138 -> 10556 | B136: ='[1]Remises libres'!B138 -> BAR SUR SEINE | C136: ='[1]Remises libres'!C138 -> 510556 | D136: ='[1]Remises libres'!D138 -> BAR SUR SEINE | E136: ='[1]Remises libres'!E138 -> 14 | F136: ='[1]Remises libres'!F138 -> TROYES | G136: ='[1]Remises libres'!G138 -> 50 | H136: ='[1]Remises libres'!H138 -> AUBE HAUTE MARNE | I136: ='[1]Remises libres'!I138 -> 830.33
A137: ='[1]Remises libres'!A139 -> 10558 | B137: ='[1]Remises libres'!B139 -> CHALINDREY | C137: ='[1]Remises libres'!C139 -> 410541 | D137: ='[1]Remises libres'!D139 -> LANGRES | E137: ='[1]Remises libres'!E139 -> 21 | F137: ='[1]Remises libres'!F139 -> CHAUMONT | G137: ='[1]Remises libres'!G139 -> 50 | H137: ='[1]Remises libres'!H139 -> AUBE HAUTE MARNE | I137: ='[1]Remises libres'!I139 -> 350.06
A138: ='[1]Remises libres'!A140 -> 10560 | B138: ='[1]Remises libres'!B140 -> BOURBONNE LES BAINS | C138: ='[1]Remises libres'!C140 -> 410560 | D138: ='[1]Remises libres'!D140 -> BOURBONNE LES BAINS | E138: ='[1]Remises libres'!E140 -> 21 | F138: ='[1]Remises libres'!F140 -> CHAUMONT | G138: ='[1]Remises libres'!G140 -> 50 | H138: ='[1]Remises libres'!H140 -> AUBE HAUTE MARNE | I138: ='[1]Remises libres'!I140 -> 591.39
A139: ='[1]Remises libres'!A141 -> 10566 | B139: ='[1]Remises libres'!B141 -> CHAUMONT HOTEL DE VILLE | C139: ='[1]Remises libres'!C141 -> 410566 | D139: ='[1]Remises libres'!D141 -> CHAUMONT HOTEL DE VILLE | E139: ='[1]Remises libres'!E141 -> 21 | F139: ='[1]Remises libres'!F141 -> CHAUMONT | G139: ='[1]Remises libres'!G141 -> 50 | H139: ='[1]Remises libres'!H141 -> AUBE HAUTE MARNE | I139: ='[1]Remises libres'!I141 -> 1488.88
A140: ='[1]Remises libres'!A142 -> 10570 | B140: ='[1]Remises libres'!B142 -> NOGENT SUR SEINE | C140: ='[1]Remises libres'!C142 -> 510570 | D140: ='[1]Remises libres'!D142 -> NOGENT SUR SEINE | E140: ='[1]Remises libres'!E142 -> 14 | F140: ='[1]Remises libres'!F142 -> TROYES | G140: ='[1]Remises libres'!G142 -> 50 | H140: ='[1]Remises libres'!H142 -> AUBE HAUTE MARNE | I140: ='[1]Remises libres'!I142 -> 245
A141: ='[1]Remises libres'!A143 -> 10571 | B141: ='[1]Remises libres'!B143 -> ROMILLY SUR SEINE | C141: ='[1]Remises libres'!C143 -> 410571 | D141: ='[1]Remises libres'!D143 -> ROMILLY SUR SEINE | E141: ='[1]Remises libres'!E143 -> 14 | F141: ='[1]Remises libres'!F143 -> TROYES | G141: ='[1]Remises libres'!G143 -> 50 | H141: ='[1]Remises libres'!H143 -> AUBE HAUTE MARNE | I141: ='[1]Remises libres'!I143 -> 703.7
A142: ='[1]Remises libres'!A144 -> 10582 | B142: ='[1]Remises libres'!B144 -> NOGENT | C142: ='[1]Remises libres'!C144 -> 510590 | D142: ='[1]Remises libres'!D144 -> CHAUMONT REPUBLIQUE | E142: ='[1]Remises libres'!E144 -> 21 | F142: ='[1]Remises libres'!F144 -> CHAUMONT | G142: ='[1]Remises libres'!G144 -> 50 | H142: ='[1]Remises libres'!H144 -> AUBE HAUTE MARNE | I142: ='[1]Remises libres'!I144 -> 187.15
A143: ='[1]Remises libres'!A145 -> 10583 | B143: ='[1]Remises libres'!B145 -> AIX EN OTHE | C143: ='[1]Remises libres'!C145 -> 510523 | D143: ='[1]Remises libres'!D145 -> LA CHAPELLE ST LUC | E143: ='[1]Remises libres'!E145 -> 14 | F143: ='[1]Remises libres'!F145 -> TROYES | G143: ='[1]Remises libres'!G145 -> 50 | H143: ='[1]Remises libres'!H145 -> AUBE HAUTE MARNE | I143: ='[1]Remises libres'!I145 -> 0
A144: ='[1]Remises libres'!A146 -> 10590 | B144: ='[1]Remises libres'!B146 -> CHAUMONT REPUBLIQUE | C144: ='[1]Remises libres'!C146 -> 510590 | D144: ='[1]Remises libres'!D146 -> CHAUMONT REPUBLIQUE | E144: ='[1]Remises libres'!E146 -> 21 | F144: ='[1]Remises libres'!F146 -> CHAUMONT | G144: ='[1]Remises libres'!G146 -> 50 | H144: ='[1]Remises libres'!H146 -> AUBE HAUTE MARNE | I144: ='[1]Remises libres'!I146 -> 1824.61
A145: ='[1]Remises libres'!A147 -> 51101 | B145: ='[1]Remises libres'!B147 -> CHALONS VIVIERS | C145: ='[1]Remises libres'!C147 -> 451101 | D145: ='[1]Remises libres'!D147 -> CHALONS VIVIERS | E145: ='[1]Remises libres'!E147 -> 6 | F145: ='[1]Remises libres'!F147 -> CHALONS EN CHAMPAGNE | G145: ='[1]Remises libres'!G147 -> 30 | H145: ='[1]Remises libres'!H147 -> MARNE ARDENNES | I145: ='[1]Remises libres'!I147 -> 1319.03
A146: ='[1]Remises libres'!A148 -> 51103 | B146: ='[1]Remises libres'!B148 -> FAGNIERES LECLERC | C146: ='[1]Remises libres'!C148 -> 551103 | D146: ='[1]Remises libres'!D148 -> FAGNIERES LECLERC | E146: ='[1]Remises libres'!E148 -> 6 | F146: ='[1]Remises libres'!F148 -> CHALONS EN CHAMPAGNE | G146: ='[1]Remises libres'!G148 -> 30 | H146: ='[1]Remises libres'!H148 -> MARNE ARDENNES | I146: ='[1]Remises libres'!I148 -> 2023.33
A147: ='[1]Remises libres'!A149 -> 51110 | B147: ='[1]Remises libres'!B149 -> CHALONS ROOSEVELT | C147: ='[1]Remises libres'!C149 -> 551110 | D147: ='[1]Remises libres'!D149 -> CHALONS ROOSEVELT | E147: ='[1]Remises libres'!E149 -> 6 | F147: ='[1]Remises libres'!F149 -> CHALONS EN CHAMPAGNE | G147: ='[1]Remises libres'!G149 -> 30 | H147: ='[1]Remises libres'!H149 -> MARNE ARDENNES | I147: ='[1]Remises libres'!I149 -> 155
A148: ='[1]Remises libres'!A150 -> 51114 | B148: ='[1]Remises libres'!B150 -> SUIPPES | C148: ='[1]Remises libres'!C150 -> 451115 | D148: ='[1]Remises libres'!D150 -> MOURMELON LE GRAND | E148: ='[1]Remises libres'!E150 -> 6 | F148: ='[1]Remises libres'!F150 -> CHALONS EN CHAMPAGNE | G148: ='[1]Remises libres'!G150 -> 30 | H148: ='[1]Remises libres'!H150 -> MARNE ARDENNES | I148: ='[1]Remises libres'!I150 -> 303.5
A149: ='[1]Remises libres'!A151 -> 51115 | B149: ='[1]Remises libres'!B151 -> MOURMELON LE GRAND | C149: ='[1]Remises libres'!C151 -> 451115 | D149: ='[1]Remises libres'!D151 -> MOURMELON LE GRAND | E149: ='[1]Remises libres'!E151 -> 6 | F149: ='[1]Remises libres'!F151 -> CHALONS EN CHAMPAGNE | G149: ='[1]Remises libres'!G151 -> 30 | H149: ='[1]Remises libres'!H151 -> MARNE ARDENNES | I149: ='[1]Remises libres'!I151 -> 0
A150: ='[1]Remises libres'!A152 -> 51120 | B150: ='[1]Remises libres'!B152 -> SARRY | C150: ='[1]Remises libres'!C152 -> 451120 | D150: ='[1]Remises libres'!D152 -> SARRY | E150: ='[1]Remises libres'!E152 -> 6 | F150: ='[1]Remises libres'!F152 -> CHALONS EN CHAMPAGNE | G150: ='[1]Remises libres'!G152 -> 30 | H150: ='[1]Remises libres'!H152 -> MARNE ARDENNES | I150: ='[1]Remises libres'!I152 -> 315
A151: ='[1]Remises libres'!A153 -> 51128 | B151: ='[1]Remises libres'!B153 -> SAINTE MENEHOULD | C151: ='[1]Remises libres'!C153 -> 551128 | D151: ='[1]Remises libres'!D153 -> SAINTE MENEHOULD | E151: ='[1]Remises libres'!E153 -> 6 | F151: ='[1]Remises libres'!F153 -> CHALONS EN CHAMPAGNE | G151: ='[1]Remises libres'!G153 -> 30 | H151: ='[1]Remises libres'!H153 -> MARNE ARDENNES | I151: ='[1]Remises libres'!I153 -> 70.37
A152: ='[1]Remises libres'!A154 -> 51151 | B152: ='[1]Remises libres'!B154 -> WASSY | C152: ='[1]Remises libres'!C154 -> 451151 | D152: ='[1]Remises libres'!D154 -> WASSY | E152: ='[1]Remises libres'!E154 -> 21 | F152: ='[1]Remises libres'!F154 -> CHAUMONT | G152: ='[1]Remises libres'!G154 -> 50 | H152: ='[1]Remises libres'!H154 -> AUBE HAUTE MARNE | I152: ='[1]Remises libres'!I154 -> 772.88
A153: ='[1]Remises libres'!A155 -> 51154 | B153: ='[1]Remises libres'!B155 -> JOINVILLE | C153: ='[1]Remises libres'!C155 -> 451154 | D153: ='[1]Remises libres'!D155 -> JOINVILLE | E153: ='[1]Remises libres'!E155 -> 21 | F153: ='[1]Remises libres'!F155 -> CHAUMONT | G153: ='[1]Remises libres'!G155 -> 50 | H153: ='[1]Remises libres'!H155 -> AUBE HAUTE MARNE | I153: ='[1]Remises libres'!I155 -> 244.9
A154: ='[1]Remises libres'!A156 -> 51156 | B154: ='[1]Remises libres'!B156 -> SAINT DIZIER CENTRE | C154: ='[1]Remises libres'!C156 -> 451156 | D154: ='[1]Remises libres'!D156 -> SAINT DIZIER CENTRE | E154: ='[1]Remises libres'!E156 -> 21 | F154: ='[1]Remises libres'!F156 -> CHAUMONT | G154: ='[1]Remises libres'!G156 -> 50 | H154: ='[1]Remises libres'!H156 -> AUBE HAUTE MARNE | I154: ='[1]Remises libres'!I156 -> 2045.15
A155: ='[1]Remises libres'!A157 -> 51157 | B155: ='[1]Remises libres'!B157 -> SAINT DIZIER EUROPE | C155: ='[1]Remises libres'!C157 -> 451156 | D155: ='[1]Remises libres'!D157 -> SAINT DIZIER CENTRE | E155: ='[1]Remises libres'!E157 -> 21 | F155: ='[1]Remises libres'!F157 -> CHAUMONT | G155: ='[1]Remises libres'!G157 -> 50 | H155: ='[1]Remises libres'!H157 -> AUBE HAUTE MARNE | I155: ='[1]Remises libres'!I157 -> 1028.76
A156: ='[1]Remises libres'!A158 -> 51166 | B156: ='[1]Remises libres'!B158 -> VITRY LE FRANCOIS | C156: ='[1]Remises libres'!C158 -> 451166 | D156: ='[1]Remises libres'!D158 -> VITRY LE FRANCOIS | E156: ='[1]Remises libres'!E158 -> 6 | F156: ='[1]Remises libres'!F158 -> CHALONS EN CHAMPAGNE | G156: ='[1]Remises libres'!G158 -> 30 | H156: ='[1]Remises libres'!H158 -> MARNE ARDENNES | I156: ='[1]Remises libres'!I158 -> 516.5
A157: ='[1]Remises libres'!A159 -> 51301 | B157: ='[1]Remises libres'!B159 -> REIMS HOTEL DE VILLE | C157: ='[1]Remises libres'!C159 -> 451301 | D157: ='[1]Remises libres'!D159 -> REIMS HOTEL DE VILLE | E157: ='[1]Remises libres'!E159 -> 11 | F157: ='[1]Remises libres'!F159 -> REIMS | G157: ='[1]Remises libres'!G159 -> 30 | H157: ='[1]Remises libres'!H159 -> MARNE ARDENNES | I157: ='[1]Remises libres'!I159 -> 976.07
A158: ='[1]Remises libres'!A160 -> 51305 | B158: ='[1]Remises libres'!B160 -> REIMS HIPPODROME | C158: ='[1]Remises libres'!C160 -> 551305 | D158: ='[1]Remises libres'!D160 -> REIMS HIPPODROME | E158: ='[1]Remises libres'!E160 -> 11 | F158: ='[1]Remises libres'!F160 -> REIMS | G158: ='[1]Remises libres'!G160 -> 30 | H158: ='[1]Remises libres'!H160 -> MARNE ARDENNES | I158: ='[1]Remises libres'!I160 -> 4739.4
A159: ='[1]Remises libres'!A161 -> 51306 | B159: ='[1]Remises libres'!B161 -> REIMS SAINT MARCEAUX | C159: ='[1]Remises libres'!C161 -> 551306 | D159: ='[1]Remises libres'!D161 -> REIMS SAINT MARCEAUX | E159: ='[1]Remises libres'!E161 -> 11 | F159: ='[1]Remises libres'!F161 -> REIMS | G159: ='[1]Remises libres'!G161 -> 30 | H159: ='[1]Remises libres'!H161 -> MARNE ARDENNES | I159: ='[1]Remises libres'!I161 -> 3383.94
A160: ='[1]Remises libres'!A162 -> 51307 | B160: ='[1]Remises libres'!B162 -> REIMS SAINTE ANNE | C160: ='[1]Remises libres'!C162 -> 551307 | D160: ='[1]Remises libres'!D162 -> REIMS SAINTE ANNE | E160: ='[1]Remises libres'!E162 -> 11 | F160: ='[1]Remises libres'!F162 -> REIMS | G160: ='[1]Remises libres'!G162 -> 30 | H160: ='[1]Remises libres'!H162 -> MARNE ARDENNES | I160: ='[1]Remises libres'!I162 -> 101.85
A161: ='[1]Remises libres'!A163 -> 51308 | B161: ='[1]Remises libres'!B163 -> REIMS SAINT THOMAS | C161: ='[1]Remises libres'!C163 -> 451308 | D161: ='[1]Remises libres'!D163 -> REIMS SAINT THOMAS | E161: ='[1]Remises libres'!E163 -> 11 | F161: ='[1]Remises libres'!F163 -> REIMS | G161: ='[1]Remises libres'!G163 -> 30 | H161: ='[1]Remises libres'!H163 -> MARNE ARDENNES | I161: ='[1]Remises libres'!I163 -> 1708.89
A162: ='[1]Remises libres'!A164 -> 51309 | B162: ='[1]Remises libres'!B164 -> REIMS EUROPE | C162: ='[1]Remises libres'!C164 -> 551309 | D162: ='[1]Remises libres'!D164 -> REIMS EUROPE | E162: ='[1]Remises libres'!E164 -> 11 | F162: ='[1]Remises libres'!F164 -> REIMS | G162: ='[1]Remises libres'!G164 -> 30 | H162: ='[1]Remises libres'!H164 -> MARNE ARDENNES | I162: ='[1]Remises libres'!I164 -> 1147.03
A163: ='[1]Remises libres'!A165 -> 51310 | B163: ='[1]Remises libres'!B165 -> REIMS CHATILLONS | C163: ='[1]Remises libres'!C165 -> 551310 | D163: ='[1]Remises libres'!D165 -> REIMS CHATILLONS | E163: ='[1]Remises libres'!E165 -> 11 | F163: ='[1]Remises libres'!F165 -> REIMS | G163: ='[1]Remises libres'!G165 -> 30 | H163: ='[1]Remises libres'!H165 -> MARNE ARDENNES | I163: ='[1]Remises libres'!I165 -> 468.14
A164: ='[1]Remises libres'!A166 -> 51314 | B164: ='[1]Remises libres'!B166 -> FISMES | C164: ='[1]Remises libres'!C166 -> 551314 | D164: ='[1]Remises libres'!D166 -> FISMES | E164: ='[1]Remises libres'!E166 -> 11 | F164: ='[1]Remises libres'!F166 -> REIMS | G164: ='[1]Remises libres'!G166 -> 30 | H164: ='[1]Remises libres'!H166 -> MARNE ARDENNES | I164: ='[1]Remises libres'!I166 -> 90
A165: ='[1]Remises libres'!A167 -> 51318 | B165: ='[1]Remises libres'!B167 -> VERZY | C165: ='[1]Remises libres'!C167 -> 451370 | D165: ='[1]Remises libres'!D167 -> EPERNAY | E165: ='[1]Remises libres'!E167 -> 11 | F165: ='[1]Remises libres'!F167 -> REIMS | G165: ='[1]Remises libres'!G167 -> 30 | H165: ='[1]Remises libres'!H167 -> MARNE ARDENNES | I165: ='[1]Remises libres'!I167 -> 13.33
A166: ='[1]Remises libres'!A168 -> 51330 | B166: ='[1]Remises libres'!B168 -> MONTMIRAIL | C166: ='[1]Remises libres'!C168 -> 551330 | D166: ='[1]Remises libres'!D168 -> MONTMIRAIL | E166: ='[1]Remises libres'!E168 -> 6 | F166: ='[1]Remises libres'!F168 -> CHALONS EN CHAMPAGNE | G166: ='[1]Remises libres'!G168 -> 30 | H166: ='[1]Remises libres'!H168 -> MARNE ARDENNES | I166: ='[1]Remises libres'!I168 -> 54.97
A167: ='[1]Remises libres'!A169 -> 51336 | B167: ='[1]Remises libres'!B169 -> TINQUEUX | C167: ='[1]Remises libres'!C169 -> 451336 | D167: ='[1]Remises libres'!D169 -> TINQUEUX | E167: ='[1]Remises libres'!E169 -> 11 | F167: ='[1]Remises libres'!F169 -> REIMS | G167: ='[1]Remises libres'!G169 -> 30 | H167: ='[1]Remises libres'!H169 -> MARNE ARDENNES | I167: ='[1]Remises libres'!I169 -> 1049.14
A168: ='[1]Remises libres'!A170 -> 51340 | B168: ='[1]Remises libres'!B170 -> BETHENY | C168: ='[1]Remises libres'!C170 -> 551340 | D168: ='[1]Remises libres'!D170 -> BETHENY | E168: ='[1]Remises libres'!E170 -> 11 | F168: ='[1]Remises libres'!F170 -> REIMS | G168: ='[1]Remises libres'!G170 -> 30 | H168: ='[1]Remises libres'!H170 -> MARNE ARDENNES | I168: ='[1]Remises libres'!I170 -> 1084.75
A169: ='[1]Remises libres'!A171 -> 51341 | B169: ='[1]Remises libres'!B171 -> REIMS JEAN JAURES | C169: ='[1]Remises libres'!C171 -> 551341 | D169: ='[1]Remises libres'!D171 -> REIMS JEAN JAURES | E169: ='[1]Remises libres'!E171 -> 11 | F169: ='[1]Remises libres'!F171 -> REIMS | G169: ='[1]Remises libres'!G171 -> 30 | H169: ='[1]Remises libres'!H171 -> MARNE ARDENNES | I169: ='[1]Remises libres'!I171 -> 254.14
A170: ='[1]Remises libres'!A172 -> 51349 | B170: ='[1]Remises libres'!B172 -> REIMS SAINT REMI | C170: ='[1]Remises libres'!C172 -> 551349 | D170: ='[1]Remises libres'!D172 -> REIMS SAINT REMI | E170: ='[1]Remises libres'!E172 -> 11 | F170: ='[1]Remises libres'!F172 -> REIMS | G170: ='[1]Remises libres'!G172 -> 30 | H170: ='[1]Remises libres'!H172 -> MARNE ARDENNES | I170: ='[1]Remises libres'!I172 -> 485.67
A171: ='[1]Remises libres'!A173 -> 51350 | B171: ='[1]Remises libres'!B173 -> REIMS CENTRE VILLE | C171: ='[1]Remises libres'!C173 -> 451350 | D171: ='[1]Remises libres'!D173 -> REIMS CENTRE VILLE | E171: ='[1]Remises libres'!E173 -> 11 | F171: ='[1]Remises libres'!F173 -> REIMS | G171: ='[1]Remises libres'!G173 -> 30 | H171: ='[1]Remises libres'!H173 -> MARNE ARDENNES | I171: ='[1]Remises libres'!I173 -> 1561.62
A172: ='[1]Remises libres'!A174 -> 51354 | B172: ='[1]Remises libres'!B174 -> VERTUS | C172: ='[1]Remises libres'!C174 -> 551354 | D172: ='[1]Remises libres'!D174 -> VERTUS | E172: ='[1]Remises libres'!E174 -> 6 | F172: ='[1]Remises libres'!F174 -> CHALONS EN CHAMPAGNE | G172: ='[1]Remises libres'!G174 -> 30 | H172: ='[1]Remises libres'!H174 -> MARNE ARDENNES | I172: ='[1]Remises libres'!I174 -> 1151.23
A173: ='[1]Remises libres'!A175 -> 51361 | B173: ='[1]Remises libres'!B175 -> PIERRY LECLERC | C173: ='[1]Remises libres'!C175 -> 451361 | D173: ='[1]Remises libres'!D175 -> PIERRY LECLERC | E173: ='[1]Remises libres'!E175 -> 11 | F173: ='[1]Remises libres'!F175 -> REIMS | G173: ='[1]Remises libres'!G175 -> 30 | H173: ='[1]Remises libres'!H175 -> MARNE ARDENNES | I173: ='[1]Remises libres'!I175 -> 350
A174: ='[1]Remises libres'!A176 -> 51365 | B174: ='[1]Remises libres'!B176 -> DORMANS | C174: ='[1]Remises libres'!C176 -> 551365 | D174: ='[1]Remises libres'!D176 -> DORMANS | E174: ='[1]Remises libres'!E176 -> 11 | F174: ='[1]Remises libres'!F176 -> REIMS | G174: ='[1]Remises libres'!G176 -> 30 | H174: ='[1]Remises libres'!H176 -> MARNE ARDENNES | I174: ='[1]Remises libres'!I176 -> 0
A175: ='[1]Remises libres'!A177 -> 51367 | B175: ='[1]Remises libres'!B177 -> AY CHAMPAGNE | C175: ='[1]Remises libres'!C177 -> 551367 | D175: ='[1]Remises libres'!D177 -> AY CHAMPAGNE | E175: ='[1]Remises libres'!E177 -> 11 | F175: ='[1]Remises libres'!F177 -> REIMS | G175: ='[1]Remises libres'!G177 -> 30 | H175: ='[1]Remises libres'!H177 -> MARNE ARDENNES | I175: ='[1]Remises libres'!I177 -> 0
A176: ='[1]Remises libres'!A178 -> 51369 | B176: ='[1]Remises libres'!B178 -> DAMERY | C176: ='[1]Remises libres'!C178 -> 551369 | D176: ='[1]Remises libres'!D178 -> DAMERY | E176: ='[1]Remises libres'!E178 -> 11 | F176: ='[1]Remises libres'!F178 -> REIMS | G176: ='[1]Remises libres'!G178 -> 30 | H176: ='[1]Remises libres'!H178 -> MARNE ARDENNES | I176: ='[1]Remises libres'!I178 -> 749
A177: ='[1]Remises libres'!A179 -> 51370 | B177: ='[1]Remises libres'!B179 -> EPERNAY | C177: ='[1]Remises libres'!C179 -> 451370 | D177: ='[1]Remises libres'!D179 -> EPERNAY | E177: ='[1]Remises libres'!E179 -> 11 | F177: ='[1]Remises libres'!F179 -> REIMS | G177: ='[1]Remises libres'!G179 -> 30 | H177: ='[1]Remises libres'!H179 -> MARNE ARDENNES | I177: ='[1]Remises libres'!I179 -> 1417.6
A178: ='[1]Remises libres'!A180 -> 51381 | B178: ='[1]Remises libres'!B180 -> SEZANNE | C178: ='[1]Remises libres'!C180 -> 451381 | D178: ='[1]Remises libres'!D180 -> SEZANNE | E178: ='[1]Remises libres'!E180 -> 6 | F178: ='[1]Remises libres'!F180 -> CHALONS EN CHAMPAGNE | G178: ='[1]Remises libres'!G180 -> 30 | H178: ='[1]Remises libres'!H180 -> MARNE ARDENNES | I178: ='[1]Remises libres'!I180 -> 1255.74
A179: ='[1]Remises libres'!A181 -> 54116 | B179: ='[1]Remises libres'!B181 -> BACCARAT | C179: ='[1]Remises libres'!C181 -> 554116 | D179: ='[1]Remises libres'!D181 -> BACCARAT | E179: ='[1]Remises libres'!E181 -> 26 | F179: ='[1]Remises libres'!F181 -> NANCY | G179: ='[1]Remises libres'!G181 -> 110 | H179: ='[1]Remises libres'!H181 -> MEURTHE ET MOSELLE MEUSE | I179: ='[1]Remises libres'!I181 -> 378
A180: ='[1]Remises libres'!A182 -> 54161 | B180: ='[1]Remises libres'!B182 -> BAYON | C180: ='[1]Remises libres'!C182 -> 554166 | D180: ='[1]Remises libres'!D182 -> BLAINVILLE | E180: ='[1]Remises libres'!E182 -> 26 | F180: ='[1]Remises libres'!F182 -> NANCY | G180: ='[1]Remises libres'!G182 -> 110 | H180: ='[1]Remises libres'!H182 -> MEURTHE ET MOSELLE MEUSE | I180: ='[1]Remises libres'!I182 -> 2.01
A181: ='[1]Remises libres'!A183 -> 54166 | B181: ='[1]Remises libres'!B183 -> BLAINVILLE | C181: ='[1]Remises libres'!C183 -> 554166 | D181: ='[1]Remises libres'!D183 -> BLAINVILLE | E181: ='[1]Remises libres'!E183 -> 26 | F181: ='[1]Remises libres'!F183 -> NANCY | G181: ='[1]Remises libres'!G183 -> 110 | H181: ='[1]Remises libres'!H183 -> MEURTHE ET MOSELLE MEUSE | I181: ='[1]Remises libres'!I183 -> 993.98
A182: ='[1]Remises libres'!A184 -> 54171 | B182: ='[1]Remises libres'!B184 -> BLAMONT | C182: ='[1]Remises libres'!C184 -> 454171 | D182: ='[1]Remises libres'!D184 -> BLAMONT | E182: ='[1]Remises libres'!E184 -> 26 | F182: ='[1]Remises libres'!F184 -> NANCY | G182: ='[1]Remises libres'!G184 -> 110 | H182: ='[1]Remises libres'!H184 -> MEURTHE ET MOSELLE MEUSE | I182: ='[1]Remises libres'!I184 -> 100
A183: ='[1]Remises libres'!A185 -> 54184 | B183: ='[1]Remises libres'!B185 -> BRIEY | C183: ='[1]Remises libres'!C185 -> 554184 | D183: ='[1]Remises libres'!D185 -> BRIEY | E183: ='[1]Remises libres'!E185 -> 27 | F183: ='[1]Remises libres'!F185 -> PONT A MOUSSON | G183: ='[1]Remises libres'!G185 -> 110 | H183: ='[1]Remises libres'!H185 -> MEURTHE ET MOSELLE MEUSE | I183: ='[1]Remises libres'!I185 -> 185.64
A184: ='[1]Remises libres'!A186 -> 54196 | B184: ='[1]Remises libres'!B186 -> CHAMPIGNEULLES | C184: ='[1]Remises libres'!C186 -> 554196 | D184: ='[1]Remises libres'!D186 -> CHAMPIGNEULLES | E184: ='[1]Remises libres'!E186 -> 27 | F184: ='[1]Remises libres'!F186 -> PONT A MOUSSON | G184: ='[1]Remises libres'!G186 -> 110 | H184: ='[1]Remises libres'!H186 -> MEURTHE ET MOSELLE MEUSE | I184: ='[1]Remises libres'!I186 -> 181.75
A185: ='[1]Remises libres'!A187 -> 54257 | B185: ='[1]Remises libres'!B187 -> DIEULOUARD | C185: ='[1]Remises libres'!C187 -> 554257 | D185: ='[1]Remises libres'!D187 -> DIEULOUARD | E185: ='[1]Remises libres'!E187 -> 27 | F185: ='[1]Remises libres'!F187 -> PONT A MOUSSON | G185: ='[1]Remises libres'!G187 -> 110 | H185: ='[1]Remises libres'!H187 -> MEURTHE ET MOSELLE MEUSE | I185: ='[1]Remises libres'!I187 -> 300
A186: ='[1]Remises libres'!A188 -> 54266 | B186: ='[1]Remises libres'!B188 -> DOMBASLE SUR MEURTHE | C186: ='[1]Remises libres'!C188 -> 554266 | D186: ='[1]Remises libres'!D188 -> DOMBASLE SUR MEURTHE | E186: ='[1]Remises libres'!E188 -> 26 | F186: ='[1]Remises libres'!F188 -> NANCY | G186: ='[1]Remises libres'!G188 -> 110 | H186: ='[1]Remises libres'!H188 -> MEURTHE ET MOSELLE MEUSE | I186: ='[1]Remises libres'!I188 -> 161.96
A187: ='[1]Remises libres'!A189 -> 54296 | B187: ='[1]Remises libres'!B189 -> ESSEY LES NANCY | C187: ='[1]Remises libres'!C189 -> 554296 | D187: ='[1]Remises libres'!D189 -> ESSEY LES NANCY | E187: ='[1]Remises libres'!E189 -> 26 | F187: ='[1]Remises libres'!F189 -> NANCY | G187: ='[1]Remises libres'!G189 -> 110 | H187: ='[1]Remises libres'!H189 -> MEURTHE ET MOSELLE MEUSE | I187: ='[1]Remises libres'!I189 -> 347.31
A188: ='[1]Remises libres'!A190 -> 54321 | B188: ='[1]Remises libres'!B190 -> FROUARD | C188: ='[1]Remises libres'!C190 -> 554321 | D188: ='[1]Remises libres'!D190 -> FROUARD | E188: ='[1]Remises libres'!E190 -> 27 | F188: ='[1]Remises libres'!F190 -> PONT A MOUSSON | G188: ='[1]Remises libres'!G190 -> 110 | H188: ='[1]Remises libres'!H190 -> MEURTHE ET MOSELLE MEUSE | I188: ='[1]Remises libres'!I190 -> 0
A189: ='[1]Remises libres'!A191 -> 54355 | B189: ='[1]Remises libres'!B191 -> JARNY | C189: ='[1]Remises libres'!C191 -> 454355 | D189: ='[1]Remises libres'!D191 -> JARNY | E189: ='[1]Remises libres'!E191 -> 27 | F189: ='[1]Remises libres'!F191 -> PONT A MOUSSON | G189: ='[1]Remises libres'!G191 -> 110 | H189: ='[1]Remises libres'!H191 -> MEURTHE ET MOSELLE MEUSE | I189: ='[1]Remises libres'!I191 -> 2306.9
A190: ='[1]Remises libres'!A192 -> 54356 | B190: ='[1]Remises libres'!B192 -> JARVILLE LA MALGRANGE | C190: ='[1]Remises libres'!C192 -> 554356 | D190: ='[1]Remises libres'!D192 -> JARVILLE LA MALGRANGE | E190: ='[1]Remises libres'!E192 -> 26 | F190: ='[1]Remises libres'!F192 -> NANCY | G190: ='[1]Remises libres'!G192 -> 110 | H190: ='[1]Remises libres'!H192 -> MEURTHE ET MOSELLE MEUSE | I190: ='[1]Remises libres'!I192 -> 207.58
A191: ='[1]Remises libres'!A193 -> 54357 | B191: ='[1]Remises libres'!B193 -> JOEUF | C191: ='[1]Remises libres'!C193 -> 554357 | D191: ='[1]Remises libres'!D193 -> JOEUF | E191: ='[1]Remises libres'!E193 -> 27 | F191: ='[1]Remises libres'!F193 -> PONT A MOUSSON | G191: ='[1]Remises libres'!G193 -> 110 | H191: ='[1]Remises libres'!H193 -> MEURTHE ET MOSELLE MEUSE | I191: ='[1]Remises libres'!I193 -> 985.28
A192: ='[1]Remises libres'!A194 -> 54376 | B192: ='[1]Remises libres'!B194 -> LAXOU BOUFFLERS | C192: ='[1]Remises libres'!C194 -> 554376 | D192: ='[1]Remises libres'!D194 -> LAXOU BOUFFLERS | E192: ='[1]Remises libres'!E194 -> 27 | F192: ='[1]Remises libres'!F194 -> PONT A MOUSSON | G192: ='[1]Remises libres'!G194 -> 110 | H192: ='[1]Remises libres'!H194 -> MEURTHE ET MOSELLE MEUSE | I192: ='[1]Remises libres'!I194 -> 300
A193: ='[1]Remises libres'!A195 -> 54381 | B193: ='[1]Remises libres'!B195 -> LAXOU ARISTIDE BRIAND | C193: ='[1]Remises libres'!C195 -> 554381 | D193: ='[1]Remises libres'!D195 -> LAXOU ARISTIDE BRIAND | E193: ='[1]Remises libres'!E195 -> 27 | F193: ='[1]Remises libres'!F195 -> PONT A MOUSSON | G193: ='[1]Remises libres'!G195 -> 110 | H193: ='[1]Remises libres'!H195 -> MEURTHE ET MOSELLE MEUSE | I193: ='[1]Remises libres'!I195 -> 891.96
A194: ='[1]Remises libres'!A196 -> 54412 | B194: ='[1]Remises libres'!B196 -> LONGUYON | C194: ='[1]Remises libres'!C196 -> 554412 | D194: ='[1]Remises libres'!D196 -> LONGUYON | E194: ='[1]Remises libres'!E196 -> 31 | F194: ='[1]Remises libres'!F196 -> VERDUN | G194: ='[1]Remises libres'!G196 -> 110 | H194: ='[1]Remises libres'!H196 -> MEURTHE ET MOSELLE MEUSE | I194: ='[1]Remises libres'!I196 -> 0
A195: ='[1]Remises libres'!A197 -> 54413 | B195: ='[1]Remises libres'!B197 -> LONGWY BAS | C195: ='[1]Remises libres'!C197 -> 554413 | D195: ='[1]Remises libres'!D197 -> LONGWY BAS | E195: ='[1]Remises libres'!E197 -> 31 | F195: ='[1]Remises libres'!F197 -> VERDUN | G195: ='[1]Remises libres'!G197 -> 110 | H195: ='[1]Remises libres'!H197 -> MEURTHE ET MOSELLE MEUSE | I195: ='[1]Remises libres'!I197 -> 258.42
A196: ='[1]Remises libres'!A198 -> 54414 | B196: ='[1]Remises libres'!B198 -> LONGWY HAUT | C196: ='[1]Remises libres'!C198 -> 454414 | D196: ='[1]Remises libres'!D198 -> LONGWY HAUT | E196: ='[1]Remises libres'!E198 -> 31 | F196: ='[1]Remises libres'!F198 -> VERDUN | G196: ='[1]Remises libres'!G198 -> 110 | H196: ='[1]Remises libres'!H198 -> MEURTHE ET MOSELLE MEUSE | I196: ='[1]Remises libres'!I198 -> 829.2
A197: ='[1]Remises libres'!A199 -> 54416 | B197: ='[1]Remises libres'!B199 -> LUDRES | C197: ='[1]Remises libres'!C199 -> 554416 | D197: ='[1]Remises libres'!D199 -> LUDRES | E197: ='[1]Remises libres'!E199 -> 27 | F197: ='[1]Remises libres'!F199 -> PONT A MOUSSON | G197: ='[1]Remises libres'!G199 -> 110 | H197: ='[1]Remises libres'!H199 -> MEURTHE ET MOSELLE MEUSE | I197: ='[1]Remises libres'!I199 -> 324.09
A198: ='[1]Remises libres'!A200 -> 54426 | B198: ='[1]Remises libres'!B200 -> LUNEVILLE CARNOT | C198: ='[1]Remises libres'!C200 -> 454426 | D198: ='[1]Remises libres'!D200 -> LUNEVILLE CARNOT | E198: ='[1]Remises libres'!E200 -> 26 | F198: ='[1]Remises libres'!F200 -> NANCY | G198: ='[1]Remises libres'!G200 -> 110 | H198: ='[1]Remises libres'!H200 -> MEURTHE ET MOSELLE MEUSE | I198: ='[1]Remises libres'!I200 -> 2222.96
A199: ='[1]Remises libres'!A201 -> 54431 | B199: ='[1]Remises libres'!B201 -> LUNEVILLE CHATEAU | C199: ='[1]Remises libres'!C201 -> 554431 | D199: ='[1]Remises libres'!D201 -> LUNEVILLE CHATEAU | E199: ='[1]Remises libres'!E201 -> 26 | F199: ='[1]Remises libres'!F201 -> NANCY | G199: ='[1]Remises libres'!G201 -> 110 | H199: ='[1]Remises libres'!H201 -> MEURTHE ET MOSELLE MEUSE | I199: ='[1]Remises libres'!I201 -> 0
A200: ='[1]Remises libres'!A202 -> 54471 | B200: ='[1]Remises libres'!B202 -> NANCY JEAN JAURES | C200: ='[1]Remises libres'!C202 -> 554491 | D200: ='[1]Remises libres'!D202 -> NANCY SAINT SEBASTIEN | E200: ='[1]Remises libres'!E202 -> 26 | F200: ='[1]Remises libres'!F202 -> NANCY | G200: ='[1]Remises libres'!G202 -> 110 | H200: ='[1]Remises libres'!H202 -> MEURTHE ET MOSELLE MEUSE | I200: ='[1]Remises libres'!I202 -> 55.18
A201: ='[1]Remises libres'!A203 -> 54476 | B201: ='[1]Remises libres'!B203 -> NANCY ARTEM | C201: ='[1]Remises libres'!C203 -> 554476 | D201: ='[1]Remises libres'!D203 -> NANCY ARTEM | E201: ='[1]Remises libres'!E203 -> 26 | F201: ='[1]Remises libres'!F203 -> NANCY | G201: ='[1]Remises libres'!G203 -> 110 | H201: ='[1]Remises libres'!H203 -> MEURTHE ET MOSELLE MEUSE | I201: ='[1]Remises libres'!I203 -> 865.06
... 117 more rows

Sheet Rapport 5 (hidden)
AD1: 30 | AI1: 35 | AN1: 40 | AS1: 45 | AX1: 50 | BC1: 55 | BH1: 60 | BM1: 65 | BR1: 70
I2: ='[1]Rapport 5'!I2 -> AGIOS | K2: ='[1]Rapport 5'!K2 -> ASSURANCE RISQUES | M2: ='[1]Rapport 5'!M2 -> BANCARISATION ET GESTION COURANTE | O2: ='[1]Rapport 5'!O2 -> CREDITS | Q2: ='[1]Rapport 5'!Q2 -> INTERETS CREDITS CT ET MLT | S2: ='[1]Rapport 5'!S2 -> OPERATIONS INTERNATIONALES | U2: ='[1]Rapport 5'!U2 -> SERVICES CLIENTELES DIVERS | W2: ='[1]Rapport 5'!W2 -> TITRES | Y2: Total facturé | Z2: Total remisé | AA2: Taux de remise total | AB2: Classt Taux total | AC2: Calcul Décile total | AD2: Décile total | AE2: Agios remisés | AF2: Taux de remise Agios | AG2: Classt Taux Agios | AH2: Calcul Décile Agios | AI2: Décile Agios | AJ2: Assurances remisées | AK2: Taux de remise Assurances | AL2: Classt Taux Assurances | AM2: Calcul Décile Assurances | AN2: Décile Assurances | AO2: Banca et gestion courante remisées | AP2: Taux de remise Banca et gestion courante | AQ2: Classt Taux Banca et gestion courante | AR2: Calcul Décile Banca et gestion courante | AS2: Décile Banca et gestion courante | AT2: Crédits remisées | AU2: Taux de remise Crédits | AV2: Classt Taux Crédits | AW2: Calcul Décile Crédits | AX2: Décile Crédits | AY2: Intérets crédits remisées | AZ2: Taux de remise Intérets crédits | BA2: Classt Taux Intérets crédits | BB2: Calcul Décile Intérets crédits | BC2: Décile Intérets crédits | BD2: Opérations internationales remisées | BE2: Taux de remise Opérations internationales | BF2: Classt Taux Opérations internationales | BG2: Calcul Décile Opérations internationales | BH2: Décile Opérations internationales | BI2: Services clientèles divers remisées | BJ2: Taux de remise Services clientèles divers | BK2: Classt Taux Services clientèles divers | BL2: Calcul Décile Services clientèles divers | BM2: Décile Services clientèles divers | BN2: Titres remisées | BO2: Taux de remise Titres | BP2: Classt Taux Titres | BQ2: Calcul Décile Titres | BR2: Décile Titres
A3: ='[1]Rapport 5'!A3 -> 6 | B3: ='[1]Rapport 5'!B3 -> STRASBOURG NEUDORF | C3: ='[1]Rapport 5'!C3 -> 4006 | D3: ='[1]Rapport 5'!D3 -> STRASBOURG NEUDORF | E3: ='[1]Rapport 5'!E3 -> 5006 | F3: ='[1]Rapport 5'!F3 -> STRASBOURG | G3: ='[1]Rapport 5'!G3 -> 262 | H3: ='[1]Rapport 5'!H3 -> BAS RHIN | I3: ='[1]Rapport 5'!I3 -> 7862.74 | J3: ='[1]Rapport 5'!J3 -> 695.66 | K3: ='[1]Rapport 5'!K3 -> 0 | L3: ='[1]Rapport 5'!L3 -> 0 | M3: ='[1]Rapport 5'!M3 -> 267975.81 | N3: ='[1]Rapport 5'!N3 -> 9649.08 | O3: ='[1]Rapport 5'!O3 -> 4158.5 | P3: ='[1]Rapport 5'!P3 -> 241 | Q3: ='[1]Rapport 5'!Q3 -> 0 | R3: ='[1]Rapport 5'!R3 -> 0 | S3: ='[1]Rapport 5'!S3 -> 804.8 | T3: ='[1]Rapport 5'!T3 -> 0 | U3: ='[1]Rapport 5'!U3 -> 27924.41 | V3: ='[1]Rapport 5'!V3 -> 2214.43 | W3: ='[1]Rapport 5'!W3 -> 9939.21 | X3: ='[1]Rapport 5'!X3 -> 185.83 | Y3: =+I3+K3+M3+O3+Q3+S3+U3+W3 -> 318,665 | Z3: =+J3+L3+N3+P3+R3+T3+V3+X3 -> 12,986 | AA3: =+Z3/Y3 -> 4.1% | AB3: =RANK(AA3,$AA$3:$AA$318,1) -> 204 | AC3: =1+(AB3/COUNT($AB$3:AB$318)*10) -> 7.455696203 | AD3: =+IF(INT(AC3)=11,10,INT(AC3)) -> 7 | AE3: =+J3 -> 696 | AF3: =+IF(ISERROR(AE3/I3),0,AE3/I3) -> 8.8% | AG3: =RANK(AF3,$AF$3:$AF$318,1) -> 256 | AH3: =1+(AG3/COUNT($AG$3:$AG$318)*10) -> 9.101265823 | AI3: =+IF(INT(AH3)=11,10,INT(AH3)) -> 9 | AJ3: =+L3 -> 0 | AK3: =+IF(ISERROR(IF(AJ3=0,0,AJ3/K3)),1,IF(AJ3=0,0,AJ3/K3)) -> 0.0% | AL3: =RANK(AK3,$AK$3:$AK$318,1) -> 1 | AM3: =1+(AL3/COUNT($AL$3:$AL$318)*10) -> 1.03164557 | AN3: =+IF(INT(AM3)=11,10,INT(AM3)) -> 1 | AO3: =+N3 -> 9,649 | AP3: =+IF(ISERROR(IF(AO3=0,0,AO3/M3)),1,IF(AO3=0,0,AO3/M3)) -> 3.6% | AQ3: =RANK(AP3,$AP$3:$AP$318,1) -> 229 | AR3: =1+(AQ3/COUNT($AQ$3:$AQ$318)*10) -> 8.246835443 | AS3: =+IF(INT(AR3)=11,10,INT(AR3)) -> 8 | AT3: =+P3 -> 241 | AU3: =+IF(ISERROR(IF(AT3=0,0,AT3/O3)),1,IF(AT3=0,0,AT3/O3)) -> 5.8% | AV3: =RANK(AU3,$AU$3:$AU$318,1) -> 203 | AW3: =1+(AV3/COUNT($AV$3:$AV$318)*10) -> 7.424050633 | AX3: =+IF(INT(AW3)=11,10,INT(AW3)) -> 7 | AY3: =+R3 -> 0 | AZ3: =+IF(ISERROR(IF(AY3=0,0,AY3/T3)),1,IF(AY3=0,0,AY3/T3)) -> 0.0% | BA3: =RANK(AZ3,$AZ$3:$AZ$318,1) -> 1 | BB3: =1+(BA3/COUNT($BA$3:$BA$318)*10) -> 1.03164557 | BC3: =+IF(INT(BB3)=11,10,INT(BB3)) -> 1 | BD3: =+T3 -> 0 | BE3: =+IF(ISERROR(IF(BD3=0,0,BD3/S3)),1,IF(BD3=0,0,BD3/S3)) -> 0.0% | BF3: =RANK(BE3,$BE$3:$BE$318,1) -> 1 | BG3: =1+(BF3/COUNT($BF$3:$BF$318)*10) -> 1.03164557 | BH3: =+IF(INT(BG3)=11,10,INT(BG3)) -> 1 | BI3: =+V3 -> 2,214 | BJ3: =+IF(ISERROR(IF(BI3=0,0,BI3/U3)),1,IF(BI3=0,0,BI3/U3)) -> 7.9% | BK3: =RANK(BJ3,$BJ$3:$BJ$318,1) -> 116 | BL3: =1+(BK3/COUNT($BK$3:$BK$318)*10) -> 4.670886076 | BM3: =+IF(INT(BL3)=11,10,INT(BL3)) -> 4 | BN3: =+X3 -> 186 | BO3: =+IF(ISERROR(IF(BN3=0,0,BN3/W3)),1,IF(BN3=0,0,BN3/W3)) -> 1.9% | BP3: =RANK(BO3,$BO$3:$BO$318,1) -> 101 | BQ3: =1+(BP3/COUNT($BP$3:$BP$318)*10) -> 4.196202532 | BR3: =+IF(INT(BQ3)=11,10,INT(BQ3)) -> 4 | BT3: 6 | BU3: =+BT3-A3 -> 0
A4: ='[1]Rapport 5'!A4 -> 7 | B4: ='[1]Rapport 5'!B4 -> ILLKIRCH CENTRE | C4: ='[1]Rapport 5'!C4 -> 4007 | D4: ='[1]Rapport 5'!D4 -> ILLKIRCH CENTRE | E4: ='[1]Rapport 5'!E4 -> 5101 | F4: ='[1]Rapport 5'!F4 -> SELESTAT | G4: ='[1]Rapport 5'!G4 -> 262 | H4: ='[1]Rapport 5'!H4 -> BAS RHIN | I4: ='[1]Rapport 5'!I4 -> 7066.45 | J4: ='[1]Rapport 5'!J4 -> 1054.76 | K4: ='[1]Rapport 5'!K4 -> 0 | L4: ='[1]Rapport 5'!L4 -> 0 | M4: ='[1]Rapport 5'!M4 -> 312483.2 | N4: ='[1]Rapport 5'!N4 -> 13181.35 | O4: ='[1]Rapport 5'!O4 -> 16951 | P4: ='[1]Rapport 5'!P4 -> 1266 | Q4: ='[1]Rapport 5'!Q4 -> 1391.68 | R4: ='[1]Rapport 5'!R4 -> 0 | S4: ='[1]Rapport 5'!S4 -> 761.6 | T4: ='[1]Rapport 5'!T4 -> 39 | U4: ='[1]Rapport 5'!U4 -> 28527.42 | V4: ='[1]Rapport 5'!V4 -> 1573.71 | W4: ='[1]Rapport 5'!W4 -> 18817.45 | X4: ='[1]Rapport 5'!X4 -> 1368.07 | Y4: =+I4+K4+M4+O4+Q4+S4+U4+W4 -> 385,999 | Z4: =+J4+L4+N4+P4+R4+T4+V4+X4 -> 18,483 | AA4: =+Z4/Y4 -> 4.8% | AB4: 256 | AC4: =1+(AB4/COUNT($AB$3:AB$318)*10) -> 9.101265823 | AD4: =+IF(INT(AC4)=11,10,INT(AC4)) -> 9 | AE4: =+J4 -> 1,055 | AF4: =+IF(ISERROR(AE4/I4),0,AE4/I4) -> 14.9% | AG4: 296 | AH4: 10.36708861 | AI4: =+IF(INT(AH4)=11,10,INT(AH4)) -> 10 | AJ4: =+L4 -> 0 | AK4: =+IF(ISERROR(IF(AJ4=0,0,AJ4/K4)),1,IF(AJ4=0,0,AJ4/K4)) -> 0.0% | AL4: 1 | AM4: 1.03164557 | AN4: =+IF(INT(AM4)=11,10,INT(AM4)) -> 1 | AO4: =+N4 -> 13,181 | AP4: =+IF(ISERROR(IF(AO4=0,0,AO4/M4)),1,IF(AO4=0,0,AO4/M4)) -> 4.2% | AQ4: 268 | AR4: 9.481012658 | AS4: =+IF(INT(AR4)=11,10,INT(AR4)) -> 9 | AT4: =+P4 -> 1,266 | AU4: =+IF(ISERROR(IF(AT4=0,0,AT4/O4)),1,IF(AT4=0,0,AT4/O4)) -> 7.5% | AV4: 225 | AW4: 8.120253165 | AX4: =+IF(INT(AW4)=11,10,INT(AW4)) -> 8 | AY4: =+R4 -> 0 | AZ4: =+IF(ISERROR(IF(AY4=0,0,AY4/T4)),1,IF(AY4=0,0,AY4/T4)) -> 0.0% | BA4: 1 | BB4: 1.03164557 | BC4: =+IF(INT(BB4)=11,10,INT(BB4)) -> 1 | BD4: =+T4 -> 39 | BE4: =+IF(ISERROR(IF(BD4=0,0,BD4/S4)),1,IF(BD4=0,0,BD4/S4)) -> 5.1% | BF4: 252 | BG4: 8.974683544 | BH4: =+IF(INT(BG4)=11,10,INT(BG4)) -> 8 | BI4: =+V4 -> 1,574 | BJ4: =+IF(ISERROR(IF(BI4=0,0,BI4/U4)),1,IF(BI4=0,0,BI4/U4)) -> 5.5% | BK4: 74 | BL4: 3.341772152 | BM4: =+IF(INT(BL4)=11,10,INT(BL4)) -> 3 | BN4: =+X4 -> 1,368 | BO4: =+IF(ISERROR(IF(BN4=0,0,BN4/W4)),1,IF(BN4=0,0,BN4/W4)) -> 7.3% | BP4: 257 | BQ4: 9.132911392 | BR4: =+IF(INT(BQ4)=11,10,INT(BQ4)) -> 9 | BT4: 7 | BU4: =+BT4-A4 -> 0
A5: ='[1]Rapport 5'!A5 -> 8 | B5: ='[1]Rapport 5'!B5 -> FEGERSHEIM | C5: ='[1]Rapport 5'!C5 -> 4008 | D5: ='[1]Rapport 5'!D5 -> FEGERSHEIM | E5: ='[1]Rapport 5'!E5 -> 5101 | F5: ='[1]Rapport 5'!F5 -> SELESTAT | G5: ='[1]Rapport 5'!G5 -> 262 | H5: ='[1]Rapport 5'!H5 -> BAS RHIN | I5: ='[1]Rapport 5'!I5 -> 2720.17 | J5: ='[1]Rapport 5'!J5 -> 317.27 | K5: ='[1]Rapport 5'!K5 -> 0 | L5: ='[1]Rapport 5'!L5 -> 0 | M5: ='[1]Rapport 5'!M5 -> 118815.41 | N5: ='[1]Rapport 5'!N5 -> 4457.63 | O5: ='[1]Rapport 5'!O5 -> 4443 | P5: ='[1]Rapport 5'!P5 -> 42.5 | Q5: ='[1]Rapport 5'!Q5 -> 0 | R5: ='[1]Rapport 5'!R5 -> 0 | S5: ='[1]Rapport 5'!S5 -> 287 | T5: ='[1]Rapport 5'!T5 -> 0 | U5: ='[1]Rapport 5'!U5 -> 5791.2 | V5: ='[1]Rapport 5'!V5 -> 969.84 | W5: ='[1]Rapport 5'!W5 -> 5401.29 | X5: ='[1]Rapport 5'!X5 -> 215.65 | Y5: 137,458 | Z5: 6,003 | AA5: 4.4% | AB5: 228 | AC5: =1+(AB5/COUNT($AB$3:AB$318)*10) -> 8.215189873 | AD5: 8 | AE5: =+J5 -> 317 | AF5: 11.7% | AG5: 283 | AH5: 9.955696203 | AI5: =+IF(INT(AH5)=11,10,INT(AH5)) -> 9 | AJ5: 0 | AK5: 0.0% | AL5: 1 | AM5: 1.03164557 | AN5: 1 | AO5: 4,458 | AP5: 3.8% | AQ5: 242 | AR5: 8.658227848 | AS5: 8 | AT5: =+P5 -> 43 | AU5: =+IF(ISERROR(IF(AT5=0,0,AT5/O5)),1,IF(AT5=0,0,AT5/O5)) -> 1.0% | AV5: 82 | AW5: 3.594936709 | AX5: =+IF(INT(AW5)=11,10,INT(AW5)) -> 3 | AY5: =+R5 -> 0 | AZ5: =+IF(ISERROR(IF(AY5=0,0,AY5/T5)),1,IF(AY5=0,0,AY5/T5)) -> 0.0% | BA5: 1 | BB5: 1.03164557 | BC5: =+IF(INT(BB5)=11,10,INT(BB5)) -> 1 | BD5: =+T5 -> 0 | BE5: =+IF(ISERROR(IF(BD5=0,0,BD5/S5)),1,IF(BD5=0,0,BD5/S5)) -> 0.0% | BF5: 1 | BG5: 1.03164557 | BH5: =+IF(INT(BG5)=11,10,INT(BG5)) -> 1 | BI5: =+V5 -> 970 | BJ5: =+IF(ISERROR(IF(BI5=0,0,BI5/U5)),1,IF(BI5=0,0,BI5/U5)) -> 16.7% | BK5: 238 | BL5: 8.53164557 | BM5: =+IF(INT(BL5)=11,10,INT(BL5)) -> 8 | BN5: =+X5 -> 216 | BO5: =+IF(ISERROR(IF(BN5=0,0,BN5/W5)),1,IF(BN5=0,0,BN5/W5)) -> 4.0% | BP5: 191 | BQ5: 7.044303797 | BR5: =+IF(INT(BQ5)=11,10,INT(BQ5)) -> 7 | BT5: 8 | BU5: 0
A6: ='[1]Rapport 5'!A6 -> 10 | B6: ='[1]Rapport 5'!B6 -> STRASBOURG MEINAU | C6: ='[1]Rapport 5'!C6 -> 4010 | D6: ='[1]Rapport 5'!D6 -> STRASBOURG MEINAU | E6: ='[1]Rapport 5'!E6 -> 5006 | F6: ='[1]Rapport 5'!F6 -> STRASBOURG | G6: ='[1]Rapport 5'!G6 -> 262 | H6: ='[1]Rapport 5'!H6 -> BAS RHIN | I6: ='[1]Rapport 5'!I6 -> 4142.68 | J6: ='[1]Rapport 5'!J6 -> 251.45 | K6: ='[1]Rapport 5'!K6 -> 0 | L6: ='[1]Rapport 5'!L6 -> 0 | M6: ='[1]Rapport 5'!M6 -> 141849.58 | N6: ='[1]Rapport 5'!N6 -> 5748.37 | O6: ='[1]Rapport 5'!O6 -> 4757 | P6: ='[1]Rapport 5'!P6 -> 397.8 | Q6: ='[1]Rapport 5'!Q6 -> 0 | R6: ='[1]Rapport 5'!R6 -> 0 | S6: ='[1]Rapport 5'!S6 -> 386.41 | T6: ='[1]Rapport 5'!T6 -> 0 | U6: ='[1]Rapport 5'!U6 -> 11873.67 | V6: ='[1]Rapport 5'!V6 -> 985.65 | W6: ='[1]Rapport 5'!W6 -> 4513.69 | X6: ='[1]Rapport 5'!X6 -> 56 | Y6: 167,523 | Z6: 7,439 | AA6: 4.4% | AB6: 234 | AC6: =1+(AB6/COUNT($AB$3:AB$318)*10) -> 8.405063291 | AD6: 8 | AE6: 251 | AF6: 6.1% | AG6: 222 | AH6: 8.025316456 | AI6: 8 | AJ6: 0 | AK6: 0.0% | AL6: 1 | AM6: 1.03164557 | AN6: 1 | AO6: 5,748 | AP6: 4.1% | AQ6: 258 | AR6: 9.164556962 | AS6: 9 | AT6: 398 | AU6: 8.4% | AV6: 235 | AW6: 8.436708861 | AX6: 8 | AY6: 0 | AZ6: 0.0% | BA6: 1 | BB6: 1.03164557 | BC6: 1 | BD6: 0 | BE6: 0.0% | BF6: 1 | BG6: 1.03164557 | BH6: 1 | BI6: 986 | BJ6: 8.3% | BK6: 127 | BL6: 5.018987342 | BM6: 5 | BN6: 56 | BO6: 1.2% | BP6: 67 | BQ6: 3.120253165 | BR6: 3 | BT6: 10 | BU6: 0
A7: ='[1]Rapport 5'!A7 -> 12 | B7: ='[1]Rapport 5'!B7 -> STRASBOURG STOCKFELD | C7: ='[1]Rapport 5'!C7 -> 4006 | D7: ='[1]Rapport 5'!D7 -> STRASBOURG NEUDORF | E7: ='[1]Rapport 5'!E7 -> 5006 | F7: ='[1]Rapport 5'!F7 -> STRASBOURG | G7: ='[1]Rapport 5'!G7 -> 262 | H7: ='[1]Rapport 5'!H7 -> BAS RHIN | I7: ='[1]Rapport 5'!I7 -> 2232.02 | J7: ='[1]Rapport 5'!J7 -> 100.98 | K7: ='[1]Rapport 5'!K7 -> 0 | L7: ='[1]Rapport 5'!L7 -> 0 | M7: ='[1]Rapport 5'!M7 -> 103221.55 | N7: ='[1]Rapport 5'!N7 -> 3044.48 | O7: ='[1]Rapport 5'!O7 -> 1386.5 | P7: ='[1]Rapport 5'!P7 -> 185 | Q7: ='[1]Rapport 5'!Q7 -> 0 | R7: ='[1]Rapport 5'!R7 -> 0 | S7: ='[1]Rapport 5'!S7 -> 298 | T7: ='[1]Rapport 5'!T7 -> 0 | U7: ='[1]Rapport 5'!U7 -> 3928.25 | V7: ='[1]Rapport 5'!V7 -> 745.64 | W7: ='[1]Rapport 5'!W7 -> 2482.11 | X7: ='[1]Rapport 5'!X7 -> 41 | Y7: 113,548 | Z7: 4,117 | AA7: 3.6% | AB7: 144 | AC7: =1+(AB7/COUNT($AB$3:AB$318)*10) -> 5.556962025 | AD7: 5 | AE7: 101 | AF7: 4.5% | AG7: 172 | AH7: 6.443037975 | AI7: 6 | AJ7: 0 | AK7: 0.0% | AL7: 1 | AM7: 1.03164557 | AN7: 1 | AO7: 3,044 | AP7: 2.9% | AQ7: 158 | AR7: 6 | AS7: 6 | AT7: 185 | AU7: 13.3% | AV7: 280 | AW7: 9.860759494 | AX7: 9 | AY7: 0 | AZ7: 0.0% | BA7: 1 | BB7: 1.03164557 | BC7: 1 | BD7: 0 | BE7: 0.0% | BF7: 1 | BG7: 1.03164557 | BH7: 1 | BI7: 746 | BJ7: 19.0% | BK7: 259 | BL7: 9.196202532 | BM7: 9 | BN7: 41 | BO7: 1.7% | BP7: 90 | BQ7: 3.848101266 | BR7: 3 | BT7: 12 | BU7: 0
A8: ='[1]Rapport 5'!A8 -> 14 | B8: ='[1]Rapport 5'!B8 -> OSTWALD | C8: ='[1]Rapport 5'!C8 -> 4015 | D8: ='[1]Rapport 5'!D8 -> LINGOLSHEIM | E8: ='[1]Rapport 5'!E8 -> 5101 | F8: ='[1]Rapport 5'!F8 -> SELESTAT | G8: ='[1]Rapport 5'!G8 -> 262 | H8: ='[1]Rapport 5'!H8 -> BAS RHIN | I8: ='[1]Rapport 5'!I8 -> 0 | J8: ='[1]Rapport 5'!J8 -> 0 | K8: ='[1]Rapport 5'!K8 -> 0 | L8: ='[1]Rapport 5'!L8 -> 0 | M8: ='[1]Rapport 5'!M8 -> 48.4 | N8: ='[1]Rapport 5'!N8 -> 0 | O8: ='[1]Rapport 5'!O8 -> 0 | P8: ='[1]Rapport 5'!P8 -> 0 | Q8: ='[1]Rapport 5'!Q8 -> 0 | R8: ='[1]Rapport 5'!R8 -> 0 | S8: ='[1]Rapport 5'!S8 -> 0 | T8: ='[1]Rapport 5'!T8 -> 0 | U8: ='[1]Rapport 5'!U8 -> 0 | V8: ='[1]Rapport 5'!V8 -> 0 | W8: ='[1]Rapport 5'!W8 -> 0 | X8: ='[1]Rapport 5'!X8 -> 0 | Y8: 48 | Z8: 0 | AA8: 0.0% | AB8: 1 | AC8: =1+(AB8/COUNT($AB$3:AB$318)*10) -> 1.03164557 | AD8: 1 | AE8: 0 | AF8: 0.0% | AG8: 1 | AH8: 1.03164557 | AI8: 1 | AJ8: 0 | AK8: 0.0% | AL8: 1 | AM8: 1.03164557 | AN8: 1 | AO8: 0 | AP8: 0.0% | AQ8: 1 | AR8: 1.03164557 | AS8: 1 | AT8: 0 | AU8: 0.0% | AV8: 1 | AW8: 1.03164557 | AX8: 1 | AY8: 0 | AZ8: 0.0% | BA8: 1 | BB8: 1.03164557 | BC8: 1 | BD8: 0 | BE8: 0.0% | BF8: 1 | BG8: 1.03164557 | BH8: 1 | BI8: 0 | BJ8: 0.0% | BK8: 1 | BL8: 1.03164557 | BM8: 1 | BN8: 0 | BO8: 0.0% | BP8: 1 | BQ8: 1.03164557 | BR8: 1 | BT8: 13 | BU8: -1
A9: ='[1]Rapport 5'!A9 -> 15 | B9: ='[1]Rapport 5'!B9 -> LINGOLSHEIM | C9: ='[1]Rapport 5'!C9 -> 4015 | D9: ='[1]Rapport 5'!D9 -> LINGOLSHEIM | E9: ='[1]Rapport 5'!E9 -> 5101 | F9: ='[1]Rapport 5'!F9 -> SELESTAT | G9: ='[1]Rapport 5'!G9 -> 262 | H9: ='[1]Rapport 5'!H9 -> BAS RHIN | I9: ='[1]Rapport 5'!I9 -> 5408.46 | J9: ='[1]Rapport 5'!J9 -> 281.06 | K9: ='[1]Rapport 5'!K9 -> 0 | L9: ='[1]Rapport 5'!L9 -> 72.88 | M9: ='[1]Rapport 5'!M9 -> 184154.7 | N9: ='[1]Rapport 5'!N9 -> 6664.5 | O9: ='[1]Rapport 5'!O9 -> 6647 | P9: ='[1]Rapport 5'!P9 -> 307 | Q9: ='[1]Rapport 5'!Q9 -> 0 | R9: ='[1]Rapport 5'!R9 -> 0 | S9: ='[1]Rapport 5'!S9 -> 460.41 | T9: ='[1]Rapport 5'!T9 -> 67 | U9: ='[1]Rapport 5'!U9 -> 13965.13 | V9: ='[1]Rapport 5'!V9 -> 887.34 | W9: ='[1]Rapport 5'!W9 -> 6152.41 | X9: ='[1]Rapport 5'!X9 -> 268.71 | Y9: 216,788 | Z9: 8,548 | AA9: 3.9% | AB9: 186 | AC9: =1+(AB9/COUNT($AB$3:AB$318)*10) -> 6.886075949 | AD9: 6 | AE9: 281 | AF9: 5.2% | AG9: 196 | AH9: 7.202531646 | AI9: 7 | AJ9: 73 | AK9: 100.0% | AL9: 288 | AM9: 10.11392405 | AN9: 10 | AO9: 6,665 | AP9: 3.6% | AQ9: 232 | AR9: 8.341772152 | AS9: 8 | AT9: 307 | AU9: 4.6% | AV9: 177 | AW9: 6.601265823 | AX9: 6 | AY9: 0 | AZ9: 0.0% | BA9: 1 | BB9: 1.03164557 | BC9: 1 | BD9: 67 | BE9: 14.6% | BF9: 287 | BG9: 10.08227848 | BH9: 10 | BI9: 887 | BJ9: 6.4% | BK9: 92 | BL9: 3.911392405 | BM9: 3 | BN9: 269 | BO9: 4.4% | BP9: 198 | BQ9: 7.265822785 | BR9: 7 | BT9: 14 | BU9: -1
A10: ='[1]Rapport 5'!A10 -> 17 | B10: ='[1]Rapport 5'!B10 -> MON AGENCE | C10: ='[1]Rapport 5'!C10 -> 4017 | D10: ='[1]Rapport 5'!D10 -> MON AGENCE | E10: ='[1]Rapport 5'!E10 -> 5017 | F10: ='[1]Rapport 5'!F10 -> MON AGENCE | G10: ='[1]Rapport 5'!G10 -> 269 | H10: ='[1]Rapport 5'!H10 -> BANQUE DIGITALE | I10: ='[1]Rapport 5'!I10 -> 23433.35 | J10: ='[1]Rapport 5'!J10 -> 168.54 | K10: ='[1]Rapport 5'!K10 -> 0 | L10: ='[1]Rapport 5'!L10 -> 0 | M10: ='[1]Rapport 5'!M10 -> 230751.91 | N10: ='[1]Rapport 5'!N10 -> 4975.92 | O10: ='[1]Rapport 5'!O10 -> 63.3 | P10: ='[1]Rapport 5'!P10 -> 765.5 | Q10: ='[1]Rapport 5'!Q10 -> 0 | R10: ='[1]Rapport 5'!R10 -> 0 | S10: ='[1]Rapport 5'!S10 -> 269 | T10: ='[1]Rapport 5'!T10 -> 53.3 | U10: ='[1]Rapport 5'!U10 -> 9123.85 | V10: ='[1]Rapport 5'!V10 -> 796.78 | W10: ='[1]Rapport 5'!W10 -> 20044.84 | X10: ='[1]Rapport 5'!X10 -> 365.56 | Y10: 283,686 | Z10: 7,126 | AA10: 2.5% | AB10: 43 | AC10: =1+(AB10/COUNT($AB$3:AB$318)*10) -> 2.360759494 | AD10: 2 | AE10: 169 | AF10: 0.7% | AG10: 11 | AH10: 1.348101266 | AI10: 1 | AJ10: 0 | AK10: 0.0% | AL10: 1 | AM10: 1.03164557 | AN10: 1 | AO10: 4,976 | AP10: 2.2% | AQ10: 69 | AR10: 3.183544304 | AS10: 3 | AT10: 766 | AU10: 1209.3% | AV10: 316 | AW10: 11 | AX10: 10 | AY10: 0 | AZ10: 0.0% | BA10: 1 | BB10: 1.03164557 | BC10: 1 | BD10: 53 | BE10: 19.8% | BF10: 295 | BG10: 10.33544304 | BH10: 10 | BI10: 797 | BJ10: 8.7% | BK10: 134 | BL10: 5.240506329 | BM10: 5 | BN10: 366 | BO10: 1.8% | BP10: 97 | BQ10: 4.069620253 | BR10: 4 | BT10: 15 | BU10: -2
A11: ='[1]Rapport 5'!A11 -> 18 | B11: ='[1]Rapport 5'!B11 -> ESPACE MESANGE | C11: ='[1]Rapport 5'!C11 -> 4043 | D11: ='[1]Rapport 5'!D11 -> STRASBOURG HALLES | E11: ='[1]Rapport 5'!E11 -> 5006 | F11: ='[1]Rapport 5'!F11 -> STRASBOURG | G11: ='[1]Rapport 5'!G11 -> 262 | H11: ='[1]Rapport 5'!H11 -> BAS RHIN | I11: ='[1]Rapport 5'!I11 -> 23387.26 | J11: ='[1]Rapport 5'!J11 -> 1645.72 | K11: ='[1]Rapport 5'!K11 -> 0 | L11: ='[1]Rapport 5'!L11 -> 0 | M11: ='[1]Rapport 5'!M11 -> 127766.56 | N11: ='[1]Rapport 5'!N11 -> 4044.74 | O11: ='[1]Rapport 5'!O11 -> 11019 | P11: ='[1]Rapport 5'!P11 -> 1189 | Q11: ='[1]Rapport 5'!Q11 -> 667.3 | R11: ='[1]Rapport 5'!R11 -> 0 | S11: ='[1]Rapport 5'!S11 -> 710.17 | T11: ='[1]Rapport 5'!T11 -> 0 | U11: ='[1]Rapport 5'!U11 -> 4297.18 | V11: ='[1]Rapport 5'!V11 -> 4.04 | W11: ='[1]Rapport 5'!W11 -> 3947.06 | X11: ='[1]Rapport 5'!X11 -> 0 | Y11: 171,795 | Z11: 6,884 | AA11: 4.0% | AB11: 192 | AC11: =1+(AB11/COUNT($AB$3:AB$318)*10) -> 7.075949367 | AD11: 7 | AE11: =+J11 -> 1,646 | AF11: 7.0% | AG11: 236 | AH11: 8.46835443 | AI11: 8 | AJ11: 0 | AK11: 0.0% | AL11: 1 | AM11: 1.03164557 | AN11: 1 | AO11: 0 | AP11: 0.0% | AQ11: 1 | AR11: 1.03164557 | AS11: 1 | AT11: 1,189 | AU11: 10.8% | AV11: 255 | AW11: 9.069620253 | AX11: 9 | AY11: 0 | AZ11: 0.0% | BA11: 1 | BB11: 1.03164557 | BC11: 1 | BD11: 0 | BE11: 0.0% | BF11: 1 | BG11: 1.03164557 | BH11: 1 | BI11: 4 | BJ11: 0.1% | BK11: 12 | BL11: 1.379746835 | BM11: 1 | BN11: 0 | BO11: 0.0% | BP11: 1 | BQ11: 1.03164557 | BR11: 1 | BT11: 17 | BU11: -1
A12: ='[1]Rapport 5'!A12 -> 19 | B12: ='[1]Rapport 5'!B12 -> STRASBOURG ANVERS | C12: ='[1]Rapport 5'!C12 -> 4019 | D12: ='[1]Rapport 5'!D12 -> STRASBOURG ANVERS | E12: ='[1]Rapport 5'!E12 -> 5006 | F12: ='[1]Rapport 5'!F12 -> STRASBOURG | G12: ='[1]Rapport 5'!G12 -> 262 | H12: ='[1]Rapport 5'!H12 -> BAS RHIN | I12: ='[1]Rapport 5'!I12 -> 3052.31 | J12: ='[1]Rapport 5'!J12 -> 976.88 | K12: ='[1]Rapport 5'!K12 -> 0 | L12: ='[1]Rapport 5'!L12 -> 0 | M12: ='[1]Rapport 5'!M12 -> 212940.65 | N12: ='[1]Rapport 5'!N12 -> 11402.24 | O12: ='[1]Rapport 5'!O12 -> 7532 | P12: ='[1]Rapport 5'!P12 -> 1434 | Q12: ='[1]Rapport 5'!Q12 -> 0 | R12: ='[1]Rapport 5'!R12 -> 0 | S12: ='[1]Rapport 5'!S12 -> 1177 | T12: ='[1]Rapport 5'!T12 -> 83 | U12: ='[1]Rapport 5'!U12 -> 15531.69 | V12: ='[1]Rapport 5'!V12 -> 761.14 | W12: ='[1]Rapport 5'!W12 -> 12107.65 | X12: ='[1]Rapport 5'!X12 -> 678.1 | Y12: 252,341 | Z12: 15,335 | AA12: 6.1% | AB12: 299 | AC12: =1+(AB12/COUNT($AB$3:AB$318)*10) -> 10.46202532 | AD12: 10 | AE12: 977 | AF12: 32.0% | AG12: 308 | AH12: 10.74683544 | AI12: 10 | AJ12: 0 | AK12: 0.0% | AL12: 1 | AM12: 1.03164557 | AN12: 1 | AO12: 11,402 | AP12: 5.4% | AQ12: 304 | AR12: 10.62025316 | AS12: 10 | AT12: 1,434 | AU12: 19.0% | AV12: 293 | AW12: 10.2721519 | AX12: 10 | AY12: 0 | AZ12: 0.0% | BA12: 1 | BB12: 1.03164557 | BC12: 1 | BD12: 83 | BE12: 7.1% | BF12: 266 | BG12: 9.417721519 | BH12: 9 | BI12: 761 | BJ12: 4.9% | BK12: 61 | BL12: 2.930379747 | BM12: 2 | BN12: 678 | BO12: 5.6% | BP12: 233 | BQ12: 8.373417722 | BR12: 8 | BT12: 18 | BU12: -1
A13: ='[1]Rapport 5'!A13 -> 20 | B13: ='[1]Rapport 5'!B13 -> STRASBOURG ROBERTSAU | C13: ='[1]Rapport 5'!C13 -> 4020 | D13: ='[1]Rapport 5'!D13 -> STRASBOURG ROBERTSAU | E13: ='[1]Rapport 5'!E13 -> 5006 | F13: ='[1]Rapport 5'!F13 -> STRASBOURG | G13: ='[1]Rapport 5'!G13 -> 262 | H13: ='[1]Rapport 5'!H13 -> BAS RHIN | I13: ='[1]Rapport 5'!I13 -> 3304.16 | J13: ='[1]Rapport 5'!J13 -> 359.92 | K13: ='[1]Rapport 5'!K13 -> 0 | L13: ='[1]Rapport 5'!L13 -> 0 | M13: ='[1]Rapport 5'!M13 -> 189392.73 | N13: ='[1]Rapport 5'!N13 -> 5967.9 | O13: ='[1]Rapport 5'!O13 -> 3681 | P13: ='[1]Rapport 5'!P13 -> 807.92 | Q13: ='[1]Rapport 5'!Q13 -> 0 | R13: ='[1]Rapport 5'!R13 -> 0 | S13: ='[1]Rapport 5'!S13 -> 3341.85 | T13: ='[1]Rapport 5'!T13 -> 31 | U13: ='[1]Rapport 5'!U13 -> 13494.44 | V13: ='[1]Rapport 5'!V13 -> 2328.55 | W13: ='[1]Rapport 5'!W13 -> 8422.16 | X13: ='[1]Rapport 5'!X13 -> 612.97 | Y13: 221,636 | Z13: 10,108 | AA13: 4.6% | AB13: 241 | AC13: =1+(AB13/COUNT($AB$3:AB$318)*10) -> 8.626582278 | AD13: 8 | AE13: 360 | AF13: 10.9% | AG13: 278 | AH13: 9.797468354 | AI13: 9 | AJ13: 0 | AK13: 0.0% | AL13: 1 | AM13: 1.03164557 | AN13: 1 | AO13: 5,968 | AP13: 3.2% | AQ13: 179 | AR13: 6.664556962 | AS13: 6 | AT13: 808 | AU13: 21.9% | AV13: 302 | AW13: 10.55696203 | AX13: 10 | AY13: 0 | AZ13: 0.0% | BA13: 1 | BB13: 1.03164557 | BC13: 1 | BD13: 31 | BE13: 0.9% | BF13: 221 | BG13: 7.993670886 | BH13: 7 | BI13: 2,329 | BJ13: 17.3% | BK13: 245 | BL13: 8.753164557 | BM13: 8 | BN13: 613 | BO13: 7.3% | BP13: 258 | BQ13: 9.164556962 | BR13: 9 | BT13: 19 | BU13: -1
A14: ='[1]Rapport 5'!A14 -> 23 | B14: ='[1]Rapport 5'!B14 -> STRASBOURG VOSGES | C14: ='[1]Rapport 5'!C14 -> 4023 | D14: ='[1]Rapport 5'!D14 -> STRASBOURG VOSGES | E14: ='[1]Rapport 5'!E14 -> 5006 | F14: ='[1]Rapport 5'!F14 -> STRASBOURG | G14: ='[1]Rapport 5'!G14 -> 262 | H14: ='[1]Rapport 5'!H14 -> BAS RHIN | I14: ='[1]Rapport 5'!I14 -> 1773.13 | J14: ='[1]Rapport 5'!J14 -> 258.24 | K14: ='[1]Rapport 5'!K14 -> 0 | L14: ='[1]Rapport 5'!L14 -> 0 | M14: ='[1]Rapport 5'!M14 -> 123375.48 | N14: ='[1]Rapport 5'!N14 -> 4215.52 | O14: ='[1]Rapport 5'!O14 -> 3006 | P14: ='[1]Rapport 5'!P14 -> 380 | Q14: ='[1]Rapport 5'!Q14 -> 0 | R14: ='[1]Rapport 5'!R14 -> 0 | S14: ='[1]Rapport 5'!S14 -> 803 | T14: ='[1]Rapport 5'!T14 -> 0 | U14: ='[1]Rapport 5'!U14 -> 10412.39 | V14: ='[1]Rapport 5'!V14 -> 925.71 | W14: ='[1]Rapport 5'!W14 -> 7639.63 | X14: ='[1]Rapport 5'!X14 -> 449.9 | Y14: 147,010 | Z14: 6,229 | AA14: 4.2% | AB14: 215 | AC14: =1+(AB14/COUNT($AB$3:AB$318)*10) -> 7.803797468 | AD14: 7 | AE14: 258 | AF14: 14.6% | AG14: 295 | AH14: 10.33544304 | AI14: 10 | AJ14: 0 | AK14: 0.0% | AL14: 1 | AM14: 1.03164557 | AN14: 1 | AO14: 4,216 | AP14: 3.4% | AQ14: 207 | AR14: 7.550632911 | AS14: 7 | AT14: 380 | AU14: 12.6% | AV14: 274 | AW14: 9.670886076 | AX14: 9 | AY14: 0 | AZ14: 0.0% | BA14: 1 | BB14: 1.03164557 | BC14: 1 | BD14: 0 | BE14: 0.0% | BF14: 1 | BG14: 1.03164557 | BH14: 1 | BI14: 926 | BJ14: 8.9% | BK14: 137 | BL14: 5.335443038 | BM14: 5 | BN14: 450 | BO14: 5.9% | BP14: 236 | BQ14: 8.46835443 | BR14: 8 | BT14: 20 | BU14: -3
A15: ='[1]Rapport 5'!A15 -> 24 | B15: ='[1]Rapport 5'!B15 -> STRASBOURG AUSTERLITZ | C15: ='[1]Rapport 5'!C15 -> 4024 | D15: ='[1]Rapport 5'!D15 -> STRASBOURG AUSTERLITZ | E15: ='[1]Rapport 5'!E15 -> 5006 | F15: ='[1]Rapport 5'!F15 -> STRASBOURG | G15: ='[1]Rapport 5'!G15 -> 262 | H15: ='[1]Rapport 5'!H15 -> BAS RHIN | I15: ='[1]Rapport 5'!I15 -> 2807.34 | J15: ='[1]Rapport 5'!J15 -> 1063.39 | K15: ='[1]Rapport 5'!K15 -> 0 | L15: ='[1]Rapport 5'!L15 -> 86.69 | M15: ='[1]Rapport 5'!M15 -> 122487.5 | N15: ='[1]Rapport 5'!N15 -> 2738.01 | O15: ='[1]Rapport 5'!O15 -> 4681 | P15: ='[1]Rapport 5'!P15 -> 255 | Q15: ='[1]Rapport 5'!Q15 -> 0 | R15: ='[1]Rapport 5'!R15 -> 0 | S15: ='[1]Rapport 5'!S15 -> 239 | T15: ='[1]Rapport 5'!T15 -> 26 | U15: ='[1]Rapport 5'!U15 -> 4880.18 | V15: ='[1]Rapport 5'!V15 -> 194.43 | W15: ='[1]Rapport 5'!W15 -> 3509.19 | X15: ='[1]Rapport 5'!X15 -> 1210.99 | Y15: 138,604 | Z15: 5,575 | AA15: 4.0% | AB15: 198 | AC15: =1+(AB15/COUNT($AB$3:AB$318)*10) -> 7.265822785 | AD15: 7 | AE15: 1,063 | AF15: 37.9% | AG15: 312 | AH15: 10.87341772 | AI15: 10 | AJ15: 87 | AK15: 100.0% | AL15: 288 | AM15: 10.11392405 | AN15: 10 | AO15: 2,738 | AP15: 2.2% | AQ15: 78 | AR15: 3.46835443 | AS15: 3 | AT15: 255 | AU15: 5.4% | AV15: 194 | AW15: 7.139240506 | AX15: 7 | AY15: 0 | AZ15: 0.0% | BA15: 1 | BB15: 1.03164557 | BC15: 1 | BD15: 26 | BE15: 10.9% | BF15: 275 | BG15: 9.702531646 | BH15: 9 | BI15: 194 | BJ15: 4.0% | BK15: 47 | BL15: 2.487341772 | BM15: 2 | BN15: 1,211 | BO15: 34.5% | BP15: 316 | BQ15: 11 | BR15: 10 | BT15: 23 | BU15: -1
A16: ='[1]Rapport 5'!A16 -> 25 | B16: ='[1]Rapport 5'!B16 -> STRASBOURG ESPLANADE | C16: ='[1]Rapport 5'!C16 -> 4026 | D16: ='[1]Rapport 5'!D16 -> STRASBOURG DANUBE | E16: ='[1]Rapport 5'!E16 -> 5006 | F16: ='[1]Rapport 5'!F16 -> STRASBOURG | G16: ='[1]Rapport 5'!G16 -> 262 | H16: ='[1]Rapport 5'!H16 -> BAS RHIN | I16: ='[1]Rapport 5'!I16 -> 5911.25 | J16: ='[1]Rapport 5'!J16 -> 582.26 | K16: ='[1]Rapport 5'!K16 -> 0 | L16: ='[1]Rapport 5'!L16 -> 0 | M16: ='[1]Rapport 5'!M16 -> 96996.71 | N16: ='[1]Rapport 5'!N16 -> 3306.99 | O16: ='[1]Rapport 5'!O16 -> 2448 | P16: ='[1]Rapport 5'!P16 -> 152.5 | Q16: ='[1]Rapport 5'!Q16 -> 0 | R16: ='[1]Rapport 5'!R16 -> 0 | S16: ='[1]Rapport 5'!S16 -> 261 | T16: ='[1]Rapport 5'!T16 -> 0 | U16: ='[1]Rapport 5'!U16 -> 5537.86 | V16: ='[1]Rapport 5'!V16 -> 1231.33 | W16: ='[1]Rapport 5'!W16 -> 5353.49 | X16: ='[1]Rapport 5'!X16 -> 209.58 | Y16: 116,508 | Z16: 5,483 | AA16: 4.7% | AB16: 248 | AC16: =1+(AB16/COUNT($AB$3:AB$318)*10) -> 8.848101266 | AD16: 8 | AE16: 582 | AF16: 9.9% | AG16: 268 | AH16: 9.481012658 | AI16: 9 | AJ16: 0 | AK16: 0.0% | AL16: 1 | AM16: 1.03164557 | AN16: 1 | AO16: 3,307 | AP16: 3.4% | AQ16: 204 | AR16: 7.455696203 | AS16: 7 | AT16: 153 | AU16: 6.2% | AV16: 209 | AW16: 7.613924051 | AX16: 7 | AY16: 0 | AZ16: 0.0% | BA16: 1 | BB16: 1.03164557 | BC16: 1 | BD16: 0 | BE16: 0.0% | BF16: 1 | BG16: 1.03164557 | BH16: 1 | BI16: 1,231 | BJ16: 22.2% | BK16: 280 | BL16: 9.860759494 | BM16: 9 | BN16: 210 | BO16: 3.9% | BP16: 187 | BQ16: 6.917721519 | BR16: 6 | BT16: 24 | BU16: -1
A17: ='[1]Rapport 5'!A17 -> 26 | B17: ='[1]Rapport 5'!B17 -> STRASBOURG DANUBE | C17: ='[1]Rapport 5'!C17 -> 4026 | D17: ='[1]Rapport 5'!D17 -> STRASBOURG DANUBE | E17: ='[1]Rapport 5'!E17 -> 5006 | F17: ='[1]Rapport 5'!F17 -> STRASBOURG | G17: ='[1]Rapport 5'!G17 -> 262 | H17: ='[1]Rapport 5'!H17 -> BAS RHIN | I17: ='[1]Rapport 5'!I17 -> 3118.32 | J17: ='[1]Rapport 5'!J17 -> 389.62 | K17: ='[1]Rapport 5'!K17 -> 0 | L17: ='[1]Rapport 5'!L17 -> 32.92 | M17: ='[1]Rapport 5'!M17 -> 118251.31 | N17: ='[1]Rapport 5'!N17 -> 5192.41 | O17: ='[1]Rapport 5'!O17 -> 2703.5 | P17: ='[1]Rapport 5'!P17 -> 355 | Q17: ='[1]Rapport 5'!Q17 -> 0 | R17: ='[1]Rapport 5'!R17 -> 0 | S17: ='[1]Rapport 5'!S17 -> 516 | T17: ='[1]Rapport 5'!T17 -> 75 | U17: ='[1]Rapport 5'!U17 -> 9176.16 | V17: ='[1]Rapport 5'!V17 -> 1135.57 | W17: ='[1]Rapport 5'!W17 -> 3685.48 | X17: ='[1]Rapport 5'!X17 -> 490.29 | Y17: 137,451 | Z17: 7,671 | AA17: 5.6% | AB17: 287 | AC17: =1+(AB17/COUNT($AB$3:AB$318)*10) -> 10.08227848 | AD17: 10 | AE17: 390 | AF17: 12.5% | AG17: 290 | AH17: 10.17721519 | AI17: 10 | AJ17: 33 | AK17: 100.0% | AL17: 288 | AM17: 10.11392405 | AN17: 10 | AO17: 5,192 | AP17: 4.4% | AQ17: 280 | AR17: 9.860759494 | AS17: 9 | AT17: 355 | AU17: 13.1% | AV17: 279 | AW17: 9.829113924 | AX17: 9 | AY17: 0 | AZ17: 0.0% | BA17: 1 | BB17: 1.03164557 | BC17: 1 | BD17: 75 | BE17: 14.5% | BF17: 286 | BG17: 10.05063291 | BH17: 10 | BI17: 1,136 | BJ17: 12.4% | BK17: 194 | BL17: 7.139240506 | BM17: 7 | BN17: 490 | BO17: 13.3% | BP17: 299 | BQ17: 10.46202532 | BR17: 10 | BT17: 25 | BU17: -1
A18: ='[1]Rapport 5'!A18 -> 27 | B18: ='[1]Rapport 5'!B18 -> SCHILTIGHEIM CENTRE | C18: ='[1]Rapport 5'!C18 -> 4027 | D18: ='[1]Rapport 5'!D18 -> SCHILTIGHEIM CENTRE | E18: ='[1]Rapport 5'!E18 -> 5006 | F18: ='[1]Rapport 5'!F18 -> STRASBOURG | G18: ='[1]Rapport 5'!G18 -> 262 | H18: ='[1]Rapport 5'!H18 -> BAS RHIN | I18: ='[1]Rapport 5'!I18 -> 4705.22 | J18: ='[1]Rapport 5'!J18 -> 280.16 | K18: ='[1]Rapport 5'!K18 -> 0 | L18: ='[1]Rapport 5'!L18 -> 0 | M18: ='[1]Rapport 5'!M18 -> 214953.45 | N18: ='[1]Rapport 5'!N18 -> 7425.14 | O18: ='[1]Rapport 5'!O18 -> 4317 | P18: ='[1]Rapport 5'!P18 -> 595 | Q18: ='[1]Rapport 5'!Q18 -> 462.51 | R18: ='[1]Rapport 5'!R18 -> 0 | S18: ='[1]Rapport 5'!S18 -> 866.59 | T18: ='[1]Rapport 5'!T18 -> 26 | U18: ='[1]Rapport 5'!U18 -> 13643.02 | V18: ='[1]Rapport 5'!V18 -> 812.8 | W18: ='[1]Rapport 5'!W18 -> 4719.61 | X18: ='[1]Rapport 5'!X18 -> 0 | Y18: 243,667 | Z18: 9,139 | AA18: 3.8% | AB18: 158 | AC18: =1+(AB18/COUNT($AB$3:AB$318)*10) -> 6 | AD18: 6 | AE18: 280 | AF18: 6.0% | AG18: 218 | AH18: 7.898734177 | AI18: 7 | AJ18: 0 | AK18: 0.0% | AL18: 1 | AM18: 1.03164557 | AN18: 1 | AO18: 7,425 | AP18: 3.5% | AQ18: 210 | AR18: 7.64556962 | AS18: 7 | AT18: 595 | AU18: 13.8% | AV18: 281 | AW18: 9.892405063 | AX18: 9 | AY18: 0 | AZ18: 0.0% | BA18: 1 | BB18: 1.03164557 | BC18: 1 | BD18: 26 | BE18: 3.0% | BF18: 239 | BG18: 8.563291139 | BH18: 8 | BI18: 813 | BJ18: 6.0% | BK18: 84 | BL18: 3.658227848 | BM18: 3 | BN18: 0 | BO18: 0.0% | BP18: 1 | BQ18: 1.03164557 | BR18: 1 | BT18: 26 | BU18: -1
A19: ='[1]Rapport 5'!A19 -> 28 | B19: ='[1]Rapport 5'!B19 -> BISCHHEIM | C19: ='[1]Rapport 5'!C19 -> 4028 | D19: ='[1]Rapport 5'!D19 -> BISCHHEIM | E19: ='[1]Rapport 5'!E19 -> 5006 | F19: ='[1]Rapport 5'!F19 -> STRASBOURG | G19: ='[1]Rapport 5'!G19 -> 262 | H19: ='[1]Rapport 5'!H19 -> BAS RHIN | I19: ='[1]Rapport 5'!I19 -> 4691.27 | J19: ='[1]Rapport 5'!J19 -> 192.28 | K19: ='[1]Rapport 5'!K19 -> 0 | L19: ='[1]Rapport 5'!L19 -> 0 | M19: ='[1]Rapport 5'!M19 -> 170380.29 | N19: ='[1]Rapport 5'!N19 -> 4124.98 | O19: ='[1]Rapport 5'!O19 -> 3594.5 | P19: ='[1]Rapport 5'!P19 -> 446 | Q19: ='[1]Rapport 5'!Q19 -> 0 | R19: ='[1]Rapport 5'!R19 -> 0 | S19: ='[1]Rapport 5'!S19 -> 453 | T19: ='[1]Rapport 5'!T19 -> 31 | U19: ='[1]Rapport 5'!U19 -> 11045.4 | V19: ='[1]Rapport 5'!V19 -> 1355.85 | W19: ='[1]Rapport 5'!W19 -> 8083.19 | X19: ='[1]Rapport 5'!X19 -> 216.61 | Y19: 198,248 | Z19: 6,367 | AA19: 3.2% | AB19: 96 | AC19: =1+(AB19/COUNT($AB$3:AB$318)*10) -> 4.037974684 | AD19: 4 | AE19: 192 | AF19: 4.1% | AG19: 154 | AH19: 5.873417722 | AI19: 5 | AJ19: 0 | AK19: 0.0% | AL19: 1 | AM19: 1.03164557 | AN19: 1 | AO19: 4,125 | AP19: 2.4% | AQ19: 98 | AR19: 4.101265823 | AS19: 4 | AT19: 446 | AU19: 12.4% | AV19: 272 | AW19: 9.607594937 | AX19: 9 | AY19: 0 | AZ19: 0.0% | BA19: 1 | BB19: 1.03164557 | BC19: 1 | BD19: 31 | BE19: 6.8% | BF19: 264 | BG19: 9.35443038 | BH19: 9 | BI19: 1,356 | BJ19: 12.3% | BK19: 192 | BL19: 7.075949367 | BM19: 7 | BN19: 217 | BO19: 2.7% | BP19: 133 | BQ19: 5.208860759 | BR19: 5 | BT19: 27 | BU19: -1
A20: ='[1]Rapport 5'!A20 -> 29 | B20: ='[1]Rapport 5'!B20 -> SCHILTIGHEIM KLEBER | C20: ='[1]Rapport 5'!C20 -> 4029 | D20: ='[1]Rapport 5'!D20 -> SCHILTIGHEIM KLEBER | E20: ='[1]Rapport 5'!E20 -> 5006 | F20: ='[1]Rapport 5'!F20 -> STRASBOURG | G20: ='[1]Rapport 5'!G20 -> 262 | H20: ='[1]Rapport 5'!H20 -> BAS RHIN | I20: ='[1]Rapport 5'!I20 -> 2757.46 | J20: ='[1]Rapport 5'!J20 -> 232.18 | K20: ='[1]Rapport 5'!K20 -> 0 | L20: ='[1]Rapport 5'!L20 -> 0 | M20: ='[1]Rapport 5'!M20 -> 118454.03 | N20: ='[1]Rapport 5'!N20 -> 6838.88 | O20: ='[1]Rapport 5'!O20 -> 2795.5 | P20: ='[1]Rapport 5'!P20 -> 90 | Q20: ='[1]Rapport 5'!Q20 -> 0 | R20: ='[1]Rapport 5'!R20 -> 0 | S20: ='[1]Rapport 5'!S20 -> 514 | T20: ='[1]Rapport 5'!T20 -> 13 | U20: ='[1]Rapport 5'!U20 -> 6819.23 | V20: ='[1]Rapport 5'!V20 -> 107.5 | W20: ='[1]Rapport 5'!W20 -> 2554.87 | X20: ='[1]Rapport 5'!X20 -> 60.63 | Y20: 133,895 | Z20: 7,342 | AA20: 5.5% | AB20: 284 | AC20: =1+(AB20/COUNT($AB$3:AB$318)*10) -> 9.987341772 | AD20: 9 | AE20: 232 | AF20: 8.4% | AG20: 249 | AH20: 8.879746835 | AI20: 8 | AJ20: 0 | AK20: 0.0% | AL20: 1 | AM20: 1.03164557 | AN20: 1 | AO20: 6,839 | AP20: 5.8% | AQ20: 309 | AR20: 10.77848101 | AS20: 10 | AT20: 90 | AU20: 3.2% | AV20: 142 | AW20: 5.493670886 | AX20: 5 | AY20: 0 | AZ20: 0.0% | BA20: 1 | BB20: 1.03164557 | BC20: 1 | BD20: 13 | BE20: 2.5% | BF20: 235 | BG20: 8.436708861 | BH20: 8 | BI20: 108 | BJ20: 1.6% | BK20: 23 | BL20: 1.727848101 | BM20: 1 | BN20: 61 | BO20: 2.4% | BP20: 115 | BQ20: 4.639240506 | BR20: 4 | BT20: 28 | BU20: -1
A21: ='[1]Rapport 5'!A21 -> 30 | B21: ='[1]Rapport 5'!B21 -> BRUMATH | C21: ='[1]Rapport 5'!C21 -> 4030 | D21: ='[1]Rapport 5'!D21 -> BRUMATH | E21: ='[1]Rapport 5'!E21 -> 5060 | F21: ='[1]Rapport 5'!F21 -> HAGUENAU | G21: ='[1]Rapport 5'!G21 -> 262 | H21: ='[1]Rapport 5'!H21 -> BAS RHIN | I21: ='[1]Rapport 5'!I21 -> 4087.02 | J21: ='[1]Rapport 5'!J21 -> 611.04 | K21: ='[1]Rapport 5'!K21 -> 0 | L21: ='[1]Rapport 5'!L21 -> 479.65 | M21: ='[1]Rapport 5'!M21 -> 252678.9 | N21: ='[1]Rapport 5'!N21 -> 9086.66 | O21: ='[1]Rapport 5'!O21 -> 12237.5 | P21: ='[1]Rapport 5'!P21 -> 519.46 | Q21: ='[1]Rapport 5'!Q21 -> 0 | R21: ='[1]Rapport 5'!R21 -> 0 | S21: ='[1]Rapport 5'!S21 -> 568.39 | T21: ='[1]Rapport 5'!T21 -> 13 | U21: ='[1]Rapport 5'!U21 -> 17422.25 | V21: ='[1]Rapport 5'!V21 -> 2625.59 | W21: ='[1]Rapport 5'!W21 -> 9368.76 | X21: ='[1]Rapport 5'!X21 -> 1161.41 | Y21: 296,363 | Z21: 14,497 | AA21: 4.9% | AB21: 259 | AC21: =1+(AB21/COUNT($AB$3:AB$318)*10) -> 9.196202532 | AD21: 9 | AE21: 611 | AF21: 15.0% | AG21: 297 | AH21: 10.39873418 | AI21: 10 | AJ21: 480 | AK21: 100.0% | AL21: 288 | AM21: 10.11392405 | AN21: 10 | AO21: 9,087 | AP21: 3.6% | AQ21: 228 | AR21: 8.215189873 | AS21: 8 | AT21: 519 | AU21: 4.2% | AV21: 169 | AW21: 6.348101266 | AX21: 6 | AY21: 0 | AZ21: 0.0% | BA21: 1 | BB21: 1.03164557 | BC21: 1 | BD21: 13 | BE21: 2.3% | BF21: 232 | BG21: 8.341772152 | BH21: 8 | BI21: 2,626 | BJ21: 15.1% | BK21: 226 | BL21: 8.151898734 | BM21: 8 | BN21: 1,161 | BO21: 12.4% | BP21: 292 | BQ21: 10.24050633 | BR21: 10 | BT21: 29 | BU21: -1
A22: ='[1]Rapport 5'!A22 -> 31 | B22: ='[1]Rapport 5'!B22 -> TRUCHTERSHEIM | C22: ='[1]Rapport 5'!C22 -> 4031 | D22: ='[1]Rapport 5'!D22 -> TRUCHTERSHEIM | E22: ='[1]Rapport 5'!E22 -> 5060 | F22: ='[1]Rapport 5'!F22 -> HAGUENAU | G22: ='[1]Rapport 5'!G22 -> 262 | H22: ='[1]Rapport 5'!H22 -> BAS RHIN | I22: ='[1]Rapport 5'!I22 -> 2921.28 | J22: ='[1]Rapport 5'!J22 -> 120.9 | K22: ='[1]Rapport 5'!K22 -> 0 | L22: ='[1]Rapport 5'!L22 -> 0 | M22: ='[1]Rapport 5'!M22 -> 117034.41 | N22: ='[1]Rapport 5'!N22 -> 6361.28 | O22: ='[1]Rapport 5'!O22 -> 2408.5 | P22: ='[1]Rapport 5'!P22 -> 519.5 | Q22: ='[1]Rapport 5'!Q22 -> 0 | R22: ='[1]Rapport 5'!R22 -> 0 | S22: ='[1]Rapport 5'!S22 -> 189 | T22: ='[1]Rapport 5'!T22 -> 75 | U22: ='[1]Rapport 5'!U22 -> 4959.41 | V22: ='[1]Rapport 5'!V22 -> 123.69 | W22: ='[1]Rapport 5'!W22 -> 5560.35 | X22: ='[1]Rapport 5'!X22 -> 69.8 | Y22: 133,073 | Z22: 7,270 | AA22: 5.5% | AB22: 283 | AC22: =1+(AB22/COUNT($AB$3:AB$318)*10) -> 9.955696203 | AD22: 9 | AE22: 121 | AF22: 4.1% | AG22: 158 | AH22: 6 | AI22: 6 | AJ22: 0 | AK22: 0.0% | AL22: 1 | AM22: 1.03164557 | AN22: 1 | AO22: 6,361 | AP22: 5.4% | AQ22: 305 | AR22: 10.65189873 | AS22: 10 | AT22: 520 | AU22: 21.6% | AV22: 299 | AW22: 10.46202532 | AX22: 10 | AY22: 0 | AZ22: 0.0% | BA22: 1 | BB22: 1.03164557 | BC22: 1 | BD22: 75 | BE22: 39.7% | BF22: 308 | BG22: 10.74683544 | BH22: 10 | BI22: 124 | BJ22: 2.5% | BK22: 30 | BL22: 1.949367089 | BM22: 1 | BN22: 70 | BO22: 1.3% | BP22: 71 | BQ22: 3.246835443 | BR22: 3 | BT22: 30 | BU22: -1
A23: ='[1]Rapport 5'!A23 -> 33 | B23: ='[1]Rapport 5'!B23 -> LA WANTZENAU | C23: ='[1]Rapport 5'!C23 -> 4020 | D23: ='[1]Rapport 5'!D23 -> STRASBOURG ROBERTSAU | E23: ='[1]Rapport 5'!E23 -> 5006 | F23: ='[1]Rapport 5'!F23 -> STRASBOURG | G23: ='[1]Rapport 5'!G23 -> 262 | H23: ='[1]Rapport 5'!H23 -> BAS RHIN | I23: ='[1]Rapport 5'!I23 -> 2100.01 | J23: ='[1]Rapport 5'!J23 -> 720.09 | K23: ='[1]Rapport 5'!K23 -> 0 | L23: ='[1]Rapport 5'!L23 -> 0 | M23: ='[1]Rapport 5'!M23 -> 89069.16 | N23: ='[1]Rapport 5'!N23 -> 2628.68 | O23: ='[1]Rapport 5'!O23 -> 2439.75 | P23: ='[1]Rapport 5'!P23 -> 200 | Q23: ='[1]Rapport 5'!Q23 -> 0 | R23: ='[1]Rapport 5'!R23 -> 0 | S23: ='[1]Rapport 5'!S23 -> 226.22 | T23: ='[1]Rapport 5'!T23 -> 0 | U23: ='[1]Rapport 5'!U23 -> 2975.34 | V23: ='[1]Rapport 5'!V23 -> 266.5 | W23: ='[1]Rapport 5'!W23 -> 4191.33 | X23: ='[1]Rapport 5'!X23 -> 67.2 | Y23: 101,002 | Z23: 3,882 | AA23: 3.8% | AB23: 174 | AC23: =1+(AB23/COUNT($AB$3:AB$318)*10) -> 6.506329114 | AD23: 6 | AE23: 720 | AF23: 34.3% | AG23: 310 | AH23: 10.81012658 | AI23: 10 | AJ23: 0 | AK23: 0.0% | AL23: 1 | AM23: 1.03164557 | AN23: 1 | AO23: 2,629 | AP23: 3.0% | AQ23: 160 | AR23: 6.063291139 | AS23: 6 | AT23: 200 | AU23: 8.2% | AV23: 231 | AW23: 8.310126582 | AX23: 8 | AY23: 0 | AZ23: 0.0% | BA23: 1 | BB23: 1.03164557 | BC23: 1 | BD23: 0 | BE23: 0.0% | BF23: 1 | BG23: 1.03164557 | BH23: 1 | BI23: 267 | BJ23: 9.0% | BK23: 139 | BL23: 5.398734177 | BM23: 5 | BN23: 67 | BO23: 1.6% | BP23: 88 | BQ23: 3.784810127 | BR23: 3 | BT23: 31 | BU23: -2
A24: ='[1]Rapport 5'!A24 -> 34 | B24: ='[1]Rapport 5'!B24 -> VENDENHEIM | C24: ='[1]Rapport 5'!C24 -> 4037 | D24: ='[1]Rapport 5'!D24 -> MUNDOLSHEIM | E24: ='[1]Rapport 5'!E24 -> 5006 | F24: ='[1]Rapport 5'!F24 -> STRASBOURG | G24: ='[1]Rapport 5'!G24 -> 262 | H24: ='[1]Rapport 5'!H24 -> BAS RHIN | I24: ='[1]Rapport 5'!I24 -> 2279.44 | J24: ='[1]Rapport 5'!J24 -> 524.61 | K24: ='[1]Rapport 5'!K24 -> 0 | L24: ='[1]Rapport 5'!L24 -> 0 | M24: ='[1]Rapport 5'!M24 -> 79285.89 | N24: ='[1]Rapport 5'!N24 -> 2746.17 | O24: ='[1]Rapport 5'!O24 -> 672 | P24: ='[1]Rapport 5'!P24 -> 200 | Q24: ='[1]Rapport 5'!Q24 -> 0 | R24: ='[1]Rapport 5'!R24 -> 0 | S24: ='[1]Rapport 5'!S24 -> 114 | T24: ='[1]Rapport 5'!T24 -> 0 | U24: ='[1]Rapport 5'!U24 -> 4553.32 | V24: ='[1]Rapport 5'!V24 -> 1281.05 | W24: ='[1]Rapport 5'!W24 -> 3406.93 | X24: ='[1]Rapport 5'!X24 -> 56 | Y24: 90,312 | Z24: 4,808 | AA24: 5.3% | AB24: 279 | AC24: =1+(AB24/COUNT($AB$3:AB$318)*10) -> 9.829113924 | AD24: 9 | AE24: 525 | AF24: 23.0% | AG24: 306 | AH24: 10.6835443 | AI24: 10 | AJ24: 0 | AK24: 0.0% | AL24: 1 | AM24: 1.03164557 | AN24: 1 | AO24: 2,746 | AP24: 3.5% | AQ24: 212 | AR24: 7.708860759 | AS24: 7 | AT24: 200 | AU24: 29.8% | AV24: 311 | AW24: 10.84177215 | AX24: 10 | AY24: 0 | AZ24: 0.0% | BA24: 1 | BB24: 1.03164557 | BC24: 1 | BD24: 0 | BE24: 0.0% | BF24: 1 | BG24: 1.03164557 | BH24: 1 | BI24: 1,281 | BJ24: 28.1% | BK24: 297 | BL24: 10.39873418 | BM24: 10 | BN24: 56 | BO24: 1.6% | BP24: 89 | BQ24: 3.816455696 | BR24: 3 | BT24: 33 | BU24: -1
A25: ='[1]Rapport 5'!A25 -> 37 | B25: ='[1]Rapport 5'!B25 -> MUNDOLSHEIM | C25: ='[1]Rapport 5'!C25 -> 4037 | D25: ='[1]Rapport 5'!D25 -> MUNDOLSHEIM | E25: ='[1]Rapport 5'!E25 -> 5006 | F25: ='[1]Rapport 5'!F25 -> STRASBOURG | G25: ='[1]Rapport 5'!G25 -> 262 | H25: ='[1]Rapport 5'!H25 -> BAS RHIN | I25: ='[1]Rapport 5'!I25 -> 2113.2 | J25: ='[1]Rapport 5'!J25 -> 137.22 | K25: ='[1]Rapport 5'!K25 -> 0 | L25: ='[1]Rapport 5'!L25 -> 0 | M25: ='[1]Rapport 5'!M25 -> 106181.28 | N25: ='[1]Rapport 5'!N25 -> 3543.12 | O25: ='[1]Rapport 5'!O25 -> 3419.5 | P25: ='[1]Rapport 5'!P25 -> 126 | Q25: ='[1]Rapport 5'!Q25 -> 0 | R25: ='[1]Rapport 5'!R25 -> 0 | S25: ='[1]Rapport 5'!S25 -> 88 | T25: ='[1]Rapport 5'!T25 -> 13 | U25: ='[1]Rapport 5'!U25 -> 3931.67 | V25: ='[1]Rapport 5'!V25 -> 531.41 | W25: ='[1]Rapport 5'!W25 -> 4129.41 | X25: ='[1]Rapport 5'!X25 -> 116.7 | Y25: 119,863 | Z25: 4,467 | AA25: 3.7% | AB25: 155 | AC25: =1+(AB25/COUNT($AB$3:AB$318)*10) -> 5.905063291 | AD25: 5 | AE25: 137 | AF25: 6.5% | AG25: 230 | AH25: 8.278481013 | AI25: 8 | AJ25: 0 | AK25: 0.0% | AL25: 1 | AM25: 1.03164557 | AN25: 1 | AO25: 3,543 | AP25: 3.3% | AQ25: 196 | AR25: 7.202531646 | AS25: 7 | AT25: 126 | AU25: 3.7% | AV25: 159 | AW25: 6.03164557 | AX25: 6 | AY25: 0 | AZ25: 0.0% | BA25: 1 | BB25: 1.03164557 | BC25: 1 | BD25: 13 | BE25: 14.8% | BF25: 288 | BG25: 10.11392405 | BH25: 10 | BI25: 531 | BJ25: 13.5% | BK25: 211 | BL25: 7.67721519 | BM25: 7 | BN25: 117 | BO25: 2.8% | BP25: 139 | BQ25: 5.398734177 | BR25: 5 | BT25: 34 | BU25: -3
A26: ='[1]Rapport 5'!A26 -> 38 | B26: ='[1]Rapport 5'!B26 -> OBERHAUSBERGEN | C26: ='[1]Rapport 5'!C26 -> 4038 | D26: ='[1]Rapport 5'!D26 -> OBERHAUSBERGEN | E26: ='[1]Rapport 5'!E26 -> 5006 | F26: ='[1]Rapport 5'!F26 -> STRASBOURG | G26: ='[1]Rapport 5'!G26 -> 262 | H26: ='[1]Rapport 5'!H26 -> BAS RHIN | I26: ='[1]Rapport 5'!I26 -> 5178.3 | J26: ='[1]Rapport 5'!J26 -> 181.8 | K26: ='[1]Rapport 5'!K26 -> 0 | L26: ='[1]Rapport 5'!L26 -> 0 | M26: ='[1]Rapport 5'!M26 -> 166761.78 | N26: ='[1]Rapport 5'!N26 -> 7761.32 | O26: ='[1]Rapport 5'!O26 -> 3947 | P26: ='[1]Rapport 5'!P26 -> 588 | Q26: ='[1]Rapport 5'!Q26 -> 0 | R26: ='[1]Rapport 5'!R26 -> 0 | S26: ='[1]Rapport 5'!S26 -> 932.21 | T26: ='[1]Rapport 5'!T26 -> 13 | U26: ='[1]Rapport 5'!U26 -> 9532.79 | V26: ='[1]Rapport 5'!V26 -> 610.25 | W26: ='[1]Rapport 5'!W26 -> 7615.03 | X26: ='[1]Rapport 5'!X26 -> 792.06 | Y26: 193,967 | Z26: 9,946 | AA26: 5.1% | AB26: 271 | AC26: =1+(AB26/COUNT($AB$3:AB$318)*10) -> 9.575949367 | AD26: 9 | AE26: 182 | AF26: 3.5% | AG26: 131 | AH26: 5.14556962 | AI26: 5 | AJ26: 0 | AK26: 0.0% | AL26: 1 | AM26: 1.03164557 | AN26: 1 | AO26: 7,761 | AP26: 4.7% | AQ26: 290 | AR26: 10.17721519 | AS26: 10 | AT26: 588 | AU26: 14.9% | AV26: 285 | AW26: 10.01898734 | AX26: 10 | AY26: 0 | AZ26: 0.0% | BA26: 1 | BB26: 1.03164557 | BC26: 1 | BD26: 13 | BE26: 1.4% | BF26: 226 | BG26: 8.151898734 | BH26: 8 | BI26: 610 | BJ26: 6.4% | BK26: 93 | BL26: 3.943037975 | BM26: 3 | BN26: 792 | BO26: 10.4% | BP26: 284 | BQ26: 9.987341772 | BR26: 9 | BT26: 37 | BU26: -1
A27: ='[1]Rapport 5'!A27 -> 39 | B27: ='[1]Rapport 5'!B27 -> REICHSTETT | C27: ='[1]Rapport 5'!C27 -> 4039 | D27: ='[1]Rapport 5'!D27 -> REICHSTETT | E27: ='[1]Rapport 5'!E27 -> 5006 | F27: ='[1]Rapport 5'!F27 -> STRASBOURG | G27: ='[1]Rapport 5'!G27 -> 262 | H27: ='[1]Rapport 5'!H27 -> BAS RHIN | I27: ='[1]Rapport 5'!I27 -> 1705.97 | J27: ='[1]Rapport 5'!J27 -> 140.15 | K27: ='[1]Rapport 5'!K27 -> 0 | L27: ='[1]Rapport 5'!L27 -> 0 | M27: ='[1]Rapport 5'!M27 -> 63636.32 | N27: ='[1]Rapport 5'!N27 -> 3180.56 | O27: ='[1]Rapport 5'!O27 -> 2270.5 | P27: ='[1]Rapport 5'!P27 -> 121.15 | Q27: ='[1]Rapport 5'!Q27 -> 0 | R27: ='[1]Rapport 5'!R27 -> 0 | S27: ='[1]Rapport 5'!S27 -> 13 | T27: ='[1]Rapport 5'!T27 -> 0 | U27: ='[1]Rapport 5'!U27 -> 5210.52 | V27: ='[1]Rapport 5'!V27 -> 841.53 | W27: ='[1]Rapport 5'!W27 -> 2242.68 | X27: ='[1]Rapport 5'!X27 -> 28 | Y27: 75,079 | Z27: 4,311 | AA27: 5.7% | AB27: 292 | AC27: =1+(AB27/COUNT($AB$3:AB$318)*10) -> 10.24050633 | AD27: 10 | AE27: 140 | AF27: 8.2% | AG27: 247 | AH27: 8.816455696 | AI27: 8 | AJ27: 0 | AK27: 0.0% | AL27: 1 | AM27: 1.03164557 | AN27: 1 | AO27: 3,181 | AP27: 5.0% | AQ27: 298 | AR27: 10.43037975 | AS27: 10 | AT27: 121 | AU27: 5.3% | AV27: 190 | AW27: 7.012658228 | AX27: 7 | AY27: 0 | AZ27: 0.0% | BA27: 1 | BB27: 1.03164557 | BC27: 1 | BD27: 0 | BE27: 0.0% | BF27: 1 | BG27: 1.03164557 | BH27: 1 | BI27: 842 | BJ27: 16.2% | BK27: 232 | BL27: 8.341772152 | BM27: 8 | BN27: 28 | BO27: 1.2% | BP27: 70 | BQ27: 3.215189873 | BR27: 3 | BT27: 38 | BU27: -1
A28: ='[1]Rapport 5'!A28 -> 40 | B28: ='[1]Rapport 5'!B28 -> ECKBOLSHEIM | C28: ='[1]Rapport 5'!C28 -> 4038 | D28: ='[1]Rapport 5'!D28 -> OBERHAUSBERGEN | E28: ='[1]Rapport 5'!E28 -> 5006 | F28: ='[1]Rapport 5'!F28 -> STRASBOURG | G28: ='[1]Rapport 5'!G28 -> 262 | H28: ='[1]Rapport 5'!H28 -> BAS RHIN | I28: ='[1]Rapport 5'!I28 -> 2320.97 | J28: ='[1]Rapport 5'!J28 -> 513.91 | K28: ='[1]Rapport 5'!K28 -> 0 | L28: ='[1]Rapport 5'!L28 -> 80 | M28: ='[1]Rapport 5'!M28 -> 80980.15 | N28: ='[1]Rapport 5'!N28 -> 3862.48 | O28: ='[1]Rapport 5'!O28 -> 2172.5 | P28: ='[1]Rapport 5'!P28 -> 486.94 | Q28: ='[1]Rapport 5'!Q28 -> 0 | R28: ='[1]Rapport 5'!R28 -> 0 | S28: ='[1]Rapport 5'!S28 -> 287 | T28: ='[1]Rapport 5'!T28 -> 0 | U28: ='[1]Rapport 5'!U28 -> 4026.13 | V28: ='[1]Rapport 5'!V28 -> 323.2 | W28: ='[1]Rapport 5'!W28 -> 3486.95 | X28: ='[1]Rapport 5'!X28 -> 28 | Y28: 93,274 | Z28: 5,295 | AA28: 5.7% | AB28: 291 | AC28: =1+(AB28/COUNT($AB$3:AB$318)*10) -> 10.20886076 | AD28: 10 | AE28: 514 | AF28: 22.1% | AG28: 305 | AH28: 10.65189873 | AI28: 10 | AJ28: 80 | AK28: 100.0% | AL28: 288 | AM28: 10.11392405 | AN28: 10 | AO28: 3,862 | AP28: 4.8% | AQ28: 296 | AR28: 10.36708861 | AS28: 10 | AT28: 487 | AU28: 22.4% | AV28: 303 | AW28: 10.58860759 | AX28: 10 | AY28: 0 | AZ28: 0.0% | BA28: 1 | BB28: 1.03164557 | BC28: 1 | BD28: 0 | BE28: 0.0% | BF28: 1 | BG28: 1.03164557 | BH28: 1 | BI28: 323 | BJ28: 8.0% | BK28: 120 | BL28: 4.797468354 | BM28: 4 | BN28: 28 | BO28: 0.8% | BP28: 45 | BQ28: 2.424050633 | BR28: 2 | BT28: 39 | BU28: -1
A29: ='[1]Rapport 5'!A29 -> 41 | B29: ='[1]Rapport 5'!B29 -> HOERDT | C29: ='[1]Rapport 5'!C29 -> 4041 | D29: ='[1]Rapport 5'!D29 -> HOERDT | E29: ='[1]Rapport 5'!E29 -> 5060 | F29: ='[1]Rapport 5'!F29 -> HAGUENAU | G29: ='[1]Rapport 5'!G29 -> 262 | H29: ='[1]Rapport 5'!H29 -> BAS RHIN | I29: ='[1]Rapport 5'!I29 -> 5088.2 | J29: ='[1]Rapport 5'!J29 -> 71.43 | K29: ='[1]Rapport 5'!K29 -> 0 | L29: ='[1]Rapport 5'!L29 -> 131.5 | M29: ='[1]Rapport 5'!M29 -> 85845.12 | N29: ='[1]Rapport 5'!N29 -> 2113.15 | O29: ='[1]Rapport 5'!O29 -> 3493.5 | P29: ='[1]Rapport 5'!P29 -> 219 | Q29: ='[1]Rapport 5'!Q29 -> 0 | R29: ='[1]Rapport 5'!R29 -> 0 | S29: ='[1]Rapport 5'!S29 -> 126.06 | T29: ='[1]Rapport 5'!T29 -> 0 | U29: ='[1]Rapport 5'!U29 -> 4568.67 | V29: ='[1]Rapport 5'!V29 -> 576.07 | W29: ='[1]Rapport 5'!W29 -> 3523.64 | X29: ='[1]Rapport 5'!X29 -> 190.63 | Y29: 102,645 | Z29: 3,302 | AA29: 3.2% | AB29: 97 | AC29: =1+(AB29/COUNT($AB$3:AB$318)*10) -> 4.069620253 | AD29: 4 | AE29: 71 | AF29: 1.4% | AG29: 33 | AH29: 2.044303797 | AI29: 2 | AJ29: 132 | AK29: 100.0% | AL29: 288 | AM29: 10.11392405 | AN29: 10 | AO29: 2,113 | AP29: 2.5% | AQ29: 99 | AR29: 4.132911392 | AS29: 4 | AT29: 219 | AU29: 6.3% | AV29: 212 | AW29: 7.708860759 | AX29: 7 | AY29: 0 | AZ29: 0.0% | BA29: 1 | BB29: 1.03164557 | BC29: 1 | BD29: 0 | BE29: 0.0% | BF29: 1 | BG29: 1.03164557 | BH29: 1 | BI29: 576 | BJ29: 12.6% | BK29: 198 | BL29: 7.265822785 | BM29: 7 | BN29: 191 | BO29: 5.4% | BP29: 228 | BQ29: 8.215189873 | BR29: 8 | BT29: 40 | BU29: -1
A30: ='[1]Rapport 5'!A30 -> 43 | B30: ='[1]Rapport 5'!B30 -> STRASBOURG HALLES | C30: ='[1]Rapport 5'!C30 -> 4043 | D30: ='[1]Rapport 5'!D30 -> STRASBOURG HALLES | E30: ='[1]Rapport 5'!E30 -> 5006 | F30: ='[1]Rapport 5'!F30 -> STRASBOURG | G30: ='[1]Rapport 5'!G30 -> 262 | H30: ='[1]Rapport 5'!H30 -> BAS RHIN | I30: ='[1]Rapport 5'!I30 -> 5394.71 | J30: ='[1]Rapport 5'!J30 -> 2407.07 | K30: ='[1]Rapport 5'!K30 -> 0 | L30: ='[1]Rapport 5'!L30 -> 0 | M30: ='[1]Rapport 5'!M30 -> 328006.58 | N30: ='[1]Rapport 5'!N30 -> 22126.18 | O30: ='[1]Rapport 5'!O30 -> 8799 | P30: ='[1]Rapport 5'!P30 -> 809 | Q30: ='[1]Rapport 5'!Q30 -> 0 | R30: ='[1]Rapport 5'!R30 -> 0 | S30: ='[1]Rapport 5'!S30 -> 757 | T30: ='[1]Rapport 5'!T30 -> 44 | U30: ='[1]Rapport 5'!U30 -> 30548.9 | V30: ='[1]Rapport 5'!V30 -> 1263.67 | W30: ='[1]Rapport 5'!W30 -> 10431.08 | X30: ='[1]Rapport 5'!X30 -> 466.86 | Y30: 383,937 | Z30: 27,117 | AA30: 7.1% | AB30: 311 | AC30: =1+(AB30/COUNT($AB$3:AB$318)*10) -> 10.84177215 | AD30: 10 | AE30: 2,407 | AF30: 44.6% | AG30: 313 | AH30: 10.90506329 | AI30: 10 | AJ30: 0 | AK30: 0.0% | AL30: 1 | AM30: 1.03164557 | AN30: 1 | AO30: 22,126 | AP30: 6.7% | AQ30: 315 | AR30: 10.96835443 | AS30: 10 | AT30: 809 | AU30: 9.2% | AV30: 244 | AW30: 8.721518987 | AX30: 8 | AY30: 0 | AZ30: 0.0% | BA30: 1 | BB30: 1.03164557 | BC30: 1 | BD30: 44 | BE30: 5.8% | BF30: 255 | BG30: 9.069620253 | BH30: 9 | BI30: 1,264 | BJ30: 4.1% | BK30: 50 | BL30: 2.582278481 | BM30: 2 | BN30: 467 | BO30: 4.5% | BP30: 206 | BQ30: 7.518987342 | BR30: 7 | BT30: 41 | BU30: -2
A31: ='[1]Rapport 5'!A31 -> 45 | B31: ='[1]Rapport 5'!B31 -> STRASBOURG FRANCS BOURGEOIS | C31: ='[1]Rapport 5'!C31 -> 4045 | D31: ='[1]Rapport 5'!D31 -> STRASBOURG FRANCS BOURGEOIS | E31: ='[1]Rapport 5'!E31 -> 5006 | F31: ='[1]Rapport 5'!F31 -> STRASBOURG | G31: ='[1]Rapport 5'!G31 -> 262 | H31: ='[1]Rapport 5'!H31 -> BAS RHIN | I31: ='[1]Rapport 5'!I31 -> 1614.39 | J31: ='[1]Rapport 5'!J31 -> 578.5 | K31: ='[1]Rapport 5'!K31 -> 0 | L31: ='[1]Rapport 5'!L31 -> 282.33 | M31: ='[1]Rapport 5'!M31 -> 255677.89 | N31: ='[1]Rapport 5'!N31 -> 6071.3 | O31: ='[1]Rapport 5'!O31 -> 7793.3 | P31: ='[1]Rapport 5'!P31 -> 964.63 | Q31: ='[1]Rapport 5'!Q31 -> 107.47 | R31: ='[1]Rapport 5'!R31 -> 0 | S31: ='[1]Rapport 5'!S31 -> 1313.2 | T31: ='[1]Rapport 5'!T31 -> 0 | U31: ='[1]Rapport 5'!U31 -> 14051.45 | V31: ='[1]Rapport 5'!V31 -> 447.68 | W31: ='[1]Rapport 5'!W31 -> 9348.68 | X31: ='[1]Rapport 5'!X31 -> 356.14 | Y31: 289,906 | Z31: 8,701 | AA31: 3.0% | AB31: 73 | AC31: =1+(AB31/COUNT($AB$3:AB$318)*10) -> 3.310126582 | AD31: 3 | AE31: 579 | AF31: 35.8% | AG31: 311 | AH31: 10.84177215 | AI31: 10 | AJ31: 282 | AK31: 100.0% | AL31: 288 | AM31: 10.11392405 | AN31: 10 | AO31: 6,071 | AP31: 2.4% | AQ31: 91 | AR31: 3.879746835 | AS31: 3 | AT31: 965 | AU31: 12.4% | AV31: 271 | AW31: 9.575949367 | AX31: 9 | AY31: 0 | AZ31: 0.0% | BA31: 1 | BB31: 1.03164557 | BC31: 1 | BD31: 0 | BE31: 0.0% | BF31: 1 | BG31: 1.03164557 | BH31: 1 | BI31: 448 | BJ31: 3.2% | BK31: 35 | BL31: 2.107594937 | BM31: 2 | BN31: 356 | BO31: 3.8% | BP31: 183 | BQ31: 6.791139241 | BR31: 6 | BT31: 43 | BU31: -2
A32: ='[1]Rapport 5'!A32 -> 47 | B32: ='[1]Rapport 5'!B32 -> STRASBOURG CRONENBOURG | C32: ='[1]Rapport 5'!C32 -> 4047 | D32: ='[1]Rapport 5'!D32 -> STRASBOURG CRONENBOURG | E32: ='[1]Rapport 5'!E32 -> 5006 | F32: ='[1]Rapport 5'!F32 -> STRASBOURG | G32: ='[1]Rapport 5'!G32 -> 262 | H32: ='[1]Rapport 5'!H32 -> BAS RHIN | I32: ='[1]Rapport 5'!I32 -> 7199.67 | J32: ='[1]Rapport 5'!J32 -> 252.87 | K32: ='[1]Rapport 5'!K32 -> 0 | L32: ='[1]Rapport 5'!L32 -> 514.44 | M32: ='[1]Rapport 5'!M32 -> 275148.18 | N32: ='[1]Rapport 5'!N32 -> 9969.86 | O32: ='[1]Rapport 5'!O32 -> 3731 | P32: ='[1]Rapport 5'!P32 -> 959 | Q32: ='[1]Rapport 5'!Q32 -> 0 | R32: ='[1]Rapport 5'!R32 -> 0 | S32: ='[1]Rapport 5'!S32 -> 1047.07 | T32: ='[1]Rapport 5'!T32 -> 0 | U32: ='[1]Rapport 5'!U32 -> 20523.77 | V32: ='[1]Rapport 5'!V32 -> 1759.43 | W32: ='[1]Rapport 5'!W32 -> 6475.12 | X32: ='[1]Rapport 5'!X32 -> 603.62 | Y32: 314,125 | Z32: 14,059 | AA32: 4.5% | AB32: 237 | AC32: =1+(AB32/COUNT($AB$3:AB$318)*10) -> 8.5 | AD32: 8 | AE32: 253 | AF32: 3.5% | AG32: 132 | AH32: 5.17721519 | AI32: 5 | AJ32: 514 | AK32: 100.0% | AL32: 288 | AM32: 10.11392405 | AN32: 10 | AO32: 9,970 | AP32: 3.6% | AQ32: 233 | AR32: 8.373417722 | AS32: 8 | AT32: 959 | AU32: 25.7% | AV32: 309 | AW32: 10.77848101 | AX32: 10 | AY32: 0 | AZ32: 0.0% | BA32: 1 | BB32: 1.03164557 | BC32: 1 | BD32: 0 | BE32: 0.0% | BF32: 1 | BG32: 1.03164557 | BH32: 1 | BI32: 1,759 | BJ32: 8.6% | BK32: 132 | BL32: 5.17721519 | BM32: 5 | BN32: 604 | BO32: 9.3% | BP32: 275 | BQ32: 9.702531646 | BR32: 9 | BT32: 45 | BU32: -2
A33: ='[1]Rapport 5'!A33 -> 48 | B33: ='[1]Rapport 5'!B33 -> STRASBOURG KOENIGSHOFFEN | C33: ='[1]Rapport 5'!C33 -> 4048 | D33: ='[1]Rapport 5'!D33 -> STRASBOURG KOENIGSHOFFEN | E33: ='[1]Rapport 5'!E33 -> 5006 | F33: ='[1]Rapport 5'!F33 -> STRASBOURG | G33: ='[1]Rapport 5'!G33 -> 262 | H33: ='[1]Rapport 5'!H33 -> BAS RHIN | I33: ='[1]Rapport 5'!I33 -> 3740.13 | J33: ='[1]Rapport 5'!J33 -> 34.48 | K33: ='[1]Rapport 5'!K33 -> 0 | L33: ='[1]Rapport 5'!L33 -> 0 | M33: ='[1]Rapport 5'!M33 -> 133933.19 | N33: ='[1]Rapport 5'!N33 -> 2579.1 | O33: ='[1]Rapport 5'!O33 -> 3659 | P33: ='[1]Rapport 5'!P33 -> 250 | Q33: ='[1]Rapport 5'!Q33 -> 0 | R33: ='[1]Rapport 5'!R33 -> 0 | S33: ='[1]Rapport 5'!S33 -> 244 | T33: ='[1]Rapport 5'!T33 -> 0 | U33: ='[1]Rapport 5'!U33 -> 10320.51 | V33: ='[1]Rapport 5'!V33 -> 2389.57 | W33: ='[1]Rapport 5'!W33 -> 3559.68 | X33: ='[1]Rapport 5'!X33 -> 37.3 | Y33: 155,457 | Z33: 5,290 | AA33: 3.4% | AB33: 119 | AC33: =1+(AB33/COUNT($AB$3:AB$318)*10) -> 4.765822785 | AD33: 4 | AE33: 34 | AF33: 0.9% | AG33: 20 | AH33: 1.632911392 | AI33: 1 | AJ33: 0 | AK33: 0.0% | AL33: 1 | AM33: 1.03164557 | AN33: 1 | AO33: 2,579 | AP33: 1.9% | AQ33: 53 | AR33: 2.67721519 | AS33: 2 | AT33: 250 | AU33: 6.8% | AV33: 220 | AW33: 7.962025316 | AX33: 7 | AY33: 0 | AZ33: 0.0% | BA33: 1 | BB33: 1.03164557 | BC33: 1 | BD33: 0 | BE33: 0.0% | BF33: 1 | BG33: 1.03164557 | BH33: 1 | BI33: 2,390 | BJ33: 23.2% | BK33: 281 | BL33: 9.892405063 | BM33: 9 | BN33: 37 | BO33: 1.0% | BP33: 58 | BQ33: 2.835443038 | BR33: 2 | BT33: 47 | BU33: -1
A34: ='[1]Rapport 5'!A34 -> 54 | B34: ='[1]Rapport 5'!B34 -> STRASBOURG MONTAGNE VERTE | C34: ='[1]Rapport 5'!C34 -> 4054 | D34: ='[1]Rapport 5'!D34 -> STRASBOURG MONTAGNE VERTE | E34: ='[1]Rapport 5'!E34 -> 5006 | F34: ='[1]Rapport 5'!F34 -> STRASBOURG | G34: ='[1]Rapport 5'!G34 -> 262 | H34: ='[1]Rapport 5'!H34 -> BAS RHIN | I34: ='[1]Rapport 5'!I34 -> 5327.4 | J34: ='[1]Rapport 5'!J34 -> 261.98 | K34: ='[1]Rapport 5'!K34 -> 0 | L34: ='[1]Rapport 5'!L34 -> 0 | M34: ='[1]Rapport 5'!M34 -> 159625.65 | N34: ='[1]Rapport 5'!N34 -> 3179.06 | O34: ='[1]Rapport 5'!O34 -> 5255.5 | P34: ='[1]Rapport 5'!P34 -> 359 | Q34: ='[1]Rapport 5'!Q34 -> 0 | R34: ='[1]Rapport 5'!R34 -> 0 | S34: ='[1]Rapport 5'!S34 -> 750 | T34: ='[1]Rapport 5'!T34 -> 0 | U34: ='[1]Rapport 5'!U34 -> 11703.69 | V34: ='[1]Rapport 5'!V34 -> 944.02 | W34: ='[1]Rapport 5'!W34 -> 5463.77 | X34: ='[1]Rapport 5'!X34 -> 10.85 | Y34: 188,126 | Z34: 4,755 | AA34: 2.5% | AB34: 44 | AC34: =1+(AB34/COUNT($AB$3:AB$318)*10) -> 2.392405063 | AD34: 2 | AE34: =+J34 -> 262 | AF34: 4.9% | AG34: 188 | AH34: 6.949367089 | AI34: 6 | AJ34: 0 | AK34: 0.0% | AL34: 1 | AM34: 1.03164557 | AN34: 1 | AO34: 3,179 | AP34: 2.0% | AQ34: 58 | AR34: 2.835443038 | AS34: 2 | AT34: 359 | AU34: 6.8% | AV34: 219 | AW34: 7.930379747 | AX34: 7 | AY34: 0 | AZ34: 0.0% | BA34: 1 | BB34: 1.03164557 | BC34: 1 | BD34: 0 | BE34: 0.0% | BF34: 1 | BG34: 1.03164557 | BH34: 1 | BI34: 944 | BJ34: 8.1% | BK34: 122 | BL34: 4.860759494 | BM34: 4 | BN34: 11 | BO34: 0.2% | BP34: 21 | BQ34: 1.664556962 | BR34: 1 | BT34: 48 | BU34: -6
A35: ='[1]Rapport 5'!A35 -> 57 | B35: ='[1]Rapport 5'!B35 -> BISCHWILLER | C35: ='[1]Rapport 5'!C35 -> 4057 | D35: ='[1]Rapport 5'!D35 -> BISCHWILLER | E35: ='[1]Rapport 5'!E35 -> 5060 | F35: ='[1]Rapport 5'!F35 -> HAGUENAU | G35: ='[1]Rapport 5'!G35 -> 262 | H35: ='[1]Rapport 5'!H35 -> BAS RHIN | I35: ='[1]Rapport 5'!I35 -> 2638.28 | J35: ='[1]Rapport 5'!J35 -> 557.37 | K35: ='[1]Rapport 5'!K35 -> 0 | L35: ='[1]Rapport 5'!L35 -> 65.86 | M35: ='[1]Rapport 5'!M35 -> 144856.38 | N35: ='[1]Rapport 5'!N35 -> 2478.48 | O35: ='[1]Rapport 5'!O35 -> 6790.5 | P35: ='[1]Rapport 5'!P35 -> 1130 | Q35: ='[1]Rapport 5'!Q35 -> 0 | R35: ='[1]Rapport 5'!R35 -> 0 | S35: ='[1]Rapport 5'!S35 -> 153 | T35: ='[1]Rapport 5'!T35 -> 0 | U35: ='[1]Rapport 5'!U35 -> 12459.17 | V35: ='[1]Rapport 5'!V35 -> 1362.47 | W35: ='[1]Rapport 5'!W35 -> 4928.69 | X35: ='[1]Rapport 5'!X35 -> 77.5 | Y35: 171,826 | Z35: 5,672 | AA35: 3.3% | AB35: 108 | AC35: =1+(AB35/COUNT($AB$3:AB$318)*10) -> 4.417721519 | AD35: 4 | AE35: 557 | AF35: 21.1% | AG35: 304 | AH35: 10.62025316 | AI35: 10 | AJ35: 66 | AK35: 100.0% | AL35: 288 | AM35: 10.11392405 | AN35: 10 | AO35: 2,478 | AP35: 1.7% | AQ35: 40 | AR35: 2.265822785 | AS35: 2 | AT35: 1,130 | AU35: 16.6% | AV35: 289 | AW35: 10.14556962 | AX35: 10 | AY35: 0 | AZ35: 0.0% | BA35: 1 | BB35: 1.03164557 | BC35: 1 | BD35: 0 | BE35: 0.0% | BF35: 1 | BG35: 1.03164557 | BH35: 1 | BI35: 1,362 | BJ35: 10.9% | BK35: 178 | BL35: 6.632911392 | BM35: 6 | BN35: 78 | BO35: 1.6% | BP35: 85 | BQ35: 3.689873418 | BR35: 3 | BT35: 50 | BU35: -7
A36: ='[1]Rapport 5'!A36 -> 58 | B36: ='[1]Rapport 5'!B36 -> DRUSENHEIM | C36: ='[1]Rapport 5'!C36 -> 4057 | D36: ='[1]Rapport 5'!D36 -> BISCHWILLER | E36: ='[1]Rapport 5'!E36 -> 5060 | F36: ='[1]Rapport 5'!F36 -> HAGUENAU | G36: ='[1]Rapport 5'!G36 -> 262 | H36: ='[1]Rapport 5'!H36 -> BAS RHIN | I36: ='[1]Rapport 5'!I36 -> 1540.86 | J36: ='[1]Rapport 5'!J36 -> 526.75 | K36: ='[1]Rapport 5'!K36 -> 0 | L36: ='[1]Rapport 5'!L36 -> 0 | M36: ='[1]Rapport 5'!M36 -> 72043.03 | N36: ='[1]Rapport 5'!N36 -> 1464.13 | O36: ='[1]Rapport 5'!O36 -> 5607.5 | P36: ='[1]Rapport 5'!P36 -> 100 | Q36: ='[1]Rapport 5'!Q36 -> 0 | R36: ='[1]Rapport 5'!R36 -> 0 | S36: ='[1]Rapport 5'!S36 -> 181 | T36: ='[1]Rapport 5'!T36 -> 26 | U36: ='[1]Rapport 5'!U36 -> 2836.69 | V36: ='[1]Rapport 5'!V36 -> 199 | W36: ='[1]Rapport 5'!W36 -> 2441.67 | X36: ='[1]Rapport 5'!X36 -> 363.64 | Y36: 84,651 | Z36: 2,680 | AA36: 3.2% | AB36: 92 | AC36: =1+(AB36/COUNT($AB$3:AB$318)*10) -> 3.911392405 | AD36: 3 | AE36: 527 | AF36: 34.2% | AG36: 309 | AH36: 10.77848101 | AI36: 10 | AJ36: 0 | AK36: 0.0% | AL36: 1 | AM36: 1.03164557 | AN36: 1 | AO36: 1,464 | AP36: 2.0% | AQ36: 63 | AR36: 2.993670886 | AS36: 2 | AT36: 100 | AU36: 1.8% | AV36: 105 | AW36: 4.32278481 | AX36: 4 | AY36: 0 | AZ36: 0.0% | BA36: 1 | BB36: 1.03164557 | BC36: 1 | BD36: 26 | BE36: 14.4% | BF36: 284 | BG36: 9.987341772 | BH36: 9 | BI36: 199 | BJ36: 7.0% | BK36: 105 | BL36: 4.32278481 | BM36: 4 | BN36: 364 | BO36: 14.9% | BP36: 303 | BQ36: 10.58860759 | BR36: 10 | BT36: 54 | BU36: -4
A37: ='[1]Rapport 5'!A37 -> 60 | B37: ='[1]Rapport 5'!B37 -> HAGUENAU HOUBLON | C37: ='[1]Rapport 5'!C37 -> 4060 | D37: ='[1]Rapport 5'!D37 -> HAGUENAU HOUBLON | E37: ='[1]Rapport 5'!E37 -> 5060 | F37: ='[1]Rapport 5'!F37 -> HAGUENAU | G37: ='[1]Rapport 5'!G37 -> 262 | H37: ='[1]Rapport 5'!H37 -> BAS RHIN | I37: ='[1]Rapport 5'!I37 -> 6499.47 | J37: ='[1]Rapport 5'!J37 -> 615.73 | K37: ='[1]Rapport 5'!K37 -> 0 | L37: ='[1]Rapport 5'!L37 -> 0 | M37: ='[1]Rapport 5'!M37 -> 351138.2 | N37: ='[1]Rapport 5'!N37 -> 8679.51 | O37: ='[1]Rapport 5'!O37 -> 16004 | P37: ='[1]Rapport 5'!P37 -> 1892.48 | Q37: ='[1]Rapport 5'!Q37 -> 0 | R37: ='[1]Rapport 5'!R37 -> 0 | S37: ='[1]Rapport 5'!S37 -> 1365.19 | T37: ='[1]Rapport 5'!T37 -> 0 | U37: ='[1]Rapport 5'!U37 -> 24104.87 | V37: ='[1]Rapport 5'!V37 -> 2775.85 | W37: ='[1]Rapport 5'!W37 -> 11116.26 | X37: ='[1]Rapport 5'!X37 -> 498.89 | Y37: 410,228 | Z37: 14,462 | AA37: 3.5% | AB37: 135 | AC37: =1+(AB37/COUNT($AB$3:AB$318)*10) -> 5.272151899 | AD37: 5 | AE37: 616 | AF37: 9.5% | AG37: 263 | AH37: 9.32278481 | AI37: 9 | AJ37: 0 | AK37: 0.0% | AL37: 1 | AM37: 1.03164557 | AN37: 1 | AO37: 8,680 | AP37: 2.5% | AQ37: 104 | AR37: 4.291139241 | AS37: 4 | AT37: 1,892 | AU37: 11.8% | AV37: 264 | AW37: 9.35443038 | AX37: 9 | AY37: 0 | AZ37: 0.0% | BA37: 1 | BB37: 1.03164557 | BC37: 1 | BD37: 0 | BE37: 0.0% | BF37: 1 | BG37: 1.03164557 | BH37: 1 | BI37: 2,776 | BJ37: 11.5% | BK37: 185 | BL37: 6.85443038 | BM37: 6 | BN37: 499 | BO37: 4.5% | BP37: 207 | BQ37: 7.550632911 | BR37: 7 | BT37: 57 | BU37: -3
A38: ='[1]Rapport 5'!A38 -> 66 | B38: ='[1]Rapport 5'!B38 -> NIEDERBRONN LES BAINS | C38: ='[1]Rapport 5'!C38 -> 4066 | D38: ='[1]Rapport 5'!D38 -> NIEDERBRONN LES BAINS | E38: ='[1]Rapport 5'!E38 -> 5060 | F38: ='[1]Rapport 5'!F38 -> HAGUENAU | G38: ='[1]Rapport 5'!G38 -> 262 | H38: ='[1]Rapport 5'!H38 -> BAS RHIN | I38: ='[1]Rapport 5'!I38 -> 1776.06 | J38: ='[1]Rapport 5'!J38 -> 48.89 | K38: ='[1]Rapport 5'!K38 -> 0 | L38: ='[1]Rapport 5'!L38 -> 0 | M38: ='[1]Rapport 5'!M38 -> 71328.09 | N38: ='[1]Rapport 5'!N38 -> 2003.61 | O38: ='[1]Rapport 5'!O38 -> 2648 | P38: ='[1]Rapport 5'!P38 -> 0 | Q38: ='[1]Rapport 5'!Q38 -> 0 | R38: ='[1]Rapport 5'!R38 -> 0 | S38: ='[1]Rapport 5'!S38 -> 217 | T38: ='[1]Rapport 5'!T38 -> 0 | U38: ='[1]Rapport 5'!U38 -> 5430.13 | V38: ='[1]Rapport 5'!V38 -> 1101.61 | W38: ='[1]Rapport 5'!W38 -> 4400.1 | X38: ='[1]Rapport 5'!X38 -> 535.27 | Y38: 85,799 | Z38: 3,689 | AA38: 4.3% | AB38: 224 | AC38: =1+(AB38/COUNT($AB$3:AB$318)*10) -> 8.088607595 | AD38: 8 | AE38: 49 | AF38: 2.8% | AG38: 89 | AH38: 3.816455696 | AI38: 3 | AJ38: 0 | AK38: 0.0% | AL38: 1 | AM38: 1.03164557 | AN38: 1 | AO38: 2,004 | AP38: 2.8% | AQ38: 141 | AR38: 5.462025316 | AS38: 5 | AT38: 0 | AU38: 0.0% | AV38: 1 | AW38: 1.03164557 | AX38: 1 | AY38: 0 | AZ38: 0.0% | BA38: 1 | BB38: 1.03164557 | BC38: 1 | BD38: 0 | BE38: 0.0% | BF38: 1 | BG38: 1.03164557 | BH38: 1 | BI38: 1,102 | BJ38: 20.3% | BK38: 266 | BL38: 9.417721519 | BM38: 9 | BN38: 535 | BO38: 12.2% | BP38: 289 | BQ38: 10.14556962 | BR38: 10 | BT38: 58 | BU38: -8
A39: ='[1]Rapport 5'!A39 -> 67 | B39: ='[1]Rapport 5'!B39 -> PFAFFENHOFFEN | C39: ='[1]Rapport 5'!C39 -> 4067 | D39: ='[1]Rapport 5'!D39 -> PFAFFENHOFFEN | E39: ='[1]Rapport 5'!E39 -> 5060 | F39: ='[1]Rapport 5'!F39 -> HAGUENAU | G39: ='[1]Rapport 5'!G39 -> 262 | H39: ='[1]Rapport 5'!H39 -> BAS RHIN | I39: ='[1]Rapport 5'!I39 -> 3035.14 | J39: ='[1]Rapport 5'!J39 -> 207.98 | K39: ='[1]Rapport 5'!K39 -> 0 | L39: ='[1]Rapport 5'!L39 -> 0 | M39: ='[1]Rapport 5'!M39 -> 123140.11 | N39: ='[1]Rapport 5'!N39 -> 3923.8 | O39: ='[1]Rapport 5'!O39 -> 4926 | P39: ='[1]Rapport 5'!P39 -> 238 | Q39: ='[1]Rapport 5'!Q39 -> 0 | R39: ='[1]Rapport 5'!R39 -> 0 | S39: ='[1]Rapport 5'!S39 -> 195 | T39: ='[1]Rapport 5'!T39 -> 13 | U39: ='[1]Rapport 5'!U39 -> 7967.17 | V39: ='[1]Rapport 5'!V39 -> 1645.99 | W39: ='[1]Rapport 5'!W39 -> 4402.08 | X39: ='[1]Rapport 5'!X39 -> 60 | Y39: 143,666 | Z39: 6,089 | AA39: 4.2% | AB39: 216 | AC39: =1+(AB39/COUNT($AB$3:AB$318)*10) -> 7.835443038 | AD39: 7 | AE39: 208 | AF39: 6.9% | AG39: 233 | AH39: 8.373417722 | AI39: 8 | AJ39: 0 | AK39: 0.0% | AL39: 1 | AM39: 1.03164557 | AN39: 1 | AO39: 3,924 | AP39: 3.2% | AQ39: 184 | AR39: 6.82278481 | AS39: 6 | AT39: 238 | AU39: 4.8% | AV39: 180 | AW39: 6.696202532 | AX39: 6 | AY39: 0 | AZ39: 0.0% | BA39: 1 | BB39: 1.03164557 | BC39: 1 | BD39: 13 | BE39: 6.7% | BF39: 262 | BG39: 9.291139241 | BH39: 9 | BI39: 1,646 | BJ39: 20.7% | BK39: 269 | BL39: 9.512658228 | BM39: 9 | BN39: 60 | BO39: 1.4% | BP39: 74 | BQ39: 3.341772152 | BR39: 3 | BT39: 59 | BU39: -8
A40: ='[1]Rapport 5'!A40 -> 68 | B40: ='[1]Rapport 5'!B40 -> REICHSHOFFEN | C40: ='[1]Rapport 5'!C40 -> 4066 | D40: ='[1]Rapport 5'!D40 -> NIEDERBRONN LES BAINS | E40: ='[1]Rapport 5'!E40 -> 5060 | F40: ='[1]Rapport 5'!F40 -> HAGUENAU | G40: ='[1]Rapport 5'!G40 -> 262 | H40: ='[1]Rapport 5'!H40 -> BAS RHIN | I40: ='[1]Rapport 5'!I40 -> 2365.66 | J40: ='[1]Rapport 5'!J40 -> 59.21 | K40: ='[1]Rapport 5'!K40 -> 0 | L40: ='[1]Rapport 5'!L40 -> 50 | M40: ='[1]Rapport 5'!M40 -> 72102.4 | N40: ='[1]Rapport 5'!N40 -> 1627.65 | O40: ='[1]Rapport 5'!O40 -> 3162.5 | P40: ='[1]Rapport 5'!P40 -> 42.5 | Q40: ='[1]Rapport 5'!Q40 -> 0 | R40: ='[1]Rapport 5'!R40 -> 0 | S40: ='[1]Rapport 5'!S40 -> 509 | T40: ='[1]Rapport 5'!T40 -> 0 | U40: ='[1]Rapport 5'!U40 -> 4985.36 | V40: ='[1]Rapport 5'!V40 -> 1248.38 | W40: ='[1]Rapport 5'!W40 -> 2777.65 | X40: ='[1]Rapport 5'!X40 -> 51.3 | Y40: 85,903 | Z40: 3,079 | AA40: 3.6% | AB40: 139 | AC40: =1+(AB40/COUNT($AB$3:AB$318)*10) -> 5.398734177 | AD40: 5 | AE40: 59 | AF40: 2.5% | AG40: 75 | AH40: 3.373417722 | AI40: 3 | AJ40: 50 | AK40: 100.0% | AL40: 288 | AM40: 10.11392405 | AN40: 10 | AO40: 1,628 | AP40: 2.3% | AQ40: 81 | AR40: 3.563291139 | AS40: 3 | AT40: 43 | AU40: 1.3% | AV40: 89 | AW40: 3.816455696 | AX40: 3 | AY40: 0 | AZ40: 0.0% | BA40: 1 | BB40: 1.03164557 | BC40: 1 | BD40: 0 | BE40: 0.0% | BF40: 1 | BG40: 1.03164557 | BH40: 1 | BI40: 1,248 | BJ40: 25.0% | BK40: 292 | BL40: 10.24050633 | BM40: 10 | BN40: 51 | BO40: 1.8% | BP40: 99 | BQ40: 4.132911392 | BR40: 4 | BT40: 60 | BU40: -8
A41: ='[1]Rapport 5'!A41 -> 70 | B41: ='[1]Rapport 5'!B41 -> GUNDERSHOFFEN | C41: ='[1]Rapport 5'!C41 -> 4066 | D41: ='[1]Rapport 5'!D41 -> NIEDERBRONN LES BAINS | E41: ='[1]Rapport 5'!E41 -> 5060 | F41: ='[1]Rapport 5'!F41 -> HAGUENAU | G41: ='[1]Rapport 5'!G41 -> 262 | H41: ='[1]Rapport 5'!H41 -> BAS RHIN | I41: ='[1]Rapport 5'!I41 -> 1591.49 | J41: ='[1]Rapport 5'!J41 -> 243.71 | K41: ='[1]Rapport 5'!K41 -> 0 | L41: ='[1]Rapport 5'!L41 -> 52.2 | M41: ='[1]Rapport 5'!M41 -> 62208.19 | N41: ='[1]Rapport 5'!N41 -> 2100.25 | O41: ='[1]Rapport 5'!O41 -> 3642 | P41: ='[1]Rapport 5'!P41 -> 0 | Q41: ='[1]Rapport 5'!Q41 -> 245.83 | R41: ='[1]Rapport 5'!R41 -> 0 | S41: ='[1]Rapport 5'!S41 -> 13 | T41: ='[1]Rapport 5'!T41 -> 0 | U41: ='[1]Rapport 5'!U41 -> 3333.9 | V41: ='[1]Rapport 5'!V41 -> 276.88 | W41: ='[1]Rapport 5'!W41 -> 2301.87 | X41: ='[1]Rapport 5'!X41 -> 180.36 | Y41: 73,336 | Z41: 2,853 | AA41: 3.9% | AB41: 182 | AC41: =1+(AB41/COUNT($AB$3:AB$318)*10) -> 6.759493671 | AD41: 6 | AE41: 244 | AF41: 15.3% | AG41: 298 | AH41: 10.43037975 | AI41: 10 | AJ41: 52 | AK41: 100.0% | AL41: 288 | AM41: 10.11392405 | AN41: 10 | AO41: 2,100 | AP41: 3.4% | AQ41: 201 | AR41: 7.360759494 | AS41: 7 | AT41: 0 | AU41: 0.0% | AV41: 1 | AW41: 1.03164557 | AX41: 1 | AY41: 0 | AZ41: 0.0% | BA41: 1 | BB41: 1.03164557 | BC41: 1 | BD41: 0 | BE41: 0.0% | BF41: 1 | BG41: 1.03164557 | BH41: 1 | BI41: 277 | BJ41: 8.3% | BK41: 128 | BL41: 5.050632911 | BM41: 5 | BN41: 180 | BO41: 7.8% | BP41: 265 | BQ41: 9.386075949 | BR41: 9 | BT41: 64 | BU41: -6
A42: ='[1]Rapport 5'!A42 -> 71 | B42: ='[1]Rapport 5'!B42 -> WISSEMBOURG | C42: ='[1]Rapport 5'!C42 -> 4071 | D42: ='[1]Rapport 5'!D42 -> WISSEMBOURG | E42: ='[1]Rapport 5'!E42 -> 5060 | F42: ='[1]Rapport 5'!F42 -> HAGUENAU | G42: ='[1]Rapport 5'!G42 -> 262 | H42: ='[1]Rapport 5'!H42 -> BAS RHIN | I42: ='[1]Rapport 5'!I42 -> 3436.23 | J42: ='[1]Rapport 5'!J42 -> 164.97 | K42: ='[1]Rapport 5'!K42 -> 0 | L42: ='[1]Rapport 5'!L42 -> 40 | M42: ='[1]Rapport 5'!M42 -> 155269.37 | N42: ='[1]Rapport 5'!N42 -> 3833.64 | O42: ='[1]Rapport 5'!O42 -> 4537.75 | P42: ='[1]Rapport 5'!P42 -> 496.66 | Q42: ='[1]Rapport 5'!Q42 -> 0 | R42: ='[1]Rapport 5'!R42 -> 0 | S42: ='[1]Rapport 5'!S42 -> 404.22 | T42: ='[1]Rapport 5'!T42 -> 0 | U42: ='[1]Rapport 5'!U42 -> 11540.8 | V42: ='[1]Rapport 5'!V42 -> 2552.33 | W42: ='[1]Rapport 5'!W42 -> 8177.43 | X42: ='[1]Rapport 5'!X42 -> 278.7 | Y42: 183,366 | Z42: 7,366 | AA42: 4.0% | AB42: 196 | AC42: =1+(AB42/COUNT($AB$3:AB$318)*10) -> 7.202531646 | AD42: 7 | AE42: 165 | AF42: 4.8% | AG42: 183 | AH42: 6.791139241 | AI42: 6 | AJ42: 40 | AK42: 100.0% | AL42: 288 | AM42: 10.11392405 | AN42: 10 | AO42: 3,834 | AP42: 2.5% | AQ42: 102 | AR42: 4.227848101 | AS42: 4 | AT42: 497 | AU42: 10.9% | AV42: 256 | AW42: 9.101265823 | AX42: 9 | AY42: 0 | AZ42: 0.0% | BA42: 1 | BB42: 1.03164557 | BC42: 1 | BD42: 0 | BE42: 0.0% | BF42: 1 | BG42: 1.03164557 | BH42: 1 | BI42: 2,552 | BJ42: 22.1% | BK42: 277 | BL42: 9.765822785 | BM42: 9 | BN42: 279 | BO42: 3.4% | BP42: 157 | BQ42: 5.96835443 | BR42: 5 | BT42: 65 | BU42: -6
A43: ='[1]Rapport 5'!A43 -> 73 | B43: ='[1]Rapport 5'!B43 -> SCHWEIGHOUSE SUR MODER | C43: ='[1]Rapport 5'!C43 -> 4060 | D43: ='[1]Rapport 5'!D43 -> HAGUENAU HOUBLON | E43: ='[1]Rapport 5'!E43 -> 5060 | F43: ='[1]Rapport 5'!F43 -> HAGUENAU | G43: ='[1]Rapport 5'!G43 -> 262 | H43: ='[1]Rapport 5'!H43 -> BAS RHIN | I43: ='[1]Rapport 5'!I43 -> 2478.79 | J43: ='[1]Rapport 5'!J43 -> 213.47 | K43: ='[1]Rapport 5'!K43 -> 0 | L43: ='[1]Rapport 5'!L43 -> 0 | M43: ='[1]Rapport 5'!M43 -> 77408.28 | N43: ='[1]Rapport 5'!N43 -> 1262.57 | O43: ='[1]Rapport 5'!O43 -> 2022.5 | P43: ='[1]Rapport 5'!P43 -> 242 | Q43: ='[1]Rapport 5'!Q43 -> 0 | R43: ='[1]Rapport 5'!R43 -> 0 | S43: ='[1]Rapport 5'!S43 -> 166 | T43: ='[1]Rapport 5'!T43 -> 0 | U43: ='[1]Rapport 5'!U43 -> 3950.99 | V43: ='[1]Rapport 5'!V43 -> 1210.74 | W43: ='[1]Rapport 5'!W43 -> 2700.33 | X43: ='[1]Rapport 5'!X43 -> 70 | Y43: 88,727 | Z43: 2,999 | AA43: 3.4% | AB43: 115 | AC43: =1+(AB43/COUNT($AB$3:AB$318)*10) -> 4.639240506 | AD43: 4 | AE43: 213 | AF43: 8.6% | AG43: 253 | AH43: 9.006329114 | AI43: 9 | AJ43: 0 | AK43: 0.0% | AL43: 1 | AM43: 1.03164557 | AN43: 1 | AO43: 1,263 | AP43: 1.6% | AQ43: 35 | AR43: 2.107594937 | AS43: 2 | AT43: 242 | AU43: 12.0% | AV43: 265 | AW43: 9.386075949 | AX43: 9 | AY43: 0 | AZ43: 0.0% | BA43: 1 | BB43: 1.03164557 | BC43: 1 | BD43: 0 | BE43: 0.0% | BF43: 1 | BG43: 1.03164557 | BH43: 1 | BI43: 1,211 | BJ43: 30.6% | BK43: 305 | BL43: 10.65189873 | BM43: 10 | BN43: 70 | BO43: 2.6% | BP43: 127 | BQ43: 5.018987342 | BR43: 5 | BT43: 66 | BU43: -7
A44: ='[1]Rapport 5'!A44 -> 74 | B44: ='[1]Rapport 5'!B44 -> SOUFFLENHEIM | C44: ='[1]Rapport 5'!C44 -> 4057 | D44: ='[1]Rapport 5'!D44 -> BISCHWILLER | E44: ='[1]Rapport 5'!E44 -> 5060 | F44: ='[1]Rapport 5'!F44 -> HAGUENAU | G44: ='[1]Rapport 5'!G44 -> 262 | H44: ='[1]Rapport 5'!H44 -> BAS RHIN | I44: ='[1]Rapport 5'!I44 -> 1193.75 | J44: ='[1]Rapport 5'!J44 -> 122.65 | K44: ='[1]Rapport 5'!K44 -> 0 | L44: ='[1]Rapport 5'!L44 -> 0 | M44: ='[1]Rapport 5'!M44 -> 59174.68 | N44: ='[1]Rapport 5'!N44 -> 1182.65 | O44: ='[1]Rapport 5'!O44 -> 1842 | P44: ='[1]Rapport 5'!P44 -> 150 | Q44: ='[1]Rapport 5'!Q44 -> 0 | R44: ='[1]Rapport 5'!R44 -> 0 | S44: ='[1]Rapport 5'!S44 -> 62 | T44: ='[1]Rapport 5'!T44 -> 0 | U44: ='[1]Rapport 5'!U44 -> 4063.05 | V44: ='[1]Rapport 5'!V44 -> 322.78 | W44: ='[1]Rapport 5'!W44 -> 2016.84 | X44: ='[1]Rapport 5'!X44 -> 65.3 | Y44: 68,352 | Z44: 1,843 | AA44: 2.7% | AB44: 58 | AC44: =1+(AB44/COUNT($AB$3:AB$318)*10) -> 2.835443038 | AD44: 2 | AE44: 123 | AF44: 10.3% | AG44: 271 | AH44: 9.575949367 | AI44: 9 | AJ44: 0 | AK44: 0.0% | AL44: 1 | AM44: 1.03164557 | AN44: 1 | AO44: 1,183 | AP44: 2.0% | AQ44: 59 | AR44: 2.867088608 | AS44: 2 | AT44: 150 | AU44: 8.1% | AV44: 230 | AW44: 8.278481013 | AX44: 8 | AY44: 0 | AZ44: 0.0% | BA44: 1 | BB44: 1.03164557 | BC44: 1 | BD44: 0 | BE44: 0.0% | BF44: 1 | BG44: 1.03164557 | BH44: 1 | BI44: 323 | BJ44: 7.9% | BK44: 117 | BL44: 4.702531646 | BM44: 4 | BN44: 65 | BO44: 3.2% | BP44: 153 | BQ44: 5.841772152 | BR44: 5 | BT44: 67 | BU44: -7
A45: ='[1]Rapport 5'!A45 -> 76 | B45: ='[1]Rapport 5'!B45 -> BETSCHDORF | C45: ='[1]Rapport 5'!C45 -> 4071 | D45: ='[1]Rapport 5'!D45 -> WISSEMBOURG | E45: ='[1]Rapport 5'!E45 -> 5060 | F45: ='[1]Rapport 5'!F45 -> HAGUENAU | G45: ='[1]Rapport 5'!G45 -> 262 | H45: ='[1]Rapport 5'!H45 -> BAS RHIN | I45: ='[1]Rapport 5'!I45 -> 1182.12 | J45: ='[1]Rapport 5'!J45 -> 147.34 | K45: ='[1]Rapport 5'!K45 -> 0 | L45: ='[1]Rapport 5'!L45 -> 0 | M45: ='[1]Rapport 5'!M45 -> 74984.12 | N45: ='[1]Rapport 5'!N45 -> 1107.57 | O45: ='[1]Rapport 5'!O45 -> 3080.5 | P45: ='[1]Rapport 5'!P45 -> 0 | Q45: ='[1]Rapport 5'!Q45 -> 0 | R45: ='[1]Rapport 5'!R45 -> 0 | S45: ='[1]Rapport 5'!S45 -> 13 | T45: ='[1]Rapport 5'!T45 -> 0 | U45: ='[1]Rapport 5'!U45 -> 3460.04 | V45: ='[1]Rapport 5'!V45 -> 400 | W45: ='[1]Rapport 5'!W45 -> 3280.87 | X45: ='[1]Rapport 5'!X45 -> 116.08 | Y45: 86,001 | Z45: 1,771 | AA45: 2.1% | AB45: 24 | AC45: =1+(AB45/COUNT($AB$3:AB$318)*10) -> 1.759493671 | AD45: 1 | AE45: 147 | AF45: 12.5% | AG45: 289 | AH45: 10.14556962 | AI45: 10 | AJ45: 0 | AK45: 0.0% | AL45: 1 | AM45: 1.03164557 | AN45: 1 | AO45: 1,108 | AP45: 1.5% | AQ45: 24 | AR45: 1.759493671 | AS45: 1 | AT45: 0 | AU45: 0.0% | AV45: 1 | AW45: 1.03164557 | AX45: 1 | AY45: 0 | AZ45: 0.0% | BA45: 1 | BB45: 1.03164557 | BC45: 1 | BD45: 0 | BE45: 0.0% | BF45: 1 | BG45: 1.03164557 | BH45: 1 | BI45: 400 | BJ45: 11.6% | BK45: 186 | BL45: 6.886075949 | BM45: 6 | BN45: 116 | BO45: 3.5% | BP45: 168 | BQ45: 6.316455696 | BR45: 6 | BT45: 68 | BU45: -8
A46: ='[1]Rapport 5'!A46 -> 77 | B46: ='[1]Rapport 5'!B46 -> SELTZ | C46: ='[1]Rapport 5'!C46 -> 4071 | D46: ='[1]Rapport 5'!D46 -> WISSEMBOURG | E46: ='[1]Rapport 5'!E46 -> 5060 | F46: ='[1]Rapport 5'!F46 -> HAGUENAU | G46: ='[1]Rapport 5'!G46 -> 262 | H46: ='[1]Rapport 5'!H46 -> BAS RHIN | I46: ='[1]Rapport 5'!I46 -> 3204.16 | J46: ='[1]Rapport 5'!J46 -> 123.05 | K46: ='[1]Rapport 5'!K46 -> 0 | L46: ='[1]Rapport 5'!L46 -> 0 | M46: ='[1]Rapport 5'!M46 -> 103099.13 | N46: ='[1]Rapport 5'!N46 -> 3778.43 | O46: ='[1]Rapport 5'!O46 -> 4254 | P46: ='[1]Rapport 5'!P46 -> 245 | Q46: ='[1]Rapport 5'!Q46 -> 0 | R46: ='[1]Rapport 5'!R46 -> 0 | S46: ='[1]Rapport 5'!S46 -> 322 | T46: ='[1]Rapport 5'!T46 -> 0 | U46: ='[1]Rapport 5'!U46 -> 3873.84 | V46: ='[1]Rapport 5'!V46 -> 205.88 | W46: ='[1]Rapport 5'!W46 -> 4554.49 | X46: ='[1]Rapport 5'!X46 -> 113.81 | Y46: 119,308 | Z46: 4,466 | AA46: 3.7% | AB46: 156 | AC46: =1+(AB46/COUNT($AB$3:AB$318)*10) -> 5.936708861 | AD46: 5 | AE46: 123 | AF46: 3.8% | AG46: 147 | AH46: 5.651898734 | AI46: 5 | AJ46: 0 | AK46: 0.0% | AL46: 1 | AM46: 1.03164557 | AN46: 1 | AO46: 3,778 | AP46: 3.7% | AQ46: 234 | AR46: 8.405063291 | AS46: 8 | AT46: 245 | AU46: 5.8% | AV46: 200 | AW46: 7.329113924 | AX46: 7 | AY46: 0 | AZ46: 0.0% | BA46: 1 | BB46: 1.03164557 | BC46: 1 | BD46: 0 | BE46: 0.0% | BF46: 1 | BG46: 1.03164557 | BH46: 1 | BI46: 206 | BJ46: 5.3% | BK46: 71 | BL46: 3.246835443 | BM46: 3 | BN46: 114 | BO46: 2.5% | BP46: 119 | BQ46: 4.765822785 | BR46: 4 | BT46: 70 | BU46: -7
A47: ='[1]Rapport 5'!A47 -> 79 | B47: ='[1]Rapport 5'!B47 -> SOULTZ SOUS FORETS | C47: ='[1]Rapport 5'!C47 -> 4079 | D47: ='[1]Rapport 5'!D47 -> SOULTZ SOUS FORETS | E47: ='[1]Rapport 5'!E47 -> 5060 | F47: ='[1]Rapport 5'!F47 -> HAGUENAU | G47: ='[1]Rapport 5'!G47 -> 262 | H47: ='[1]Rapport 5'!H47 -> BAS RHIN | I47: ='[1]Rapport 5'!I47 -> 1439.34 | J47: ='[1]Rapport 5'!J47 -> 138.07 | K47: ='[1]Rapport 5'!K47 -> 0 | L47: ='[1]Rapport 5'!L47 -> 0 | M47: ='[1]Rapport 5'!M47 -> 74216.5 | N47: ='[1]Rapport 5'!N47 -> 2545.21 | O47: ='[1]Rapport 5'!O47 -> 2682 | P47: ='[1]Rapport 5'!P47 -> 0 | Q47: ='[1]Rapport 5'!Q47 -> 0 | R47: ='[1]Rapport 5'!R47 -> 0 | S47: ='[1]Rapport 5'!S47 -> 57 | T47: ='[1]Rapport 5'!T47 -> 0 | U47: ='[1]Rapport 5'!U47 -> 2336.63 | V47: ='[1]Rapport 5'!V47 -> 503 | W47: ='[1]Rapport 5'!W47 -> 2201.29 | X47: ='[1]Rapport 5'!X47 -> 147.36 | Y47: 82,933 | Z47: 3,334 | AA47: 4.0% | AB47: 197 | AC47: =1+(AB47/COUNT($AB$3:AB$318)*10) -> 7.234177215 | AD47: 7 | AE47: 138 | AF47: 9.6% | AG47: 264 | AH47: 9.35443038 | AI47: 9 | AJ47: 0 | AK47: 0.0% | AL47: 1 | AM47: 1.03164557 | AN47: 1 | AO47: 2,545 | AP47: 3.4% | AQ47: 209 | AR47: 7.613924051 | AS47: 7 | AT47: 0 | AU47: 0.0% | AV47: 1 | AW47: 1.03164557 | AX47: 1 | AY47: 0 | AZ47: 0.0% | BA47: 1 | BB47: 1.03164557 | BC47: 1 | BD47: 0 | BE47: 0.0% | BF47: 1 | BG47: 1.03164557 | BH47: 1 | BI47: 503 | BJ47: 21.5% | BK47: 274 | BL47: 9.670886076 | BM47: 9 | BN47: 147 | BO47: 6.7% | BP47: 248 | BQ47: 8.848101266 | BR47: 8 | BT47: 71 | BU47: -8
A48: ='[1]Rapport 5'!A48 -> 80 | B48: ='[1]Rapport 5'!B48 -> WOERTH | C48: ='[1]Rapport 5'!C48 -> 4080 | D48: ='[1]Rapport 5'!D48 -> WOERTH | E48: ='[1]Rapport 5'!E48 -> 5060 | F48: ='[1]Rapport 5'!F48 -> HAGUENAU | G48: ='[1]Rapport 5'!G48 -> 262 | H48: ='[1]Rapport 5'!H48 -> BAS RHIN | I48: ='[1]Rapport 5'!I48 -> 2773.32 | J48: ='[1]Rapport 5'!J48 -> 146.92 | K48: ='[1]Rapport 5'!K48 -> 0 | L48: ='[1]Rapport 5'!L48 -> 0 | M48: ='[1]Rapport 5'!M48 -> 78598.94 | N48: ='[1]Rapport 5'!N48 -> 3037.23 | O48: ='[1]Rapport 5'!O48 -> 4430.5 | P48: ='[1]Rapport 5'!P48 -> 401.57 | Q48: ='[1]Rapport 5'!Q48 -> 0 | R48: ='[1]Rapport 5'!R48 -> 0 | S48: ='[1]Rapport 5'!S48 -> 0 | T48: ='[1]Rapport 5'!T48 -> 0 | U48: ='[1]Rapport 5'!U48 -> 4994.35 | V48: ='[1]Rapport 5'!V48 -> 0 | W48: ='[1]Rapport 5'!W48 -> 2504.71 | X48: ='[1]Rapport 5'!X48 -> 112 | Y48: 93,302 | Z48: 3,698 | AA48: 4.0% | AB48: 187 | AC48: =1+(AB48/COUNT($AB$3:AB$318)*10) -> 6.917721519 | AD48: 6 | AE48: 147 | AF48: 5.3% | AG48: 199 | AH48: 7.297468354 | AI48: 7 | AJ48: 0 | AK48: 0.0% | AL48: 1 | AM48: 1.03164557 | AN48: 1 | AO48: 3,037 | AP48: 3.9% | AQ48: 249 | AR48: 8.879746835 | AS48: 8 | AT48: 402 | AU48: 9.1% | AV48: 239 | AW48: 8.563291139 | AX48: 8 | AY48: 0 | AZ48: 0.0% | BA48: 1 | BB48: 1.03164557 | BC48: 1 | BD48: 0 | BE48: 0.0% | BF48: 1 | BG48: 1.03164557 | BH48: 1 | BI48: 0 | BJ48: 0.0% | BK48: 1 | BL48: 1.03164557 | BM48: 1 | BN48: 112 | BO48: 4.5% | BP48: 205 | BQ48: 7.487341772 | BR48: 7 | BT48: 73 | BU48: -7
A49: ='[1]Rapport 5'!A49 -> 82 | B49: ='[1]Rapport 5'!B49 -> BOUXWILLER | C49: ='[1]Rapport 5'!C49 -> 4082 | D49: ='[1]Rapport 5'!D49 -> BOUXWILLER | E49: ='[1]Rapport 5'!E49 -> 5060 | F49: ='[1]Rapport 5'!F49 -> HAGUENAU | G49: ='[1]Rapport 5'!G49 -> 262 | H49: ='[1]Rapport 5'!H49 -> BAS RHIN | I49: ='[1]Rapport 5'!I49 -> 6234.01 | J49: ='[1]Rapport 5'!J49 -> 181.45 | K49: ='[1]Rapport 5'!K49 -> 0 | L49: ='[1]Rapport 5'!L49 -> 0 | M49: ='[1]Rapport 5'!M49 -> 124823.11 | N49: ='[1]Rapport 5'!N49 -> 2844.77 | O49: ='[1]Rapport 5'!O49 -> 6473.5 | P49: ='[1]Rapport 5'!P49 -> 1242 | Q49: ='[1]Rapport 5'!Q49 -> 0 | R49: ='[1]Rapport 5'!R49 -> 0 | S49: ='[1]Rapport 5'!S49 -> 111 | T49: ='[1]Rapport 5'!T49 -> 44 | U49: ='[1]Rapport 5'!U49 -> 5062.15 | V49: ='[1]Rapport 5'!V49 -> 1768.35 | W49: ='[1]Rapport 5'!W49 -> 2949.45 | X49: ='[1]Rapport 5'!X49 -> 159.95 | Y49: 145,653 | Z49: 6,241 | AA49: 4.3% | AB49: 222 | AC49: =1+(AB49/COUNT($AB$3:AB$318)*10) -> 8.025316456 | AD49: 8 | AE49: 181 | AF49: 2.9% | AG49: 96 | AH49: 4.037974684 | AI49: 4 | AJ49: 0 | AK49: 0.0% | AL49: 1 | AM49: 1.03164557 | AN49: 1 | AO49: 2,845 | AP49: 2.3% | AQ49: 82 | AR49: 3.594936709 | AS49: 3 | AT49: 1,242 | AU49: 19.2% | AV49: 294 | AW49: 10.30379747 | AX49: 10 | AY49: 0 | AZ49: 0.0% | BA49: 1 | BB49: 1.03164557 | BC49: 1 | BD49: 44 | BE49: 39.6% | BF49: 307 | BG49: 10.71518987 | BH49: 10 | BI49: 1,768 | BJ49: 34.9% | BK49: 311 | BL49: 10.84177215 | BM49: 10 | BN49: 160 | BO49: 5.4% | BP49: 229 | BQ49: 8.246835443 | BR49: 8 | BT49: 74 | BU49: -8
A50: ='[1]Rapport 5'!A50 -> 85 | B50: ='[1]Rapport 5'!B50 -> INGWILLER | C50: ='[1]Rapport 5'!C50 -> 4085 | D50: ='[1]Rapport 5'!D50 -> INGWILLER | E50: ='[1]Rapport 5'!E50 -> 5060 | F50: ='[1]Rapport 5'!F50 -> HAGUENAU | G50: ='[1]Rapport 5'!G50 -> 262 | H50: ='[1]Rapport 5'!H50 -> BAS RHIN | I50: ='[1]Rapport 5'!I50 -> 5737.02 | J50: ='[1]Rapport 5'!J50 -> 611.18 | K50: ='[1]Rapport 5'!K50 -> 0 | L50: ='[1]Rapport 5'!L50 -> 0 | M50: ='[1]Rapport 5'!M50 -> 164621.83 | N50: ='[1]Rapport 5'!N50 -> 5074.51 | O50: ='[1]Rapport 5'!O50 -> 10666 | P50: ='[1]Rapport 5'!P50 -> 407 | Q50: ='[1]Rapport 5'!Q50 -> 0 | R50: ='[1]Rapport 5'!R50 -> 0 | S50: ='[1]Rapport 5'!S50 -> 773 | T50: ='[1]Rapport 5'!T50 -> 56.5 | U50: ='[1]Rapport 5'!U50 -> 10358.45 | V50: ='[1]Rapport 5'!V50 -> 2716.47 | W50: ='[1]Rapport 5'!W50 -> 6146.56 | X50: ='[1]Rapport 5'!X50 -> 891.62 | Y50: 198,303 | Z50: 9,757 | AA50: 4.9% | AB50: 261 | AC50: =1+(AB50/COUNT($AB$3:AB$318)*10) -> 9.259493671 | AD50: 9 | AE50: 611 | AF50: 10.7% | AG50: 277 | AH50: 9.765822785 | AI50: 9 | AJ50: 0 | AK50: 0.0% | AL50: 1 | AM50: 1.03164557 | AN50: 1 | AO50: 5,075 | AP50: 3.1% | AQ50: 175 | AR50: 6.537974684 | AS50: 6 | AT50: 407 | AU50: 3.8% | AV50: 163 | AW50: 6.158227848 | AX50: 6 | AY50: 0 | AZ50: 0.0% | BA50: 1 | BB50: 1.03164557 | BC50: 1 | BD50: 57 | BE50: 7.3% | BF50: 267 | BG50: 9.449367089 | BH50: 9 | BI50: 2,716 | BJ50: 26.2% | BK50: 293 | BL50: 10.2721519 | BM50: 10 | BN50: 892 | BO50: 14.5% | BP50: 301 | BQ50: 10.52531646 | BR50: 10 | BT50: 76 | BU50: -9
A51: ='[1]Rapport 5'!A51 -> 86 | B51: ='[1]Rapport 5'!B51 -> WINGEN SUR MODER | C51: ='[1]Rapport 5'!C51 -> 4085 | D51: ='[1]Rapport 5'!D51 -> INGWILLER | E51: ='[1]Rapport 5'!E51 -> 5060 | F51: ='[1]Rapport 5'!F51 -> HAGUENAU | G51: ='[1]Rapport 5'!G51 -> 262 | H51: ='[1]Rapport 5'!H51 -> BAS RHIN | I51: ='[1]Rapport 5'!I51 -> 0 | J51: ='[1]Rapport 5'!J51 -> 0 | K51: ='[1]Rapport 5'!K51 -> 0 | L51: ='[1]Rapport 5'!L51 -> 0 | M51: ='[1]Rapport 5'!M51 -> 103.6 | N51: ='[1]Rapport 5'!N51 -> 24 | O51: ='[1]Rapport 5'!O51 -> 0 | P51: ='[1]Rapport 5'!P51 -> 0 | Q51: ='[1]Rapport 5'!Q51 -> 0 | R51: ='[1]Rapport 5'!R51 -> 0 | S51: ='[1]Rapport 5'!S51 -> 0 | T51: ='[1]Rapport 5'!T51 -> 0 | U51: ='[1]Rapport 5'!U51 -> 0 | V51: ='[1]Rapport 5'!V51 -> 0 | W51: ='[1]Rapport 5'!W51 -> 0 | X51: ='[1]Rapport 5'!X51 -> 0 | Y51: 104 | Z51: 24 | AA51: 23.2% | AB51: 316 | AC51: =1+(AB51/COUNT($AB$3:AB$318)*10) -> 11 | AD51: 10 | AE51: 0 | AF51: 0.0% | AG51: 1 | AH51: 1.03164557 | AI51: 1 | AJ51: 0 | AK51: 0.0% | AL51: 1 | AM51: 1.03164557 | AN51: 1 | AO51: 24 | AP51: 23.2% | AQ51: 316 | AR51: 11 | AS51: 10 | AT51: 0 | AU51: 0.0% | AV51: 1 | AW51: 1.03164557 | AX51: 1 | AY51: 0 | AZ51: 0.0% | BA51: 1 | BB51: 1.03164557 | BC51: 1 | BD51: 0 | BE51: 0.0% | BF51: 1 | BG51: 1.03164557 | BH51: 1 | BI51: 0 | BJ51: 0.0% | BK51: 1 | BL51: 1.03164557 | BM51: 1 | BN51: 0 | BO51: 0.0% | BP51: 1 | BQ51: 1.03164557 | BR51: 1 | BT51: 77 | BU51: -9
A52: ='[1]Rapport 5'!A52 -> 87 | B52: ='[1]Rapport 5'!B52 -> SAVERNE | C52: ='[1]Rapport 5'!C52 -> 4087 | D52: ='[1]Rapport 5'!D52 -> SAVERNE | E52: ='[1]Rapport 5'!E52 -> 5060 | F52: ='[1]Rapport 5'!F52 -> HAGUENAU | G52: ='[1]Rapport 5'!G52 -> 262 | H52: ='[1]Rapport 5'!H52 -> BAS RHIN | I52: ='[1]Rapport 5'!I52 -> 9089.54 | J52: ='[1]Rapport 5'!J52 -> 1057.35 | K52: ='[1]Rapport 5'!K52 -> 0 | L52: ='[1]Rapport 5'!L52 -> 0 | M52: ='[1]Rapport 5'!M52 -> 343723.13 | N52: ='[1]Rapport 5'!N52 -> 16207.23 | O52: ='[1]Rapport 5'!O52 -> 12441 | P52: ='[1]Rapport 5'!P52 -> 4183.5 | Q52: ='[1]Rapport 5'!Q52 -> 0 | R52: ='[1]Rapport 5'!R52 -> 0 | S52: ='[1]Rapport 5'!S52 -> 1024.95 | T52: ='[1]Rapport 5'!T52 -> 13 | U52: ='[1]Rapport 5'!U52 -> 27919.57 | V52: ='[1]Rapport 5'!V52 -> 5159.36 | W52: ='[1]Rapport 5'!W52 -> 14633.74 | X52: ='[1]Rapport 5'!X52 -> 741.33 | Y52: 408,832 | Z52: 27,362 | AA52: 6.7% | AB52: 308 | AC52: =1+(AB52/COUNT($AB$3:AB$318)*10) -> 10.74683544 | AD52: 10 | AE52: 1,057 | AF52: 11.6% | AG52: 282 | AH52: 9.924050633 | AI52: 9 | AJ52: 0 | AK52: 0.0% | AL52: 1 | AM52: 1.03164557 | AN52: 1 | AO52: 16,207 | AP52: 4.7% | AQ52: 293 | AR52: 10.2721519 | AS52: 10 | AT52: 4,184 | AU52: 33.6% | AV52: 312 | AW52: 10.87341772 | AX52: 10 | AY52: 0 | AZ52: 0.0% | BA52: 1 | BB52: 1.03164557 | BC52: 1 | BD52: 13 | BE52: 1.3% | BF52: 223 | BG52: 8.056962025 | BH52: 8 | BI52: 5,159 | BJ52: 18.5% | BK52: 252 | BL52: 8.974683544 | BM52: 8 | BN52: 741 | BO52: 5.1% | BP52: 215 | BQ52: 7.803797468 | BR52: 7 | BT52: 78 | BU52: -9
A53: ='[1]Rapport 5'!A53 -> 92 | B53: ='[1]Rapport 5'!B53 -> HOCHFELDEN | C53: ='[1]Rapport 5'!C53 -> 4092 | D53: ='[1]Rapport 5'!D53 -> HOCHFELDEN | E53: ='[1]Rapport 5'!E53 -> 5060 | F53: ='[1]Rapport 5'!F53 -> HAGUENAU | G53: ='[1]Rapport 5'!G53 -> 262 | H53: ='[1]Rapport 5'!H53 -> BAS RHIN | I53: ='[1]Rapport 5'!I53 -> 2891.69 | J53: ='[1]Rapport 5'!J53 -> 119.5 | K53: ='[1]Rapport 5'!K53 -> 0 | L53: ='[1]Rapport 5'!L53 -> 0 | M53: ='[1]Rapport 5'!M53 -> 92843.33 | N53: ='[1]Rapport 5'!N53 -> 2652.31 | O53: ='[1]Rapport 5'!O53 -> 6676.5 | P53: ='[1]Rapport 5'!P53 -> 69 | Q53: ='[1]Rapport 5'!Q53 -> 0 | R53: ='[1]Rapport 5'!R53 -> 0 | S53: ='[1]Rapport 5'!S53 -> 373 | T53: ='[1]Rapport 5'!T53 -> 0 | U53: ='[1]Rapport 5'!U53 -> 6276.87 | V53: ='[1]Rapport 5'!V53 -> 646.3 | W53: ='[1]Rapport 5'!W53 -> 2337.94 | X53: ='[1]Rapport 5'!X53 -> 0 | Y53: 111,399 | Z53: 3,487 | AA53: 3.1% | AB53: 88 | AC53: =1+(AB53/COUNT($AB$3:AB$318)*10) -> 3.784810127 | AD53: 3 | AE53: 120 | AF53: 4.1% | AG53: 156 | AH53: 5.936708861 | AI53: 5 | AJ53: 0 | AK53: 0.0% | AL53: 1 | AM53: 1.03164557 | AN53: 1 | AO53: 2,652 | AP53: 2.9% | AQ53: 146 | AR53: 5.620253165 | AS53: 5 | AT53: 69 | AU53: 1.0% | AV53: 83 | AW53: 3.626582278 | AX53: 3 | AY53: 0 | AZ53: 0.0% | BA53: 1 | BB53: 1.03164557 | BC53: 1 | BD53: 0 | BE53: 0.0% | BF53: 1 | BG53: 1.03164557 | BH53: 1 | BI53: 646 | BJ53: 10.3% | BK53: 165 | BL53: 6.221518987 | BM53: 6 | BN53: 0 | BO53: 0.0% | BP53: 1 | BQ53: 1.03164557 | BR53: 1 | BT53: 79 | BU53: -13
A54: ='[1]Rapport 5'!A54 -> 93 | B54: ='[1]Rapport 5'!B54 -> MARMOUTIER | C54: ='[1]Rapport 5'!C54 -> 4087 | D54: ='[1]Rapport 5'!D54 -> SAVERNE | E54: ='[1]Rapport 5'!E54 -> 5060 | F54: ='[1]Rapport 5'!F54 -> HAGUENAU | G54: ='[1]Rapport 5'!G54 -> 262 | H54: ='[1]Rapport 5'!H54 -> BAS RHIN | I54: ='[1]Rapport 5'!I54 -> 96.55 | J54: ='[1]Rapport 5'!J54 -> 0 | K54: ='[1]Rapport 5'!K54 -> 0 | L54: ='[1]Rapport 5'!L54 -> 0 | M54: ='[1]Rapport 5'!M54 -> 557.11 | N54: ='[1]Rapport 5'!N54 -> 0 | O54: ='[1]Rapport 5'!O54 -> 0 | P54: ='[1]Rapport 5'!P54 -> 0 | Q54: ='[1]Rapport 5'!Q54 -> 0 | R54: ='[1]Rapport 5'!R54 -> 0 | S54: ='[1]Rapport 5'!S54 -> 0 | T54: ='[1]Rapport 5'!T54 -> 0 | U54: ='[1]Rapport 5'!U54 -> 0 | V54: ='[1]Rapport 5'!V54 -> 0 | W54: ='[1]Rapport 5'!W54 -> 0 | X54: ='[1]Rapport 5'!X54 -> 0 | Y54: 654 | Z54: 0 | AA54: 0.0% | AB54: 1 | AC54: =1+(AB54/COUNT($AB$3:AB$318)*10) -> 1.03164557 | AD54: 1 | AE54: 0 | AF54: 0.0% | AG54: 1 | AH54: 1.03164557 | AI54: 1 | AJ54: 0 | AK54: 0.0% | AL54: 1 | AM54: 1.03164557 | AN54: 1 | AO54: 0 | AP54: 0.0% | AQ54: 1 | AR54: 1.03164557 | AS54: 1 | AT54: 0 | AU54: 0.0% | AV54: 1 | AW54: 1.03164557 | AX54: 1 | AY54: 0 | AZ54: 0.0% | BA54: 1 | BB54: 1.03164557 | BC54: 1 | BD54: 0 | BE54: 0.0% | BF54: 1 | BG54: 1.03164557 | BH54: 1 | BI54: 0 | BJ54: 0.0% | BK54: 1 | BL54: 1.03164557 | BM54: 1 | BN54: 0 | BO54: 0.0% | BP54: 1 | BQ54: 1.03164557 | BR54: 1 | BT54: 80 | BU54: -13
A55: ='[1]Rapport 5'!A55 -> 95 | B55: ='[1]Rapport 5'!B55 -> SARRE UNION | C55: ='[1]Rapport 5'!C55 -> 4095 | D55: ='[1]Rapport 5'!D55 -> SARRE UNION | E55: ='[1]Rapport 5'!E55 -> 5060 | F55: ='[1]Rapport 5'!F55 -> HAGUENAU | G55: ='[1]Rapport 5'!G55 -> 262 | H55: ='[1]Rapport 5'!H55 -> BAS RHIN | I55: ='[1]Rapport 5'!I55 -> 5890.15 | J55: ='[1]Rapport 5'!J55 -> 102.55 | K55: ='[1]Rapport 5'!K55 -> 0 | L55: ='[1]Rapport 5'!L55 -> 0 | M55: ='[1]Rapport 5'!M55 -> 184439.13 | N55: ='[1]Rapport 5'!N55 -> 4561.84 | O55: ='[1]Rapport 5'!O55 -> 5231.7 | P55: ='[1]Rapport 5'!P55 -> 300.7 | Q55: ='[1]Rapport 5'!Q55 -> 1092.9 | R55: ='[1]Rapport 5'!R55 -> 0 | S55: ='[1]Rapport 5'!S55 -> 108.04 | T55: ='[1]Rapport 5'!T55 -> 0 | U55: ='[1]Rapport 5'!U55 -> 12034.04 | V55: ='[1]Rapport 5'!V55 -> 2033.35 | W55: ='[1]Rapport 5'!W55 -> 6969.03 | X55: ='[1]Rapport 5'!X55 -> 418.42 | Y55: 215,765 | Z55: 7,417 | AA55: 3.4% | AB55: 122 | AC55: =1+(AB55/COUNT($AB$3:AB$318)*10) -> 4.860759494 | AD55: 4 | AE55: 103 | AF55: 1.7% | AG55: 42 | AH55: 2.329113924 | AI55: 2 | AJ55: 0 | AK55: 0.0% | AL55: 1 | AM55: 1.03164557 | AN55: 1 | AO55: 4,562 | AP55: 2.5% | AQ55: 105 | AR55: 4.32278481 | AS55: 4 | AT55: 301 | AU55: 5.7% | AV55: 199 | AW55: 7.297468354 | AX55: 7 | AY55: 0 | AZ55: 0.0% | BA55: 1 | BB55: 1.03164557 | BC55: 1 | BD55: 0 | BE55: 0.0% | BF55: 1 | BG55: 1.03164557 | BH55: 1 | BI55: 2,033 | BJ55: 16.9% | BK55: 240 | BL55: 8.594936709 | BM55: 8 | BN55: 418 | BO55: 6.0% | BP55: 240 | BQ55: 8.594936709 | BR55: 8 | BT55: 82 | BU55: -13
A56: ='[1]Rapport 5'!A56 -> 101 | B56: ='[1]Rapport 5'!B56 -> SELESTAT CENTRE | C56: ='[1]Rapport 5'!C56 -> 4101 | D56: ='[1]Rapport 5'!D56 -> SELESTAT CENTRE | E56: ='[1]Rapport 5'!E56 -> 5101 | F56: ='[1]Rapport 5'!F56 -> SELESTAT | G56: ='[1]Rapport 5'!G56 -> 262 | H56: ='[1]Rapport 5'!H56 -> BAS RHIN | I56: ='[1]Rapport 5'!I56 -> 6505.79 | J56: ='[1]Rapport 5'!J56 -> 1060.46 | K56: ='[1]Rapport 5'!K56 -> 0 | L56: ='[1]Rapport 5'!L56 -> 0 | M56: ='[1]Rapport 5'!M56 -> 375751.91 | N56: ='[1]Rapport 5'!N56 -> 9801.1 | O56: ='[1]Rapport 5'!O56 -> 17372.5 | P56: ='[1]Rapport 5'!P56 -> 691 | Q56: ='[1]Rapport 5'!Q56 -> 1538.06 | R56: ='[1]Rapport 5'!R56 -> 0 | S56: ='[1]Rapport 5'!S56 -> 1643.46 | T56: ='[1]Rapport 5'!T56 -> 44 | U56: ='[1]Rapport 5'!U56 -> 25496.44 | V56: ='[1]Rapport 5'!V56 -> 2487.3 | W56: ='[1]Rapport 5'!W56 -> 19276.75 | X56: ='[1]Rapport 5'!X56 -> 374.26 | Y56: 447,585 | Z56: 14,458 | AA56: 3.2% | AB56: 99 | AC56: =1+(AB56/COUNT($AB$3:AB$318)*10) -> 4.132911392 | AD56: 4 | AE56: 1,060 | AF56: 16.3% | AG56: 301 | AH56: 10.52531646 | AI56: 10 | AJ56: 0 | AK56: 0.0% | AL56: 1 | AM56: 1.03164557 | AN56: 1 | AO56: 9,801 | AP56: 2.6% | AQ56: 121 | AR56: 4.829113924 | AS56: 4 | AT56: 691 | AU56: 4.0% | AV56: 166 | AW56: 6.253164557 | AX56: 6 | AY56: 0 | AZ56: 0.0% | BA56: 1 | BB56: 1.03164557 | BC56: 1 | BD56: 44 | BE56: 2.7% | BF56: 236 | BG56: 8.46835443 | BH56: 8 | BI56: 2,487 | BJ56: 9.8% | BK56: 155 | BL56: 5.905063291 | BM56: 5 | BN56: 374 | BO56: 1.9% | BP56: 108 | BQ56: 4.417721519 | BR56: 4 | BT56: 85 | BU56: -16
A57: ='[1]Rapport 5'!A57 -> 104 | B57: ='[1]Rapport 5'!B57 -> ERSTEIN | C57: ='[1]Rapport 5'!C57 -> 4104 | D57: ='[1]Rapport 5'!D57 -> ERSTEIN | E57: ='[1]Rapport 5'!E57 -> 5101 | F57: ='[1]Rapport 5'!F57 -> SELESTAT | G57: ='[1]Rapport 5'!G57 -> 262 | H57: ='[1]Rapport 5'!H57 -> BAS RHIN | I57: ='[1]Rapport 5'!I57 -> 2396.43 | J57: ='[1]Rapport 5'!J57 -> 103.61 | K57: ='[1]Rapport 5'!K57 -> 0 | L57: ='[1]Rapport 5'!L57 -> 0 | M57: ='[1]Rapport 5'!M57 -> 182260.21 | N57: ='[1]Rapport 5'!N57 -> 4225.12 | O57: ='[1]Rapport 5'!O57 -> 5354.5 | P57: ='[1]Rapport 5'!P57 -> 537 | Q57: ='[1]Rapport 5'!Q57 -> 0 | R57: ='[1]Rapport 5'!R57 -> 0 | S57: ='[1]Rapport 5'!S57 -> 331 | T57: ='[1]Rapport 5'!T57 -> 0 | U57: ='[1]Rapport 5'!U57 -> 13200.23 | V57: ='[1]Rapport 5'!V57 -> 2743.94 | W57: ='[1]Rapport 5'!W57 -> 9254.32 | X57: ='[1]Rapport 5'!X57 -> 1649.01 | Y57: 212,797 | Z57: 9,259 | AA57: 4.4% | AB57: 227 | AC57: =1+(AB57/COUNT($AB$3:AB$318)*10) -> 8.183544304 | AD57: 8 | AE57: 104 | AF57: 4.3% | AG57: 164 | AH57: 6.189873418 | AI57: 6 | AJ57: 0 | AK57: 0.0% | AL57: 1 | AM57: 1.03164557 | AN57: 1 | AO57: 4,225 | AP57: 2.3% | AQ57: 86 | AR57: 3.721518987 | AS57: 3 | AT57: 537 | AU57: 10.0% | AV57: 252 | AW57: 8.974683544 | AX57: 8 | AY57: 0 | AZ57: 0.0% | BA57: 1 | BB57: 1.03164557 | BC57: 1 | BD57: 0 | BE57: 0.0% | BF57: 1 | BG57: 1.03164557 | BH57: 1 | BI57: 2,744 | BJ57: 20.8% | BK57: 271 | BL57: 9.575949367 | BM57: 9 | BN57: 1,649 | BO57: 17.8% | BP57: 310 | BQ57: 10.81012658 | BR57: 10 | BT57: 86 | BU57: -18
A58: ='[1]Rapport 5'!A58 -> 107 | B58: ='[1]Rapport 5'!B58 -> VILLE | C58: ='[1]Rapport 5'!C58 -> 4107 | D58: ='[1]Rapport 5'!D58 -> VILLE | E58: ='[1]Rapport 5'!E58 -> 5101 | F58: ='[1]Rapport 5'!F58 -> SELESTAT | G58: ='[1]Rapport 5'!G58 -> 262 | H58: ='[1]Rapport 5'!H58 -> BAS RHIN | I58: ='[1]Rapport 5'!I58 -> 1228.97 | J58: ='[1]Rapport 5'!J58 -> 56.27 | K58: ='[1]Rapport 5'!K58 -> 0 | L58: ='[1]Rapport 5'!L58 -> 0 | M58: ='[1]Rapport 5'!M58 -> 89250.22 | N58: ='[1]Rapport 5'!N58 -> 1228 | O58: ='[1]Rapport 5'!O58 -> 5885 | P58: ='[1]Rapport 5'!P58 -> 0 | Q58: ='[1]Rapport 5'!Q58 -> 0 | R58: ='[1]Rapport 5'!R58 -> 0 | S58: ='[1]Rapport 5'!S58 -> 113 | T58: ='[1]Rapport 5'!T58 -> 0 | U58: ='[1]Rapport 5'!U58 -> 6162.29 | V58: ='[1]Rapport 5'!V58 -> 1341.14 | W58: ='[1]Rapport 5'!W58 -> 4294.81 | X58: ='[1]Rapport 5'!X58 -> 111.28 | Y58: 106,934 | Z58: 2,737 | AA58: 2.6% | AB58: 45 | AC58: =1+(AB58/COUNT($AB$3:AB$318)*10) -> 2.424050633 | AD58: 2 | AE58: 56 | AF58: 4.6% | AG58: 177 | AH58: 6.601265823 | AI58: 6 | AJ58: 0 | AK58: 0.0% | AL58: 1 | AM58: 1.03164557 | AN58: 1 | AO58: 1,228 | AP58: 1.4% | AQ58: 19 | AR58: 1.601265823 | AS58: 1 | AT58: 0 | AU58: 0.0% | AV58: 1 | AW58: 1.03164557 | AX58: 1 | AY58: 0 | AZ58: 0.0% | BA58: 1 | BB58: 1.03164557 | BC58: 1 | BD58: 0 | BE58: 0.0% | BF58: 1 | BG58: 1.03164557 | BH58: 1 | BI58: 1,341 | BJ58: 21.8% | BK58: 276 | BL58: 9.734177215 | BM58: 9 | BN58: 111 | BO58: 2.6% | BP58: 126 | BQ58: 4.987341772 | BR58: 4 | BT58: 87 | BU58: -20
A59: ='[1]Rapport 5'!A59 -> 108 | B59: ='[1]Rapport 5'!B59 -> CHATENOIS | C59: ='[1]Rapport 5'!C59 -> 4101 | D59: ='[1]Rapport 5'!D59 -> SELESTAT CENTRE | E59: ='[1]Rapport 5'!E59 -> 5101 | F59: ='[1]Rapport 5'!F59 -> SELESTAT | G59: ='[1]Rapport 5'!G59 -> 262 | H59: ='[1]Rapport 5'!H59 -> BAS RHIN | I59: ='[1]Rapport 5'!I59 -> 1059.23 | J59: ='[1]Rapport 5'!J59 -> 86.88 | K59: ='[1]Rapport 5'!K59 -> 0 | L59: ='[1]Rapport 5'!L59 -> 0 | M59: ='[1]Rapport 5'!M59 -> 64146.48 | N59: ='[1]Rapport 5'!N59 -> 1591.43 | O59: ='[1]Rapport 5'!O59 -> 4246 | P59: ='[1]Rapport 5'!P59 -> 50 | Q59: ='[1]Rapport 5'!Q59 -> 0 | R59: ='[1]Rapport 5'!R59 -> 0 | S59: ='[1]Rapport 5'!S59 -> 356.42 | T59: ='[1]Rapport 5'!T59 -> 0 | U59: ='[1]Rapport 5'!U59 -> 1769.65 | V59: ='[1]Rapport 5'!V59 -> 902.54 | W59: ='[1]Rapport 5'!W59 -> 3913.79 | X59: ='[1]Rapport 5'!X59 -> 44.93 | Y59: 75,492 | Z59: 2,676 | AA59: 3.5% | AB59: 137 | AC59: =1+(AB59/COUNT($AB$3:AB$318)*10) -> 5.335443038 | AD59: 5 | AE59: 87 | AF59: 8.2% | AG59: 246 | AH59: 8.784810127 | AI59: 8 | AJ59: 0 | AK59: 0.0% | AL59: 1 | AM59: 1.03164557 | AN59: 1 | AO59: 1,591 | AP59: 2.5% | AQ59: 106 | AR59: 4.35443038 | AS59: 4 | AT59: 50 | AU59: 1.2% | AV59: 85 | AW59: 3.689873418 | AX59: 3 | AY59: 0 | AZ59: 0.0% | BA59: 1 | BB59: 1.03164557 | BC59: 1 | BD59: 0 | BE59: 0.0% | BF59: 1 | BG59: 1.03164557 | BH59: 1 | BI59: 903 | BJ59: 51.0% | BK59: 315 | BL59: 10.96835443 | BM59: 10 | BN59: 45 | BO59: 1.1% | BP59: 61 | BQ59: 2.930379747 | BR59: 2 | BT59: 89 | BU59: -19
A60: ='[1]Rapport 5'!A60 -> 109 | B60: ='[1]Rapport 5'!B60 -> MARCKOLSHEIM | C60: ='[1]Rapport 5'!C60 -> 4109 | D60: ='[1]Rapport 5'!D60 -> MARCKOLSHEIM | E60: ='[1]Rapport 5'!E60 -> 5101 | F60: ='[1]Rapport 5'!F60 -> SELESTAT | G60: ='[1]Rapport 5'!G60 -> 262 | H60: ='[1]Rapport 5'!H60 -> BAS RHIN | I60: ='[1]Rapport 5'!I60 -> 3163.56 | J60: ='[1]Rapport 5'!J60 -> 1836.06 | K60: ='[1]Rapport 5'!K60 -> 0 | L60: ='[1]Rapport 5'!L60 -> 0 | M60: ='[1]Rapport 5'!M60 -> 121549.76 | N60: ='[1]Rapport 5'!N60 -> 1860.98 | O60: ='[1]Rapport 5'!O60 -> 3684 | P60: ='[1]Rapport 5'!P60 -> 62 | Q60: ='[1]Rapport 5'!Q60 -> 0 | R60: ='[1]Rapport 5'!R60 -> 0 | S60: ='[1]Rapport 5'!S60 -> 469 | T60: ='[1]Rapport 5'!T60 -> 0 | U60: ='[1]Rapport 5'!U60 -> 6654.96 | V60: ='[1]Rapport 5'!V60 -> 1970.37 | W60: ='[1]Rapport 5'!W60 -> 2884.54 | X60: ='[1]Rapport 5'!X60 -> 112.64 | Y60: 138,406 | Z60: 5,842 | AA60: 4.2% | AB60: 214 | AC60: =1+(AB60/COUNT($AB$3:AB$318)*10) -> 7.772151899 | AD60: 7 | AE60: 1,836 | AF60: 58.0% | AG60: 314 | AH60: 10.93670886 | AI60: 10 | AJ60: 0 | AK60: 0.0% | AL60: 1 | AM60: 1.03164557 | AN60: 1 | AO60: 1,861 | AP60: 1.5% | AQ60: 26 | AR60: 1.82278481 | AS60: 1 | AT60: 62 | AU60: 1.7% | AV60: 98 | AW60: 4.101265823 | AX60: 4 | AY60: 0 | AZ60: 0.0% | BA60: 1 | BB60: 1.03164557 | BC60: 1 | BD60: 0 | BE60: 0.0% | BF60: 1 | BG60: 1.03164557 | BH60: 1 | BI60: 1,970 | BJ60: 29.6% | BK60: 303 | BL60: 10.58860759 | BM60: 10 | BN60: 113 | BO60: 3.9% | BP60: 186 | BQ60: 6.886075949 | BR60: 6 | BT60: 92 | BU60: -17
A61: ='[1]Rapport 5'!A61 -> 111 | B61: ='[1]Rapport 5'!B61 -> BENFELD | C61: ='[1]Rapport 5'!C61 -> 4111 | D61: ='[1]Rapport 5'!D61 -> BENFELD | E61: ='[1]Rapport 5'!E61 -> 5101 | F61: ='[1]Rapport 5'!F61 -> SELESTAT | G61: ='[1]Rapport 5'!G61 -> 262 | H61: ='[1]Rapport 5'!H61 -> BAS RHIN | I61: ='[1]Rapport 5'!I61 -> 3002.97 | J61: ='[1]Rapport 5'!J61 -> 1941.18 | K61: ='[1]Rapport 5'!K61 -> 0 | L61: ='[1]Rapport 5'!L61 -> 0 | M61: ='[1]Rapport 5'!M61 -> 170983.28 | N61: ='[1]Rapport 5'!N61 -> 7254.44 | O61: ='[1]Rapport 5'!O61 -> 7158.5 | P61: ='[1]Rapport 5'!P61 -> 174.99 | Q61: ='[1]Rapport 5'!Q61 -> 0 | R61: ='[1]Rapport 5'!R61 -> 0 | S61: ='[1]Rapport 5'!S61 -> 272 | T61: ='[1]Rapport 5'!T61 -> 44 | U61: ='[1]Rapport 5'!U61 -> 10445.77 | V61: ='[1]Rapport 5'!V61 -> 2440.95 | W61: ='[1]Rapport 5'!W61 -> 7020.22 | X61: ='[1]Rapport 5'!X61 -> 242.45 | Y61: 198,883 | Z61: 12,098 | AA61: 6.1% | AB61: 300 | AC61: =1+(AB61/COUNT($AB$3:AB$318)*10) -> 10.49367089 | AD61: 10 | AE61: 1,941 | AF61: 64.6% | AG61: 315 | AH61: 10.96835443 | AI61: 10 | AJ61: 0 | AK61: 0.0% | AL61: 1 | AM61: 1.03164557 | AN61: 1 | AO61: 7,254 | AP61: 4.2% | AQ61: 270 | AR61: 9.544303797 | AS61: 9 | AT61: 175 | AU61: 2.4% | AV61: 121 | AW61: 4.829113924 | AX61: 4 | AY61: 0 | AZ61: 0.0% | BA61: 1 | BB61: 1.03164557 | BC61: 1 | BD61: 44 | BE61: 16.2% | BF61: 290 | BG61: 10.17721519 | BH61: 10 | BI61: 2,441 | BJ61: 23.4% | BK61: 283 | BL61: 9.955696203 | BM61: 9 | BN61: 242 | BO61: 3.5% | BP61: 160 | BQ61: 6.063291139 | BR61: 6 | BT61: 93 | BU61: -18
A62: ='[1]Rapport 5'!A62 -> 113 | B62: ='[1]Rapport 5'!B62 -> BARR | C62: ='[1]Rapport 5'!C62 -> 4113 | D62: ='[1]Rapport 5'!D62 -> BARR | E62: ='[1]Rapport 5'!E62 -> 5101 | F62: ='[1]Rapport 5'!F62 -> SELESTAT | G62: ='[1]Rapport 5'!G62 -> 262 | H62: ='[1]Rapport 5'!H62 -> BAS RHIN | I62: ='[1]Rapport 5'!I62 -> 2657.49 | J62: ='[1]Rapport 5'!J62 -> 116.33 | K62: ='[1]Rapport 5'!K62 -> 0 | L62: ='[1]Rapport 5'!L62 -> 0 | M62: ='[1]Rapport 5'!M62 -> 115597.79 | N62: ='[1]Rapport 5'!N62 -> 1849.56 | O62: ='[1]Rapport 5'!O62 -> 3591 | P62: ='[1]Rapport 5'!P62 -> 42.5 | Q62: ='[1]Rapport 5'!Q62 -> 0 | R62: ='[1]Rapport 5'!R62 -> 0 | S62: ='[1]Rapport 5'!S62 -> 601.5 | T62: ='[1]Rapport 5'!T62 -> 0 | U62: ='[1]Rapport 5'!U62 -> 6451.94 | V62: ='[1]Rapport 5'!V62 -> 924.44 | W62: ='[1]Rapport 5'!W62 -> 4917.3 | X62: ='[1]Rapport 5'!X62 -> 56 | Y62: 133,817 | Z62: 2,989 | AA62: 2.2% | AB62: 33 | AC62: =1+(AB62/COUNT($AB$3:AB$318)*10) -> 2.044303797 | AD62: 2 | AE62: 116 | AF62: 4.4% | AG62: 166 | AH62: 6.253164557 | AI62: 6 | AJ62: 0 | AK62: 0.0% | AL62: 1 | AM62: 1.03164557 | AN62: 1 | AO62: 1,850 | AP62: 1.6% | AQ62: 32 | AR62: 2.012658228 | AS62: 2 | AT62: 43 | AU62: 1.2% | AV62: 86 | AW62: 3.721518987 | AX62: 3 | AY62: 0 | AZ62: 0.0% | BA62: 1 | BB62: 1.03164557 | BC62: 1 | BD62: 0 | BE62: 0.0% | BF62: 1 | BG62: 1.03164557 | BH62: 1 | BI62: 924 | BJ62: 14.3% | BK62: 217 | BL62: 7.867088608 | BM62: 7 | BN62: 56 | BO62: 1.1% | BP62: 60 | BQ62: 2.898734177 | BR62: 2 | BT62: 95 | BU62: -18
A63: ='[1]Rapport 5'!A63 -> 116 | B63: ='[1]Rapport 5'!B63 -> MOLSHEIM | C63: ='[1]Rapport 5'!C63 -> 4116 | D63: ='[1]Rapport 5'!D63 -> MOLSHEIM | E63: ='[1]Rapport 5'!E63 -> 5101 | F63: ='[1]Rapport 5'!F63 -> SELESTAT | G63: ='[1]Rapport 5'!G63 -> 262 | H63: ='[1]Rapport 5'!H63 -> BAS RHIN | I63: ='[1]Rapport 5'!I63 -> 12807.3 | J63: ='[1]Rapport 5'!J63 -> 583.09 | K63: ='[1]Rapport 5'!K63 -> 0 | L63: ='[1]Rapport 5'!L63 -> 0 | M63: ='[1]Rapport 5'!M63 -> 244694.14 | N63: ='[1]Rapport 5'!N63 -> 9872.85 | O63: ='[1]Rapport 5'!O63 -> 9684.5 | P63: ='[1]Rapport 5'!P63 -> 224 | Q63: ='[1]Rapport 5'!Q63 -> 835.83 | R63: ='[1]Rapport 5'!R63 -> 0 | S63: ='[1]Rapport 5'!S63 -> 582.87 | T63: ='[1]Rapport 5'!T63 -> 44 | U63: ='[1]Rapport 5'!U63 -> 15081.71 | V63: ='[1]Rapport 5'!V63 -> 735.67 | W63: ='[1]Rapport 5'!W63 -> 9385.72 | X63: ='[1]Rapport 5'!X63 -> 298.59 | Y63: 293,072 | Z63: 11,758 | AA63: 4.0% | AB63: 194 | AC63: =1+(AB63/COUNT($AB$3:AB$318)*10) -> 7.139240506 | AD63: 7 | AE63: 583 | AF63: 4.6% | AG63: 175 | AH63: 6.537974684 | AI63: 6 | AJ63: 0 | AK63: 0.0% | AL63: 1 | AM63: 1.03164557 | AN63: 1 | AO63: 9,873 | AP63: 4.0% | AQ63: 256 | AR63: 9.101265823 | AS63: 9 | AT63: 224 | AU63: 2.3% | AV63: 118 | AW63: 4.734177215 | AX63: 4 | AY63: 0 | AZ63: 0.0% | BA63: 1 | BB63: 1.03164557 | BC63: 1 | BD63: 44 | BE63: 7.5% | BF63: 268 | BG63: 9.481012658 | BH63: 9 | BI63: 736 | BJ63: 4.9% | BK63: 60 | BL63: 2.898734177 | BM63: 2 | BN63: 299 | BO63: 3.2% | BP63: 148 | BQ63: 5.683544304 | BR63: 5 | BT63: 101 | BU63: -15
A64: ='[1]Rapport 5'!A64 -> 119 | B64: ='[1]Rapport 5'!B64 -> OBERNAI | C64: ='[1]Rapport 5'!C64 -> 4119 | D64: ='[1]Rapport 5'!D64 -> OBERNAI | E64: ='[1]Rapport 5'!E64 -> 5101 | F64: ='[1]Rapport 5'!F64 -> SELESTAT | G64: ='[1]Rapport 5'!G64 -> 262 | H64: ='[1]Rapport 5'!H64 -> BAS RHIN | I64: ='[1]Rapport 5'!I64 -> 5547.42 | J64: ='[1]Rapport 5'!J64 -> 524.39 | K64: ='[1]Rapport 5'!K64 -> 0 | L64: ='[1]Rapport 5'!L64 -> 36.66 | M64: ='[1]Rapport 5'!M64 -> 218601.82 | N64: ='[1]Rapport 5'!N64 -> 5665.32 | O64: ='[1]Rapport 5'!O64 -> 9188 | P64: ='[1]Rapport 5'!P64 -> 644.5 | Q64: ='[1]Rapport 5'!Q64 -> 0 | R64: ='[1]Rapport 5'!R64 -> 0 | S64: ='[1]Rapport 5'!S64 -> 517.5 | T64: ='[1]Rapport 5'!T64 -> 0 | U64: ='[1]Rapport 5'!U64 -> 15521.08 | V64: ='[1]Rapport 5'!V64 -> 1600.43 | W64: ='[1]Rapport 5'!W64 -> 11946.01 | X64: ='[1]Rapport 5'!X64 -> 224.5 | Y64: 261,322 | Z64: 8,696 | AA64: 3.3% | AB64: 111 | AC64: =1+(AB64/COUNT($AB$3:AB$318)*10) -> 4.512658228 | AD64: 4 | AE64: 524 | AF64: 9.5% | AG64: 261 | AH64: 9.259493671 | AI64: 9 | AJ64: 37 | AK64: 100.0% | AL64: 288 | AM64: 10.11392405 | AN64: 10 | AO64: 5,665 | AP64: 2.6% | AQ64: 117 | AR64: 4.702531646 | AS64: 4 | AT64: 645 | AU64: 7.0% | AV64: 222 | AW64: 8.025316456 | AX64: 8 | AY64: 0 | AZ64: 0.0% | BA64: 1 | BB64: 1.03164557 | BC64: 1 | BD64: 0 | BE64: 0.0% | BF64: 1 | BG64: 1.03164557 | BH64: 1 | BI64: 1,600 | BJ64: 10.3% | BK64: 167 | BL64: 6.284810127 | BM64: 6 | BN64: 225 | BO64: 1.9% | BP64: 103 | BQ64: 4.259493671 | BR64: 4 | BT64: 104 | BU64: -15
A65: ='[1]Rapport 5'!A65 -> 120 | B65: ='[1]Rapport 5'!B65 -> WASSELONNE | C65: ='[1]Rapport 5'!C65 -> 4120 | D65: ='[1]Rapport 5'!D65 -> WASSELONNE | E65: ='[1]Rapport 5'!E65 -> 5101 | F65: ='[1]Rapport 5'!F65 -> SELESTAT | G65: ='[1]Rapport 5'!G65 -> 262 | H65: ='[1]Rapport 5'!H65 -> BAS RHIN | I65: ='[1]Rapport 5'!I65 -> 5232.79 | J65: ='[1]Rapport 5'!J65 -> 812.55 | K65: ='[1]Rapport 5'!K65 -> 0 | L65: ='[1]Rapport 5'!L65 -> 136 | M65: ='[1]Rapport 5'!M65 -> 124149.18 | N65: ='[1]Rapport 5'!N65 -> 4434.36 | O65: ='[1]Rapport 5'!O65 -> 6795.5 | P65: ='[1]Rapport 5'!P65 -> 367 | Q65: ='[1]Rapport 5'!Q65 -> 0 | R65: ='[1]Rapport 5'!R65 -> 0 | S65: ='[1]Rapport 5'!S65 -> 228 | T65: ='[1]Rapport 5'!T65 -> 31 | U65: ='[1]Rapport 5'!U65 -> 9507.9 | V65: ='[1]Rapport 5'!V65 -> 2672.89 | W65: ='[1]Rapport 5'!W65 -> 4170.64 | X65: ='[1]Rapport 5'!X65 -> 65.3 | Y65: 150,084 | Z65: 8,519 | AA65: 5.7% | AB65: 290 | AC65: =1+(AB65/COUNT($AB$3:AB$318)*10) -> 10.17721519 | AD65: 10 | AE65: 813 | AF65: 15.5% | AG65: 300 | AH65: 10.49367089 | AI65: 10 | AJ65: 136 | AK65: 100.0% | AL65: 288 | AM65: 10.11392405 | AN65: 10 | AO65: 4,434 | AP65: 3.6% | AQ65: 224 | AR65: 8.088607595 | AS65: 8 | AT65: 367 | AU65: 5.4% | AV65: 191 | AW65: 7.044303797 | AX65: 7 | AY65: 0 | AZ65: 0.0% | BA65: 1 | BB65: 1.03164557 | BC65: 1 | BD65: 31 | BE65: 13.6% | BF65: 282 | BG65: 9.924050633 | BH65: 9 | BI65: 2,673 | BJ65: 28.1% | BK65: 296 | BL65: 10.36708861 | BM65: 10 | BN65: 65 | BO65: 1.6% | BP65: 84 | BQ65: 3.658227848 | BR65: 3 | BT65: 107 | BU65: -13
A66: ='[1]Rapport 5'!A66 -> 121 | B66: ='[1]Rapport 5'!B66 -> SCHIRMECK | C66: ='[1]Rapport 5'!C66 -> 4121 | D66: ='[1]Rapport 5'!D66 -> SCHIRMECK | E66: ='[1]Rapport 5'!E66 -> 5101 | F66: ='[1]Rapport 5'!F66 -> SELESTAT | G66: ='[1]Rapport 5'!G66 -> 262 | H66: ='[1]Rapport 5'!H66 -> BAS RHIN | I66: ='[1]Rapport 5'!I66 -> 3939.09 | J66: ='[1]Rapport 5'!J66 -> 123.02 | K66: ='[1]Rapport 5'!K66 -> 0 | L66: ='[1]Rapport 5'!L66 -> 0 | M66: ='[1]Rapport 5'!M66 -> 142129.14 | N66: ='[1]Rapport 5'!N66 -> 2272.4 | O66: ='[1]Rapport 5'!O66 -> 5858 | P66: ='[1]Rapport 5'!P66 -> 220 | Q66: ='[1]Rapport 5'!Q66 -> 0 | R66: ='[1]Rapport 5'!R66 -> 0 | S66: ='[1]Rapport 5'!S66 -> 478 | T66: ='[1]Rapport 5'!T66 -> 0 | U66: ='[1]Rapport 5'!U66 -> 9075.31 | V66: ='[1]Rapport 5'!V66 -> 1261.62 | W66: ='[1]Rapport 5'!W66 -> 2992.03 | X66: ='[1]Rapport 5'!X66 -> 133.42 | Y66: 164,472 | Z66: 4,010 | AA66: 2.4% | AB66: 41 | AC66: =1+(AB66/COUNT($AB$3:AB$318)*10) -> 2.297468354 | AD66: 2 | AE66: 123 | AF66: 3.1% | AG66: 109 | AH66: 4.449367089 | AI66: 4 | AJ66: 0 | AK66: 0.0% | AL66: 1 | AM66: 1.03164557 | AN66: 1 | AO66: 2,272 | AP66: 1.6% | AQ66: 31 | AR66: 1.981012658 | AS66: 1 | AT66: 220 | AU66: 3.8% | AV66: 160 | AW66: 6.063291139 | AX66: 6 | AY66: 0 | AZ66: 0.0% | BA66: 1 | BB66: 1.03164557 | BC66: 1 | BD66: 0 | BE66: 0.0% | BF66: 1 | BG66: 1.03164557 | BH66: 1 | BI66: 1,262 | BJ66: 13.9% | BK66: 214 | BL66: 7.772151899 | BM66: 7 | BN66: 133 | BO66: 4.5% | BP66: 204 | BQ66: 7.455696203 | BR66: 7 | BT66: 108 | BU66: -13
A67: ='[1]Rapport 5'!A67 -> 126 | B67: ='[1]Rapport 5'!B67 -> MUTZIG | C67: ='[1]Rapport 5'!C67 -> 4126 | D67: ='[1]Rapport 5'!D67 -> MUTZIG | E67: ='[1]Rapport 5'!E67 -> 5101 | F67: ='[1]Rapport 5'!F67 -> SELESTAT | G67: ='[1]Rapport 5'!G67 -> 262 | H67: ='[1]Rapport 5'!H67 -> BAS RHIN | I67: ='[1]Rapport 5'!I67 -> 5220.59 | J67: ='[1]Rapport 5'!J67 -> 294.46 | K67: ='[1]Rapport 5'!K67 -> 0 | L67: ='[1]Rapport 5'!L67 -> 0 | M67: ='[1]Rapport 5'!M67 -> 125641.85 | N67: ='[1]Rapport 5'!N67 -> 3673.49 | O67: ='[1]Rapport 5'!O67 -> 8163.5 | P67: ='[1]Rapport 5'!P67 -> 42 | Q67: ='[1]Rapport 5'!Q67 -> 0 | R67: ='[1]Rapport 5'!R67 -> 0 | S67: ='[1]Rapport 5'!S67 -> 75 | T67: ='[1]Rapport 5'!T67 -> 0 | U67: ='[1]Rapport 5'!U67 -> 6055.07 | V67: ='[1]Rapport 5'!V67 -> 1032.95 | W67: ='[1]Rapport 5'!W67 -> 3939.68 | X67: ='[1]Rapport 5'!X67 -> 121.3 | Y67: 149,096 | Z67: 5,164 | AA67: 3.5% | AB67: =RANK(AA67,$AA$3:$AA$318,1) -> 127 | AC67: =1+(AB67/COUNT($AB$3:AB$318)*10) -> 5.018987342 | AD67: 5 | AE67: 294 | AF67: 5.6% | AG67: =RANK(AF67,$AF$3:$AF$318,1) -> 211 | AH67: =1+(AG67/COUNT($AG$3:$AG$318)*10) -> 7.67721519 | AI67: 7 | AJ67: 0 | AK67: 0.0% | AL67: =RANK(AK67,$AK$3:$AK$318,1) -> 1 | AM67: =1+(AL67/COUNT($AL$3:$AL$318)*10) -> 1.03164557 | AN67: 1 | AO67: 3,673 | AP67: 2.9% | AQ67: =RANK(AP67,$AP$3:$AP$318,1) -> 154 | AR67: =1+(AQ67/COUNT($AQ$3:$AQ$318)*10) -> 5.873417722 | AS67: 5 | AT67: 42 | AU67: 0.5% | AV67: =RANK(AU67,$AU$3:$AU$318,1) -> 70 | AW67: =1+(AV67/COUNT($AV$3:$AV$318)*10) -> 3.215189873 | AX67: 3 | AY67: 0 | AZ67: 0.0% | BA67: =RANK(AZ67,$AZ$3:$AZ$318,1) -> 1 | BB67: =1+(BA67/COUNT($BA$3:$BA$318)*10) -> 1.03164557 | BC67: 1 | BD67: 0 | BE67: 0.0% | BF67: =RANK(BE67,$BE$3:$BE$318,1) -> 1 | BG67: =1+(BF67/COUNT($BF$3:$BF$318)*10) -> 1.03164557 | BH67: 1 | BI67: 1,033 | BJ67: 17.1% | BK67: =RANK(BJ67,$BJ$3:$BJ$318,1) -> 242 | BL67: =1+(BK67/COUNT($BK$3:$BK$318)*10) -> 8.658227848 | BM67: 8 | BN67: 121 | BO67: 3.1% | BP67: =RANK(BO67,$BO$3:$BO$318,1) -> 146 | BQ67: =1+(BP67/COUNT($BP$3:$BP$318)*10) -> 5.620253165 | BR67: 5 | BT67: 109 | BU67: -17
A68: ='[1]Rapport 5'!A68 -> 127 | B68: ='[1]Rapport 5'!B68 -> ROSHEIM | C68: ='[1]Rapport 5'!C68 -> 4127 | D68: ='[1]Rapport 5'!D68 -> ROSHEIM | E68: ='[1]Rapport 5'!E68 -> 5101 | F68: ='[1]Rapport 5'!F68 -> SELESTAT | G68: ='[1]Rapport 5'!G68 -> 262 | H68: ='[1]Rapport 5'!H68 -> BAS RHIN | I68: ='[1]Rapport 5'!I68 -> 1599.72 | J68: ='[1]Rapport 5'!J68 -> 181.18 | K68: ='[1]Rapport 5'!K68 -> 0 | L68: ='[1]Rapport 5'!L68 -> 0 | M68: ='[1]Rapport 5'!M68 -> 82414.74 | N68: ='[1]Rapport 5'!N68 -> 2265.99 | O68: ='[1]Rapport 5'!O68 -> 3875 | P68: ='[1]Rapport 5'!P68 -> 298.5 | Q68: ='[1]Rapport 5'!Q68 -> 0 | R68: ='[1]Rapport 5'!R68 -> 0 | S68: ='[1]Rapport 5'!S68 -> 259 | T68: ='[1]Rapport 5'!T68 -> 41 | U68: ='[1]Rapport 5'!U68 -> 3446.36 | V68: ='[1]Rapport 5'!V68 -> 726.67 | W68: ='[1]Rapport 5'!W68 -> 2410.36 | X68: ='[1]Rapport 5'!X68 -> 14 | Y68: =+I68+K68+M68+O68+Q68+S68+U68+W68 -> 94,005 | Z68: =+J68+L68+N68+P68+R68+T68+V68+X68 -> 3,527 | AA68: =+Z68/Y68 -> 3.8% | AB68: 159 | AC68: =1+(AB68/COUNT($AB$3:AB$318)*10) -> 6.03164557 | AD68: =+IF(INT(AC68)=11,10,INT(AC68)) -> 6 | AE68: 181 | AF68: =+IF(ISERROR(AE68/I68),0,AE68/I68) -> 11.3% | AG68: 281 | AH68: 9.892405063 | AI68: 9 | AJ68: =+L68 -> 0 | AK68: =+IF(ISERROR(IF(AJ68=0,0,AJ68/K68)),1,IF(AJ68=0,0,AJ68/K68)) -> 0.0% | AL68: 1 | AM68: 1.03164557 | AN68: =+IF(INT(AM68)=11,10,INT(AM68)) -> 1 | AO68: =+N68 -> 2,266 | AP68: =+IF(ISERROR(IF(AO68=0,0,AO68/M68)),1,IF(AO68=0,0,AO68/M68)) -> 2.7% | AQ68: 136 | AR68: 5.303797468 | AS68: =+IF(INT(AR68)=11,10,INT(AR68)) -> 5 | AT68: 299 | AU68: 7.7% | AV68: 226 | AW68: 8.151898734 | AX68: 8 | AY68: 0 | AZ68: 0.0% | BA68: 1 | BB68: 1.03164557 | BC68: 1 | BD68: 41 | BE68: 15.8% | BF68: 289 | BG68: 10.14556962 | BH68: 10 | BI68: 727 | BJ68: 21.1% | BK68: 273 | BL68: 9.639240506 | BM68: 9 | BN68: 14 | BO68: 0.6% | BP68: 34 | BQ68: 2.075949367 | BR68: 2 | BT68: 110 | BU68: =+BT68-A68 -> -17
A69: ='[1]Rapport 5'!A69 -> 129 | B69: ='[1]Rapport 5'!B69 -> MARLENHEIM | C69: ='[1]Rapport 5'!C69 -> 4120 | D69: ='[1]Rapport 5'!D69 -> WASSELONNE | E69: ='[1]Rapport 5'!E69 -> 5101 | F69: ='[1]Rapport 5'!F69 -> SELESTAT | G69: ='[1]Rapport 5'!G69 -> 262 | H69: ='[1]Rapport 5'!H69 -> BAS RHIN | I69: ='[1]Rapport 5'!I69 -> 3015.05 | J69: ='[1]Rapport 5'!J69 -> 71.63 | K69: ='[1]Rapport 5'!K69 -> 0 | L69: ='[1]Rapport 5'!L69 -> 0 | M69: ='[1]Rapport 5'!M69 -> 81205.96 | N69: ='[1]Rapport 5'!N69 -> 1427.31 | O69: ='[1]Rapport 5'!O69 -> 2669 | P69: ='[1]Rapport 5'!P69 -> 70 | Q69: ='[1]Rapport 5'!Q69 -> 0 | R69: ='[1]Rapport 5'!R69 -> 0 | S69: ='[1]Rapport 5'!S69 -> 281 | T69: ='[1]Rapport 5'!T69 -> 0 | U69: ='[1]Rapport 5'!U69 -> 3625.71 | V69: ='[1]Rapport 5'!V69 -> 366.28 | W69: ='[1]Rapport 5'!W69 -> 4000.59 | X69: ='[1]Rapport 5'!X69 -> 246.59 | Y69: 94,797 | Z69: 2,182 | AA69: 2.3% | AB69: 36 | AC69: =1+(AB69/COUNT($AB$3:AB$318)*10) -> 2.139240506 | AD69: 2 | AE69: 72 | AF69: 2.4% | AG69: 68 | AH69: 3.151898734 | AI69: =+IF(INT(AH69)=11,10,INT(AH69)) -> 3 | AJ69: 0 | AK69: 0.0% | AL69: 1 | AM69: 1.03164557 | AN69: 1 | AO69: 1,427 | AP69: 1.8% | AQ69: 42 | AR69: 2.329113924 | AS69: 2 | AT69: =+P69 -> 70 | AU69: =+IF(ISERROR(IF(AT69=0,0,AT69/O69)),1,IF(AT69=0,0,AT69/O69)) -> 2.6% | AV69: 125 | AW69: 4.955696203 | AX69: =+IF(INT(AW69)=11,10,INT(AW69)) -> 4 | AY69: =+R69 -> 0 | AZ69: =+IF(ISERROR(IF(AY69=0,0,AY69/T69)),1,IF(AY69=0,0,AY69/T69)) -> 0.0% | BA69: 1 | BB69: 1.03164557 | BC69: =+IF(INT(BB69)=11,10,INT(BB69)) -> 1 | BD69: =+T69 -> 0 | BE69: =+IF(ISERROR(IF(BD69=0,0,BD69/S69)),1,IF(BD69=0,0,BD69/S69)) -> 0.0% | BF69: 1 | BG69: 1.03164557 | BH69: =+IF(INT(BG69)=11,10,INT(BG69)) -> 1 | BI69: =+V69 -> 366 | BJ69: =+IF(ISERROR(IF(BI69=0,0,BI69/U69)),1,IF(BI69=0,0,BI69/U69)) -> 10.1% | BK69: 160 | BL69: 6.063291139 | BM69: =+IF(INT(BL69)=11,10,INT(BL69)) -> 6 | BN69: =+X69 -> 247 | BO69: =+IF(ISERROR(IF(BN69=0,0,BN69/W69)),1,IF(BN69=0,0,BN69/W69)) -> 6.2% | BP69: 242 | BQ69: 8.658227848 | BR69: =+IF(INT(BQ69)=11,10,INT(BQ69)) -> 8 | BT69: 111 | BU69: -18
A70: ='[1]Rapport 5'!A70 -> 130 | B70: ='[1]Rapport 5'!B70 -> COLMAR REPUBLIQUE | C70: ='[1]Rapport 5'!C70 -> 4130 | D70: ='[1]Rapport 5'!D70 -> COLMAR REPUBLIQUE | E70: ='[1]Rapport 5'!E70 -> 5130 | F70: ='[1]Rapport 5'!F70 -> COLMAR | G70: ='[1]Rapport 5'!G70 -> 264 | H70: ='[1]Rapport 5'!H70 -> HAUT RHIN | I70: ='[1]Rapport 5'!I70 -> 9570.32 | J70: ='[1]Rapport 5'!J70 -> 309.81 | K70: ='[1]Rapport 5'!K70 -> 0 | L70: ='[1]Rapport 5'!L70 -> 0 | M70: ='[1]Rapport 5'!M70 -> 331528.42 | N70: ='[1]Rapport 5'!N70 -> 9094.54 | O70: ='[1]Rapport 5'!O70 -> 13379 | P70: ='[1]Rapport 5'!P70 -> 1276.68 | Q70: ='[1]Rapport 5'!Q70 -> 0 | R70: ='[1]Rapport 5'!R70 -> 0 | S70: ='[1]Rapport 5'!S70 -> 863.16 | T70: ='[1]Rapport 5'!T70 -> 0 | U70: ='[1]Rapport 5'!U70 -> 48098 | V70: ='[1]Rapport 5'!V70 -> 2896.03 | W70: ='[1]Rapport 5'!W70 -> 24640.23 | X70: ='[1]Rapport 5'!X70 -> 1098.66 | Y70: 428,079 | Z70: 14,676 | AA70: 3.4% | AB70: 121 | AC70: =1+(AB70/COUNT($AB$3:AB$318)*10) -> 4.829113924 | AD70: 4 | AE70: 310 | AF70: 3.2% | AG70: 116 | AH70: 4.670886076 | AI70: 4 | AJ70: 0 | AK70: 0.0% | AL70: 1 | AM70: 1.03164557 | AN70: 1 | AO70: 9,095 | AP70: 2.7% | AQ70: 135 | AR70: 5.272151899 | AS70: 5 | AT70: 1,277 | AU70: 9.5% | AV70: 247 | AW70: 8.816455696 | AX70: 8 | AY70: 0 | AZ70: 0.0% | BA70: 1 | BB70: 1.03164557 | BC70: 1 | BD70: 0 | BE70: 0.0% | BF70: 1 | BG70: 1.03164557 | BH70: 1 | BI70: 2,896 | BJ70: 6.0% | BK70: 85 | BL70: 3.689873418 | BM70: 3 | BN70: 1,099 | BO70: 4.5% | BP70: 203 | BQ70: 7.424050633 | BR70: 7 | BT70: 113 | BU70: -17
A71: ='[1]Rapport 5'!A71 -> 132 | B71: ='[1]Rapport 5'!B71 -> COLMAR MARAICHERS | C71: ='[1]Rapport 5'!C71 -> 4132 | D71: ='[1]Rapport 5'!D71 -> COLMAR MARAICHERS | E71: ='[1]Rapport 5'!E71 -> 5130 | F71: ='[1]Rapport 5'!F71 -> COLMAR | G71: ='[1]Rapport 5'!G71 -> 264 | H71: ='[1]Rapport 5'!H71 -> HAUT RHIN | I71: ='[1]Rapport 5'!I71 -> 6444.63 | J71: ='[1]Rapport 5'!J71 -> 332.25 | K71: ='[1]Rapport 5'!K71 -> 0 | L71: ='[1]Rapport 5'!L71 -> 0 | M71: ='[1]Rapport 5'!M71 -> 227906.24 | N71: ='[1]Rapport 5'!N71 -> 5340.71 | O71: ='[1]Rapport 5'!O71 -> 6026 | P71: ='[1]Rapport 5'!P71 -> 326 | Q71: ='[1]Rapport 5'!Q71 -> 0 | R71: ='[1]Rapport 5'!R71 -> 0 | S71: ='[1]Rapport 5'!S71 -> 537.1 | T71: ='[1]Rapport 5'!T71 -> 26 | U71: ='[1]Rapport 5'!U71 -> 19815.29 | V71: ='[1]Rapport 5'!V71 -> 1239 | W71: ='[1]Rapport 5'!W71 -> 10643.18 | X71: ='[1]Rapport 5'!X71 -> 69.42 | Y71: 271,372 | Z71: 7,333 | AA71: 2.7% | AB71: 59 | AC71: =1+(AB71/COUNT($AB$3:AB$318)*10) -> 2.867088608 | AD71: 2 | AE71: 332 | AF71: 5.2% | AG71: 195 | AH71: 7.170886076 | AI71: 7 | AJ71: 0 | AK71: 0.0% | AL71: 1 | AM71: 1.03164557 | AN71: 1 | AO71: 5,341 | AP71: 2.3% | AQ71: 89 | AR71: 3.816455696 | AS71: 3 | AT71: 326 | AU71: 5.4% | AV71: 192 | AW71: 7.075949367 | AX71: 7 | AY71: 0 | AZ71: 0.0% | BA71: 1 | BB71: 1.03164557 | BC71: 1 | BD71: 26 | BE71: 4.8% | BF71: 248 | BG71: 8.848101266 | BH71: 8 | BI71: 1,239 | BJ71: 6.3% | BK71: 90 | BL71: 3.848101266 | BM71: 3 | BN71: 69 | BO71: 0.7% | BP71: 37 | BQ71: 2.170886076 | BR71: 2 | BT71: 116 | BU71: -16
A72: ='[1]Rapport 5'!A72 -> 133 | B72: ='[1]Rapport 5'!B72 -> COLMAR VAUBAN | C72: ='[1]Rapport 5'!C72 -> 4133 | D72: ='[1]Rapport 5'!D72 -> COLMAR VAUBAN | E72: ='[1]Rapport 5'!E72 -> 5130 | F72: ='[1]Rapport 5'!F72 -> COLMAR | G72: ='[1]Rapport 5'!G72 -> 264 | H72: ='[1]Rapport 5'!H72 -> HAUT RHIN | I72: ='[1]Rapport 5'!I72 -> 0 | J72: ='[1]Rapport 5'!J72 -> 0 | K72: ='[1]Rapport 5'!K72 -> 0 | L72: ='[1]Rapport 5'!L72 -> 0 | M72: ='[1]Rapport 5'!M72 -> 11.8 | N72: ='[1]Rapport 5'!N72 -> 0 | O72: ='[1]Rapport 5'!O72 -> 0 | P72: ='[1]Rapport 5'!P72 -> 0 | Q72: ='[1]Rapport 5'!Q72 -> 0 | R72: ='[1]Rapport 5'!R72 -> 0 | S72: ='[1]Rapport 5'!S72 -> 0 | T72: ='[1]Rapport 5'!T72 -> 0 | U72: ='[1]Rapport 5'!U72 -> 0 | V72: ='[1]Rapport 5'!V72 -> 0 | W72: ='[1]Rapport 5'!W72 -> 0 | X72: ='[1]Rapport 5'!X72 -> 0 | Y72: 12 | Z72: 0 | AA72: 0.0% | AB72: 1 | AC72: =1+(AB72/COUNT($AB$3:AB$318)*10) -> 1.03164557 | AD72: 1 | AE72: 0 | AF72: 0.0% | AG72: 1 | AH72: 1.03164557 | AI72: 1 | AJ72: 0 | AK72: 0.0% | AL72: 1 | AM72: 1.03164557 | AN72: 1 | AO72: 0 | AP72: 0.0% | AQ72: 1 | AR72: 1.03164557 | AS72: 1 | AT72: 0 | AU72: 0.0% | AV72: 1 | AW72: 1.03164557 | AX72: 1 | AY72: 0 | AZ72: 0.0% | BA72: 1 | BB72: 1.03164557 | BC72: 1 | BD72: 0 | BE72: 0.0% | BF72: 1 | BG72: 1.03164557 | BH72: 1 | BI72: 0 | BJ72: 0.0% | BK72: 1 | BL72: 1.03164557 | BM72: 1 | BN72: 0 | BO72: 0.0% | BP72: 1 | BQ72: 1.03164557 | BR72: 1 | BT72: 119 | BU72: -14
A73: ='[1]Rapport 5'!A73 -> 134 | B73: ='[1]Rapport 5'!B73 -> COLMAR SAINT JOSEPH | C73: ='[1]Rapport 5'!C73 -> 4134 | D73: ='[1]Rapport 5'!D73 -> COLMAR SAINT JOSEPH | E73: ='[1]Rapport 5'!E73 -> 5130 | F73: ='[1]Rapport 5'!F73 -> COLMAR | G73: ='[1]Rapport 5'!G73 -> 264 | H73: ='[1]Rapport 5'!H73 -> HAUT RHIN | I73: ='[1]Rapport 5'!I73 -> 0 | J73: ='[1]Rapport 5'!J73 -> 0 | K73: ='[1]Rapport 5'!K73 -> 0 | L73: ='[1]Rapport 5'!L73 -> 0 | M73: ='[1]Rapport 5'!M73 -> 12.4 | N73: ='[1]Rapport 5'!N73 -> 0 | O73: ='[1]Rapport 5'!O73 -> 0 | P73: ='[1]Rapport 5'!P73 -> 0 | Q73: ='[1]Rapport 5'!Q73 -> 0 | R73: ='[1]Rapport 5'!R73 -> 0 | S73: ='[1]Rapport 5'!S73 -> 0 | T73: ='[1]Rapport 5'!T73 -> 0 | U73: ='[1]Rapport 5'!U73 -> 0 | V73: ='[1]Rapport 5'!V73 -> 0 | W73: ='[1]Rapport 5'!W73 -> 0 | X73: ='[1]Rapport 5'!X73 -> 0 | Y73: 12 | Z73: 0 | AA73: 0.0% | AB73: 1 | AC73: =1+(AB73/COUNT($AB$3:AB$318)*10) -> 1.03164557 | AD73: 1 | AE73: 0 | AF73: 0.0% | AG73: 1 | AH73: 1.03164557 | AI73: 1 | AJ73: 0 | AK73: 0.0% | AL73: 1 | AM73: 1.03164557 | AN73: 1 | AO73: 0 | AP73: 0.0% | AQ73: 1 | AR73: 1.03164557 | AS73: 1 | AT73: 0 | AU73: 0.0% | AV73: 1 | AW73: 1.03164557 | AX73: 1 | AY73: 0 | AZ73: 0.0% | BA73: 1 | BB73: 1.03164557 | BC73: 1 | BD73: 0 | BE73: 0.0% | BF73: 1 | BG73: 1.03164557 | BH73: 1 | BI73: 0 | BJ73: 0.0% | BK73: 1 | BL73: 1.03164557 | BM73: 1 | BN73: 0 | BO73: 0.0% | BP73: 1 | BQ73: 1.03164557 | BR73: 1 | BT73: 120 | BU73: -14
A74: ='[1]Rapport 5'!A74 -> 135 | B74: ='[1]Rapport 5'!B74 -> COLMAR SAINTE MARIE | C74: ='[1]Rapport 5'!C74 -> 4135 | D74: ='[1]Rapport 5'!D74 -> COLMAR SAINTE MARIE | E74: ='[1]Rapport 5'!E74 -> 5130 | F74: ='[1]Rapport 5'!F74 -> COLMAR | G74: ='[1]Rapport 5'!G74 -> 264 | H74: ='[1]Rapport 5'!H74 -> HAUT RHIN | I74: ='[1]Rapport 5'!I74 -> 8732.64 | J74: ='[1]Rapport 5'!J74 -> 205.86 | K74: ='[1]Rapport 5'!K74 -> 0 | L74: ='[1]Rapport 5'!L74 -> 0 | M74: ='[1]Rapport 5'!M74 -> 363648.35 | N74: ='[1]Rapport 5'!N74 -> 10406.51 | O74: ='[1]Rapport 5'!O74 -> 7478 | P74: ='[1]Rapport 5'!P74 -> 205 | Q74: ='[1]Rapport 5'!Q74 -> 0 | R74: ='[1]Rapport 5'!R74 -> 0 | S74: ='[1]Rapport 5'!S74 -> 2386.05 | T74: ='[1]Rapport 5'!T74 -> 202 | U74: ='[1]Rapport 5'!U74 -> 26745.46 | V74: ='[1]Rapport 5'!V74 -> 2382.27 | W74: ='[1]Rapport 5'!W74 -> 10929.58 | X74: ='[1]Rapport 5'!X74 -> 205.2 | Y74: 419,920 | Z74: 13,607 | AA74: 3.2% | AB74: 102 | AC74: =1+(AB74/COUNT($AB$3:AB$318)*10) -> 4.227848101 | AD74: 4 | AE74: 206 | AF74: 2.4% | AG74: 67 | AH74: 3.120253165 | AI74: 3 | AJ74: 0 | AK74: 0.0% | AL74: 1 | AM74: 1.03164557 | AN74: 1 | AO74: 10,407 | AP74: 2.9% | AQ74: 147 | AR74: 5.651898734 | AS74: 5 | AT74: 205 | AU74: 2.7% | AV74: 128 | AW74: 5.050632911 | AX74: 5 | AY74: 0 | AZ74: 0.0% | BA74: 1 | BB74: 1.03164557 | BC74: 1 | BD74: 202 | BE74: 8.5% | BF74: 270 | BG74: 9.544303797 | BH74: 9 | BI74: 2,382 | BJ74: 8.9% | BK74: 138 | BL74: 5.367088608 | BM74: 5 | BN74: 205 | BO74: 1.9% | BP74: 102 | BQ74: 4.227848101 | BR74: 4 | BT74: 121 | BU74: -14
A75: ='[1]Rapport 5'!A75 -> 139 | B75: ='[1]Rapport 5'!B75 -> INGERSHEIM | C75: ='[1]Rapport 5'!C75 -> 4139 | D75: ='[1]Rapport 5'!D75 -> INGERSHEIM | E75: ='[1]Rapport 5'!E75 -> 5130 | F75: ='[1]Rapport 5'!F75 -> COLMAR | G75: ='[1]Rapport 5'!G75 -> 264 | H75: ='[1]Rapport 5'!H75 -> HAUT RHIN | I75: ='[1]Rapport 5'!I75 -> 4564.69 | J75: ='[1]Rapport 5'!J75 -> 304.14 | K75: ='[1]Rapport 5'!K75 -> 0 | L75: ='[1]Rapport 5'!L75 -> 884.41 | M75: ='[1]Rapport 5'!M75 -> 182242.71 | N75: ='[1]Rapport 5'!N75 -> 4543.24 | O75: ='[1]Rapport 5'!O75 -> 6157.5 | P75: ='[1]Rapport 5'!P75 -> 327 | Q75: ='[1]Rapport 5'!Q75 -> 0 | R75: ='[1]Rapport 5'!R75 -> 0 | S75: ='[1]Rapport 5'!S75 -> 322.99 | T75: ='[1]Rapport 5'!T75 -> 0 | U75: ='[1]Rapport 5'!U75 -> 11320.86 | V75: ='[1]Rapport 5'!V75 -> 1467.09 | W75: ='[1]Rapport 5'!W75 -> 6099.25 | X75: ='[1]Rapport 5'!X75 -> 191.02 | Y75: 210,708 | Z75: 7,717 | AA75: 3.7% | AB75: 148 | AC75: =1+(AB75/COUNT($AB$3:AB$318)*10) -> 5.683544304 | AD75: 5 | AE75: 304 | AF75: 6.7% | AG75: 231 | AH75: 8.310126582 | AI75: 8 | AJ75: 884 | AK75: 100.0% | AL75: 288 | AM75: 10.11392405 | AN75: 10 | AO75: 4,543 | AP75: 2.5% | AQ75: 108 | AR75: 4.417721519 | AS75: 4 | AT75: 327 | AU75: 5.3% | AV75: 188 | AW75: 6.949367089 | AX75: 6 | AY75: 0 | AZ75: 0.0% | BA75: 1 | BB75: 1.03164557 | BC75: 1 | BD75: 0 | BE75: 0.0% | BF75: 1 | BG75: 1.03164557 | BH75: 1 | BI75: 1,467 | BJ75: 13.0% | BK75: 204 | BL75: 7.455696203 | BM75: 7 | BN75: 191 | BO75: 3.1% | BP75: 147 | BQ75: 5.651898734 | BR75: 5 | BT75: 126 | BU75: -13
A76: ='[1]Rapport 5'!A76 -> 140 | B76: ='[1]Rapport 5'!B76 -> WINTZENHEIM | C76: ='[1]Rapport 5'!C76 -> 4139 | D76: ='[1]Rapport 5'!D76 -> INGERSHEIM | E76: ='[1]Rapport 5'!E76 -> 5130 | F76: ='[1]Rapport 5'!F76 -> COLMAR | G76: ='[1]Rapport 5'!G76 -> 264 | H76: ='[1]Rapport 5'!H76 -> HAUT RHIN | I76: ='[1]Rapport 5'!I76 -> 4351.23 | J76: ='[1]Rapport 5'!J76 -> 127.2 | K76: ='[1]Rapport 5'!K76 -> 0 | L76: ='[1]Rapport 5'!L76 -> 136.4 | M76: ='[1]Rapport 5'!M76 -> 79835.16 | N76: ='[1]Rapport 5'!N76 -> 3033.75 | O76: ='[1]Rapport 5'!O76 -> 1831 | P76: ='[1]Rapport 5'!P76 -> 59.23 | Q76: ='[1]Rapport 5'!Q76 -> 0 | R76: ='[1]Rapport 5'!R76 -> 0 | S76: ='[1]Rapport 5'!S76 -> 78 | T76: ='[1]Rapport 5'!T76 -> 13 | U76: ='[1]Rapport 5'!U76 -> 6793.72 | V76: ='[1]Rapport 5'!V76 -> 399.17 | W76: ='[1]Rapport 5'!W76 -> 3446.45 | X76: ='[1]Rapport 5'!X76 -> 0 | Y76: 96,336 | Z76: 3,769 | AA76: 3.9% | AB76: 183 | AC76: =1+(AB76/COUNT($AB$3:AB$318)*10) -> 6.791139241 | AD76: 6 | AE76: 127 | AF76: 2.9% | AG76: 99 | AH76: 4.132911392 | AI76: 4 | AJ76: 136 | AK76: 100.0% | AL76: 288 | AM76: 10.11392405 | AN76: 10 | AO76: 3,034 | AP76: 3.8% | AQ76: 245 | AR76: 8.753164557 | AS76: 8 | AT76: 59 | AU76: 3.2% | AV76: 143 | AW76: 5.525316456 | AX76: 5 | AY76: 0 | AZ76: 0.0% | BA76: 1 | BB76: 1.03164557 | BC76: 1 | BD76: 13 | BE76: 16.7% | BF76: 291 | BG76: 10.20886076 | BH76: 10 | BI76: 399 | BJ76: 5.9% | BK76: 82 | BL76: 3.594936709 | BM76: 3 | BN76: 0 | BO76: 0.0% | BP76: 1 | BQ76: 1.03164557 | BR76: 1 | BT76: 127 | BU76: -13
A77: ='[1]Rapport 5'!A77 -> 141 | B77: ='[1]Rapport 5'!B77 -> HORBOURG WIHR | C77: ='[1]Rapport 5'!C77 -> 4141 | D77: ='[1]Rapport 5'!D77 -> HORBOURG WIHR | E77: ='[1]Rapport 5'!E77 -> 5130 | F77: ='[1]Rapport 5'!F77 -> COLMAR | G77: ='[1]Rapport 5'!G77 -> 264 | H77: ='[1]Rapport 5'!H77 -> HAUT RHIN | I77: ='[1]Rapport 5'!I77 -> 4053.34 | J77: ='[1]Rapport 5'!J77 -> 361.5 | K77: ='[1]Rapport 5'!K77 -> 0 | L77: ='[1]Rapport 5'!L77 -> 955.96 | M77: ='[1]Rapport 5'!M77 -> 160817.2 | N77: ='[1]Rapport 5'!N77 -> 7342.17 | O77: ='[1]Rapport 5'!O77 -> 5513 | P77: ='[1]Rapport 5'!P77 -> 319.4 | Q77: ='[1]Rapport 5'!Q77 -> 0 | R77: ='[1]Rapport 5'!R77 -> 0 | S77: ='[1]Rapport 5'!S77 -> 842.46 | T77: ='[1]Rapport 5'!T77 -> 13 | U77: ='[1]Rapport 5'!U77 -> 7961.97 | V77: ='[1]Rapport 5'!V77 -> 1159.69 | W77: ='[1]Rapport 5'!W77 -> 8531.63 | X77: ='[1]Rapport 5'!X77 -> 1342.81 | Y77: 187,720 | Z77: 11,495 | AA77: 6.1% | AB77: 301 | AC77: =1+(AB77/COUNT($AB$3:AB$318)*10) -> 10.52531646 | AD77: 10 | AE77: 362 | AF77: 8.9% | AG77: 257 | AH77: 9.132911392 | AI77: 9 | AJ77: 956 | AK77: 100.0% | AL77: 288 | AM77: 10.11392405 | AN77: 10 | AO77: 7,342 | AP77: 4.6% | AQ77: 287 | AR77: 10.08227848 | AS77: 10 | AT77: 319 | AU77: 5.8% | AV77: 202 | AW77: 7.392405063 | AX77: 7 | AY77: 0 | AZ77: 0.0% | BA77: 1 | BB77: 1.03164557 | BC77: 1 | BD77: 13 | BE77: 1.5% | BF77: 227 | BG77: 8.183544304 | BH77: 8 | BI77: 1,160 | BJ77: 14.6% | BK77: 220 | BL77: 7.962025316 | BM77: 7 | BN77: 1,343 | BO77: 15.7% | BP77: 306 | BQ77: 10.6835443 | BR77: 10 | BT77: 129 | BU77: -12
A78: ='[1]Rapport 5'!A78 -> 143 | B78: ='[1]Rapport 5'!B78 -> MUNSTER | C78: ='[1]Rapport 5'!C78 -> 4143 | D78: ='[1]Rapport 5'!D78 -> MUNSTER | E78: ='[1]Rapport 5'!E78 -> 5130 | F78: ='[1]Rapport 5'!F78 -> COLMAR | G78: ='[1]Rapport 5'!G78 -> 264 | H78: ='[1]Rapport 5'!H78 -> HAUT RHIN | I78: ='[1]Rapport 5'!I78 -> 4621.6 | J78: ='[1]Rapport 5'!J78 -> 247.46 | K78: ='[1]Rapport 5'!K78 -> 0 | L78: ='[1]Rapport 5'!L78 -> 0 | M78: ='[1]Rapport 5'!M78 -> 216701.85 | N78: ='[1]Rapport 5'!N78 -> 5666.95 | O78: ='[1]Rapport 5'!O78 -> 13100.5 | P78: ='[1]Rapport 5'!P78 -> 443 | Q78: ='[1]Rapport 5'!Q78 -> 0 | R78: ='[1]Rapport 5'!R78 -> 0 | S78: ='[1]Rapport 5'!S78 -> 678 | T78: ='[1]Rapport 5'!T78 -> 75 | U78: ='[1]Rapport 5'!U78 -> 9142.98 | V78: ='[1]Rapport 5'!V78 -> 1713.05 | W78: ='[1]Rapport 5'!W78 -> 8506.57 | X78: ='[1]Rapport 5'!X78 -> 163.33 | Y78: 252,752 | Z78: 8,309 | AA78: 3.3% | AB78: 106 | AC78: =1+(AB78/COUNT($AB$3:AB$318)*10) -> 4.35443038 | AD78: 4 | AE78: 247 | AF78: 5.4% | AG78: 201 | AH78: 7.360759494 | AI78: 7 | AJ78: 0 | AK78: 0.0% | AL78: 1 | AM78: 1.03164557 | AN78: 1 | AO78: 5,667 | AP78: 2.6% | AQ78: 122 | AR78: 4.860759494 | AS78: 4 | AT78: 443 | AU78: 3.4% | AV78: 152 | AW78: 5.810126582 | AX78: 5 | AY78: 0 | AZ78: 0.0% | BA78: 1 | BB78: 1.03164557 | BC78: 1 | BD78: 75 | BE78: 11.1% | BF78: 277 | BG78: 9.765822785 | BH78: 9 | BI78: 1,713 | BJ78: 18.7% | BK78: 254 | BL78: 9.037974684 | BM78: 9 | BN78: 163 | BO78: 1.9% | BP78: 104 | BQ78: 4.291139241 | BR78: 4 | BT78: 130 | BU78: -13
A79: ='[1]Rapport 5'!A79 -> 144 | B79: ='[1]Rapport 5'!B79 -> RIBEAUVILLE | C79: ='[1]Rapport 5'!C79 -> 4144 | D79: ='[1]Rapport 5'!D79 -> RIBEAUVILLE | E79: ='[1]Rapport 5'!E79 -> 5130 | F79: ='[1]Rapport 5'!F79 -> COLMAR | G79: ='[1]Rapport 5'!G79 -> 264 | H79: ='[1]Rapport 5'!H79 -> HAUT RHIN | I79: ='[1]Rapport 5'!I79 -> 2046.82 | J79: ='[1]Rapport 5'!J79 -> 212.47 | K79: ='[1]Rapport 5'!K79 -> 0 | L79: ='[1]Rapport 5'!L79 -> 0 | M79: ='[1]Rapport 5'!M79 -> 101982.62 | N79: ='[1]Rapport 5'!N79 -> 2624.23 | O79: ='[1]Rapport 5'!O79 -> 4063.45 | P79: ='[1]Rapport 5'!P79 -> 200 | Q79: ='[1]Rapport 5'!Q79 -> 0 | R79: ='[1]Rapport 5'!R79 -> 0 | S79: ='[1]Rapport 5'!S79 -> 26 | T79: ='[1]Rapport 5'!T79 -> 0 | U79: ='[1]Rapport 5'!U79 -> 5993.38 | V79: ='[1]Rapport 5'!V79 -> 479.23 | W79: ='[1]Rapport 5'!W79 -> 6852.52 | X79: ='[1]Rapport 5'!X79 -> 191.42 | Y79: 120,965 | Z79: 3,707 | AA79: 3.1% | AB79: 79 | AC79: =1+(AB79/COUNT($AB$3:AB$318)*10) -> 3.5 | AD79: 3 | AE79: 212 | AF79: 10.4% | AG79: 273 | AH79: 9.639240506 | AI79: 9 | AJ79: 0 | AK79: 0.0% | AL79: 1 | AM79: 1.03164557 | AN79: 1 | AO79: 2,624 | AP79: 2.6% | AQ79: 115 | AR79: 4.639240506 | AS79: 4 | AT79: 200 | AU79: 4.9% | AV79: 182 | AW79: 6.759493671 | AX79: 6 | AY79: 0 | AZ79: 0.0% | BA79: 1 | BB79: 1.03164557 | BC79: 1 | BD79: 0 | BE79: 0.0% | BF79: 1 | BG79: 1.03164557 | BH79: 1 | BI79: 479 | BJ79: 8.0% | BK79: 118 | BL79: 4.734177215 | BM79: 4 | BN79: 191 | BO79: 2.8% | BP79: 137 | BQ79: 5.335443038 | BR79: 5 | BT79: 132 | BU79: -12
A80: ='[1]Rapport 5'!A80 -> 147 | B80: ='[1]Rapport 5'!B80 -> GUEBWILLER | C80: ='[1]Rapport 5'!C80 -> 4147 | D80: ='[1]Rapport 5'!D80 -> GUEBWILLER | E80: ='[1]Rapport 5'!E80 -> 5130 | F80: ='[1]Rapport 5'!F80 -> COLMAR | G80: ='[1]Rapport 5'!G80 -> 264 | H80: ='[1]Rapport 5'!H80 -> HAUT RHIN | I80: ='[1]Rapport 5'!I80 -> 6460.62 | J80: ='[1]Rapport 5'!J80 -> 289.76 | K80: ='[1]Rapport 5'!K80 -> 0 | L80: ='[1]Rapport 5'!L80 -> 0 | M80: ='[1]Rapport 5'!M80 -> 163364.18 | N80: ='[1]Rapport 5'!N80 -> 3682 | O80: ='[1]Rapport 5'!O80 -> 3494.5 | P80: ='[1]Rapport 5'!P80 -> 242.5 | Q80: ='[1]Rapport 5'!Q80 -> 0 | R80: ='[1]Rapport 5'!R80 -> 0 | S80: ='[1]Rapport 5'!S80 -> 122 | T80: ='[1]Rapport 5'!T80 -> 0 | U80: ='[1]Rapport 5'!U80 -> 10730.16 | V80: ='[1]Rapport 5'!V80 -> 1070.19 | W80: ='[1]Rapport 5'!W80 -> 5568.39 | X80: ='[1]Rapport 5'!X80 -> 170.99 | Y80: 189,740 | Z80: 5,455 | AA80: 2.9% | AB80: 65 | AC80: =1+(AB80/COUNT($AB$3:AB$318)*10) -> 3.056962025 | AD80: 3 | AE80: 290 | AF80: 4.5% | AG80: 169 | AH80: 6.348101266 | AI80: 6 | AJ80: 0 | AK80: 0.0% | AL80: 1 | AM80: 1.03164557 | AN80: 1 | AO80: 3,682 | AP80: 2.3% | AQ80: 80 | AR80: 3.53164557 | AS80: 3 | AT80: 243 | AU80: 6.9% | AV80: 221 | AW80: 7.993670886 | AX80: 7 | AY80: 0 | AZ80: 0.0% | BA80: 1 | BB80: 1.03164557 | BC80: 1 | BD80: 0 | BE80: 0.0% | BF80: 1 | BG80: 1.03164557 | BH80: 1 | BI80: 1,070 | BJ80: 10.0% | BK80: 158 | BL80: 6 | BM80: 6 | BN80: 171 | BO80: 3.1% | BP80: 145 | BQ80: 5.588607595 | BR80: 5 | BT80: 133 | BU80: -14
A81: ='[1]Rapport 5'!A81 -> 148 | B81: ='[1]Rapport 5'!B81 -> ORBEY | C81: ='[1]Rapport 5'!C81 -> 4148 | D81: ='[1]Rapport 5'!D81 -> ORBEY | E81: ='[1]Rapport 5'!E81 -> 5130 | F81: ='[1]Rapport 5'!F81 -> COLMAR | G81: ='[1]Rapport 5'!G81 -> 264 | H81: ='[1]Rapport 5'!H81 -> HAUT RHIN | I81: ='[1]Rapport 5'!I81 -> 1746.81 | J81: ='[1]Rapport 5'!J81 -> 173.34 | K81: ='[1]Rapport 5'!K81 -> 0 | L81: ='[1]Rapport 5'!L81 -> 0 | M81: ='[1]Rapport 5'!M81 -> 126378.03 | N81: ='[1]Rapport 5'!N81 -> 3998.55 | O81: ='[1]Rapport 5'!O81 -> 2605 | P81: ='[1]Rapport 5'!P81 -> 235 | Q81: ='[1]Rapport 5'!Q81 -> 0 | R81: ='[1]Rapport 5'!R81 -> 0 | S81: ='[1]Rapport 5'!S81 -> 199 | T81: ='[1]Rapport 5'!T81 -> 0 | U81: ='[1]Rapport 5'!U81 -> 9535.62 | V81: ='[1]Rapport 5'!V81 -> 1033.8 | W81: ='[1]Rapport 5'!W81 -> 4291.63 | X81: ='[1]Rapport 5'!X81 -> 162.6 | Y81: 144,756 | Z81: 5,603 | AA81: 3.9% | AB81: 178 | AC81: =1+(AB81/COUNT($AB$3:AB$318)*10) -> 6.632911392 | AD81: 6 | AE81: 173 | AF81: 9.9% | AG81: 269 | AH81: 9.512658228 | AI81: 9 | AJ81: 0 | AK81: 0.0% | AL81: 1 | AM81: 1.03164557 | AN81: 1 | AO81: 3,999 | AP81: 3.2% | AQ81: 180 | AR81: 6.696202532 | AS81: 6 | AT81: 235 | AU81: 9.0% | AV81: 238 | AW81: 8.53164557 | AX81: 8 | AY81: 0 | AZ81: 0.0% | BA81: 1 | BB81: 1.03164557 | BC81: 1 | BD81: 0 | BE81: 0.0% | BF81: 1 | BG81: 1.03164557 | BH81: 1 | BI81: 1,034 | BJ81: 10.8% | BK81: 174 | BL81: 6.506329114 | BM81: 6 | BN81: 163 | BO81: 3.8% | BP81: 182 | BQ81: 6.759493671 | BR81: 6 | BT81: 134 | BU81: -14
A82: ='[1]Rapport 5'!A82 -> 152 | B82: ='[1]Rapport 5'!B82 -> KAYSERSBERG | C82: ='[1]Rapport 5'!C82 -> 4148 | D82: ='[1]Rapport 5'!D82 -> ORBEY | E82: ='[1]Rapport 5'!E82 -> 5130 | F82: ='[1]Rapport 5'!F82 -> COLMAR | G82: ='[1]Rapport 5'!G82 -> 264 | H82: ='[1]Rapport 5'!H82 -> HAUT RHIN | I82: ='[1]Rapport 5'!I82 -> 852.93 | J82: ='[1]Rapport 5'!J82 -> 74.22 | K82: ='[1]Rapport 5'!K82 -> 0 | L82: ='[1]Rapport 5'!L82 -> 0 | M82: ='[1]Rapport 5'!M82 -> 58782.59 | N82: ='[1]Rapport 5'!N82 -> 1849.38 | O82: ='[1]Rapport 5'!O82 -> 2171.5 | P82: ='[1]Rapport 5'!P82 -> 0 | Q82: ='[1]Rapport 5'!Q82 -> 0 | R82: ='[1]Rapport 5'!R82 -> 0 | S82: ='[1]Rapport 5'!S82 -> 10 | T82: ='[1]Rapport 5'!T82 -> 0 | U82: ='[1]Rapport 5'!U82 -> 3786.93 | V82: ='[1]Rapport 5'!V82 -> 232.9 | W82: ='[1]Rapport 5'!W82 -> 2429.53 | X82: ='[1]Rapport 5'!X82 -> 28 | Y82: 68,033 | Z82: 2,185 | AA82: 3.2% | AB82: 95 | AC82: =1+(AB82/COUNT($AB$3:AB$318)*10) -> 4.006329114 | AD82: 4 | AE82: 74 | AF82: 8.7% | AG82: 254 | AH82: 9.037974684 | AI82: 9 | AJ82: 0 | AK82: 0.0% | AL82: 1 | AM82: 1.03164557 | AN82: 1 | AO82: 1,849 | AP82: 3.1% | AQ82: 178 | AR82: 6.632911392 | AS82: 6 | AT82: 0 | AU82: 0.0% | AV82: 1 | AW82: 1.03164557 | AX82: 1 | AY82: 0 | AZ82: 0.0% | BA82: 1 | BB82: 1.03164557 | BC82: 1 | BD82: 0 | BE82: 0.0% | BF82: 1 | BG82: 1.03164557 | BH82: 1 | BI82: 233 | BJ82: 6.2% | BK82: 88 | BL82: 3.784810127 | BM82: 3 | BN82: 28 | BO82: 1.2% | BP82: 63 | BQ82: 2.993670886 | BR82: 2 | BT82: 135 | BU82: -17
A83: ='[1]Rapport 5'!A83 -> 153 | B83: ='[1]Rapport 5'!B83 -> ROUFFACH | C83: ='[1]Rapport 5'!C83 -> 4153 | D83: ='[1]Rapport 5'!D83 -> ROUFFACH | E83: ='[1]Rapport 5'!E83 -> 5130 | F83: ='[1]Rapport 5'!F83 -> COLMAR | G83: ='[1]Rapport 5'!G83 -> 264 | H83: ='[1]Rapport 5'!H83 -> HAUT RHIN | I83: ='[1]Rapport 5'!I83 -> 3061.8 | J83: ='[1]Rapport 5'!J83 -> 281.84 | K83: ='[1]Rapport 5'!K83 -> 0 | L83: ='[1]Rapport 5'!L83 -> 0 | M83: ='[1]Rapport 5'!M83 -> 106177.65 | N83: ='[1]Rapport 5'!N83 -> 3925.17 | O83: ='[1]Rapport 5'!O83 -> 5471 | P83: ='[1]Rapport 5'!P83 -> 19 | Q83: ='[1]Rapport 5'!Q83 -> 0 | R83: ='[1]Rapport 5'!R83 -> 0 | S83: ='[1]Rapport 5'!S83 -> 512 | T83: ='[1]Rapport 5'!T83 -> 0 | U83: ='[1]Rapport 5'!U83 -> 9145.38 | V83: ='[1]Rapport 5'!V83 -> 859.82 | W83: ='[1]Rapport 5'!W83 -> 4730.81 | X83: ='[1]Rapport 5'!X83 -> 609.07 | Y83: 129,099 | Z83: 5,695 | AA83: 4.4% | AB83: 233 | AC83: =1+(AB83/COUNT($AB$3:AB$318)*10) -> 8.373417722 | AD83: 8 | AE83: 282 | AF83: 9.2% | AG83: 260 | AH83: 9.227848101 | AI83: 9 | AJ83: 0 | AK83: 0.0% | AL83: 1 | AM83: 1.03164557 | AN83: 1 | AO83: 3,925 | AP83: 3.7% | AQ83: 238 | AR83: 8.53164557 | AS83: 8 | AT83: 19 | AU83: 0.3% | AV83: 63 | AW83: 2.993670886 | AX83: 2 | AY83: 0 | AZ83: 0.0% | BA83: 1 | BB83: 1.03164557 | BC83: 1 | BD83: 0 | BE83: 0.0% | BF83: 1 | BG83: 1.03164557 | BH83: 1 | BI83: 860 | BJ83: 9.4% | BK83: 148 | BL83: 5.683544304 | BM83: 5 | BN83: 609 | BO83: 12.9% | BP83: 295 | BQ83: 10.33544304 | BR83: 10 | BT83: 139 | BU83: -14
A84: ='[1]Rapport 5'!A84 -> 156 | B84: ='[1]Rapport 5'!B84 -> SOULTZMATT | C84: ='[1]Rapport 5'!C84 -> 4153 | D84: ='[1]Rapport 5'!D84 -> ROUFFACH | E84: ='[1]Rapport 5'!E84 -> 5130 | F84: ='[1]Rapport 5'!F84 -> COLMAR | G84: ='[1]Rapport 5'!G84 -> 264 | H84: ='[1]Rapport 5'!H84 -> HAUT RHIN | I84: ='[1]Rapport 5'!I84 -> 2672.7 | J84: ='[1]Rapport 5'!J84 -> 141.28 | K84: ='[1]Rapport 5'!K84 -> 0 | L84: ='[1]Rapport 5'!L84 -> 0 | M84: ='[1]Rapport 5'!M84 -> 38163.7 | N84: ='[1]Rapport 5'!N84 -> 1712.48 | O84: ='[1]Rapport 5'!O84 -> 1025 | P84: ='[1]Rapport 5'!P84 -> 0 | Q84: ='[1]Rapport 5'!Q84 -> 0 | R84: ='[1]Rapport 5'!R84 -> 0 | S84: ='[1]Rapport 5'!S84 -> 98.6 | T84: ='[1]Rapport 5'!T84 -> 0 | U84: ='[1]Rapport 5'!U84 -> 1590.56 | V84: ='[1]Rapport 5'!V84 -> 392.5 | W84: ='[1]Rapport 5'!W84 -> 1656.49 | X84: ='[1]Rapport 5'!X84 -> 28 | Y84: 45,207 | Z84: 2,274 | AA84: 5.0% | AB84: 268 | AC84: =1+(AB84/COUNT($AB$3:AB$318)*10) -> 9.481012658 | AD84: 9 | AE84: =+J84 -> 141 | AF84: 5.3% | AG84: 198 | AH84: 7.265822785 | AI84: 7 | AJ84: 0 | AK84: 0.0% | AL84: 1 | AM84: 1.03164557 | AN84: 1 | AO84: 1,712 | AP84: 4.5% | AQ84: 284 | AR84: 9.987341772 | AS84: 9 | AT84: 0 | AU84: 0.0% | AV84: 1 | AW84: 1.03164557 | AX84: 1 | AY84: 0 | AZ84: 0.0% | BA84: 1 | BB84: 1.03164557 | BC84: 1 | BD84: 0 | BE84: 0.0% | BF84: 1 | BG84: 1.03164557 | BH84: 1 | BI84: 393 | BJ84: 24.7% | BK84: 289 | BL84: 10.14556962 | BM84: 10 | BN84: 28 | BO84: 1.7% | BP84: 92 | BQ84: 3.911392405 | BR84: 3 | BT84: 140 | BU84: -16
A85: ='[1]Rapport 5'!A85 -> 157 | B85: ='[1]Rapport 5'!B85 -> NEUF BRISACH | C85: ='[1]Rapport 5'!C85 -> 4157 | D85: ='[1]Rapport 5'!D85 -> NEUF BRISACH | E85: ='[1]Rapport 5'!E85 -> 5130 | F85: ='[1]Rapport 5'!F85 -> COLMAR | G85: ='[1]Rapport 5'!G85 -> 264 | H85: ='[1]Rapport 5'!H85 -> HAUT RHIN | I85: ='[1]Rapport 5'!I85 -> 4713.28 | J85: ='[1]Rapport 5'!J85 -> 239.76 | K85: ='[1]Rapport 5'!K85 -> 0 | L85: ='[1]Rapport 5'!L85 -> 0 | M85: ='[1]Rapport 5'!M85 -> 153892.38 | N85: ='[1]Rapport 5'!N85 -> 2999.03 | O85: ='[1]Rapport 5'!O85 -> 6586 | P85: ='[1]Rapport 5'!P85 -> 822 | Q85: ='[1]Rapport 5'!Q85 -> 0 | R85: ='[1]Rapport 5'!R85 -> 0 | S85: ='[1]Rapport 5'!S85 -> 88 | T85: ='[1]Rapport 5'!T85 -> 0 | U85: ='[1]Rapport 5'!U85 -> 6509.12 | V85: ='[1]Rapport 5'!V85 -> 2345.69 | W85: ='[1]Rapport 5'!W85 -> 7749.51 | X85: ='[1]Rapport 5'!X85 -> 65.3 | Y85: 179,538 | Z85: 6,472 | AA85: 3.6% | AB85: 142 | AC85: =1+(AB85/COUNT($AB$3:AB$318)*10) -> 5.493670886 | AD85: 5 | AE85: 240 | AF85: 5.1% | AG85: 193 | AH85: 7.107594937 | AI85: 7 | AJ85: 0 | AK85: 0.0% | AL85: 1 | AM85: 1.03164557 | AN85: 1 | AO85: 2,999 | AP85: 1.9% | AQ85: 54 | AR85: 2.708860759 | AS85: 2 | AT85: 822 | AU85: 12.5% | AV85: 273 | AW85: 9.639240506 | AX85: 9 | AY85: 0 | AZ85: 0.0% | BA85: 1 | BB85: 1.03164557 | BC85: 1 | BD85: 0 | BE85: 0.0% | BF85: 1 | BG85: 1.03164557 | BH85: 1 | BI85: 2,346 | BJ85: 36.0% | BK85: 312 | BL85: 10.87341772 | BM85: 10 | BN85: 65 | BO85: 0.8% | BP85: 47 | BQ85: 2.487341772 | BR85: 2 | BT85: 141 | BU85: -16
A86: ='[1]Rapport 5'!A86 -> 159 | B86: ='[1]Rapport 5'!B86 -> MUNTZENHEIM | C86: ='[1]Rapport 5'!C86 -> 4141 | D86: ='[1]Rapport 5'!D86 -> HORBOURG WIHR | E86: ='[1]Rapport 5'!E86 -> 5130 | F86: ='[1]Rapport 5'!F86 -> COLMAR | G86: ='[1]Rapport 5'!G86 -> 264 | H86: ='[1]Rapport 5'!H86 -> HAUT RHIN | I86: ='[1]Rapport 5'!I86 -> 2940.06 | J86: ='[1]Rapport 5'!J86 -> 207.29 | K86: ='[1]Rapport 5'!K86 -> 0 | L86: ='[1]Rapport 5'!L86 -> 0 | M86: ='[1]Rapport 5'!M86 -> 90205.21 | N86: ='[1]Rapport 5'!N86 -> 4125.21 | O86: ='[1]Rapport 5'!O86 -> 3137 | P86: ='[1]Rapport 5'!P86 -> 1083.5 | Q86: ='[1]Rapport 5'!Q86 -> 0 | R86: ='[1]Rapport 5'!R86 -> 0 | S86: ='[1]Rapport 5'!S86 -> 39 | T86: ='[1]Rapport 5'!T86 -> 0 | U86: ='[1]Rapport 5'!U86 -> 2505.39 | V86: ='[1]Rapport 5'!V86 -> 221.24 | W86: ='[1]Rapport 5'!W86 -> 2154.6 | X86: ='[1]Rapport 5'!X86 -> 12 | Y86: 100,981 | Z86: 5,649 | AA86: 5.6% | AB86: 288 | AC86: =1+(AB86/COUNT($AB$3:AB$318)*10) -> 10.11392405 | AD86: 10 | AE86: 207 | AF86: 7.1% | AG86: 237 | AH86: 8.5 | AI86: 8 | AJ86: 0 | AK86: 0.0% | AL86: 1 | AM86: 1.03164557 | AN86: 1 | AO86: 4,125 | AP86: 4.6% | AQ86: 288 | AR86: 10.11392405 | AS86: 10 | AT86: 1,084 | AU86: 34.5% | AV86: 313 | AW86: 10.90506329 | AX86: 10 | AY86: 0 | AZ86: 0.0% | BA86: 1 | BB86: 1.03164557 | BC86: 1 | BD86: 0 | BE86: 0.0% | BF86: 1 | BG86: 1.03164557 | BH86: 1 | BI86: 221 | BJ86: 8.8% | BK86: 136 | BL86: 5.303797468 | BM86: 5 | BN86: 12 | BO86: 0.6% | BP86: 31 | BQ86: 1.981012658 | BR86: 1 | BT86: 143 | BU86: -16
A87: ='[1]Rapport 5'!A87 -> 160 | B87: ='[1]Rapport 5'!B87 -> SOULTZ | C87: ='[1]Rapport 5'!C87 -> 4147 | D87: ='[1]Rapport 5'!D87 -> GUEBWILLER | E87: ='[1]Rapport 5'!E87 -> 5130 | F87: ='[1]Rapport 5'!F87 -> COLMAR | G87: ='[1]Rapport 5'!G87 -> 264 | H87: ='[1]Rapport 5'!H87 -> HAUT RHIN | I87: ='[1]Rapport 5'!I87 -> 3091.61 | J87: ='[1]Rapport 5'!J87 -> 184.76 | K87: ='[1]Rapport 5'!K87 -> 0 | L87: ='[1]Rapport 5'!L87 -> 0 | M87: ='[1]Rapport 5'!M87 -> 87455.2 | N87: ='[1]Rapport 5'!N87 -> 3688.52 | O87: ='[1]Rapport 5'!O87 -> 3169.5 | P87: ='[1]Rapport 5'!P87 -> 388.02 | Q87: ='[1]Rapport 5'!Q87 -> 0 | R87: ='[1]Rapport 5'!R87 -> 0 | S87: ='[1]Rapport 5'!S87 -> 114 | T87: ='[1]Rapport 5'!T87 -> 26 | U87: ='[1]Rapport 5'!U87 -> 3968.54 | V87: ='[1]Rapport 5'!V87 -> 437.5 | W87: ='[1]Rapport 5'!W87 -> 3189.28 | X87: ='[1]Rapport 5'!X87 -> 317.81 | Y87: 100,988 | Z87: 5,043 | AA87: 5.0% | AB87: 264 | AC87: =1+(AB87/COUNT($AB$3:AB$318)*10) -> 9.35443038 | AD87: 9 | AE87: 185 | AF87: 6.0% | AG87: 220 | AH87: 7.962025316 | AI87: 7 | AJ87: 0 | AK87: 0.0% | AL87: 1 | AM87: 1.03164557 | AN87: 1 | AO87: 3,689 | AP87: 4.2% | AQ87: 267 | AR87: 9.449367089 | AS87: 9 | AT87: 388 | AU87: 12.2% | AV87: 268 | AW87: 9.481012658 | AX87: 9 | AY87: 0 | AZ87: 0.0% | BA87: 1 | BB87: 1.03164557 | BC87: 1 | BD87: 26 | BE87: 22.8% | BF87: 300 | BG87: 10.49367089 | BH87: 10 | BI87: 438 | BJ87: 11.0% | BK87: 181 | BL87: 6.727848101 | BM87: 6 | BN87: 318 | BO87: 10.0% | BP87: 280 | BQ87: 9.860759494 | BR87: 9 | BT87: 144 | BU87: -16
A88: ='[1]Rapport 5'!A88 -> 162 | B88: ='[1]Rapport 5'!B88 -> ENSISHEIM | C88: ='[1]Rapport 5'!C88 -> 4162 | D88: ='[1]Rapport 5'!D88 -> ENSISHEIM | E88: ='[1]Rapport 5'!E88 -> 5130 | F88: ='[1]Rapport 5'!F88 -> COLMAR | G88: ='[1]Rapport 5'!G88 -> 264 | H88: ='[1]Rapport 5'!H88 -> HAUT RHIN | I88: ='[1]Rapport 5'!I88 -> 5389.49 | J88: ='[1]Rapport 5'!J88 -> 212.04 | K88: ='[1]Rapport 5'!K88 -> 0 | L88: ='[1]Rapport 5'!L88 -> 0 | M88: ='[1]Rapport 5'!M88 -> 139540.07 | N88: ='[1]Rapport 5'!N88 -> 4214.79 | O88: ='[1]Rapport 5'!O88 -> 2872.5 | P88: ='[1]Rapport 5'!P88 -> 84 | Q88: ='[1]Rapport 5'!Q88 -> 0 | R88: ='[1]Rapport 5'!R88 -> 0 | S88: ='[1]Rapport 5'!S88 -> 367 | T88: ='[1]Rapport 5'!T88 -> 44 | U88: ='[1]Rapport 5'!U88 -> 5429.73 | V88: ='[1]Rapport 5'!V88 -> 1793.28 | W88: ='[1]Rapport 5'!W88 -> 3627.34 | X88: ='[1]Rapport 5'!X88 -> 0 | Y88: 157,226 | Z88: 6,348 | AA88: 4.0% | AB88: 201 | AC88: =1+(AB88/COUNT($AB$3:AB$318)*10) -> 7.360759494 | AD88: 7 | AE88: 212 | AF88: 3.9% | AG88: 149 | AH88: 5.715189873 | AI88: 5 | AJ88: 0 | AK88: 0.0% | AL88: 1 | AM88: 1.03164557 | AN88: 1 | AO88: 4,215 | AP88: 3.0% | AQ88: 171 | AR88: 6.411392405 | AS88: 6 | AT88: 84 | AU88: 2.9% | AV88: 133 | AW88: 5.208860759 | AX88: 5 | AY88: 0 | AZ88: 0.0% | BA88: 1 | BB88: 1.03164557 | BC88: 1 | BD88: 44 | BE88: 12.0% | BF88: 279 | BG88: 9.829113924 | BH88: 9 | BI88: 1,793 | BJ88: 33.0% | BK88: 308 | BL88: 10.74683544 | BM88: 10 | BN88: 0 | BO88: 0.0% | BP88: 1 | BQ88: 1.03164557 | BR88: 1 | BT88: 147 | BU88: -15
A89: ='[1]Rapport 5'!A89 -> 163 | B89: ='[1]Rapport 5'!B89 -> PULVERSHEIM | C89: ='[1]Rapport 5'!C89 -> 4162 | D89: ='[1]Rapport 5'!D89 -> ENSISHEIM | E89: ='[1]Rapport 5'!E89 -> 5130 | F89: ='[1]Rapport 5'!F89 -> COLMAR | G89: ='[1]Rapport 5'!G89 -> 264 | H89: ='[1]Rapport 5'!H89 -> HAUT RHIN | I89: ='[1]Rapport 5'!I89 -> 2116.99 | J89: ='[1]Rapport 5'!J89 -> 74.95 | K89: ='[1]Rapport 5'!K89 -> 0 | L89: ='[1]Rapport 5'!L89 -> 0 | M89: ='[1]Rapport 5'!M89 -> 39073.12 | N89: ='[1]Rapport 5'!N89 -> 943.28 | O89: ='[1]Rapport 5'!O89 -> 542 | P89: ='[1]Rapport 5'!P89 -> 0 | Q89: ='[1]Rapport 5'!Q89 -> 0 | R89: ='[1]Rapport 5'!R89 -> 0 | S89: ='[1]Rapport 5'!S89 -> 46 | T89: ='[1]Rapport 5'!T89 -> 0 | U89: ='[1]Rapport 5'!U89 -> 1877.81 | V89: ='[1]Rapport 5'!V89 -> 0 | W89: ='[1]Rapport 5'!W89 -> 2379.59 | X89: ='[1]Rapport 5'!X89 -> 0 | Y89: 46,036 | Z89: 1,018 | AA89: 2.2% | AB89: 31 | AC89: =1+(AB89/COUNT($AB$3:AB$318)*10) -> 1.981012658 | AD89: 1 | AE89: 75 | AF89: 3.5% | AG89: 134 | AH89: 5.240506329 | AI89: 5 | AJ89: 0 | AK89: 0.0% | AL89: 1 | AM89: 1.03164557 | AN89: 1 | AO89: 943 | AP89: 2.4% | AQ89: 95 | AR89: 4.006329114 | AS89: 4 | AT89: 0 | AU89: 0.0% | AV89: 1 | AW89: 1.03164557 | AX89: 1 | AY89: 0 | AZ89: 0.0% | BA89: 1 | BB89: 1.03164557 | BC89: 1 | BD89: 0 | BE89: 0.0% | BF89: 1 | BG89: 1.03164557 | BH89: 1 | BI89: 0 | BJ89: 0.0% | BK89: 1 | BL89: 1.03164557 | BM89: 1 | BN89: 0 | BO89: 0.0% | BP89: 1 | BQ89: 1.03164557 | BR89: 1 | BT89: 148 | BU89: -15
A90: ='[1]Rapport 5'!A90 -> 164 | B90: ='[1]Rapport 5'!B90 -> SAINTE MARIE AUX MINES | C90: ='[1]Rapport 5'!C90 -> 4164 | D90: ='[1]Rapport 5'!D90 -> SAINTE MARIE AUX MINES | E90: ='[1]Rapport 5'!E90 -> 5130 | F90: ='[1]Rapport 5'!F90 -> COLMAR | G90: ='[1]Rapport 5'!G90 -> 264 | H90: ='[1]Rapport 5'!H90 -> HAUT RHIN | I90: ='[1]Rapport 5'!I90 -> 3931.46 | J90: ='[1]Rapport 5'!J90 -> 94.91 | K90: ='[1]Rapport 5'!K90 -> 0 | L90: ='[1]Rapport 5'!L90 -> 114.2 | M90: ='[1]Rapport 5'!M90 -> 112251.12 | N90: ='[1]Rapport 5'!N90 -> 2227.49 | O90: ='[1]Rapport 5'!O90 -> 3255.5 | P90: ='[1]Rapport 5'!P90 -> 85 | Q90: ='[1]Rapport 5'!Q90 -> 0 | R90: ='[1]Rapport 5'!R90 -> 0 | S90: ='[1]Rapport 5'!S90 -> 137 | T90: ='[1]Rapport 5'!T90 -> 0 | U90: ='[1]Rapport 5'!U90 -> 9042 | V90: ='[1]Rapport 5'!V90 -> 1082.5 | W90: ='[1]Rapport 5'!W90 -> 4520.54 | X90: ='[1]Rapport 5'!X90 -> 62.68 | Y90: 133,138 | Z90: 3,667 | AA90: 2.8% | AB90: 63 | AC90: =1+(AB90/COUNT($AB$3:AB$318)*10) -> 2.993670886 | AD90: 2 | AE90: 95 | AF90: 2.4% | AG90: 69 | AH90: 3.183544304 | AI90: 3 | AJ90: 114 | AK90: 100.0% | AL90: 288 | AM90: 10.11392405 | AN90: 10 | AO90: 2,227 | AP90: 2.0% | AQ90: 56 | AR90: 2.772151899 | AS90: 2 | AT90: 85 | AU90: 2.6% | AV90: 124 | AW90: 4.924050633 | AX90: 4 | AY90: 0 | AZ90: 0.0% | BA90: 1 | BB90: 1.03164557 | BC90: 1 | BD90: 0 | BE90: 0.0% | BF90: 1 | BG90: 1.03164557 | BH90: 1 | BI90: 1,083 | BJ90: 12.0% | BK90: 190 | BL90: 7.012658228 | BM90: 7 | BN90: 63 | BO90: 1.4% | BP90: 76 | BQ90: 3.405063291 | BR90: 3 | BT90: 152 | BU90: -12
A91: ='[1]Rapport 5'!A91 -> 170 | B91: ='[1]Rapport 5'!B91 -> MULHOUSE REUNION | C91: ='[1]Rapport 5'!C91 -> 4170 | D91: ='[1]Rapport 5'!D91 -> MULHOUSE REUNION | E91: ='[1]Rapport 5'!E91 -> 5169 | F91: ='[1]Rapport 5'!F91 -> MULHOUSE | G91: ='[1]Rapport 5'!G91 -> 264 | H91: ='[1]Rapport 5'!H91 -> HAUT RHIN | I91: ='[1]Rapport 5'!I91 -> 21558.95 | J91: ='[1]Rapport 5'!J91 -> 579.74 | K91: ='[1]Rapport 5'!K91 -> 0 | L91: ='[1]Rapport 5'!L91 -> 160 | M91: ='[1]Rapport 5'!M91 -> 515631.58 | N91: ='[1]Rapport 5'!N91 -> 12802.89 | O91: ='[1]Rapport 5'!O91 -> 16870.5 | P91: ='[1]Rapport 5'!P91 -> 486.84 | Q91: ='[1]Rapport 5'!Q91 -> 119.62 | R91: ='[1]Rapport 5'!R91 -> 0 | S91: ='[1]Rapport 5'!S91 -> 2779.65 | T91: ='[1]Rapport 5'!T91 -> 133.13 | U91: ='[1]Rapport 5'!U91 -> 49098.01 | V91: ='[1]Rapport 5'!V91 -> 2214.15 | W91: ='[1]Rapport 5'!W91 -> 18076.53 | X91: ='[1]Rapport 5'!X91 -> 627.43 | Y91: 624,135 | Z91: 17,004 | AA91: 2.7% | AB91: 60 | AC91: =1+(AB91/COUNT($AB$3:AB$318)*10) -> 2.898734177 | AD91: 2 | AE91: 580 | AF91: 2.7% | AG91: 86 | AH91: 3.721518987 | AI91: 3 | AJ91: 160 | AK91: 100.0% | AL91: 288 | AM91: 10.11392405 | AN91: 10 | AO91: 12,803 | AP91: 2.5% | AQ91: 107 | AR91: 4.386075949 | AS91: 4 | AT91: 487 | AU91: 2.9% | AV91: 132 | AW91: 5.17721519 | AX91: 5 | AY91: 0 | AZ91: 0.0% | BA91: 1 | BB91: 1.03164557 | BC91: 1 | BD91: 133 | BE91: 4.8% | BF91: 247 | BG91: 8.816455696 | BH91: 8 | BI91: 2,214 | BJ91: 4.5% | BK91: 54 | BL91: 2.708860759 | BM91: 2 | BN91: 627 | BO91: 3.5% | BP91: 162 | BQ91: 6.126582278 | BR91: 6 | BT91: 153 | BU91: -17
A92: ='[1]Rapport 5'!A93 -> 174 | B92: ='[1]Rapport 5'!B93 -> MULHOUSE DORNACH | C92: ='[1]Rapport 5'!C93 -> 4174 | D92: ='[1]Rapport 5'!D93 -> MULHOUSE DORNACH | E92: ='[1]Rapport 5'!E93 -> 5169 | F92: ='[1]Rapport 5'!F93 -> MULHOUSE | G92: ='[1]Rapport 5'!G93 -> 264 | H92: ='[1]Rapport 5'!H93 -> HAUT RHIN | I92: ='[1]Rapport 5'!I93 -> 6088.73 | J92: ='[1]Rapport 5'!J93 -> 140.26 | K92: ='[1]Rapport 5'!K93 -> 0 | L92: ='[1]Rapport 5'!L93 -> 0 | M92: ='[1]Rapport 5'!M93 -> 178006.34 | N92: ='[1]Rapport 5'!N93 -> 5686.61 | O92: ='[1]Rapport 5'!O93 -> 3953 | P92: ='[1]Rapport 5'!P93 -> 238.5 | Q92: ='[1]Rapport 5'!Q93 -> 0 | R92: ='[1]Rapport 5'!R93 -> 0 | S92: ='[1]Rapport 5'!S93 -> 571.78 | T92: ='[1]Rapport 5'!T93 -> 13 | U92: ='[1]Rapport 5'!U93 -> 12623.21 | V92: ='[1]Rapport 5'!V93 -> 1555.63 | W92: ='[1]Rapport 5'!W93 -> 4503.05 | X92: ='[1]Rapport 5'!X93 -> 158.66 | Y92: 205,746 | Z92: 7,793 | AA92: 3.8% | AB92: 166 | AC92: =1+(AB92/COUNT($AB$3:AB$318)*10) -> 6.253164557 | AD92: 6 | AE92: 140 | AF92: 2.3% | AG92: 61 | AH92: 2.930379747 | AI92: 2 | AJ92: 0 | AK92: 0.0% | AL92: 1 | AM92: 1.03164557 | AN92: 1 | AO92: 5,687 | AP92: 3.2% | AQ92: 186 | AR92: 6.886075949 | AS92: 6 | AT92: 239 | AU92: 6.0% | AV92: 205 | AW92: 7.487341772 | AX92: 7 | AY92: 0 | AZ92: 0.0% | BA92: 1 | BB92: 1.03164557 | BC92: 1 | BD92: 13 | BE92: 2.3% | BF92: 231 | BG92: 8.310126582 | BH92: 8 | BI92: 1,556 | BJ92: 12.3% | BK92: 193 | BL92: 7.107594937 | BM92: 7 | BN92: 159 | BO92: 3.5% | BP92: 167 | BQ92: 6.284810127 | BR92: 6 | BT92: 156 | BU92: -18
A93: ='[1]Rapport 5'!A94 -> 178 | B93: ='[1]Rapport 5'!B94 -> SAINT LOUIS | C93: ='[1]Rapport 5'!C94 -> 4178 | D93: ='[1]Rapport 5'!D94 -> SAINT LOUIS | E93: ='[1]Rapport 5'!E94 -> 5169 | F93: ='[1]Rapport 5'!F94 -> MULHOUSE | G93: ='[1]Rapport 5'!G94 -> 264 | H93: ='[1]Rapport 5'!H94 -> HAUT RHIN | I93: ='[1]Rapport 5'!I94 -> 10610.32 | J93: ='[1]Rapport 5'!J94 -> 1003.95 | K93: ='[1]Rapport 5'!K94 -> 0 | L93: ='[1]Rapport 5'!L94 -> 0 | M93: ='[1]Rapport 5'!M94 -> 286094.44 | N93: ='[1]Rapport 5'!N94 -> 6090.96 | O93: ='[1]Rapport 5'!O94 -> 6178 | P93: ='[1]Rapport 5'!P94 -> 171.7 | Q93: ='[1]Rapport 5'!Q94 -> 0 | R93: ='[1]Rapport 5'!R94 -> 0 | S93: ='[1]Rapport 5'!S94 -> 1523.81 | T93: ='[1]Rapport 5'!T94 -> 72.16 | U93: ='[1]Rapport 5'!U94 -> 21143.11 | V93: ='[1]Rapport 5'!V94 -> 1299.01 | W93: ='[1]Rapport 5'!W94 -> 9335.47 | X93: ='[1]Rapport 5'!X94 -> 28 | Y93: 334,885 | Z93: 8,666 | AA93: 2.6% | AB93: 48 | AC93: =1+(AB93/COUNT($AB$3:AB$318)*10) -> 2.518987342 | AD93: 2 | AE93: 1,004 | AF93: 9.5% | AG93: 262 | AH93: 9.291139241 | AI93: 9 | AJ93: 0 | AK93: 0.0% | AL93: 1 | AM93: 1.03164557 | AN93: 1 | AO93: 6,091 | AP93: 2.1% | AQ93: 67 | AR93: 3.120253165 | AS93: 3 | AT93: 172 | AU93: 2.8% | AV93: 129 | AW93: 5.082278481 | AX93: 5 | AY93: 0 | AZ93: 0.0% | BA93: 1 | BB93: 1.03164557 | BC93: 1 | BD93: 72 | BE93: 4.7% | BF93: 246 | BG93: 8.784810127 | BH93: 8 | BI93: 1,299 | BJ93: 6.1% | BK93: 87 | BL93: 3.753164557 | BM93: 3 | BN93: 28 | BO93: 0.3% | BP93: 27 | BQ93: 1.85443038 | BR93: 1 | BT93: 157 | BU93: -21
A94: ='[1]Rapport 5'!A96 -> 180 | B94: ='[1]Rapport 5'!B96 -> RIEDISHEIM | C94: ='[1]Rapport 5'!C96 -> 4180 | D94: ='[1]Rapport 5'!D96 -> RIEDISHEIM | E94: ='[1]Rapport 5'!E96 -> 5169 | F94: ='[1]Rapport 5'!F96 -> MULHOUSE | G94: ='[1]Rapport 5'!G96 -> 264 | H94: ='[1]Rapport 5'!H96 -> HAUT RHIN | I94: ='[1]Rapport 5'!I96 -> 2489.55 | J94: ='[1]Rapport 5'!J96 -> 248.6 | K94: ='[1]Rapport 5'!K96 -> 0 | L94: ='[1]Rapport 5'!L96 -> 128.97 | M94: ='[1]Rapport 5'!M96 -> 134115.6 | N94: ='[1]Rapport 5'!N96 -> 4512.62 | O94: ='[1]Rapport 5'!O96 -> 3421.5 | P94: ='[1]Rapport 5'!P96 -> 348 | Q94: ='[1]Rapport 5'!Q96 -> 0 | R94: ='[1]Rapport 5'!R96 -> 0 | S94: ='[1]Rapport 5'!S96 -> 1213.41 | T94: ='[1]Rapport 5'!T96 -> 13 | U94: ='[1]Rapport 5'!U96 -> 8548.87 | V94: ='[1]Rapport 5'!V96 -> 326.57 | W94: ='[1]Rapport 5'!W96 -> 8329.02 | X94: ='[1]Rapport 5'!X96 -> 552.9 | Y94: 158,118 | Z94: 6,131 | AA94: 3.9% | AB94: 180 | AC94: =1+(AB94/COUNT($AB$3:AB$318)*10) -> 6.696202532 | AD94: 6 | AE94: 249 | AF94: 10.0% | AG94: 270 | AH94: 9.544303797 | AI94: 9 | AJ94: 129 | AK94: 100.0% | AL94: 288 | AM94: 10.11392405 | AN94: 10 | AO94: 4,513 | AP94: 3.4% | AQ94: 199 | AR94: 7.297468354 | AS94: 7 | AT94: 348 | AU94: 10.2% | AV94: 253 | AW94: 9.006329114 | AX94: 9 | AY94: 0 | AZ94: 0.0% | BA94: 1 | BB94: 1.03164557 | BC94: 1 | BD94: 13 | BE94: 1.1% | BF94: 222 | BG94: 8.025316456 | BH94: 8 | BI94: 327 | BJ94: 3.8% | BK94: 43 | BL94: 2.360759494 | BM94: 2 | BN94: 553 | BO94: 6.6% | BP94: 247 | BQ94: 8.816455696 | BR94: 8 | BT94: 160 | BU94: -20
A95: ='[1]Rapport 5'!A97 -> 181 | B95: ='[1]Rapport 5'!B97 -> WITTELSHEIM | C95: ='[1]Rapport 5'!C97 -> 4181 | D95: ='[1]Rapport 5'!D97 -> WITTELSHEIM | E95: ='[1]Rapport 5'!E97 -> 5169 | F95: ='[1]Rapport 5'!F97 -> MULHOUSE | G95: ='[1]Rapport 5'!G97 -> 264 | H95: ='[1]Rapport 5'!H97 -> HAUT RHIN | I95: ='[1]Rapport 5'!I97 -> 6368.84 | J95: ='[1]Rapport 5'!J97 -> 245.92 | K95: ='[1]Rapport 5'!K97 -> 0 | L95: ='[1]Rapport 5'!L97 -> 0 | M95: ='[1]Rapport 5'!M97 -> 186006.84 | N95: ='[1]Rapport 5'!N97 -> 6078.55 | O95: ='[1]Rapport 5'!O97 -> 5481.5 | P95: ='[1]Rapport 5'!P97 -> 429 | Q95: ='[1]Rapport 5'!Q97 -> 0 | R95: ='[1]Rapport 5'!R97 -> 0 | S95: ='[1]Rapport 5'!S97 -> 158 | T95: ='[1]Rapport 5'!T97 -> 0 | U95: ='[1]Rapport 5'!U97 -> 8807.12 | V95: ='[1]Rapport 5'!V97 -> 1051.18 | W95: ='[1]Rapport 5'!W97 -> 3967.14 | X95: ='[1]Rapport 5'!X97 -> 271.49 | Y95: 210,789 | Z95: 8,076 | AA95: 3.8% | AB95: 173 | AC95: =1+(AB95/COUNT($AB$3:AB$318)*10) -> 6.474683544 | AD95: 6 | AE95: 246 | AF95: 3.9% | AG95: 148 | AH95: 5.683544304 | AI95: 5 | AJ95: 0 | AK95: 0.0% | AL95: 1 | AM95: 1.03164557 | AN95: 1 | AO95: 6,079 | AP95: 3.3% | AQ95: 193 | AR95: 7.107594937 | AS95: 7 | AT95: 429 | AU95: 7.8% | AV95: 229 | AW95: 8.246835443 | AX95: 8 | AY95: 0 | AZ95: 0.0% | BA95: 1 | BB95: 1.03164557 | BC95: 1 | BD95: 0 | BE95: 0.0% | BF95: 1 | BG95: 1.03164557 | BH95: 1 | BI95: 1,051 | BJ95: 11.9% | BK95: 188 | BL95: 6.949367089 | BM95: 6 | BN95: 271 | BO95: 6.8% | BP95: 251 | BQ95: 8.943037975 | BR95: 8 | BT95: 162 | BU95: -19
A96: ='[1]Rapport 5'!A98 -> 183 | B96: ='[1]Rapport 5'!B98 -> WITTENHEIM | C96: ='[1]Rapport 5'!C98 -> 4183 | D96: ='[1]Rapport 5'!D98 -> WITTENHEIM | E96: ='[1]Rapport 5'!E98 -> 5169 | F96: ='[1]Rapport 5'!F98 -> MULHOUSE | G96: ='[1]Rapport 5'!G98 -> 264 | H96: ='[1]Rapport 5'!H98 -> HAUT RHIN | I96: ='[1]Rapport 5'!I98 -> 3121.67 | J96: ='[1]Rapport 5'!J98 -> 59.01 | K96: ='[1]Rapport 5'!K98 -> 0 | L96: ='[1]Rapport 5'!L98 -> 0 | M96: ='[1]Rapport 5'!M98 -> 118780.91 | N96: ='[1]Rapport 5'!N98 -> 1275.14 | O96: ='[1]Rapport 5'!O98 -> 4322 | P96: ='[1]Rapport 5'!P98 -> 0 | Q96: ='[1]Rapport 5'!Q98 -> 0 | R96: ='[1]Rapport 5'!R98 -> 0 | S96: ='[1]Rapport 5'!S98 -> 293 | T96: ='[1]Rapport 5'!T98 -> 0 | U96: ='[1]Rapport 5'!U98 -> 4483.99 | V96: ='[1]Rapport 5'!V98 -> 306.45 | W96: ='[1]Rapport 5'!W98 -> 4639.4 | X96: ='[1]Rapport 5'!X98 -> 13.06 | Y96: 135,641 | Z96: 1,654 | AA96: 1.2% | AB96: 9 | AC96: =1+(AB96/COUNT($AB$3:AB$318)*10) -> 1.284810127 | AD96: 1 | AE96: 59 | AF96: 1.9% | AG96: 46 | AH96: 2.455696203 | AI96: 2 | AJ96: 0 | AK96: 0.0% | AL96: 1 | AM96: 1.03164557 | AN96: 1 | AO96: 1,275 | AP96: 1.1% | AQ96: 11 | AR96: 1.348101266 | AS96: 1 | AT96: 0 | AU96: 0.0% | AV96: 1 | AW96: 1.03164557 | AX96: 1 | AY96: 0 | AZ96: 0.0% | BA96: 1 | BB96: 1.03164557 | BC96: 1 | BD96: 0 | BE96: 0.0% | BF96: 1 | BG96: 1.03164557 | BH96: 1 | BI96: 306 | BJ96: 6.8% | BK96: 98 | BL96: 4.101265823 | BM96: 4 | BN96: 13 | BO96: 0.3% | BP96: 26 | BQ96: 1.82278481 | BR96: 1 | BT96: 163 | BU96: -20
A97: ='[1]Rapport 5'!A99 -> 184 | B97: ='[1]Rapport 5'!B99 -> ILLZACH | C97: ='[1]Rapport 5'!C99 -> 4183 | D97: ='[1]Rapport 5'!D99 -> WITTENHEIM | E97: ='[1]Rapport 5'!E99 -> 5169 | F97: ='[1]Rapport 5'!F99 -> MULHOUSE | G97: ='[1]Rapport 5'!G99 -> 264 | H97: ='[1]Rapport 5'!H99 -> HAUT RHIN | I97: ='[1]Rapport 5'!I99 -> 5053.75 | J97: ='[1]Rapport 5'!J99 -> 245.79 | K97: ='[1]Rapport 5'!K99 -> 0 | L97: ='[1]Rapport 5'!L99 -> 0 | M97: ='[1]Rapport 5'!M99 -> 158089.67 | N97: ='[1]Rapport 5'!N99 -> 2147.07 | O97: ='[1]Rapport 5'!O99 -> 3436.5 | P97: ='[1]Rapport 5'!P99 -> 198.5 | Q97: ='[1]Rapport 5'!Q99 -> 0 | R97: ='[1]Rapport 5'!R99 -> 0 | S97: ='[1]Rapport 5'!S99 -> 733.74 | T97: ='[1]Rapport 5'!T99 -> 0 | U97: ='[1]Rapport 5'!U99 -> 6883.23 | V97: ='[1]Rapport 5'!V99 -> 395.55 | W97: ='[1]Rapport 5'!W99 -> 4645.06 | X97: ='[1]Rapport 5'!X99 -> 86.21 | Y97: 178,842 | Z97: 3,073 | AA97: 1.7% | AB97: 14 | AC97: =1+(AB97/COUNT($AB$3:AB$318)*10) -> 1.443037975 | AD97: 1 | AE97: 246 | AF97: 4.9% | AG97: 184 | AH97: 6.82278481 | AI97: 6 | AJ97: 0 | AK97: 0.0% | AL97: 1 | AM97: 1.03164557 | AN97: 1 | AO97: 2,147 | AP97: 1.4% | AQ97: 18 | AR97: 1.569620253 | AS97: 1 | AT97: 199 | AU97: 5.8% | AV97: 201 | AW97: 7.360759494 | AX97: 7 | AY97: 0 | AZ97: 0.0% | BA97: 1 | BB97: 1.03164557 | BC97: 1 | BD97: 0 | BE97: 0.0% | BF97: 1 | BG97: 1.03164557 | BH97: 1 | BI97: 396 | BJ97: 5.7% | BK97: 79 | BL97: 3.5 | BM97: 3 | BN97: 86 | BO97: 1.9% | BP97: 100 | BQ97: 4.164556962 | BR97: 4 | BT97: 164 | BU97: -20
A98: ='[1]Rapport 5'!A100 -> 185 | B98: ='[1]Rapport 5'!B100 -> RIXHEIM | C98: ='[1]Rapport 5'!C100 -> 4185 | D98: ='[1]Rapport 5'!D100 -> RIXHEIM | E98: ='[1]Rapport 5'!E100 -> 5169 | F98: ='[1]Rapport 5'!F100 -> MULHOUSE | G98: ='[1]Rapport 5'!G100 -> 264 | H98: ='[1]Rapport 5'!H100 -> HAUT RHIN | I98: ='[1]Rapport 5'!I100 -> 6384.43 | J98: ='[1]Rapport 5'!J100 -> 5561.64 | K98: ='[1]Rapport 5'!K100 -> 0 | L98: ='[1]Rapport 5'!L100 -> 0 | M98: ='[1]Rapport 5'!M100 -> 143471.63 | N98: ='[1]Rapport 5'!N100 -> 2709.87 | O98: ='[1]Rapport 5'!O100 -> 6732 | P98: ='[1]Rapport 5'!P100 -> 117.5 | Q98: ='[1]Rapport 5'!Q100 -> 0 | R98: ='[1]Rapport 5'!R100 -> 0 | S98: ='[1]Rapport 5'!S100 -> 367.48 | T98: ='[1]Rapport 5'!T100 -> 0 | U98: ='[1]Rapport 5'!U100 -> 7428.44 | V98: ='[1]Rapport 5'!V100 -> 50 | W98: ='[1]Rapport 5'!W100 -> 5699.04 | X98: ='[1]Rapport 5'!X100 -> 37.3 | Y98: 170,083 | Z98: 8,476 | AA98: 5.0% | AB98: 263 | AC98: =1+(AB98/COUNT($AB$3:AB$318)*10) -> 9.32278481 | AD98: 9 | AE98: =+J98 -> 5,562 | AF98: 87.1% | AG98: 316 | AH98: 11 | AI98: 10 | AJ98: 0 | AK98: 0.0% | AL98: 1 | AM98: 1.03164557 | AN98: 1 | AO98: 2,710 | AP98: 1.9% | AQ98: 49 | AR98: 2.550632911 | AS98: 2 | AT98: 118 | AU98: 1.7% | AV98: 102 | AW98: 4.227848101 | AX98: 4 | AY98: 0 | AZ98: 0.0% | BA98: 1 | BB98: 1.03164557 | BC98: 1 | BD98: 0 | BE98: 0.0% | BF98: 1 | BG98: 1.03164557 | BH98: 1 | BI98: 50 | BJ98: 0.7% | BK98: 16 | BL98: 1.506329114 | BM98: 1 | BN98: 37 | BO98: 0.7% | BP98: 38 | BQ98: 2.202531646 | BR98: 2 | BT98: 167 | BU98: -18
A99: ='[1]Rapport 5'!A101 -> 186 | B99: ='[1]Rapport 5'!B101 -> BRUNSTATT | C99: ='[1]Rapport 5'!C101 -> 4174 | D99: ='[1]Rapport 5'!D101 -> MULHOUSE DORNACH | E99: ='[1]Rapport 5'!E101 -> 5169 | F99: ='[1]Rapport 5'!F101 -> MULHOUSE | G99: ='[1]Rapport 5'!G101 -> 264 | H99: ='[1]Rapport 5'!H101 -> HAUT RHIN | I99: ='[1]Rapport 5'!I101 -> 3133.64 | J99: ='[1]Rapport 5'!J101 -> 130.08 | K99: ='[1]Rapport 5'!K101 -> 0 | L99: ='[1]Rapport 5'!L101 -> 15 | M99: ='[1]Rapport 5'!M101 -> 103329.2 | N99: ='[1]Rapport 5'!N101 -> 3585.56 | O99: ='[1]Rapport 5'!O101 -> 4206.5 | P99: ='[1]Rapport 5'!P101 -> 160 | Q99: ='[1]Rapport 5'!Q101 -> 0 | R99: ='[1]Rapport 5'!R101 -> 0 | S99: ='[1]Rapport 5'!S101 -> 768.76 | T99: ='[1]Rapport 5'!T101 -> 0 | U99: ='[1]Rapport 5'!U101 -> 6366.17 | V99: ='[1]Rapport 5'!V101 -> 690.92 | W99: ='[1]Rapport 5'!W101 -> 5040.74 | X99: ='[1]Rapport 5'!X101 -> 372.24 | Y99: 122,845 | Z99: 4,954 | AA99: 4.0% | AB99: 199 | AC99: =1+(AB99/COUNT($AB$3:AB$318)*10) -> 7.297468354 | AD99: 7 | AE99: 130 | AF99: 4.2% | AG99: 160 | AH99: 6.063291139 | AI99: 6 | AJ99: 15 | AK99: 100.0% | AL99: 288 | AM99: 10.11392405 | AN99: 10 | AO99: 3,586 | AP99: 3.5% | AQ99: 213 | AR99: 7.740506329 | AS99: 7 | AT99: 160 | AU99: 3.8% | AV99: 162 | AW99: 6.126582278 | AX99: 6 | AY99: 0 | AZ99: 0.0% | BA99: 1 | BB99: 1.03164557 | BC99: 1 | BD99: 0 | BE99: 0.0% | BF99: 1 | BG99: 1.03164557 | BH99: 1 | BI99: 691 | BJ99: 10.9% | BK99: 176 | BL99: 6.569620253 | BM99: 6 | BN99: 372 | BO99: 7.4% | BP99: 259 | BQ99: 9.196202532 | BR99: 9 | BT99: 169 | BU99: -17
A100: ='[1]Rapport 5'!A102 -> 188 | B100: ='[1]Rapport 5'!B102 -> PFASTATT | C100: ='[1]Rapport 5'!C102 -> 4188 | D100: ='[1]Rapport 5'!D102 -> PFASTATT | E100: ='[1]Rapport 5'!E102 -> 5169 | F100: ='[1]Rapport 5'!F102 -> MULHOUSE | G100: ='[1]Rapport 5'!G102 -> 264 | H100: ='[1]Rapport 5'!H102 -> HAUT RHIN | I100: ='[1]Rapport 5'!I102 -> 8889.5 | J100: ='[1]Rapport 5'!J102 -> 525.9 | K100: ='[1]Rapport 5'!K102 -> 0 | L100: ='[1]Rapport 5'!L102 -> 0 | M100: ='[1]Rapport 5'!M102 -> 179623.78 | N100: ='[1]Rapport 5'!N102 -> 8154.4 | O100: ='[1]Rapport 5'!O102 -> 3911.5 | P100: ='[1]Rapport 5'!P102 -> 1570.92 | Q100: ='[1]Rapport 5'!Q102 -> 0 | R100: ='[1]Rapport 5'!R102 -> 0 | S100: ='[1]Rapport 5'!S102 -> 980.1 | T100: ='[1]Rapport 5'!T102 -> 19.76 | U100: ='[1]Rapport 5'!U102 -> 14156.62 | V100: ='[1]Rapport 5'!V102 -> 790.62 | W100: ='[1]Rapport 5'!W102 -> 5935.29 | X100: ='[1]Rapport 5'!X102 -> 177.3 | Y100: 213,497 | Z100: 11,239 | AA100: 5.3% | AB100: 277 | AC100: =1+(AB100/COUNT($AB$3:AB$318)*10) -> 9.765822785 | AD100: 9 | AE100: 526 | AF100: 5.9% | AG100: 215 | AH100: 7.803797468 | AI100: 7 | AJ100: 0 | AK100: 0.0% | AL100: 1 | AM100: 1.03164557 | AN100: 1 | AO100: 8,154 | AP100: 4.5% | AQ100: 285 | AR100: 10.01898734 | AS100: 10 | AT100: 1,571 | AU100: 40.2% | AV100: 314 | AW100: 10.93670886 | AX100: 10 | AY100: 0 | AZ100: 0.0% | BA100: 1 | BB100: 1.03164557 | BC100: 1 | BD100: 20 | BE100: 2.0% | BF100: 229 | BG100: 8.246835443 | BH100: 8 | BI100: 791 | BJ100: 5.6% | BK100: 76 | BL100: 3.405063291 | BM100: 3 | BN100: 177 | BO100: 3.0% | BP100: 142 | BQ100: 5.493670886 | BR100: 5 | BT100: 170 | BU100: -18
A101: ='[1]Rapport 5'!A103 -> 189 | B101: ='[1]Rapport 5'!B103 -> ALTKIRCH | C101: ='[1]Rapport 5'!C103 -> 4189 | D101: ='[1]Rapport 5'!D103 -> ALTKIRCH | E101: ='[1]Rapport 5'!E103 -> 5169 | F101: ='[1]Rapport 5'!F103 -> MULHOUSE | G101: ='[1]Rapport 5'!G103 -> 264 | H101: ='[1]Rapport 5'!H103 -> HAUT RHIN | I101: ='[1]Rapport 5'!I103 -> 5028.4 | J101: ='[1]Rapport 5'!J103 -> 524.63 | K101: ='[1]Rapport 5'!K103 -> 0 | L101: ='[1]Rapport 5'!L103 -> 0 | M101: ='[1]Rapport 5'!M103 -> 135600.34 | N101: ='[1]Rapport 5'!N103 -> 7383.71 | O101: ='[1]Rapport 5'!O103 -> 3057 | P101: ='[1]Rapport 5'!P103 -> 303.54 | Q101: ='[1]Rapport 5'!Q103 -> 0 | R101: ='[1]Rapport 5'!R103 -> 0 | S101: ='[1]Rapport 5'!S103 -> 344.56 | T101: ='[1]Rapport 5'!T103 -> 150 | U101: ='[1]Rapport 5'!U103 -> 10769.04 | V101: ='[1]Rapport 5'!V103 -> 1774.12 | W101: ='[1]Rapport 5'!W103 -> 9453.67 | X101: ='[1]Rapport 5'!X103 -> 2360.33 | Y101: 164,253 | Z101: 12,496 | AA101: 7.6% | AB101: 315 | AC101: =1+(AB101/COUNT($AB$3:AB$318)*10) -> 10.96835443 | AD101: 10 | AE101: 525 | AF101: 10.4% | AG101: 274 | AH101: 9.670886076 | AI101: 9 | AJ101: 0 | AK101: 0.0% | AL101: 1 | AM101: 1.03164557 | AN101: 1 | AO101: 7,384 | AP101: 5.4% | AQ101: 306 | AR101: 10.6835443 | AS101: 10 | AT101: 304 | AU101: 9.9% | AV101: 250 | AW101: 8.911392405 | AX101: 8 | AY101: 0 | AZ101: 0.0% | BA101: 1 | BB101: 1.03164557 | BC101: 1 | BD101: 150 | BE101: 43.5% | BF101: 309 | BG101: 10.77848101 | BH101: 10 | BI101: 1,774 | BJ101: 16.5% | BK101: 235 | BL101: 8.436708861 | BM101: 8 | BN101: 2,360 | BO101: 25.0% | BP101: 315 | BQ101: 10.96835443 | BR101: 10 | BT101: 174 | BU101: -15
A102: ='[1]Rapport 5'!A104 -> 191 | B102: ='[1]Rapport 5'!B104 -> FERRETTE | C102: ='[1]Rapport 5'!C104 -> 4189 | D102: ='[1]Rapport 5'!D104 -> ALTKIRCH | E102: ='[1]Rapport 5'!E104 -> 5169 | F102: ='[1]Rapport 5'!F104 -> MULHOUSE | G102: ='[1]Rapport 5'!G104 -> 264 | H102: ='[1]Rapport 5'!H104 -> HAUT RHIN | I102: ='[1]Rapport 5'!I104 -> 2820.55 | J102: ='[1]Rapport 5'!J104 -> 95.05 | K102: ='[1]Rapport 5'!K104 -> 0 | L102: ='[1]Rapport 5'!L104 -> 0 | M102: ='[1]Rapport 5'!M104 -> 40773.47 | N102: ='[1]Rapport 5'!N104 -> 1520.09 | O102: ='[1]Rapport 5'!O104 -> 2779.5 | P102: ='[1]Rapport 5'!P104 -> 0 | Q102: ='[1]Rapport 5'!Q104 -> 0 | R102: ='[1]Rapport 5'!R104 -> 0 | S102: ='[1]Rapport 5'!S104 -> 200.77 | T102: ='[1]Rapport 5'!T104 -> 0 | U102: ='[1]Rapport 5'!U104 -> 2709.02 | V102: ='[1]Rapport 5'!V104 -> 125.55 | W102: ='[1]Rapport 5'!W104 -> 1468.31 | X102: ='[1]Rapport 5'!X104 -> 359.54 | Y102: 50,752 | Z102: 2,100 | AA102: 4.1% | AB102: 209 | AC102: =1+(AB102/COUNT($AB$3:AB$318)*10) -> 7.613924051 | AD102: 7 | AE102: 95 | AF102: 3.4% | AG102: 121 | AH102: 4.829113924 | AI102: 4 | AJ102: 0 | AK102: 0.0% | AL102: 1 | AM102: 1.03164557 | AN102: 1 | AO102: 1,520 | AP102: 3.7% | AQ102: 241 | AR102: 8.626582278 | AS102: 8 | AT102: 0 | AU102: 0.0% | AV102: 1 | AW102: 1.03164557 | AX102: 1 | AY102: 0 | AZ102: 0.0% | BA102: 1 | BB102: 1.03164557 | BC102: 1 | BD102: 0 | BE102: 0.0% | BF102: 1 | BG102: 1.03164557 | BH102: 1 | BI102: 126 | BJ102: 4.6% | BK102: 56 | BL102: 2.772151899 | BM102: 2 | BN102: 360 | BO102: 24.5% | BP102: 313 | BQ102: 10.90506329 | BR102: 10 | BT102: 178 | BU102: -13
A103: ='[1]Rapport 5'!A105 -> 192 | B103: ='[1]Rapport 5'!B105 -> SEPPOIS LE BAS | C103: ='[1]Rapport 5'!C105 -> 4189 | D103: ='[1]Rapport 5'!D105 -> ALTKIRCH | E103: ='[1]Rapport 5'!E105 -> 5169 | F103: ='[1]Rapport 5'!F105 -> MULHOUSE | G103: ='[1]Rapport 5'!G105 -> 264 | H103: ='[1]Rapport 5'!H105 -> HAUT RHIN | I103: ='[1]Rapport 5'!I105 -> 3213.43 | J103: ='[1]Rapport 5'!J105 -> 32.39 | K103: ='[1]Rapport 5'!K105 -> 0 | L103: ='[1]Rapport 5'!L105 -> 0 | M103: ='[1]Rapport 5'!M105 -> 47969.67 | N103: ='[1]Rapport 5'!N105 -> 611.43 | O103: ='[1]Rapport 5'!O105 -> 3898 | P103: ='[1]Rapport 5'!P105 -> 0 | Q103: ='[1]Rapport 5'!Q105 -> 0 | R103: ='[1]Rapport 5'!R105 -> 0 | S103: ='[1]Rapport 5'!S105 -> 192 | T103: ='[1]Rapport 5'!T105 -> 0 | U103: ='[1]Rapport 5'!U105 -> 2086.81 | V103: ='[1]Rapport 5'!V105 -> 110 | W103: ='[1]Rapport 5'!W105 -> 952.17 | X103: ='[1]Rapport 5'!X105 -> 0 | Y103: 58,312 | Z103: 754 | AA103: 1.3% | AB103: 11 | AC103: =1+(AB103/COUNT($AB$3:AB$318)*10) -> 1.348101266 | AD103: 1 | AE103: 32 | AF103: 1.0% | AG103: 24 | AH103: 1.759493671 | AI103: 1 | AJ103: 0 | AK103: 0.0% | AL103: 1 | AM103: 1.03164557 | AN103: 1 | AO103: 611 | AP103: 1.3% | AQ103: 14 | AR103: 1.443037975 | AS103: 1 | AT103: 0 | AU103: 0.0% | AV103: 1 | AW103: 1.03164557 | AX103: 1 | AY103: 0 | AZ103: 0.0% | BA103: 1 | BB103: 1.03164557 | BC103: 1 | BD103: 0 | BE103: 0.0% | BF103: 1 | BG103: 1.03164557 | BH103: 1 | BI103: 110 | BJ103: 5.3% | BK103: 70 | BL103: 3.215189873 | BM103: 3 | BN103: 0 | BO103: 0.0% | BP103: 1 | BQ103: 1.03164557 | BR103: 1 | BT103: 179 | BU103: -13
A104: ='[1]Rapport 5'!A106 -> 193 | B104: ='[1]Rapport 5'!B106 -> DANNEMARIE | C104: ='[1]Rapport 5'!C106 -> 4189 | D104: ='[1]Rapport 5'!D106 -> ALTKIRCH | E104: ='[1]Rapport 5'!E106 -> 5169 | F104: ='[1]Rapport 5'!F106 -> MULHOUSE | G104: ='[1]Rapport 5'!G106 -> 264 | H104: ='[1]Rapport 5'!H106 -> HAUT RHIN | I104: ='[1]Rapport 5'!I106 -> 4316.48 | J104: ='[1]Rapport 5'!J106 -> 183.45 | K104: ='[1]Rapport 5'!K106 -> 0 | L104: ='[1]Rapport 5'!L106 -> 0 | M104: ='[1]Rapport 5'!M106 -> 99120.97 | N104: ='[1]Rapport 5'!N106 -> 4522.52 | O104: ='[1]Rapport 5'!O106 -> 3347 | P104: ='[1]Rapport 5'!P106 -> 1839 | Q104: ='[1]Rapport 5'!Q106 -> 0 | R104: ='[1]Rapport 5'!R106 -> 0 | S104: ='[1]Rapport 5'!S106 -> 78 | T104: ='[1]Rapport 5'!T106 -> 0 | U104: ='[1]Rapport 5'!U106 -> 4252.18 | V104: ='[1]Rapport 5'!V106 -> 638.32 | W104: ='[1]Rapport 5'!W106 -> 3558.19 | X104: ='[1]Rapport 5'!X106 -> 361.15 | Y104: 114,673 | Z104: 7,544 | AA104: 6.6% | AB104: 307 | AC104: =1+(AB104/COUNT($AB$3:AB$318)*10) -> 10.71518987 | AD104: 10 | AE104: 183 | AF104: 4.2% | AG104: 162 | AH104: 6.126582278 | AI104: 6 | AJ104: 0 | AK104: 0.0% | AL104: 1 | AM104: 1.03164557 | AN104: 1 | AO104: 4,523 | AP104: 4.6% | AQ104: 286 | AR104: 10.05063291 | AS104: 10 | AT104: 1,839 | AU104: 54.9% | AV104: 315 | AW104: 10.96835443 | AX104: 10 | AY104: 0 | AZ104: 0.0% | BA104: 1 | BB104: 1.03164557 | BC104: 1 | BD104: 0 | BE104: 0.0% | BF104: 1 | BG104: 1.03164557 | BH104: 1 | BI104: 638 | BJ104: 15.0% | BK104: 225 | BL104: 8.120253165 | BM104: 8 | BN104: 361 | BO104: 10.1% | BP104: 283 | BQ104: 9.955696203 | BR104: 9 | BT104: 180 | BU104: -13
A105: ='[1]Rapport 5'!A107 -> 194 | B105: ='[1]Rapport 5'!B107 -> THANN | C105: ='[1]Rapport 5'!C107 -> 4194 | D105: ='[1]Rapport 5'!D107 -> THANN | E105: ='[1]Rapport 5'!E107 -> 5169 | F105: ='[1]Rapport 5'!F107 -> MULHOUSE | G105: ='[1]Rapport 5'!G107 -> 264 | H105: ='[1]Rapport 5'!H107 -> HAUT RHIN | I105: ='[1]Rapport 5'!I107 -> 7687.28 | J105: ='[1]Rapport 5'!J107 -> 428.8 | K105: ='[1]Rapport 5'!K107 -> 0 | L105: ='[1]Rapport 5'!L107 -> 0 | M105: ='[1]Rapport 5'!M107 -> 209073.4 | N105: ='[1]Rapport 5'!N107 -> 9345.22 | O105: ='[1]Rapport 5'!O107 -> 9171 | P105: ='[1]Rapport 5'!P107 -> 1351.91 | Q105: ='[1]Rapport 5'!Q107 -> 0 | R105: ='[1]Rapport 5'!R107 -> 0 | S105: ='[1]Rapport 5'!S107 -> 899.51 | T105: ='[1]Rapport 5'!T107 -> 18.25 | U105: ='[1]Rapport 5'!U107 -> 20449.59 | V105: ='[1]Rapport 5'!V107 -> 2752.36 | W105: ='[1]Rapport 5'!W107 -> 7231.12 | X105: ='[1]Rapport 5'!X107 -> 500.76 | Y105: 254,512 | Z105: 14,397 | AA105: 5.7% | AB105: 289 | AC105: =1+(AB105/COUNT($AB$3:AB$318)*10) -> 10.14556962 | AD105: 10 | AE105: 429 | AF105: 5.6% | AG105: 209 | AH105: 7.613924051 | AI105: 7 | AJ105: 0 | AK105: 0.0% | AL105: 1 | AM105: 1.03164557 | AN105: 1 | AO105: 9,345 | AP105: 4.5% | AQ105: 283 | AR105: 9.955696203 | AS105: 9 | AT105: 1,352 | AU105: 14.7% | AV105: 284 | AW105: 9.987341772 | AX105: 9 | AY105: 0 | AZ105: 0.0% | BA105: 1 | BB105: 1.03164557 | BC105: 1 | BD105: 18 | BE105: 2.0% | BF105: 230 | BG105: 8.278481013 | BH105: 8 | BI105: 2,752 | BJ105: 13.5% | BK105: 209 | BL105: 7.613924051 | BM105: 7 | BN105: 501 | BO105: 6.9% | BP105: 253 | BQ105: 9.006329114 | BR105: 9 | BT105: 181 | BU105: -13
A106: ='[1]Rapport 5'!A108 -> 195 | B106: ='[1]Rapport 5'!B108 -> CERNAY | C106: ='[1]Rapport 5'!C108 -> 4195 | D106: ='[1]Rapport 5'!D108 -> CERNAY | E106: ='[1]Rapport 5'!E108 -> 5169 | F106: ='[1]Rapport 5'!F108 -> MULHOUSE | G106: ='[1]Rapport 5'!G108 -> 264 | H106: ='[1]Rapport 5'!H108 -> HAUT RHIN | I106: ='[1]Rapport 5'!I108 -> 5848.43 | J106: ='[1]Rapport 5'!J108 -> 78.11 | K106: ='[1]Rapport 5'!K108 -> 0 | L106: ='[1]Rapport 5'!L108 -> 0 | M106: ='[1]Rapport 5'!M108 -> 161075.65 | N106: ='[1]Rapport 5'!N108 -> 3479.59 | O106: ='[1]Rapport 5'!O108 -> 4789 | P106: ='[1]Rapport 5'!P108 -> 395 | Q106: ='[1]Rapport 5'!Q108 -> 0 | R106: ='[1]Rapport 5'!R108 -> 0 | S106: ='[1]Rapport 5'!S108 -> 891.64 | T106: ='[1]Rapport 5'!T108 -> 51.07 | U106: ='[1]Rapport 5'!U108 -> 9230.65 | V106: ='[1]Rapport 5'!V108 -> 212.21 | W106: ='[1]Rapport 5'!W108 -> 4098.99 | X106: ='[1]Rapport 5'!X108 -> 37.3 | Y106: 185,934 | Z106: 4,253 | AA106: 2.3% | AB106: 35 | AC106: =1+(AB106/COUNT($AB$3:AB$318)*10) -> 2.107594937 | AD106: 2 | AE106: 78 | AF106: 1.3% | AG106: 30 | AH106: 1.949367089 | AI106: 1 | AJ106: 0 | AK106: 0.0% | AL106: 1 | AM106: 1.03164557 | AN106: 1 | AO106: 3,480 | AP106: 2.2% | AQ106: 70 | AR106: 3.215189873 | AS106: 3 | AT106: 395 | AU106: 8.2% | AV106: 233 | AW106: 8.373417722 | AX106: 8 | AY106: 0 | AZ106: 0.0% | BA106: 1 | BB106: 1.03164557 | BC106: 1 | BD106: 51 | BE106: 5.7% | BF106: 254 | BG106: 9.037974684 | BH106: 9 | BI106: 212 | BJ106: 2.3% | BK106: 27 | BL106: 1.85443038 | BM106: 1 | BN106: 37 | BO106: 0.9% | BP106: 53 | BQ106: 2.67721519 | BR106: 2 | BT106: 183 | BU106: -12
A107: ='[1]Rapport 5'!A109 -> 196 | B107: ='[1]Rapport 5'!B109 -> MASEVAUX | C107: ='[1]Rapport 5'!C109 -> 4194 | D107: ='[1]Rapport 5'!D109 -> THANN | E107: ='[1]Rapport 5'!E109 -> 5169 | F107: ='[1]Rapport 5'!F109 -> MULHOUSE | G107: ='[1]Rapport 5'!G109 -> 264 | H107: ='[1]Rapport 5'!H109 -> HAUT RHIN | I107: ='[1]Rapport 5'!I109 -> 4120.08 | J107: ='[1]Rapport 5'!J109 -> 102.54 | K107: ='[1]Rapport 5'!K109 -> 0 | L107: ='[1]Rapport 5'!L109 -> 0 | M107: ='[1]Rapport 5'!M109 -> 86907.11 | N107: ='[1]Rapport 5'!N109 -> 3078.86 | O107: ='[1]Rapport 5'!O109 -> 2910 | P107: ='[1]Rapport 5'!P109 -> 0 | Q107: ='[1]Rapport 5'!Q109 -> 0 | R107: ='[1]Rapport 5'!R109 -> 0 | S107: ='[1]Rapport 5'!S109 -> 57 | T107: ='[1]Rapport 5'!T109 -> 0 | U107: ='[1]Rapport 5'!U109 -> 7009.02 | V107: ='[1]Rapport 5'!V109 -> 1102.43 | W107: ='[1]Rapport 5'!W109 -> 2605.68 | X107: ='[1]Rapport 5'!X109 -> 484.5 | Y107: 103,609 | Z107: 4,768 | AA107: 4.6% | AB107: 244 | AC107: =1+(AB107/COUNT($AB$3:AB$318)*10) -> 8.721518987 | AD107: 8 | AE107: 103 | AF107: 2.5% | AG107: 74 | AH107: 3.341772152 | AI107: 3 | AJ107: 0 | AK107: 0.0% | AL107: 1 | AM107: 1.03164557 | AN107: 1 | AO107: 3,079 | AP107: 3.5% | AQ107: 220 | AR107: 7.962025316 | AS107: 7 | AT107: 0 | AU107: 0.0% | AV107: 1 | AW107: 1.03164557 | AX107: 1 | AY107: 0 | AZ107: 0.0% | BA107: 1 | BB107: 1.03164557 | BC107: 1 | BD107: 0 | BE107: 0.0% | BF107: 1 | BG107: 1.03164557 | BH107: 1 | BI107: 1,102 | BJ107: 15.7% | BK107: 230 | BL107: 8.278481013 | BM107: 8 | BN107: 485 | BO107: 18.6% | BP107: 311 | BQ107: 10.84177215 | BR107: 10 | BT107: 184 | BU107: -12
A108: ='[1]Rapport 5'!A110 -> 198 | B108: ='[1]Rapport 5'!B110 -> SAINT AMARIN | C108: ='[1]Rapport 5'!C110 -> 4194 | D108: ='[1]Rapport 5'!D110 -> THANN | E108: ='[1]Rapport 5'!E110 -> 5169 | F108: ='[1]Rapport 5'!F110 -> MULHOUSE | G108: ='[1]Rapport 5'!G110 -> 264 | H108: ='[1]Rapport 5'!H110 -> HAUT RHIN | I108: ='[1]Rapport 5'!I110 -> 1720.94 | J108: ='[1]Rapport 5'!J110 -> 177.39 | K108: ='[1]Rapport 5'!K110 -> 0 | L108: ='[1]Rapport 5'!L110 -> 0 | M108: ='[1]Rapport 5'!M110 -> 74558.04 | N108: ='[1]Rapport 5'!N110 -> 2641.16 | O108: ='[1]Rapport 5'!O110 -> 3783.75 | P108: ='[1]Rapport 5'!P110 -> 0 | Q108: ='[1]Rapport 5'!Q110 -> 0 | R108: ='[1]Rapport 5'!R110 -> 0 | S108: ='[1]Rapport 5'!S110 -> 70 | T108: ='[1]Rapport 5'!T110 -> 0 | U108: ='[1]Rapport 5'!U110 -> 5239.92 | V108: ='[1]Rapport 5'!V110 -> 284 | W108: ='[1]Rapport 5'!W110 -> 2331.62 | X108: ='[1]Rapport 5'!X110 -> 56 | Y108: 87,704 | Z108: 3,159 | AA108: 3.6% | AB108: 141 | AC108: =1+(AB108/COUNT($AB$3:AB$318)*10) -> 5.462025316 | AD108: 5 | AE108: 177 | AF108: 10.3% | AG108: 272 | AH108: 9.607594937 | AI108: 9 | AJ108: 0 | AK108: 0.0% | AL108: 1 | AM108: 1.03164557 | AN108: 1 | AO108: 2,641 | AP108: 3.5% | AQ108: 219 | AR108: 7.930379747 | AS108: 7 | AT108: 0 | AU108: 0.0% | AV108: 1 | AW108: 1.03164557 | AX108: 1 | AY108: 0 | AZ108: 0.0% | BA108: 1 | BB108: 1.03164557 | BC108: 1 | BD108: 0 | BE108: 0.0% | BF108: 1 | BG108: 1.03164557 | BH108: 1 | BI108: 284 | BJ108: 5.4% | BK108: 73 | BL108: 3.310126582 | BM108: 3 | BN108: 56 | BO108: 2.4% | BP108: 117 | BQ108: 4.702531646 | BR108: 4 | BT108: 185 | BU108: -13
A109: ='[1]Rapport 5'!A111 -> 5800 | B109: ='[1]Rapport 5'!B111 -> EXPERTS DIRECT | C109: ='[1]Rapport 5'!C111 -> 405800 | D109: ='[1]Rapport 5'!D111 -> EXPERTS DIRECT | E109: ='[1]Rapport 5'!E111 -> 5800 | F109: ='[1]Rapport 5'!F111 -> EXPERTS DIRECT | G109: ='[1]Rapport 5'!G111 -> 269 | H109: ='[1]Rapport 5'!H111 -> BANQUE DIGITALE | I109: ='[1]Rapport 5'!I111 -> 89708.9 | J109: ='[1]Rapport 5'!J111 -> 2701.13 | K109: ='[1]Rapport 5'!K111 -> 0 | L109: ='[1]Rapport 5'!L111 -> 60 | M109: ='[1]Rapport 5'!M111 -> 1124426.21 | N109: ='[1]Rapport 5'!N111 -> 18781.43 | O109: ='[1]Rapport 5'!O111 -> 3989 | P109: ='[1]Rapport 5'!P111 -> 0 | Q109: ='[1]Rapport 5'!Q111 -> 0 | R109: ='[1]Rapport 5'!R111 -> 0 | S109: ='[1]Rapport 5'!S111 -> 1186 | T109: ='[1]Rapport 5'!T111 -> 0 | U109: ='[1]Rapport 5'!U111 -> 116393.56 | V109: ='[1]Rapport 5'!V111 -> 1496.38 | W109: ='[1]Rapport 5'!W111 -> 2523.76 | X109: ='[1]Rapport 5'!X111 -> 0 | Y109: 1,338,227 | Z109: 23,039 | AA109: 1.7% | AB109: 15 | AC109: =1+(AB109/COUNT($AB$3:AB$318)*10) -> 1.474683544 | AD109: 1 | AE109: =+J109 -> 2,701 | AF109: 3.0% | AG109: 103 | AH109: 4.259493671 | AI109: 4 | AJ109: 60 | AK109: 100.0% | AL109: 288 | AM109: 10.11392405 | AN109: 10 | AO109: 18,781 | AP109: 1.7% | AQ109: 37 | AR109: 2.170886076 | AS109: 2 | AT109: 0 | AU109: 0.0% | AV109: 1 | AW109: 1.03164557 | AX109: 1 | AY109: 0 | AZ109: 0.0% | BA109: 1 | BB109: 1.03164557 | BC109: 1 | BD109: 0 | BE109: 0.0% | BF109: 1 | BG109: 1.03164557 | BH109: 1 | BI109: 1,496 | BJ109: 1.3% | BK109: 19 | BL109: 1.601265823 | BM109: 1 | BN109: 0 | BO109: 0.0% | BP109: 1 | BQ109: 1.03164557 | BR109: 1 | BT109: 186 | BU109: -5614
A110: ='[1]Rapport 5'!A112 -> 8801 | B110: ='[1]Rapport 5'!B112 -> CHARLEVILLE JEAN JAURES | C110: ='[1]Rapport 5'!C112 -> 408801 | D110: ='[1]Rapport 5'!D112 -> CHARLEVILLE JEAN JAURES | E110: ='[1]Rapport 5'!E112 -> 2 | F110: ='[1]Rapport 5'!F112 -> CHARLEVILLE MEZIERES | G110: ='[1]Rapport 5'!G112 -> 30 | H110: ='[1]Rapport 5'!H112 -> MARNE ARDENNES | I110: ='[1]Rapport 5'!I112 -> 11707.98 | J110: ='[1]Rapport 5'!J112 -> 840.57 | K110: ='[1]Rapport 5'!K112 -> 0 | L110: ='[1]Rapport 5'!L112 -> 0 | M110: ='[1]Rapport 5'!M112 -> 385417.26 | N110: ='[1]Rapport 5'!N112 -> 14224.55 | O110: ='[1]Rapport 5'!O112 -> 15153.5 | P110: ='[1]Rapport 5'!P112 -> 980.27 | Q110: ='[1]Rapport 5'!Q112 -> 236.49 | R110: ='[1]Rapport 5'!R112 -> 0 | S110: ='[1]Rapport 5'!S112 -> 647.52 | T110: ='[1]Rapport 5'!T112 -> 26 | U110: ='[1]Rapport 5'!U112 -> 42769.37 | V110: ='[1]Rapport 5'!V112 -> 3492.59 | W110: ='[1]Rapport 5'!W112 -> 19660.77 | X110: ='[1]Rapport 5'!X112 -> 632.75 | Y110: 475,593 | Z110: 20,197 | AA110: 4.2% | AB110: 218 | AC110: =1+(AB110/COUNT($AB$3:AB$318)*10) -> 7.898734177 | AD110: 7 | AE110: 841 | AF110: 7.2% | AG110: 238 | AH110: 8.53164557 | AI110: 8 | AJ110: 0 | AK110: 0.0% | AL110: 1 | AM110: 1.03164557 | AN110: 1 | AO110: 14,225 | AP110: 3.7% | AQ110: 237 | AR110: 8.5 | AS110: 8 | AT110: 980 | AU110: 6.5% | AV110: 216 | AW110: 7.835443038 | AX110: 7 | AY110: 0 | AZ110: 0.0% | BA110: 1 | BB110: 1.03164557 | BC110: 1 | BD110: 26 | BE110: 4.0% | BF110: 243 | BG110: 8.689873418 | BH110: 8 | BI110: 3,493 | BJ110: 8.2% | BK110: 124 | BL110: 4.924050633 | BM110: 4 | BN110: 633 | BO110: 3.2% | BP110: 150 | BQ110: 5.746835443 | BR110: 5 | BT110: 187 | BU110: -8614
A111: ='[1]Rapport 5'!A113 -> 8802 | B111: ='[1]Rapport 5'!B113 -> CHARLEVILLE NEVERS | C111: ='[1]Rapport 5'!C113 -> 508802 | D111: ='[1]Rapport 5'!D113 -> CHARLEVILLE NEVERS | E111: ='[1]Rapport 5'!E113 -> 2 | F111: ='[1]Rapport 5'!F113 -> CHARLEVILLE MEZIERES | G111: ='[1]Rapport 5'!G113 -> 30 | H111: ='[1]Rapport 5'!H113 -> MARNE ARDENNES | I111: ='[1]Rapport 5'!I113 -> 5597.31 | J111: ='[1]Rapport 5'!J113 -> 300.24 | K111: ='[1]Rapport 5'!K113 -> 0 | L111: ='[1]Rapport 5'!L113 -> 0 | M111: ='[1]Rapport 5'!M113 -> 119071.3 | N111: ='[1]Rapport 5'!N113 -> 3309.96 | O111: ='[1]Rapport 5'!O113 -> 7574 | P111: ='[1]Rapport 5'!P113 -> 28.5 | Q111: ='[1]Rapport 5'!Q113 -> 0 | R111: ='[1]Rapport 5'!R113 -> 0 | S111: ='[1]Rapport 5'!S113 -> 101 | T111: ='[1]Rapport 5'!T113 -> 31 | U111: ='[1]Rapport 5'!U113 -> 8353.3 | V111: ='[1]Rapport 5'!V113 -> 711.44 | W111: ='[1]Rapport 5'!W113 -> 4899.31 | X111: ='[1]Rapport 5'!X113 -> 37.3 | Y111: 145,596 | Z111: 4,418 | AA111: 3.0% | AB111: 75 | AC111: =1+(AB111/COUNT($AB$3:AB$318)*10) -> 3.373417722 | AD111: 3 | AE111: 300 | AF111: 5.4% | AG111: 202 | AH111: 7.392405063 | AI111: 7 | AJ111: 0 | AK111: 0.0% | AL111: 1 | AM111: 1.03164557 | AN111: 1 | AO111: 3,310 | AP111: 2.8% | AQ111: 138 | AR111: 5.367088608 | AS111: 5 | AT111: 29 | AU111: 0.4% | AV111: 65 | AW111: 3.056962025 | AX111: 3 | AY111: 0 | AZ111: 0.0% | BA111: 1 | BB111: 1.03164557 | BC111: 1 | BD111: 31 | BE111: 30.7% | BF111: 303 | BG111: 10.58860759 | BH111: 10 | BI111: 711 | BJ111: 8.5% | BK111: 130 | BL111: 5.113924051 | BM111: 5 | BN111: 37 | BO111: 0.8% | BP111: 42 | BQ111: 2.329113924 | BR111: 2 | BT111: 188 | BU111: -8614
A112: ='[1]Rapport 5'!A114 -> 8806 | B112: ='[1]Rapport 5'!B114 -> SEDAN | C112: ='[1]Rapport 5'!C114 -> 408806 | D112: ='[1]Rapport 5'!D114 -> SEDAN | E112: ='[1]Rapport 5'!E114 -> 2 | F112: ='[1]Rapport 5'!F114 -> CHARLEVILLE MEZIERES | G112: ='[1]Rapport 5'!G114 -> 30 | H112: ='[1]Rapport 5'!H114 -> MARNE ARDENNES | I112: ='[1]Rapport 5'!I114 -> 11953.39 | J112: ='[1]Rapport 5'!J114 -> 581.77 | K112: ='[1]Rapport 5'!K114 -> 0 | L112: ='[1]Rapport 5'!L114 -> 0 | M112: ='[1]Rapport 5'!M114 -> 371553.88 | N112: ='[1]Rapport 5'!N114 -> 10335.25 | O112: ='[1]Rapport 5'!O114 -> 12720.25 | P112: ='[1]Rapport 5'!P114 -> 617.5 | Q112: ='[1]Rapport 5'!Q114 -> 0 | R112: ='[1]Rapport 5'!R114 -> 0 | S112: ='[1]Rapport 5'!S114 -> 342 | T112: ='[1]Rapport 5'!T114 -> 0 | U112: ='[1]Rapport 5'!U114 -> 34382.95 | V112: ='[1]Rapport 5'!V114 -> 4455.72 | W112: ='[1]Rapport 5'!W114 -> 16767.97 | X112: ='[1]Rapport 5'!X114 -> 567.15 | Y112: 447,720 | Z112: 16,557 | AA112: 3.7% | AB112: 152 | AC112: =1+(AB112/COUNT($AB$3:AB$318)*10) -> 5.810126582 | AD112: 5 | AE112: 582 | AF112: 4.9% | AG112: 185 | AH112: 6.85443038 | AI112: 6 | AJ112: 0 | AK112: 0.0% | AL112: 1 | AM112: 1.03164557 | AN112: 1 | AO112: 10,335 | AP112: 2.8% | AQ112: 139 | AR112: 5.398734177 | AS112: 5 | AT112: 618 | AU112: 4.9% | AV112: 181 | AW112: 6.727848101 | AX112: 6 | AY112: 0 | AZ112: 0.0% | BA112: 1 | BB112: 1.03164557 | BC112: 1 | BD112: 0 | BE112: 0.0% | BF112: 1 | BG112: 1.03164557 | BH112: 1 | BI112: 4,456 | BJ112: 13.0% | BK112: 203 | BL112: 7.424050633 | BM112: 7 | BN112: 567 | BO112: 3.4% | BP112: 156 | BQ112: 5.936708861 | BR112: 5 | BT112: 189 | BU112: -8617
A113: ='[1]Rapport 5'!A115 -> 8815 | B113: ='[1]Rapport 5'!B115 -> CARIGNAN | C113: ='[1]Rapport 5'!C115 -> 508815 | D113: ='[1]Rapport 5'!D115 -> CARIGNAN | E113: ='[1]Rapport 5'!E115 -> 2 | F113: ='[1]Rapport 5'!F115 -> CHARLEVILLE MEZIERES | G113: ='[1]Rapport 5'!G115 -> 30 | H113: ='[1]Rapport 5'!H115 -> MARNE ARDENNES | I113: ='[1]Rapport 5'!I115 -> 5600.71 | J113: ='[1]Rapport 5'!J115 -> 135.38 | K113: ='[1]Rapport 5'!K115 -> 0 | L113: ='[1]Rapport 5'!L115 -> 0 | M113: ='[1]Rapport 5'!M115 -> 135869.81 | N113: ='[1]Rapport 5'!N115 -> 2575.87 | O113: ='[1]Rapport 5'!O115 -> 5049.5 | P113: ='[1]Rapport 5'!P115 -> 0 | Q113: ='[1]Rapport 5'!Q115 -> 0 | R113: ='[1]Rapport 5'!R115 -> 0 | S113: ='[1]Rapport 5'!S115 -> 127.5 | T113: ='[1]Rapport 5'!T115 -> 0 | U113: ='[1]Rapport 5'!U115 -> 8331.62 | V113: ='[1]Rapport 5'!V115 -> 798.81 | W113: ='[1]Rapport 5'!W115 -> 3656.97 | X113: ='[1]Rapport 5'!X115 -> 37.3 | Y113: 158,636 | Z113: 3,547 | AA113: 2.2% | AB113: 34 | AC113: =1+(AB113/COUNT($AB$3:AB$318)*10) -> 2.075949367 | AD113: 2 | AE113: 135 | AF113: 2.4% | AG113: 70 | AH113: 3.215189873 | AI113: 3 | AJ113: 0 | AK113: 0.0% | AL113: 1 | AM113: 1.03164557 | AN113: 1 | AO113: 2,576 | AP113: 1.9% | AQ113: 51 | AR113: 2.613924051 | AS113: 2 | AT113: 0 | AU113: 0.0% | AV113: 1 | AW113: 1.03164557 | AX113: 1 | AY113: 0 | AZ113: 0.0% | BA113: 1 | BB113: 1.03164557 | BC113: 1 | BD113: 0 | BE113: 0.0% | BF113: 1 | BG113: 1.03164557 | BH113: 1 | BI113: 799 | BJ113: 9.6% | BK113: 152 | BL113: 5.810126582 | BM113: 5 | BN113: 37 | BO113: 1.0% | BP113: 57 | BQ113: 2.803797468 | BR113: 2 | BT113: 191 | BU113: -8624
A114: ='[1]Rapport 5'!A116 -> 8817 | B114: ='[1]Rapport 5'!B116 -> CHARLEVILLE MOHON | C114: ='[1]Rapport 5'!C116 -> 508817 | D114: ='[1]Rapport 5'!D116 -> CHARLEVILLE MOHON | E114: ='[1]Rapport 5'!E116 -> 2 | F114: ='[1]Rapport 5'!F116 -> CHARLEVILLE MEZIERES | G114: ='[1]Rapport 5'!G116 -> 30 | H114: ='[1]Rapport 5'!H116 -> MARNE ARDENNES | I114: ='[1]Rapport 5'!I116 -> 4928.61 | J114: ='[1]Rapport 5'!J116 -> 40.14 | K114: ='[1]Rapport 5'!K116 -> 0 | L114: ='[1]Rapport 5'!L116 -> 0 | M114: ='[1]Rapport 5'!M116 -> 130249.72 | N114: ='[1]Rapport 5'!N116 -> 2121.09 | O114: ='[1]Rapport 5'!O116 -> 2863 | P114: ='[1]Rapport 5'!P116 -> 0 | Q114: ='[1]Rapport 5'!Q116 -> 0 | R114: ='[1]Rapport 5'!R116 -> 0 | S114: ='[1]Rapport 5'!S116 -> 13 | T114: ='[1]Rapport 5'!T116 -> 0 | U114: ='[1]Rapport 5'!U116 -> 10006.35 | V114: ='[1]Rapport 5'!V116 -> 455.07 | W114: ='[1]Rapport 5'!W116 -> 2630.8 | X114: ='[1]Rapport 5'!X116 -> 102.6 | Y114: 150,691 | Z114: 2,719 | AA114: 1.8% | AB114: 18 | AC114: =1+(AB114/COUNT($AB$3:AB$318)*10) -> 1.569620253 | AD114: 1 | AE114: 40 | AF114: 0.8% | AG114: 15 | AH114: 1.474683544 | AI114: 1 | AJ114: 0 | AK114: 0.0% | AL114: 1 | AM114: 1.03164557 | AN114: 1 | AO114: 2,121 | AP114: 1.6% | AQ114: 34 | AR114: 2.075949367 | AS114: 2 | AT114: 0 | AU114: 0.0% | AV114: 1 | AW114: 1.03164557 | AX114: 1 | AY114: 0 | AZ114: 0.0% | BA114: 1 | BB114: 1.03164557 | BC114: 1 | BD114: 0 | BE114: 0.0% | BF114: 1 | BG114: 1.03164557 | BH114: 1 | BI114: 455 | BJ114: 4.5% | BK114: 55 | BL114: 2.740506329 | BM114: 2 | BN114: 103 | BO114: 3.9% | BP114: 185 | BQ114: 6.85443038 | BR114: 6 | BT114: 192 | BU114: -8625
A115: ='[1]Rapport 5'!A117 -> 8819 | B115: ='[1]Rapport 5'!B117 -> MOUZON | C115: ='[1]Rapport 5'!C117 -> 508819 | D115: ='[1]Rapport 5'!D117 -> MOUZON | E115: ='[1]Rapport 5'!E117 -> 2 | F115: ='[1]Rapport 5'!F117 -> CHARLEVILLE MEZIERES | G115: ='[1]Rapport 5'!G117 -> 30 | H115: ='[1]Rapport 5'!H117 -> MARNE ARDENNES | I115: ='[1]Rapport 5'!I117 -> 5869.69 | J115: ='[1]Rapport 5'!J117 -> 710.93 | K115: ='[1]Rapport 5'!K117 -> 0 | L115: ='[1]Rapport 5'!L117 -> 0 | M115: ='[1]Rapport 5'!M117 -> 104495.18 | N115: ='[1]Rapport 5'!N117 -> 3512.35 | O115: ='[1]Rapport 5'!O117 -> 1875.5 | P115: ='[1]Rapport 5'!P117 -> 42.5 | Q115: ='[1]Rapport 5'!Q117 -> 0 | R115: ='[1]Rapport 5'!R117 -> 0 | S115: ='[1]Rapport 5'!S117 -> 117 | T115: ='[1]Rapport 5'!T117 -> 26 | U115: ='[1]Rapport 5'!U117 -> 5908.04 | V115: ='[1]Rapport 5'!V117 -> 781.11 | W115: ='[1]Rapport 5'!W117 -> 4111.39 | X115: ='[1]Rapport 5'!X117 -> 60 | Y115: 122,377 | Z115: 5,133 | AA115: 4.2% | AB115: 213 | AC115: =1+(AB115/COUNT($AB$3:AB$318)*10) -> 7.740506329 | AD115: 7 | AE115: 711 | AF115: 12.1% | AG115: 287 | AH115: 10.08227848 | AI115: 10 | AJ115: 0 | AK115: 0.0% | AL115: 1 | AM115: 1.03164557 | AN115: 1 | AO115: 3,512 | AP115: 3.4% | AQ115: 198 | AR115: 7.265822785 | AS115: 7 | AT115: 43 | AU115: 2.3% | AV115: 116 | AW115: 4.670886076 | AX115: 4 | AY115: 0 | AZ115: 0.0% | BA115: 1 | BB115: 1.03164557 | BC115: 1 | BD115: 26 | BE115: 22.2% | BF115: 298 | BG115: 10.43037975 | BH115: 10 | BI115: 781 | BJ115: 13.2% | BK115: 207 | BL115: 7.550632911 | BM115: 7 | BN115: 60 | BO115: 1.5% | BP115: 77 | BQ115: 3.436708861 | BR115: 3 | BT115: 193 | BU115: -8626
A116: ='[1]Rapport 5'!A118 -> 8820 | B116: ='[1]Rapport 5'!B118 -> VOUZIERS | C116: ='[1]Rapport 5'!C118 -> 508820 | D116: ='[1]Rapport 5'!D118 -> VOUZIERS | E116: ='[1]Rapport 5'!E118 -> 2 | F116: ='[1]Rapport 5'!F118 -> CHARLEVILLE MEZIERES | G116: ='[1]Rapport 5'!G118 -> 30 | H116: ='[1]Rapport 5'!H118 -> MARNE ARDENNES | I116: ='[1]Rapport 5'!I118 -> 4688.26 | J116: ='[1]Rapport 5'!J118 -> 314.51 | K116: ='[1]Rapport 5'!K118 -> 0 | L116: ='[1]Rapport 5'!L118 -> 0 | M116: ='[1]Rapport 5'!M118 -> 108784.35 | N116: ='[1]Rapport 5'!N118 -> 4219.39 | O116: ='[1]Rapport 5'!O118 -> 5147 | P116: ='[1]Rapport 5'!P118 -> 136 | Q116: ='[1]Rapport 5'!Q118 -> 0 | R116: ='[1]Rapport 5'!R118 -> 0 | S116: ='[1]Rapport 5'!S118 -> 0 | T116: ='[1]Rapport 5'!T118 -> 0 | U116: ='[1]Rapport 5'!U118 -> 6881.46 | V116: ='[1]Rapport 5'!V118 -> 1705.63 | W116: ='[1]Rapport 5'!W118 -> 6005.57 | X116: ='[1]Rapport 5'!X118 -> 334.26 | Y116: 131,507 | Z116: 6,710 | AA116: 5.1% | AB116: 270 | AC116: =1+(AB116/COUNT($AB$3:AB$318)*10) -> 9.544303797 | AD116: 9 | AE116: 315 | AF116: 6.7% | AG116: 232 | AH116: 8.341772152 | AI116: 8 | AJ116: 0 | AK116: 0.0% | AL116: 1 | AM116: 1.03164557 | AN116: 1 | AO116: 4,219 | AP116: 3.9% | AQ116: 250 | AR116: 8.911392405 | AS116: 8 | AT116: 136 | AU116: 2.6% | AV116: 126 | AW116: 4.987341772 | AX116: 4 | AY116: 0 | AZ116: 0.0% | BA116: 1 | BB116: 1.03164557 | BC116: 1 | BD116: 0 | BE116: 0.0% | BF116: 1 | BG116: 1.03164557 | BH116: 1 | BI116: 1,706 | BJ116: 24.8% | BK116: 290 | BL116: 10.17721519 | BM116: 10 | BN116: 334 | BO116: 5.6% | BP116: 232 | BQ116: 8.341772152 | BR116: 8 | BT116: 194 | BU116: -8626
A117: ='[1]Rapport 5'!A119 -> 8822 | B117: ='[1]Rapport 5'!B119 -> CHARLEVILLE MEZIERES | C117: ='[1]Rapport 5'!C119 -> 408822 | D117: ='[1]Rapport 5'!D119 -> CHARLEVILLE MEZIERES | E117: ='[1]Rapport 5'!E119 -> 2 | F117: ='[1]Rapport 5'!F119 -> CHARLEVILLE MEZIERES | G117: ='[1]Rapport 5'!G119 -> 30 | H117: ='[1]Rapport 5'!H119 -> MARNE ARDENNES | I117: ='[1]Rapport 5'!I119 -> 6476.16 | J117: ='[1]Rapport 5'!J119 -> 286.55 | K117: ='[1]Rapport 5'!K119 -> 0 | L117: ='[1]Rapport 5'!L119 -> 0 | M117: ='[1]Rapport 5'!M119 -> 172026.44 | N117: ='[1]Rapport 5'!N119 -> 4550.76 | O117: ='[1]Rapport 5'!O119 -> 5008 | P117: ='[1]Rapport 5'!P119 -> 0 | Q117: ='[1]Rapport 5'!Q119 -> 0 | R117: ='[1]Rapport 5'!R119 -> 0 | S117: ='[1]Rapport 5'!S119 -> 171 | T117: ='[1]Rapport 5'!T119 -> 0 | U117: ='[1]Rapport 5'!U119 -> 12980.95 | V117: ='[1]Rapport 5'!V119 -> 2535.98 | W117: ='[1]Rapport 5'!W119 -> 5448.49 | X117: ='[1]Rapport 5'!X119 -> 333.73 | Y117: 202,111 | Z117: 7,707 | AA117: 3.8% | AB117: 169 | AC117: =1+(AB117/COUNT($AB$3:AB$318)*10) -> 6.348101266 | AD117: 6 | AE117: 287 | AF117: 4.4% | AG117: 168 | AH117: 6.316455696 | AI117: 6 | AJ117: 0 | AK117: 0.0% | AL117: 1 | AM117: 1.03164557 | AN117: 1 | AO117: 4,551 | AP117: 2.6% | AQ117: 124 | AR117: 4.924050633 | AS117: 4 | AT117: 0 | AU117: 0.0% | AV117: 1 | AW117: 1.03164557 | AX117: 1 | AY117: 0 | AZ117: 0.0% | BA117: 1 | BB117: 1.03164557 | BC117: 1 | BD117: 0 | BE117: 0.0% | BF117: 1 | BG117: 1.03164557 | BH117: 1 | BI117: 2,536 | BJ117: 19.5% | BK117: 260 | BL117: 9.227848101 | BM117: 9 | BN117: 334 | BO117: 6.1% | BP117: 241 | BQ117: 8.626582278 | BR117: 8 | BT117: 195 | BU117: -8627
A118: ='[1]Rapport 5'!A120 -> 8833 | B118: ='[1]Rapport 5'!B120 -> VILLERS SEMEUSE CORA | C118: ='[1]Rapport 5'!C120 -> 508833 | D118: ='[1]Rapport 5'!D120 -> VILLERS SEMEUSE CORA | E118: ='[1]Rapport 5'!E120 -> 2 | F118: ='[1]Rapport 5'!F120 -> CHARLEVILLE MEZIERES | G118: ='[1]Rapport 5'!G120 -> 30 | H118: ='[1]Rapport 5'!H120 -> MARNE ARDENNES | I118: ='[1]Rapport 5'!I120 -> 8450.66 | J118: ='[1]Rapport 5'!J120 -> 612.38 | K118: ='[1]Rapport 5'!K120 -> 0 | L118: ='[1]Rapport 5'!L120 -> 0 | M118: ='[1]Rapport 5'!M120 -> 188831.91 | N118: ='[1]Rapport 5'!N120 -> 6319.45 | O118: ='[1]Rapport 5'!O120 -> 8001.5 | P118: ='[1]Rapport 5'!P120 -> 42 | Q118: ='[1]Rapport 5'!Q120 -> 0 | R118: ='[1]Rapport 5'!R120 -> 0 | S118: ='[1]Rapport 5'!S120 -> 221 | T118: ='[1]Rapport 5'!T120 -> 0 | U118: ='[1]Rapport 5'!U120 -> 8738.01 | V118: ='[1]Rapport 5'!V120 -> 453.72 | W118: ='[1]Rapport 5'!W120 -> 4260.71 | X118: ='[1]Rapport 5'!X120 -> 168.09 | Y118: 218,504 | Z118: 7,596 | AA118: 3.5% | AB118: 131 | AC118: =1+(AB118/COUNT($AB$3:AB$318)*10) -> 5.14556962 | AD118: 5 | AE118: 612 | AF118: 7.2% | AG118: 239 | AH118: 8.563291139 | AI118: 8 | AJ118: 0 | AK118: 0.0% | AL118: 1 | AM118: 1.03164557 | AN118: 1 | AO118: 6,319 | AP118: 3.3% | AQ118: 197 | AR118: 7.234177215 | AS118: 7 | AT118: 42 | AU118: 0.5% | AV118: 71 | AW118: 3.246835443 | AX118: 3 | AY118: 0 | AZ118: 0.0% | BA118: 1 | BB118: 1.03164557 | BC118: 1 | BD118: 0 | BE118: 0.0% | BF118: 1 | BG118: 1.03164557 | BH118: 1 | BI118: 454 | BJ118: 5.2% | BK118: 68 | BL118: 3.151898734 | BM118: 3 | BN118: 168 | BO118: 3.9% | BP118: 189 | BQ118: 6.981012658 | BR118: 6 | BT118: 196 | BU118: -8637
A119: ='[1]Rapport 5'!A121 -> 8839 | B119: ='[1]Rapport 5'!B121 -> GIVET | C119: ='[1]Rapport 5'!C121 -> 508839 | D119: ='[1]Rapport 5'!D121 -> GIVET | E119: ='[1]Rapport 5'!E121 -> 2 | F119: ='[1]Rapport 5'!F121 -> CHARLEVILLE MEZIERES | G119: ='[1]Rapport 5'!G121 -> 30 | H119: ='[1]Rapport 5'!H121 -> MARNE ARDENNES | I119: ='[1]Rapport 5'!I121 -> 3594.12 | J119: ='[1]Rapport 5'!J121 -> 129.19 | K119: ='[1]Rapport 5'!K121 -> 0 | L119: ='[1]Rapport 5'!L121 -> 0 | M119: ='[1]Rapport 5'!M121 -> 115719.53 | N119: ='[1]Rapport 5'!N121 -> 3545.07 | O119: ='[1]Rapport 5'!O121 -> 5967.5 | P119: ='[1]Rapport 5'!P121 -> 57 | Q119: ='[1]Rapport 5'!Q121 -> 0 | R119: ='[1]Rapport 5'!R121 -> 0 | S119: ='[1]Rapport 5'!S121 -> 0 | T119: ='[1]Rapport 5'!T121 -> 0 | U119: ='[1]Rapport 5'!U121 -> 7791.85 | V119: ='[1]Rapport 5'!V121 -> 599.39 | W119: ='[1]Rapport 5'!W121 -> 4764.71 | X119: ='[1]Rapport 5'!X121 -> 28 | Y119: 137,838 | Z119: 4,359 | AA119: 3.2% | AB119: 91 | AC119: =1+(AB119/COUNT($AB$3:AB$318)*10) -> 3.879746835 | AD119: 3 | AE119: =+J119 -> 129 | AF119: 3.6% | AG119: 135 | AH119: 5.272151899 | AI119: 5 | AJ119: 0 | AK119: 0.0% | AL119: 1 | AM119: 1.03164557 | AN119: 1 | AO119: 3,545 | AP119: 3.1% | AQ119: 172 | AR119: 6.443037975 | AS119: 6 | AT119: 57 | AU119: 1.0% | AV119: 81 | AW119: 3.563291139 | AX119: 3 | AY119: 0 | AZ119: 0.0% | BA119: 1 | BB119: 1.03164557 | BC119: 1 | BD119: 0 | BE119: 0.0% | BF119: 1 | BG119: 1.03164557 | BH119: 1 | BI119: 599 | BJ119: 7.7% | BK119: 114 | BL119: 4.607594937 | BM119: 4 | BN119: 28 | BO119: 0.6% | BP119: 35 | BQ119: 2.107594937 | BR119: 2 | BT119: 198 | BU119: -8641
A120: ='[1]Rapport 5'!A122 -> 8840 | B120: ='[1]Rapport 5'!B122 -> RETHEL | C120: ='[1]Rapport 5'!C122 -> 408840 | D120: ='[1]Rapport 5'!D122 -> RETHEL | E120: ='[1]Rapport 5'!E122 -> 2 | F120: ='[1]Rapport 5'!F122 -> CHARLEVILLE MEZIERES | G120: ='[1]Rapport 5'!G122 -> 30 | H120: ='[1]Rapport 5'!H122 -> MARNE ARDENNES | I120: ='[1]Rapport 5'!I122 -> 7217.2 | J120: ='[1]Rapport 5'!J122 -> 205.56 | K120: ='[1]Rapport 5'!K122 -> 0 | L120: ='[1]Rapport 5'!L122 -> 51 | M120: ='[1]Rapport 5'!M122 -> 218446.62 | N120: ='[1]Rapport 5'!N122 -> 4206.4 | O120: ='[1]Rapport 5'!O122 -> 4629.5 | P120: ='[1]Rapport 5'!P122 -> 140 | Q120: ='[1]Rapport 5'!Q122 -> 0 | R120: ='[1]Rapport 5'!R122 -> 0 | S120: ='[1]Rapport 5'!S122 -> 180 | T120: ='[1]Rapport 5'!T122 -> 0 | U120: ='[1]Rapport 5'!U122 -> 14493.76 | V120: ='[1]Rapport 5'!V122 -> 2145.34 | W120: ='[1]Rapport 5'!W122 -> 10210.92 | X120: ='[1]Rapport 5'!X122 -> 98.65 | Y120: 255,178 | Z120: 6,847 | AA120: 2.7% | AB120: 56 | AC120: =1+(AB120/COUNT($AB$3:AB$318)*10) -> 2.772151899 | AD120: 2 | AE120: =+J120 -> 206 | AF120: 2.8% | AG120: 94 | AH120: 3.974683544 | AI120: 3 | AJ120: 51 | AK120: 100.0% | AL120: 288 | AM120: 10.11392405 | AN120: 10 | AO120: 4,206 | AP120: 1.9% | AQ120: 52 | AR120: 2.64556962 | AS120: 2 | AT120: 140 | AU120: 3.0% | AV120: 138 | AW120: 5.367088608 | AX120: 5 | AY120: 0 | AZ120: 0.0% | BA120: 1 | BB120: 1.03164557 | BC120: 1 | BD120: 0 | BE120: 0.0% | BF120: 1 | BG120: 1.03164557 | BH120: 1 | BI120: 2,145 | BJ120: 14.8% | BK120: 223 | BL120: 8.056962025 | BM120: 8 | BN120: 99 | BO120: 1.0% | BP120: 55 | BQ120: 2.740506329 | BR120: 2 | BT120: 5800 | BU120: -3040
A121: ='[1]Rapport 5'!A123 -> 8860 | B121: ='[1]Rapport 5'!B123 -> ROCROI | C121: ='[1]Rapport 5'!C123 -> 508860 | D121: ='[1]Rapport 5'!D123 -> ROCROI | E121: ='[1]Rapport 5'!E123 -> 2 | F121: ='[1]Rapport 5'!F123 -> CHARLEVILLE MEZIERES | G121: ='[1]Rapport 5'!G123 -> 30 | H121: ='[1]Rapport 5'!H123 -> MARNE ARDENNES | I121: ='[1]Rapport 5'!I123 -> 6078.69 | J121: ='[1]Rapport 5'!J123 -> 208.33 | K121: ='[1]Rapport 5'!K123 -> 0 | L121: ='[1]Rapport 5'!L123 -> 0 | M121: ='[1]Rapport 5'!M123 -> 135842.26 | N121: ='[1]Rapport 5'!N123 -> 1910.26 | O121: ='[1]Rapport 5'!O123 -> 3942.5 | P121: ='[1]Rapport 5'!P123 -> 180 | Q121: ='[1]Rapport 5'!Q123 -> 0 | R121: ='[1]Rapport 5'!R123 -> 0 | S121: ='[1]Rapport 5'!S123 -> 53 | T121: ='[1]Rapport 5'!T123 -> 0 | U121: ='[1]Rapport 5'!U123 -> 9876.32 | V121: ='[1]Rapport 5'!V123 -> 349.59 | W121: ='[1]Rapport 5'!W123 -> 6217.45 | X121: ='[1]Rapport 5'!X123 -> 795.1 | Y121: 162,010 | Z121: 3,443 | AA121: 2.1% | AB121: 27 | AC121: =1+(AB121/COUNT($AB$3:AB$318)*10) -> 1.85443038 | AD121: 1 | AE121: =+J121 -> 208 | AF121: 3.4% | AG121: 124 | AH121: 4.924050633 | AI121: 4 | AJ121: 0 | AK121: 0.0% | AL121: 1 | AM121: 1.03164557 | AN121: 1 | AO121: 1,910 | AP121: 1.4% | AQ121: 22 | AR121: 1.696202532 | AS121: 1 | AT121: 180 | AU121: 4.6% | AV121: 176 | AW121: 6.569620253 | AX121: 6 | AY121: 0 | AZ121: 0.0% | BA121: 1 | BB121: 1.03164557 | BC121: 1 | BD121: 0 | BE121: 0.0% | BF121: 1 | BG121: 1.03164557 | BH121: 1 | BI121: 350 | BJ121: 3.5% | BK121: 40 | BL121: 2.265822785 | BM121: 2 | BN121: 795 | BO121: 12.8% | BP121: 294 | BQ121: 10.30379747 | BR121: 10 | BT121: 8801 | BU121: -59
A122: ='[1]Rapport 5'!A124 -> 8862 | B122: ='[1]Rapport 5'!B124 -> REVIN | C122: ='[1]Rapport 5'!C124 -> 408862 | D122: ='[1]Rapport 5'!D124 -> REVIN | E122: ='[1]Rapport 5'!E124 -> 2 | F122: ='[1]Rapport 5'!F124 -> CHARLEVILLE MEZIERES | G122: ='[1]Rapport 5'!G124 -> 30 | H122: ='[1]Rapport 5'!H124 -> MARNE ARDENNES | I122: ='[1]Rapport 5'!I124 -> 7597.35 | J122: ='[1]Rapport 5'!J124 -> 101.25 | K122: ='[1]Rapport 5'!K124 -> 0 | L122: ='[1]Rapport 5'!L124 -> 0 | M122: ='[1]Rapport 5'!M124 -> 172354 | N122: ='[1]Rapport 5'!N124 -> 4337.91 | O122: ='[1]Rapport 5'!O124 -> 4766 | P122: ='[1]Rapport 5'!P124 -> 42 | Q122: ='[1]Rapport 5'!Q124 -> 0 | R122: ='[1]Rapport 5'!R124 -> 0 | S122: ='[1]Rapport 5'!S124 -> 1052.5 | T122: ='[1]Rapport 5'!T124 -> 0 | U122: ='[1]Rapport 5'!U124 -> 16599.78 | V122: ='[1]Rapport 5'!V124 -> 1491.65 | W122: ='[1]Rapport 5'!W124 -> 6578.05 | X122: ='[1]Rapport 5'!X124 -> 56 | Y122: 208,948 | Z122: 6,029 | AA122: 2.9% | AB122: 68 | AC122: =1+(AB122/COUNT($AB$3:AB$318)*10) -> 3.151898734 | AD122: 3 | AE122: 101 | AF122: 1.3% | AG122: 29 | AH122: 1.917721519 | AI122: 1 | AJ122: 0 | AK122: 0.0% | AL122: 1 | AM122: 1.03164557 | AN122: 1 | AO122: 4,338 | AP122: 2.5% | AQ122: 110 | AR122: 4.481012658 | AS122: 4 | AT122: 42 | AU122: 0.9% | AV122: 80 | AW122: 3.53164557 | AX122: 3 | AY122: 0 | AZ122: 0.0% | BA122: 1 | BB122: 1.03164557 | BC122: 1 | BD122: 0 | BE122: 0.0% | BF122: 1 | BG122: 1.03164557 | BH122: 1 | BI122: 1,492 | BJ122: 9.0% | BK122: 141 | BL122: 5.462025316 | BM122: 5 | BN122: 56 | BO122: 0.9% | BP122: 48 | BQ122: 2.518987342 | BR122: 2 | BT122: 8802 | BU122: -60
A123: ='[1]Rapport 5'!A125 -> 10510 | B123: ='[1]Rapport 5'!B125 -> TROYES GAMBETTA | C123: ='[1]Rapport 5'!C125 -> 410510 | D123: ='[1]Rapport 5'!D125 -> TROYES GAMBETTA | E123: ='[1]Rapport 5'!E125 -> 14 | F123: ='[1]Rapport 5'!F125 -> TROYES | G123: ='[1]Rapport 5'!G125 -> 50 | H123: ='[1]Rapport 5'!H125 -> AUBE HAUTE MARNE | I123: ='[1]Rapport 5'!I125 -> 21527.3 | J123: ='[1]Rapport 5'!J125 -> 439.7 | K123: ='[1]Rapport 5'!K125 -> 0 | L123: ='[1]Rapport 5'!L125 -> 21.55 | M123: ='[1]Rapport 5'!M125 -> 378587.93 | N123: ='[1]Rapport 5'!N125 -> 9799.64 | O123: ='[1]Rapport 5'!O125 -> 14167 | P123: ='[1]Rapport 5'!P125 -> 1350.5 | Q123: ='[1]Rapport 5'!Q125 -> 0 | R123: ='[1]Rapport 5'!R125 -> 0 | S123: ='[1]Rapport 5'!S125 -> 726.58 | T123: ='[1]Rapport 5'!T125 -> 0 | U123: ='[1]Rapport 5'!U125 -> 58735.14 | V123: ='[1]Rapport 5'!V125 -> 2905.37 | W123: ='[1]Rapport 5'!W125 -> 19109.31 | X123: ='[1]Rapport 5'!X125 -> 713.09 | Y123: 492,853 | Z123: 15,230 | AA123: 3.1% | AB123: 83 | AC123: =1+(AB123/COUNT($AB$3:AB$318)*10) -> 3.626582278 | AD123: 3 | AE123: 440 | AF123: 2.0% | AG123: 53 | AH123: 2.67721519 | AI123: 2 | AJ123: 22 | AK123: 100.0% | AL123: 288 | AM123: 10.11392405 | AN123: 10 | AO123: 9,800 | AP123: 2.6% | AQ123: 116 | AR123: 4.670886076 | AS123: 4 | AT123: 1,351 | AU123: 9.5% | AV123: 246 | AW123: 8.784810127 | AX123: 8 | AY123: 0 | AZ123: 0.0% | BA123: 1 | BB123: 1.03164557 | BC123: 1 | BD123: 0 | BE123: 0.0% | BF123: 1 | BG123: 1.03164557 | BH123: 1 | BI123: 2,905 | BJ123: 4.9% | BK123: 63 | BL123: 2.993670886 | BM123: 2 | BN123: 713 | BO123: 3.7% | BP123: 180 | BQ123: 6.696202532 | BR123: 6 | BT123: 8806 | BU123: -1704
A124: ='[1]Rapport 5'!A126 -> 10511 | B124: ='[1]Rapport 5'!B126 -> TROYES BROSSOLETTE | C124: ='[1]Rapport 5'!C126 -> 510511 | D124: ='[1]Rapport 5'!D126 -> TROYES BROSSOLETTE | E124: ='[1]Rapport 5'!E126 -> 14 | F124: ='[1]Rapport 5'!F126 -> TROYES | G124: ='[1]Rapport 5'!G126 -> 50 | H124: ='[1]Rapport 5'!H126 -> AUBE HAUTE MARNE | I124: ='[1]Rapport 5'!I126 -> 4321.95 | J124: ='[1]Rapport 5'!J126 -> 243.75 | K124: ='[1]Rapport 5'!K126 -> 0 | L124: ='[1]Rapport 5'!L126 -> 0 | M124: ='[1]Rapport 5'!M126 -> 115408.17 | N124: ='[1]Rapport 5'!N126 -> 3838.4 | O124: ='[1]Rapport 5'!O126 -> 5365 | P124: ='[1]Rapport 5'!P126 -> 170 | Q124: ='[1]Rapport 5'!Q126 -> 0 | R124: ='[1]Rapport 5'!R126 -> 0 | S124: ='[1]Rapport 5'!S126 -> 117 | T124: ='[1]Rapport 5'!T126 -> 0 | U124: ='[1]Rapport 5'!U126 -> 13690.74 | V124: ='[1]Rapport 5'!V126 -> 517.15 | W124: ='[1]Rapport 5'!W126 -> 3795.18 | X124: ='[1]Rapport 5'!X126 -> 155.93 | Y124: 142,698 | Z124: 4,925 | AA124: 3.5% | AB124: 126 | AC124: =1+(AB124/COUNT($AB$3:AB$318)*10) -> 4.987341772 | AD124: 4 | AE124: 244 | AF124: 5.6% | AG124: 210 | AH124: 7.64556962 | AI124: 7 | AJ124: 0 | AK124: 0.0% | AL124: 1 | AM124: 1.03164557 | AN124: 1 | AO124: 3,838 | AP124: 3.3% | AQ124: 195 | AR124: 7.170886076 | AS124: 7 | AT124: 170 | AU124: 3.2% | AV124: 141 | AW124: 5.462025316 | AX124: 5 | AY124: 0 | AZ124: 0.0% | BA124: 1 | BB124: 1.03164557 | BC124: 1 | BD124: 0 | BE124: 0.0% | BF124: 1 | BG124: 1.03164557 | BH124: 1 | BI124: 517 | BJ124: 3.8% | BK124: 42 | BL124: 2.329113924 | BM124: 2 | BN124: 156 | BO124: 4.1% | BP124: 193 | BQ124: 7.107594937 | BR124: 7 | BT124: 8814 | BU124: -1697
A125: ='[1]Rapport 5'!A127 -> 10512 | B125: ='[1]Rapport 5'!B127 -> TROYES ZOLA | C125: ='[1]Rapport 5'!C127 -> 410512 | D125: ='[1]Rapport 5'!D127 -> TROYES ZOLA | E125: ='[1]Rapport 5'!E127 -> 14 | F125: ='[1]Rapport 5'!F127 -> TROYES | G125: ='[1]Rapport 5'!G127 -> 50 | H125: ='[1]Rapport 5'!H127 -> AUBE HAUTE MARNE | I125: ='[1]Rapport 5'!I127 -> 9929.18 | J125: ='[1]Rapport 5'!J127 -> 364.63 | K125: ='[1]Rapport 5'!K127 -> 0 | L125: ='[1]Rapport 5'!L127 -> 0 | M125: ='[1]Rapport 5'!M127 -> 196054.58 | N125: ='[1]Rapport 5'!N127 -> 5888.61 | O125: ='[1]Rapport 5'!O127 -> 6196.5 | P125: ='[1]Rapport 5'!P127 -> 219 | Q125: ='[1]Rapport 5'!Q127 -> 0 | R125: ='[1]Rapport 5'!R127 -> 0 | S125: ='[1]Rapport 5'!S127 -> 309 | T125: ='[1]Rapport 5'!T127 -> 18 | U125: ='[1]Rapport 5'!U127 -> 12953.01 | V125: ='[1]Rapport 5'!V127 -> 623.77 | W125: ='[1]Rapport 5'!W127 -> 6352.28 | X125: ='[1]Rapport 5'!X127 -> 96.42 | Y125: 231,795 | Z125: 7,210 | AA125: 3.1% | AB125: 85 | AC125: =1+(AB125/COUNT($AB$3:AB$318)*10) -> 3.689873418 | AD125: 3 | AE125: 365 | AF125: 3.7% | AG125: 139 | AH125: 5.398734177 | AI125: 5 | AJ125: 0 | AK125: 0.0% | AL125: 1 | AM125: 1.03164557 | AN125: 1 | AO125: 5,889 | AP125: 3.0% | AQ125: 168 | AR125: 6.316455696 | AS125: 6 | AT125: 219 | AU125: 3.5% | AV125: 155 | AW125: 5.905063291 | AX125: 5 | AY125: 0 | AZ125: 0.0% | BA125: 1 | BB125: 1.03164557 | BC125: 1 | BD125: 18 | BE125: 5.8% | BF125: 256 | BG125: 9.101265823 | BH125: 9 | BI125: 624 | BJ125: 4.8% | BK125: 58 | BL125: 2.835443038 | BM125: 2 | BN125: 96 | BO125: 1.5% | BP125: 80 | BQ125: 3.53164557 | BR125: 3 | BT125: 8815 | BU125: -1697
A126: ='[1]Rapport 5'!A128 -> 10513 | B126: ='[1]Rapport 5'!B128 -> TROYES 1ER MAI | C126: ='[1]Rapport 5'!C128 -> 510513 | D126: ='[1]Rapport 5'!D128 -> TROYES 1ER MAI | E126: ='[1]Rapport 5'!E128 -> 14 | F126: ='[1]Rapport 5'!F128 -> TROYES | G126: ='[1]Rapport 5'!G128 -> 50 | H126: ='[1]Rapport 5'!H128 -> AUBE HAUTE MARNE | I126: ='[1]Rapport 5'!I128 -> 8581.94 | J126: ='[1]Rapport 5'!J128 -> 322.96 | K126: ='[1]Rapport 5'!K128 -> 0 | L126: ='[1]Rapport 5'!L128 -> 0 | M126: ='[1]Rapport 5'!M128 -> 191703.44 | N126: ='[1]Rapport 5'!N128 -> 5182.53 | O126: ='[1]Rapport 5'!O128 -> 5463 | P126: ='[1]Rapport 5'!P128 -> 0 | Q126: ='[1]Rapport 5'!Q128 -> 0 | R126: ='[1]Rapport 5'!R128 -> 0 | S126: ='[1]Rapport 5'!S128 -> 257 | T126: ='[1]Rapport 5'!T128 -> 0 | U126: ='[1]Rapport 5'!U128 -> 18833.81 | V126: ='[1]Rapport 5'!V128 -> 458.68 | W126: ='[1]Rapport 5'!W128 -> 5259.64 | X126: ='[1]Rapport 5'!X128 -> 57.31 | Y126: 230,099 | Z126: 6,021 | AA126: 2.6% | AB126: 52 | AC126: =1+(AB126/COUNT($AB$3:AB$318)*10) -> 2.64556962 | AD126: 2 | AE126: 323 | AF126: 3.8% | AG126: 143 | AH126: 5.525316456 | AI126: 5 | AJ126: 0 | AK126: 0.0% | AL126: 1 | AM126: 1.03164557 | AN126: 1 | AO126: 5,183 | AP126: 2.7% | AQ126: 131 | AR126: 5.14556962 | AS126: 5 | AT126: 0 | AU126: 0.0% | AV126: 1 | AW126: 1.03164557 | AX126: 1 | AY126: 0 | AZ126: 0.0% | BA126: 1 | BB126: 1.03164557 | BC126: 1 | BD126: 0 | BE126: 0.0% | BF126: 1 | BG126: 1.03164557 | BH126: 1 | BI126: 459 | BJ126: 2.4% | BK126: 29 | BL126: 1.917721519 | BM126: 1 | BN126: 57 | BO126: 1.1% | BP126: 59 | BQ126: 2.867088608 | BR126: 2 | BT126: 8817 | BU126: -1696
A127: ='[1]Rapport 5'!A129 -> 10520 | B127: ='[1]Rapport 5'!B129 -> SAINT ANDRE LES VERGERS | C127: ='[1]Rapport 5'!C129 -> 510520 | D127: ='[1]Rapport 5'!D129 -> SAINT ANDRE LES VERGERS | E127: ='[1]Rapport 5'!E129 -> 14 | F127: ='[1]Rapport 5'!F129 -> TROYES | G127: ='[1]Rapport 5'!G129 -> 50 | H127: ='[1]Rapport 5'!H129 -> AUBE HAUTE MARNE | I127: ='[1]Rapport 5'!I129 -> 6982.14 | J127: ='[1]Rapport 5'!J129 -> 177.84 | K127: ='[1]Rapport 5'!K129 -> 0 | L127: ='[1]Rapport 5'!L129 -> 0 | M127: ='[1]Rapport 5'!M129 -> 171495.51 | N127: ='[1]Rapport 5'!N129 -> 4468.63 | O127: ='[1]Rapport 5'!O129 -> 8963.5 | P127: ='[1]Rapport 5'!P129 -> 160 | Q127: ='[1]Rapport 5'!Q129 -> 0 | R127: ='[1]Rapport 5'!R129 -> 0 | S127: ='[1]Rapport 5'!S129 -> 294 | T127: ='[1]Rapport 5'!T129 -> 18 | U127: ='[1]Rapport 5'!U129 -> 17061.41 | V127: ='[1]Rapport 5'!V129 -> 840.11 | W127: ='[1]Rapport 5'!W129 -> 10570.17 | X127: ='[1]Rapport 5'!X129 -> 265.68 | Y127: 215,367 | Z127: 5,930 | AA127: 2.8% | AB127: 62 | AC127: =1+(AB127/COUNT($AB$3:AB$318)*10) -> 2.962025316 | AD127: 2 | AE127: 178 | AF127: 2.5% | AG127: 80 | AH127: 3.53164557 | AI127: 3 | AJ127: 0 | AK127: 0.0% | AL127: 1 | AM127: 1.03164557 | AN127: 1 | AO127: 4,469 | AP127: 2.6% | AQ127: 119 | AR127: 4.765822785 | AS127: 4 | AT127: 160 | AU127: 1.8% | AV127: 106 | AW127: 4.35443038 | AX127: 4 | AY127: 0 | AZ127: 0.0% | BA127: 1 | BB127: 1.03164557 | BC127: 1 | BD127: 18 | BE127: 6.1% | BF127: 257 | BG127: 9.132911392 | BH127: 9 | BI127: 840 | BJ127: 4.9% | BK127: 62 | BL127: 2.962025316 | BM127: 2 | BN127: 266 | BO127: 2.5% | BP127: 121 | BQ127: 4.829113924 | BR127: 4 | BT127: 8819 | BU127: -1701
A128: ='[1]Rapport 5'!A130 -> 10521 | B128: ='[1]Rapport 5'!B130 -> SAINTE SAVINE | C128: ='[1]Rapport 5'!C130 -> 410521 | D128: ='[1]Rapport 5'!D130 -> SAINTE SAVINE | E128: ='[1]Rapport 5'!E130 -> 14 | F128: ='[1]Rapport 5'!F130 -> TROYES | G128: ='[1]Rapport 5'!G130 -> 50 | H128: ='[1]Rapport 5'!H130 -> AUBE HAUTE MARNE | I128: ='[1]Rapport 5'!I130 -> 7466.94 | J128: ='[1]Rapport 5'!J130 -> 344.3 | K128: ='[1]Rapport 5'!K130 -> 0 | L128: ='[1]Rapport 5'!L130 -> 0 | M128: ='[1]Rapport 5'!M130 -> 214345.27 | N128: ='[1]Rapport 5'!N130 -> 7568.87 | O128: ='[1]Rapport 5'!O130 -> 6339 | P128: ='[1]Rapport 5'!P130 -> 769 | Q128: ='[1]Rapport 5'!Q130 -> 0 | R128: ='[1]Rapport 5'!R130 -> 0 | S128: ='[1]Rapport 5'!S130 -> 65 | T128: ='[1]Rapport 5'!T130 -> 0 | U128: ='[1]Rapport 5'!U130 -> 15734.13 | V128: ='[1]Rapport 5'!V130 -> 1369.69 | W128: ='[1]Rapport 5'!W130 -> 10881.58 | X128: ='[1]Rapport 5'!X130 -> 822.29 | Y128: 254,832 | Z128: =+J128+L128+N128+P128+R128+T128+V128+X128 -> 10,874 | AA128: =+Z128/Y128 -> 4.3% | AB128: 219 | AC128: =1+(AB128/COUNT($AB$3:AB$318)*10) -> 7.930379747 | AD128: 7 | AE128: 344 | AF128: 4.6% | AG128: 179 | AH128: 6.664556962 | AI128: 6 | AJ128: 0 | AK128: 0.0% | AL128: 1 | AM128: 1.03164557 | AN128: 1 | AO128: 7,569 | AP128: 3.5% | AQ128: 217 | AR128: 7.867088608 | AS128: 7 | AT128: 769 | AU128: 12.1% | AV128: 267 | AW128: 9.449367089 | AX128: 9 | AY128: 0 | AZ128: 0.0% | BA128: 1 | BB128: 1.03164557 | BC128: 1 | BD128: 0 | BE128: 0.0% | BF128: 1 | BG128: 1.03164557 | BH128: 1 | BI128: 1,370 | BJ128: 8.7% | BK128: 133 | BL128: 5.208860759 | BM128: 5 | BN128: 822 | BO128: 7.6% | BP128: 264 | BQ128: 9.35443038 | BR128: 9 | BT128: 8820 | BU128: -1701
A129: ='[1]Rapport 5'!A131 -> 10522 | B129: ='[1]Rapport 5'!B131 -> TROYES CHARTREUX | C129: ='[1]Rapport 5'!C131 -> 510522 | D129: ='[1]Rapport 5'!D131 -> TROYES CHARTREUX | E129: ='[1]Rapport 5'!E131 -> 14 | F129: ='[1]Rapport 5'!F131 -> TROYES | G129: ='[1]Rapport 5'!G131 -> 50 | H129: ='[1]Rapport 5'!H131 -> AUBE HAUTE MARNE | I129: ='[1]Rapport 5'!I131 -> 5145.76 | J129: ='[1]Rapport 5'!J131 -> 261.49 | K129: ='[1]Rapport 5'!K131 -> 0 | L129: ='[1]Rapport 5'!L131 -> 0 | M129: ='[1]Rapport 5'!M131 -> 121679.58 | N129: ='[1]Rapport 5'!N131 -> 5015.26 | O129: ='[1]Rapport 5'!O131 -> 3384 | P129: ='[1]Rapport 5'!P131 -> 50 | Q129: ='[1]Rapport 5'!Q131 -> 0 | R129: ='[1]Rapport 5'!R131 -> 0 | S129: ='[1]Rapport 5'!S131 -> 74 | T129: ='[1]Rapport 5'!T131 -> 0 | U129: ='[1]Rapport 5'!U131 -> 13013.35 | V129: ='[1]Rapport 5'!V131 -> 523.75 | W129: ='[1]Rapport 5'!W131 -> 4644.74 | X129: ='[1]Rapport 5'!X131 -> 56 | Y129: 147,941 | Z129: 5,907 | AA129: 4.0% | AB129: 190 | AC129: =1+(AB129/COUNT($AB$3:AB$318)*10) -> 7.012658228 | AD129: =+IF(INT(AC129)=11,10,INT(AC129)) -> 7 | AE129: 261 | AF129: 5.1% | AG129: 192 | AH129: 7.075949367 | AI129: 7 | AJ129: 0 | AK129: 0.0% | AL129: 1 | AM129: 1.03164557 | AN129: 1 | AO129: 5,015 | AP129: 4.1% | AQ129: 261 | AR129: 9.259493671 | AS129: 9 | AT129: 50 | AU129: 1.5% | AV129: 92 | AW129: 3.911392405 | AX129: 3 | AY129: 0 | AZ129: 0.0% | BA129: 1 | BB129: 1.03164557 | BC129: 1 | BD129: 0 | BE129: 0.0% | BF129: 1 | BG129: 1.03164557 | BH129: 1 | BI129: 524 | BJ129: 4.0% | BK129: 48 | BL129: 2.518987342 | BM129: 2 | BN129: 56 | BO129: 1.2% | BP129: 66 | BQ129: 3.088607595 | BR129: 3 | BT129: 8822 | BU129: -1700
A130: ='[1]Rapport 5'!A132 -> 10523 | B130: ='[1]Rapport 5'!B132 -> LA CHAPELLE ST LUC | C130: ='[1]Rapport 5'!C132 -> 510523 | D130: ='[1]Rapport 5'!D132 -> LA CHAPELLE ST LUC | E130: ='[1]Rapport 5'!E132 -> 14 | F130: ='[1]Rapport 5'!F132 -> TROYES | G130: ='[1]Rapport 5'!G132 -> 50 | H130: ='[1]Rapport 5'!H132 -> AUBE HAUTE MARNE | I130: ='[1]Rapport 5'!I132 -> 9811.46 | J130: ='[1]Rapport 5'!J132 -> 589.56 | K130: ='[1]Rapport 5'!K132 -> 0 | L130: ='[1]Rapport 5'!L132 -> 0 | M130: ='[1]Rapport 5'!M132 -> 190952.14 | N130: ='[1]Rapport 5'!N132 -> 7013.05 | O130: ='[1]Rapport 5'!O132 -> 2481.5 | P130: ='[1]Rapport 5'!P132 -> 38 | Q130: ='[1]Rapport 5'!Q132 -> 0 | R130: ='[1]Rapport 5'!R132 -> 0 | S130: ='[1]Rapport 5'!S132 -> 455.74 | T130: ='[1]Rapport 5'!T132 -> 0 | U130: ='[1]Rapport 5'!U132 -> 18402.62 | V130: ='[1]Rapport 5'!V132 -> 527.25 | W130: ='[1]Rapport 5'!W132 -> 5546.59 | X130: ='[1]Rapport 5'!X132 -> 107.19 | Y130: =+I130+K130+M130+O130+Q130+S130+U130+W130 -> 227,650 | Z130: 8,275 | AA130: 3.6% | AB130: 145 | AC130: =1+(AB130/COUNT($AB$3:AB$318)*10) -> 5.588607595 | AD130: 5 | AE130: 590 | AF130: =+IF(ISERROR(AE130/I130),0,AE130/I130) -> 6.0% | AG130: 221 | AH130: 7.993670886 | AI130: =+IF(INT(AH130)=11,10,INT(AH130)) -> 7 | AJ130: =+L130 -> 0 | AK130: =+IF(ISERROR(IF(AJ130=0,0,AJ130/K130)),1,IF(AJ130=0,0,AJ130/K130)) -> 0.0% | AL130: 1 | AM130: 1.03164557 | AN130: =+IF(INT(AM130)=11,10,INT(AM130)) -> 1 | AO130: =+N130 -> 7,013 | AP130: =+IF(ISERROR(IF(AO130=0,0,AO130/M130)),1,IF(AO130=0,0,AO130/M130)) -> 3.7% | AQ130: 235 | AR130: 8.436708861 | AS130: =+IF(INT(AR130)=11,10,INT(AR130)) -> 8 | AT130: 38 | AU130: 1.5% | AV130: 94 | AW130: 3.974683544 | AX130: 3 | AY130: 0 | AZ130: 0.0% | BA130: 1 | BB130: 1.03164557 | BC130: 1 | BD130: 0 | BE130: 0.0% | BF130: 1 | BG130: 1.03164557 | BH130: 1 | BI130: 527 | BJ130: 2.9% | BK130: 32 | BL130: 2.012658228 | BM130: 2 | BN130: 107 | BO130: 1.9% | BP130: 106 | BQ130: 4.35443038 | BR130: 4 | BT130: 8833 | BU130: =+BT130-A130 -> -1690
A131: ='[1]Rapport 5'!A133 -> 10524 | B131: ='[1]Rapport 5'!B133 -> SAINT JULIEN LES VILLAS | C131: ='[1]Rapport 5'!C133 -> 410524 | D131: ='[1]Rapport 5'!D133 -> SAINT JULIEN LES VILLAS | E131: ='[1]Rapport 5'!E133 -> 14 | F131: ='[1]Rapport 5'!F133 -> TROYES | G131: ='[1]Rapport 5'!G133 -> 50 | H131: ='[1]Rapport 5'!H133 -> AUBE HAUTE MARNE | I131: ='[1]Rapport 5'!I133 -> 12672.88 | J131: ='[1]Rapport 5'!J133 -> 416.72 | K131: ='[1]Rapport 5'!K133 -> 0 | L131: ='[1]Rapport 5'!L133 -> 0 | M131: ='[1]Rapport 5'!M133 -> 256071.09 | N131: ='[1]Rapport 5'!N133 -> 6942.07 | O131: ='[1]Rapport 5'!O133 -> 9727 | P131: ='[1]Rapport 5'!P133 -> 2573.86 | Q131: ='[1]Rapport 5'!Q133 -> 139.99 | R131: ='[1]Rapport 5'!R133 -> 0 | S131: ='[1]Rapport 5'!S133 -> 192 | T131: ='[1]Rapport 5'!T133 -> 0 | U131: ='[1]Rapport 5'!U133 -> 15943.35 | V131: ='[1]Rapport 5'!V133 -> 1649.41 | W131: ='[1]Rapport 5'!W133 -> 10127.98 | X131: ='[1]Rapport 5'!X133 -> 180 | Y131: 304,874 | Z131: 11,762 | AA131: 3.9% | AB131: =RANK(AA131,$AA$3:$AA$318,1) -> 177 | AC131: =1+(AB131/COUNT($AB$3:AB$318)*10) -> 6.601265823 | AD131: 6 | AE131: 417 | AF131: 3.3% | AG131: =RANK(AF131,$AF$3:$AF$318,1) -> 118 | AH131: =1+(AG131/COUNT($AG$3:$AG$318)*10) -> 4.734177215 | AI131: 4 | AJ131: 0 | AK131: 0.0% | AL131: =RANK(AK131,$AK$3:$AK$318,1) -> 1 | AM131: =1+(AL131/COUNT($AL$3:$AL$318)*10) -> 1.03164557 | AN131: 1 | AO131: 6,942 | AP131: 2.7% | AQ131: =RANK(AP131,$AP$3:$AP$318,1) -> 132 | AR131: =1+(AQ131/COUNT($AQ$3:$AQ$318)*10) -> 5.17721519 | AS131: 5 | AT131: =+P131 -> 2,574 | AU131: =+IF(ISERROR(IF(AT131=0,0,AT131/O131)),1,IF(AT131=0,0,AT131/O131)) -> 26.5% | AV131: =RANK(AU131,$AU$3:$AU$318,1) -> 310 | AW131: =1+(AV131/COUNT($AV$3:$AV$318)*10) -> 10.81012658 | AX131: =+IF(INT(AW131)=11,10,INT(AW131)) -> 10 | AY131: =+R131 -> 0 | AZ131: =+IF(ISERROR(IF(AY131=0,0,AY131/T131)),1,IF(AY131=0,0,AY131/T131)) -> 0.0% | BA131: =RANK(AZ131,$AZ$3:$AZ$318,1) -> 1 | BB131: =1+(BA131/COUNT($BA$3:$BA$318)*10) -> 1.03164557 | BC131: =+IF(INT(BB131)=11,10,INT(BB131)) -> 1 | BD131: =+T131 -> 0 | BE131: =+IF(ISERROR(IF(BD131=0,0,BD131/S131)),1,IF(BD131=0,0,BD131/S131)) -> 0.0% | BF131: =RANK(BE131,$BE$3:$BE$318,1) -> 1 | BG131: =1+(BF131/COUNT($BF$3:$BF$318)*10) -> 1.03164557 | BH131: =+IF(INT(BG131)=11,10,INT(BG131)) -> 1 | BI131: =+V131 -> 1,649 | BJ131: =+IF(ISERROR(IF(BI131=0,0,BI131/U131)),1,IF(BI131=0,0,BI131/U131)) -> 10.3% | BK131: =RANK(BJ131,$BJ$3:$BJ$318,1) -> 168 | BL131: =1+(BK131/COUNT($BK$3:$BK$318)*10) -> 6.316455696 | BM131: =+IF(INT(BL131)=11,10,INT(BL131)) -> 6 | BN131: =+X131 -> 180 | BO131: =+IF(ISERROR(IF(BN131=0,0,BN131/W131)),1,IF(BN131=0,0,BN131/W131)) -> 1.8% | BP131: =RANK(BO131,$BO$3:$BO$318,1) -> 95 | BQ131: =1+(BP131/COUNT($BP$3:$BP$318)*10) -> 4.006329114 | BR131: =+IF(INT(BQ131)=11,10,INT(BQ131)) -> 4 | BT131: 8839 | BU131: -1685
